Workbook

Sheet คู่มือการใช้งาน
A2: คู่มือการใช้งานโปรแกรมจัดทำเอกสารงานทะเบียน (ประถมศึกษา)
A3: หลักสูตรแกนกลางการศึกษาขั้นพื้นฐาน 2551
A4: ความสามารถของโปรแกรม
A5: 1. กรอกข้อมูลครั้งเดียวสามารถเชื่อมโยงออกเอกสารรายงานต่างๆได้
A6: 2. ออกใบรายงานผลการเรียนรายบุคคล (ส่งผลการเรียนให้ผู้ปกครองหรือแนบสมุดพกนักเรียน)
A8: 4. ออกใบรับรองการศึกษา (กระดาษ A4)
A9: 5. ออกเอกสาร ปพ.1 แบบสำเนา, ปพ.1 แบบจริง (กระดาษ A4 ตามแบบพิมพ์ สกสค.) สามารถออกเอกสารได้ตั้งแต่ ป.1 - ป.6
A10: 6. ออกเอกสาร ปพ.3 รายงานผู้สำเร็จการศึกษา (กระดาษ Legal ตามแบบพิมพ์ สกสค.)
A11: 7. สามารถพิมพ์ 2 หน้าอัตโนมัติสำหรับเครื่องพิมพ์ 2 หน้า
A12: 8. ใช้งานได้กับ Microsoft 2007, 2010
A13: การใช้งานโปรแกรม
A14: 1. ทำการคัดลอกแฟ้มต้นฉบับและตั้งชื่อโดยแยกเป็นห้อง หรือ เรียงต่อกันได้จำนวนไม่เกิน 120 คน แนะนำให้ตั้งชื่อตามปีการศึกษาที่นักเรียนจบ เช่น Year_Room (2554_R1) เพื่อให้ง่ายต่อการค้นหา
A15: 2. เปิดแฟ้มที่ต้องการจะป้อนข้อมูล และเปิดการใช้งานมาโคร ทำการกำหนดค่าข้อมูลพื้นฐานสถานศึกษา
A16: ในแผ่นงานข้อมูลพื้นฐาน
A17: 3. กำหนดข้อมูลวิชาที่เรียนในแต่ละปีการศึกษา ในแผ่นงาน
A18: โดยเรียงลำดับวิชาพื้นฐานก่อนและวิชาเพิ่มเติม จากนั้นกำหนดกิจกรรม
A19: 4. กำหนดปีการศึกษาที่เข้าเรียนในชั้นปีที่ 1 และเพิ่มหรือแก้ไขรายละเอียดข้อมูลของนักเรียน
A20: ในแผ่นงาน โดยสามารถกรอกข้อมูลได้สูงสุด 120 คน
A23: 5. กรอกข้อมูลสำหรับออกใบรับรองในแผ่นงาน
A24: 6. กรอกข้อมูลผลการเรียนในแต่ละชั้น/ปีการศึกษา ในแผ่นงาน “ผลการเรียน1” – “ผลการเรียน6”
A25: 7. ทำการออกรายงานต่างๆ จากแผ่นงาน

Sheet ข้อมูลพื้นฐาน
AZ2: A205210201210199212183194210
C3: ข้อมูลพื้นฐานสถานศึกษา | G3: โปรแกรมจัดทำเอกสารงานทะเบียน (ประถมศึกษา) หลักสูตรการศึกษาขั้นพื้นฐาน 2551 รุ่นปรับถ่วงโอเน็ตจาก สทศ.
C4: โรงเรียน : | D4: บ้านหนองคา | G4: จัดทำและพัฒนาโดย
C5: สังกัด : | D5: สำนักงานคณะกรรมการการศึกษาขั้นพื้นฐาน
C6: เขตพื้นที่ : | D6: ประถมศึกษาบุรีรัมย์ เขต 2 | G6: นายสุริยันต์ แก้วชนะ ตำแหน่ง ครู ค.ศ.2
C7: ตำบล | D7: กระสัง | G7: โรงเรียนกระสังพิทยาคม อำเภอกระสัง จังหวัดบุรีรัมย์
C8: อำเภอ | D8: กระสัง | G8: สำนักงานเขตพื้นที่การศึกษามัธยมศึกษา เขต 32
C9: จังหวัด | D9: บุรีรัมย์ | G9: Update 7 พฤศจิกายน 2557 (1)
C10: นายทะเบียน : | D10: นายสุริยันต์ แก้วชนะ | G10: สอบถามปัญหาในการใช้หรือข้อเสนอแนะได้ที่
C11: ตำแหน่ง : | D11: นายทะเบียน | G11: เว็บไซต์ http://krusuriyan.blogspot.com
C12: ผู้อำนวยการ : | D12: นายสมชาติ มีสกุล | G12: facebook : www.facebook.com/pp2551excel
C13: ตำแหน่ง : | D13: ผู้อำนวยการโรงเรียน | G13: สงวนลิขสิทธิ์@2011

Sheet หลักสูตร
A1: ="โรงเรียน" & ข้อมูลพื้นฐาน!D4 & " อำเภอ" &ข้อมูลพื้นฐาน!D8 & " จังหวัด" &ข้อมูลพื้นฐาน!D9 -> โรงเรียนบ้านหนองคา อำเภอกระสัง จังหวัดบุรีรัมย์ | I1: ="โรงเรียน" & ข้อมูลพื้นฐาน!D4 & " อำเภอ" &ข้อมูลพื้นฐาน!D8 & " จังหวัด" &ข้อมูลพื้นฐาน!D9 -> โรงเรียนบ้านหนองคา อำเภอกระสัง จังหวัดบุรีรัมย์ | Q1: ="โรงเรียน" & ข้อมูลพื้นฐาน!D4 & " อำเภอ" &ข้อมูลพื้นฐาน!D8 & " จังหวัด" &ข้อมูลพื้นฐาน!D9 -> โรงเรียนบ้านหนองคา อำเภอกระสัง จังหวัดบุรีรัมย์
A2: โครงสร้างหลักสูตร ระดับชั้นประถมศึกษาปีที่ 1 | I2: โครงสร้างหลักสูตร ระดับชั้นประถมศึกษาปีที่ 2 | Q2: โครงสร้างหลักสูตร ระดับชั้นประถมศึกษาปีที่ 3
A3: ลำดับ | B3: รหัสวิชา | C3: ชื่อวิชา | D3: ประเภท | E3: กลุ่มสาระ | F3: เวลาเรียน/ปี | G3: น้ำหนัก | I3: ลำดับ | J3: รหัสวิชา | K3: ชื่อวิชา | L3: ประเภท | M3: กลุ่มสาระ | N3: เวลาเรียน/ปี | O3: น้ำหนัก | Q3: ลำดับ | R3: รหัสวิชา | S3: ชื่อวิชา | T3: ประเภท | U3: กลุ่มสาระ | V3: เวลาเรียน/ปี | W3: น้ำหนัก | Y3: ประเภทวิชา | Z3: กลุ่มสาระ
A4: 1 | B4: ท11101 | C4: ภาษาไทย | D4: พื้นฐาน | E4: ภาษาไทย | F4: 200 | G4: =F4/40 -> 5 | I4: 1 | J4: ท12101 | K4: ภาษาไทย | L4: พื้นฐาน | M4: ภาษาไทย | N4: 200 | O4: =N4/40 -> 5 | Q4: 1 | R4: ท13101 | S4: ภาษาไทย | T4: พื้นฐาน | U4: ภาษาไทย | V4: 200 | W4: =V4/40 -> 5 | Y4: พื้นฐาน | Z4: ภาษาไทย
A5: 2 | B5: ค11101 | C5: คณิตศาสตร์ | D5: พื้นฐาน | E5: คณิตศาสตร์ | F5: 200 | G5: =F5/40 -> 5 | I5: 2 | J5: ค12101 | K5: คณิตศาสตร์ | L5: พื้นฐาน | M5: คณิตศาสตร์ | N5: 200 | O5: =N5/40 -> 5 | Q5: 2 | R5: ค13101 | S5: คณิตศาสตร์ | T5: พื้นฐาน | U5: คณิตศาสตร์ | V5: 200 | W5: =V5/40 -> 5 | Y5: เพิ่มเติม | Z5: คณิตศาสตร์
A6: 3 | B6: ว11101 | C6: วิทยาศาสตร์ | D6: พื้นฐาน | E6: วิทยาศาสตร์ | F6: 80 | G6: 2 | I6: 3 | J6: ว12101 | K6: วิทยาศาสตร์ | L6: พื้นฐาน | M6: วิทยาศาสตร์ | N6: 80 | O6: 2 | Q6: 3 | R6: ว13101 | S6: วิทยาศาสตร์ | T6: พื้นฐาน | U6: วิทยาศาสตร์ | V6: 80 | W6: 2 | Y6: มาตรฐานสากล | Z6: วิทยาศาสตร์
A7: 4 | B7: ส11101 | C7: สังคมศึกษา ศาสนาและวัฒนธรรม | D7: พื้นฐาน | E7: สังคมศึกษา ศาสนาและวัฒนธรรม | F7: 80 | G7: 2 | I7: 4 | J7: ส12101 | K7: สังคมศึกษา ศาสนาและวัฒนธรรม | L7: พื้นฐาน | M7: สังคมศึกษา ศาสนาและวัฒนธรรม | N7: 80 | O7: 2 | Q7: 4 | R7: ส13101 | S7: สังคมศึกษา ศาสนาและวัฒนธรรม | T7: พื้นฐาน | U7: สังคมศึกษา ศาสนาและวัฒนธรรม | V7: 80 | W7: 2 | Y7: กิจกรรม | Z7: สังคมศึกษา ศาสนาและวัฒนธรรม
A8: 5 | B8: ส11102 | C8: ประวัติศาสตร์ | D8: พื้นฐาน | E8: สุขศึกษาและพละศึกษา | F8: 40 | G8: 1 | I8: 5 | J8: ส12102 | K8: ประวัติศาสตร์ | L8: พื้นฐาน | M8: สุขศึกษาและพละศึกษา | N8: 40 | O8: 1 | Q8: 5 | R8: ส13102 | S8: ประวัติศาสตร์ | T8: พื้นฐาน | U8: สุขศึกษาและพละศึกษา | V8: 40 | W8: 1 | Z8: สุขศึกษาและพละศึกษา
A9: 6 | B9: พ11101 | C9: สุขศึกษาและพลศึกษา | D9: พื้นฐาน | E9: สุขศึกษาและพละศึกษา | F9: 80 | G9: 2 | I9: 6 | J9: พ12101 | K9: สุขศึกษาและพลศึกษา | L9: พื้นฐาน | M9: สุขศึกษาและพละศึกษา | N9: 80 | O9: 2 | Q9: 6 | R9: พ13101 | S9: สุขศึกษาและพลศึกษา | T9: พื้นฐาน | U9: สุขศึกษาและพละศึกษา | V9: 80 | W9: 2 | Z9: ภาษาต่างประเทศ
A10: 7 | B10: ศ11101 | C10: ศิลปะ | D10: พื้นฐาน | E10: ศิลปะ | F10: 80 | G10: 2 | I10: 7 | J10: ศ12101 | K10: ศิลปะ | L10: พื้นฐาน | M10: ศิลปะ | N10: 80 | O10: 2 | Q10: 7 | R10: ศ13101 | S10: ศิลปะ | T10: พื้นฐาน | U10: ศิลปะ | V10: 80 | W10: 2 | Z10: ศิลปะ
A11: 8 | B11: ง11101 | C11: การงานอาชีพและเทคโนโลยี | D11: พื้นฐาน | E11: การงานอาชีพและเทคโนโลยี | F11: 40 | G11: 1 | I11: 8 | J11: ง12101 | K11: การงานอาชีพและเทคโนโลยี | L11: พื้นฐาน | M11: การงานอาชีพและเทคโนโลยี | N11: 40 | O11: 1 | Q11: 8 | R11: ง13101 | S11: การงานอาชีพและเทคโนโลยี | T11: พื้นฐาน | U11: การงานอาชีพและเทคโนโลยี | V11: 40 | W11: 1 | Z11: การงานอาชีพและเทคโนโลยี
A12: 9 | B12: อ11101 | C12: ภาษาต่างประเทศ | D12: พื้นฐาน | E12: ภาษาต่างประเทศ | F12: 40 | G12: 1 | I12: 9 | J12: อ12101 | K12: ภาษาต่างประเทศ | L12: พื้นฐาน | M12: ภาษาต่างประเทศ | N12: 40 | O12: 1 | Q12: 9 | R12: อ13101 | S12: ภาษาต่างประเทศ | T12: พื้นฐาน | U12: ภาษาต่างประเทศ | V12: 40 | W12: 1 | Z12: กิจกรรม
A13: 10 | B13: ง11201 | C13: คอมพิวเตอร์ | D13: เพิ่มเติม | E13: การงานอาชีพและเทคโนโลยี | F13: 40 | G13: 1 | I13: 10 | J13: ง12201 | K13: คอมพิวเตอร์ | L13: เพิ่มเติม | M13: การงานอาชีพและเทคโนโลยี | N13: 40 | O13: 1 | Q13: 10 | R13: ง13201 | S13: คอมพิวเตอร์ | T13: เพิ่มเติม | U13: การงานอาชีพและเทคโนโลยี | V13: 40 | W13: 1
A14: 11 | B14: ง11202 | C14: งานเกษตร | D14: เพิ่มเติม | F14: 40 | G14: 1 | I14: 11 | J14: อ12201 | K14: ภาษาอังกฤษพูด | L14: เพิ่มเติม | N14: 40 | O14: 1 | Q14: 11 | R14: ว่าง | T14: เพิ่มเติม | W14: 0
A15: 12 | B15: ว่าง | D15: เพิ่มเติม | G15: 0 | I15: 12 | J15: ว่าง | L15: เพิ่มเติม | O15: 0 | Q15: 12 | R15: ว่าง | T15: เพิ่มเติม | W15: 0
A16: 13 | G16: 0 | I16: 13 | O16: 0 | Q16: 13 | W16: 0
A17: 14 | G17: =F17/40 -> 0 | I17: 14 | O17: =N17/40 -> 0 | Q17: 14 | W17: =V17/40 -> 0
A18: 15 | G18: =F18/40 -> 0 | I18: 15 | O18: =N18/40 -> 0 | Q18: 15 | W18: =V18/40 -> 0
A19: 16 | G19: =F19/40 -> 0 | I19: 16 | O19: =N19/40 -> 0 | Q19: 16 | W19: =V19/40 -> 0
A20: 17 | G20: 0 | I20: 17 | O20: 0 | Q20: 17 | W20: 0
A21: 18 | G21: 0 | I21: 18 | O21: 0 | Q21: 18 | W21: 0
C22: กิจกรรมพัฒนาผู้เรียน | K22: กิจกรรมพัฒนาผู้เรียน | S22: กิจกรรมพัฒนาผู้เรียน
A23: 16 | B23: ก1 | C23: แนะแนว | D23: กิจกรรม | E23: กิจกรรม | F23: 40 | G23: - | I23: 16 | J23: ก1 | K23: แนะแนว | L23: กิจกรรม | M23: กิจกรรม | N23: 40 | O23: - | Q23: 16 | R23: ก1 | S23: แนะแนว | T23: กิจกรรม | U23: กิจกรรม | V23: 40 | W23: -
A24: 17 | B24: ก2 | C24: ลูกเสือ เนตรนารี | D24: กิจกรรม | E24: กิจกรรม | F24: 40 | G24: - | I24: 17 | J24: ก2 | K24: ลูกเสือ เนตรนารี | L24: กิจกรรม | M24: กิจกรรม | N24: 40 | O24: - | Q24: 17 | R24: ก2 | S24: ลูกเสือ เนตรนารี | T24: กิจกรรม | U24: กิจกรรม | V24: 40 | W24: -
A25: 18 | B25: ก3 | C25: ชุมนุม | D25: กิจกรรม | E25: กิจกรรม | F25: 30 | G25: - | I25: 18 | J25: ก3 | K25: ชุมนุม | L25: กิจกรรม | M25: กิจกรรม | N25: 30 | O25: - | Q25: 18 | R25: ก3 | S25: ชุมนุม | T25: กิจกรรม | U25: กิจกรรม | V25: 30 | W25: -
A26: 19 | B26: ก4 | C26: กิจกรรมเพื่อสังคมและสาธารณประโยชน์ | D26: กิจกรรม | E26: กิจกรรม | F26: 10 | G26: - | I26: 19 | J26: ก4 | K26: กิจกรรมเพื่อสังคมและสาธารณประโยชน์ | L26: กิจกรรม | M26: กิจกรรม | N26: 10 | O26: - | Q26: 19 | R26: ก4 | S26: กิจกรรมเพื่อสังคมและสาธารณประโยชน์ | T26: กิจกรรม | U26: กิจกรรม | V26: 10 | W26: -
A27: 20 | G27: - | I27: 20 | O27: - | Q27: 20 | W27: -
A29: ="โรงเรียน" & ข้อมูลพื้นฐาน!D4 & " อำเภอ" &ข้อมูลพื้นฐาน!D8 & " จังหวัด" &ข้อมูลพื้นฐาน!D9 -> โรงเรียนบ้านหนองคา อำเภอกระสัง จังหวัดบุรีรัมย์ | I29: ="โรงเรียน" & ข้อมูลพื้นฐาน!D4 & " อำเภอ" &ข้อมูลพื้นฐาน!D8 & " จังหวัด" &ข้อมูลพื้นฐาน!D9 -> โรงเรียนบ้านหนองคา อำเภอกระสัง จังหวัดบุรีรัมย์ | Q29: ="โรงเรียน" & ข้อมูลพื้นฐาน!D4 & " อำเภอ" &ข้อมูลพื้นฐาน!D8 & " จังหวัด" &ข้อมูลพื้นฐาน!D9 -> โรงเรียนบ้านหนองคา อำเภอกระสัง จังหวัดบุรีรัมย์
A30: โครงสร้างหลักสูตร ระดับชั้นประถมศึกษาปีที่ 4 | I30: โครงสร้างหลักสูตร ระดับชั้นประถมศึกษาปีที่ 5 | Q30: โครงสร้างหลักสูตร ระดับชั้นประถมศึกษาปีที่ 6
A31: ลำดับ | B31: รหัสวิชา | C31: ชื่อวิชา | D31: ประเภท | E31: กลุ่มสาระ | F31: เวลาเรียน/ปี | G31: น้ำหนัก | I31: ลำดับ | J31: รหัสวิชา | K31: ชื่อวิชา | L31: ประเภท | M31: กลุ่มสาระ | N31: เวลาเรียน/ปี | O31: น้ำหนัก | Q31: ลำดับ | R31: รหัสวิชา | S31: ชื่อวิชา | T31: ประเภท | U31: กลุ่มสาระ | V31: เวลาเรียน/ปี | W31: น้ำหนัก
A32: 1 | B32: ท | C32: ภาษาไทย | D32: พื้นฐาน | E32: ภาษาไทย | F32: 160 | G32: =F32/40 -> 4 | I32: 1 | J32: ท | K32: ภาษาไทย | L32: พื้นฐาน | M32: ภาษาไทย | N32: 160 | O32: =N32/40 -> 4 | Q32: 1 | R32: ท | S32: ภาษาไทย | T32: พื้นฐาน | U32: ภาษาไทย | V32: 160 | W32: =V32/40 -> 4
A33: 2 | B33: ค14101 | C33: คณิตศาสตร์ | D33: พื้นฐาน | E33: คณิตศาสตร์ | F33: 160 | G33: =F33/40 -> 4 | I33: 2 | J33: ค15101 | K33: คณิตศาสตร์ | L33: พื้นฐาน | M33: คณิตศาสตร์ | N33: 160 | O33: =N33/40 -> 4 | Q33: 2 | R33: ค16101 | S33: คณิตศาสตร์ | T33: พื้นฐาน | U33: คณิตศาสตร์ | V33: 160 | W33: =V33/40 -> 4
A34: 3 | B34: ว14101 | C34: วิทยาศาสตร์ | D34: พื้นฐาน | E34: วิทยาศาสตร์ | F34: 80 | G34: 2 | I34: 3 | J34: ว15101 | K34: วิทยาศาสตร์ | L34: พื้นฐาน | M34: วิทยาศาสตร์ | N34: 80 | O34: 2 | Q34: 3 | R34: ว16101 | S34: วิทยาศาสตร์ | T34: พื้นฐาน | U34: วิทยาศาสตร์ | V34: 80 | W34: 2
A35: 4 | B35: ส14101 | C35: สังคมศึกษา ศาสนาและวัฒนธรรม | D35: พื้นฐาน | E35: สังคมศึกษา ศาสนาและวัฒนธรรม | F35: 80 | G35: 2 | I35: 4 | J35: ส15101 | K35: สังคมศึกษา ศาสนาและวัฒนธรรม | L35: พื้นฐาน | M35: สังคมศึกษา ศาสนาและวัฒนธรรม | N35: 80 | O35: 2 | Q35: 4 | R35: ส16101 | S35: สังคมศึกษา ศาสนาและวัฒนธรรม | T35: พื้นฐาน | U35: สังคมศึกษา ศาสนาและวัฒนธรรม | V35: 80 | W35: 2
A36: 5 | B36: ส14102 | C36: ประวัติศาสตร์ | D36: พื้นฐาน | E36: สุขศึกษาและพละศึกษา | F36: 40 | G36: 1 | I36: 5 | J36: ส15102 | K36: ประวัติศาสตร์ | L36: พื้นฐาน | M36: สุขศึกษาและพละศึกษา | N36: 40 | O36: 1 | Q36: 5 | R36: ส16102 | S36: ประวัติศาสตร์ | T36: พื้นฐาน | U36: สุขศึกษาและพละศึกษา | V36: 40 | W36: 1
A37: 6 | B37: พ14101 | C37: สุขศึกษาและพลศึกษา | D37: พื้นฐาน | E37: สุขศึกษาและพละศึกษา | F37: 80 | G37: 2 | I37: 6 | J37: พ15101 | K37: สุขศึกษาและพลศึกษา | L37: พื้นฐาน | M37: สุขศึกษาและพละศึกษา | N37: 80 | O37: 2 | Q37: 6 | R37: พ16101 | S37: สุขศึกษาและพลศึกษา | T37: พื้นฐาน | U37: สุขศึกษาและพละศึกษา | V37: 80 | W37: 2
A38: 7 | B38: ศ14101 | C38: ศิลปะ | D38: พื้นฐาน | E38: ศิลปะ | F38: 80 | G38: 2 | I38: 7 | J38: ศ15101 | K38: ศิลปะ | L38: พื้นฐาน | M38: ศิลปะ | N38: 80 | O38: 2 | Q38: 7 | R38: ศ16101 | S38: ศิลปะ | T38: พื้นฐาน | U38: ศิลปะ | V38: 80 | W38: 2
A39: 8 | B39: ง14101 | C39: การงานอาชีพและเทคโนโลยี | D39: พื้นฐาน | E39: การงานอาชีพและเทคโนโลยี | F39: 80 | G39: 2 | I39: 8 | J39: ง15101 | K39: การงานอาชีพและเทคโนโลยี | L39: พื้นฐาน | M39: การงานอาชีพและเทคโนโลยี | N39: 80 | O39: 2 | Q39: 8 | R39: ง16101 | S39: การงานอาชีพและเทคโนโลยี | T39: พื้นฐาน | U39: การงานอาชีพและเทคโนโลยี | V39: 80 | W39: 2
A40: 9 | B40: อ14101 | C40: ภาษาต่างประเทศ | D40: พื้นฐาน | E40: ภาษาต่างประเทศ | F40: 80 | G40: 2 | I40: 9 | J40: อ15101 | K40: ภาษาต่างประเทศ | L40: พื้นฐาน | M40: ภาษาต่างประเทศ | N40: 80 | O40: 2 | Q40: 9 | R40: อ16101 | S40: ภาษาต่างประเทศ | T40: พื้นฐาน | U40: ภาษาต่างประเทศ | V40: 80 | W40: 2
A41: 10 | B41: ง14201 | C41: คอมพิวเตอร์ | D41: เพิ่มเติม | E41: การงานอาชีพและเทคโนโลยี | F41: 40 | G41: 1 | I41: 10 | J41: ง15201 | K41: คอมพิวเตอร์ | L41: เพิ่มเติม | M41: การงานอาชีพและเทคโนโลยี | N41: 40 | O41: 1 | Q41: 10 | R41: ง16201 | S41: คอมพิวเตอร์ | T41: เพิ่มเติม | U41: การงานอาชีพและเทคโนโลยี | V41: 40 | W41: 1
A42: 11 | B42: ล | C42: เลือกเรียน | D42: เพิ่มเติม | F42: 60 | G42: =F42/40 -> 1.5 | I42: 11 | J42: I15201 | K42: การศึกษาค้นค้าด้วยตนเอง | L42: เพิ่มเติม | N42: 40 | O42: 1 | Q42: 11 | R42: ล | S42: เลือกเรียน | T42: เพิ่มเติม | V42: 60 | W42: 1.5
A43: 12 | G43: 0 | I43: 12 | J43: ล | L43: เพิ่มเติม | N43: 60 | O43: 1.5 | Q43: 12 | W43: 0
A44: 13 | G44: 0 | I44: 13 | O44: 0 | Q44: 13 | W44: 0
A45: 14 | G45: =F45/40 -> 0 | I45: 14 | O45: =N45/40 -> 0 | Q45: 14 | W45: =V45/40 -> 0
A46: 15 | G46: =F46/40 -> 0 | I46: 15 | O46: =N46/40 -> 0 | Q46: 15 | W46: =V46/40 -> 0
A47: 16 | G47: =F47/40 -> 0 | I47: 16 | O47: =N47/40 -> 0 | Q47: 16 | W47: =V47/40 -> 0
A48: 17 | G48: 0 | I48: 17 | O48: 0 | Q48: 17 | W48: 0
A49: 18 | G49: 0 | I49: 18 | O49: 0 | Q49: 18 | W49: 0
C50: กิจกรรมพัฒนาผู้เรียน | K50: กิจกรรมพัฒนาผู้เรียน | S50: กิจกรรมพัฒนาผู้เรียน
A51: 16 | B51: ก1 | C51: แนะแนว | D51: กิจกรรม | E51: กิจกรรม | F51: 40 | G51: - | I51: 16 | J51: ก1 | K51: แนะแนว | L51: กิจกรรม | M51: กิจกรรม | N51: 40 | O51: - | Q51: 16 | R51: ก1 | S51: แนะแนว | T51: กิจกรรม | U51: กิจกรรม | V51: 40 | W51: -
A52: 17 | B52: ก2 | C52: ลูกเสือ เนตรนารี | D52: กิจกรรม | E52: กิจกรรม | F52: 40 | G52: - | I52: 17 | J52: ก2 | K52: ลูกเสือ เนตรนารี | L52: กิจกรรม | M52: กิจกรรม | N52: 40 | O52: - | Q52: 17 | R52: ก2 | S52: ลูกเสือ เนตรนารี | T52: กิจกรรม | U52: กิจกรรม | V52: 40 | W52: -
A53: 18 | B53: ก3 | C53: ชุมนุม | D53: กิจกรรม | E53: กิจกรรม | F53: 30 | G53: - | I53: 18 | J53: ก3 | K53: ชุมนุม | L53: กิจกรรม | M53: กิจกรรม | N53: 30 | O53: - | Q53: 18 | R53: ก3 | S53: ชุมนุม | T53: กิจกรรม | U53: กิจกรรม | V53: 30 | W53: -
A54: 19 | B54: ก4 | C54: กิจกรรมเพื่อสังคมและสาธารณประโยชน์ | D54: กิจกรรม | E54: กิจกรรม | F54: 10 | G54: - | I54: 19 | J54: ก4 | K54: กิจกรรมเพื่อสังคมและสาธารณประโยชน์ | L54: กิจกรรม | M54: กิจกรรม | N54: 10 | O54: - | Q54: 19 | R54: ก4 | S54: กิจกรรมเพื่อสังคมและสาธารณประโยชน์ | T54: กิจกรรม | U54: กิจกรรม | V54: 10 | W54: -
A55: 20 | G55: - | I55: 20 | O55: - | Q55: 20 | W55: -

Sheet ข้อมูลนักเรียน
A1: ="โรงเรียน" & ข้อมูลพื้นฐาน!D4 & " อำเภอ" &ข้อมูลพื้นฐาน!D8 & " จังหวัด" &ข้อมูลพื้นฐาน!D9 -> โรงเรียนบ้านหนองคา อำเภอกระสัง จังหวัดบุรีรัมย์ | AI1: โอนข้อมูลโอเน็ต ให้คัดลอกข้อมูลผลคะแนนโอเน็ตที่ได้จากสทศ มาวางที่ชีต O-Net จากนั้นกำหนดคอลัมน์แต่ละกลุ่มสาระให้ตรงกับข้อมูลโอเน็ต
A3: ข้อมูลพื้นฐานนักเรียน | G3: ปีที่ 1 ชั้น | H3: ปีที่ 2 ชั้น | K3: ปีที่ 3 ชั้น | L3: ปีที่ 1 ชั้น | M3: ปีที่ 2 ชั้น | AN3: แถวเริ่มต้น | AP3: 10 | AQ3: แถวสุดท้าย | AS3: 433 | AT3: เลขประชาชนคอลัมน์ | AV3: C | AZ3: สัดส่วนโอเน็ต %
A4: เข้าศึกษาชั้นปีที่ 1 ปีการศึกษา : | F4: 2550 | G4: ประถมศึกษาปีที่ 4 | H4: ประถมศึกษาปีที่ 5 | K4: ประถมศึกษาปีที่ 6 | AK4: กำหนดคอลัมน์แฟ้มโอเน็ต | AN4: E | AO4: F | AP4: G | AQ4: H | AR4: I | AS4: J | AT4: K | AU4: L | AV4: U | AZ4: 20
A5: ห้อง | B5: เลขที่ | C5: เลขประจำตัวนักเรียน | D5: คำนำหน้า | E5: ชื่อ | F5: สกุล | G5: เลข 13 หลัก | H5: วันที่เข้าเรียน | K5: โรงเรียนเดิม | L5: จังหวัด | M5: ชั้นสุดท้าย | N5: วัน เดือน ปีเกิด | Q5: เพศ | R5: สัญชาติ | S5: ศาสนา | T5: บิดา | U5: มารดา | V5: ป.พ.1 ชุดที่ | W5: ป.พ.1 เลขที่ | X5: ป.พ.2เลขที่ | Y5: วันที่อนุมัติจบ | AB5: วันที่อนุมัติออก | AE5: สาเหตุที่ออก | AF5: สรุปผลการประเมิน | AJ5: ผลการตัดสิน | AN5: ผลการประเมินระดับชาติ (O-Net) | AV5: ผลคะแนนเฉลี่ยจาก สทศ | AW5: สรุปผลการเรียน | AZ5: เกรดเฉลี่ย ถ่วงโอเน็ต | BA5: หมายเหตุท้าย ปพ.1
H6: วันที่ | I6: เดือน | J6: ปี พ.ศ. | N6: วันที่ | O6: เดือน | P6: ปี พ.ศ. | Y6: วันที่ | Z6: เดือน | AA6: ปี พ.ศ. | AB6: วันที่ | AC6: เดือน | AD6: ปี พ.ศ. | AF6: วิชาพื้นฐาน | AG6: อ่าน คิดฯ | AH6: คุณลักษณะ | AI6: กิจกรรม | AJ6: วิชาพื้นฐาน | AK6: อ่าน คิดฯ | AL6: คุณลักษณะ | AM6: กิจกรรม | AN6: ไทย | AO6: คณิตฯ | AP6: วิทย์ฯ | AQ6: สังคมฯ | AR6: สุข ฯ | AS6: ศิลปะ | AT6: การงานฯ | AU6: อังกฤษ | AW6: นก.เรียน | AX6: นก.ได้ | AY6: เกรดเฉลี่ย | BB6: เพศ | BC6: คำนำหน้า | BD6: กิจกรรม | BE6: อ่าน | BF6: เดือน
A7: 1 | B7: 1 | C7: 00001 | D7: เด็กชาย | E7: สมชาย | F7: สุขสบาย | G7: 1111111111111 | H7: 16 | I7: พฤษภาคม | J7: 2550 | K7: - | L7: ราชบุรี | M7: - | N7: 10 | O7: มีนาคม | P7: 2544 | Q7: ชาย | R7: ไทย | S7: พุทธ | T7: นายสมบัติ สุขสบาย | U7: นางสมสวย สุขสบาย | Y7: 25 | Z7: มีนาคม | AA7: 2557 | AB7: 31 | AC7: มีนาคม | AD7: 2557 | AN7: 39.20 | AO7: 25.60 | AP7: 20.00 | AQ7: 30.00 | AR7: 42.50 | AS7: 32.50 | AT7: 50.00 | AU7: 26.00 | AV7: 0.30 | AW7: 67 | AX7: 67 | AY7: =ROUNDDOWN(3.56716417910448,2) -> 3.56 | AZ7: =ROUNDDOWN(2.85,2) -> 2.85 | BA7: "โรงเรียนมาตรฐานสากลตามประกาศ สพฐ." | BB7: ชาย | BC7: เด็กชาย | BF7: มกราคม
A8: 1 | B8: 2 | C8: 00002 | D8: เด็กหญิง | E8: สมหวัง | F8: ตั้งใจเรียน | G8: 2222222222222 | H8: 16 | I8: พฤษภาคม | J8: 2550 | K8: โคกสูง | L8: ราชบุรี | M8: กำลังเรียนชั้นประถมศึกษาปีที่ 4 | N8: 25 | O8: กุมภาพันธ์ | P8: 2544 | Q8: หญิง | R8: ไทย | S8: พุทธ | T8: นายสมโชค ตั้งใจเรียน | U8: นางสมหญิง ตั้งใจเรียน | AN8: 60.00 | AO8: 26.40 | AP8: 42.00 | AQ8: 54.00 | AR8: 60.00 | AS8: 52.50 | AT8: 56.00 | AU8: 24.00 | AV8: 0.43 | AW8: 67 | AX8: 67 | AY8: =ROUNDDOWN(3.61194029850746,2) -> 3.61 | AZ8: =ROUNDDOWN(2.88,2) -> 2.88 | BB8: หญิง | BC8: เด็กหญิง | BD8: ผ่าน | BE8: ผ่าน | BF8: กุมภาพันธ์
AW9: 67 | AX9: 0 | AY9: =ROUNDDOWN(0,2) -> 0 | AZ9: 0 | BC9: นาย | BE9: ดี | BF9: มีนาคม
AW10: 67 | AX10: 0 | AY10: 0 | AZ10: 0 | BC10: นางสาว | BE10: ดีเยี่ยม | BF10: เมษายน
AW11: 67 | AX11: 0 | AY11: 0 | AZ11: 0 | BC11: สามเณร | BF11: พฤษภาคม
AW12: 67 | AX12: 0 | AY12: 0 | AZ12: 0 | BC12: พระ | BF12: มิถุนายน
AW13: 67 | AX13: 0 | AY13: 0 | AZ13: 0 | BF13: กรกฎาคม
AW14: 67 | AX14: 0 | AY14: 0 | AZ14: 0 | BF14: สิงหาคม
AW15: 67 | AX15: 0 | AY15: 0 | AZ15: 0 | BF15: กันยายน
AW16: 67 | AX16: 0 | AY16: 0 | AZ16: 0 | BF16: ตุลาคม
AW17: 67 | AX17: 0 | AY17: 0 | AZ17: 0 | BF17: พฤศจิกายน
AW18: 67 | AX18: 0 | AY18: 0 | AZ18: 0 | BF18: ธันวาคม
AW19: 67 | AX19: 0 | AY19: 0 | AZ19: 0
AW20: 67 | AX20: 0 | AY20: 0 | AZ20: 0
AW21: 67 | AX21: 0 | AY21: 0 | AZ21: 0
AW22: 67 | AX22: 0 | AY22: 0 | AZ22: 0
AW23: 67 | AX23: 0 | AY23: 0 | AZ23: 0
AW24: 67 | AX24: 0 | AY24: 0 | AZ24: 0
AW25: 67 | AX25: 0 | AY25: 0 | AZ25: 0
AW26: 67 | AX26: 0 | AY26: 0 | AZ26: 0
AW27: 67 | AX27: 0 | AY27: 0 | AZ27: 0
AW28: 67 | AX28: 0 | AY28: 0 | AZ28: 0
AW29: 67 | AX29: 0 | AY29: =ROUNDDOWN(0,2) -> 0 | AZ29: 0
AW30: 67 | AX30: 0 | AY30: 0 | AZ30: 0
AW31: 67 | AX31: 0 | AY31: 0 | AZ31: 0
AW32: 67 | AX32: 0 | AY32: 0 | AZ32: 0
AW33: 67 | AX33: 0 | AY33: 0 | AZ33: 0
AW34: 67 | AX34: 0 | AY34: 0 | AZ34: 0
AW35: 67 | AX35: 0 | AY35: 0 | AZ35: 0
AW36: 67 | AX36: 0 | AY36: 0 | AZ36: 0
AW37: 67 | AX37: 0 | AY37: 0 | AZ37: 0
AW38: 67 | AX38: 0 | AY38: 0 | AZ38: 0
AW39: 67 | AX39: 0 | AY39: 0 | AZ39: 0
AW40: 67 | AX40: 0 | AY40: 0 | AZ40: 0
AW41: 67 | AX41: 0 | AY41: 0 | AZ41: 0
AW42: 67 | AX42: 0 | AY42: 0 | AZ42: 0
AW43: 67 | AX43: 0 | AY43: 0 | AZ43: 0
AW44: 67 | AX44: 0 | AY44: 0 | AZ44: 0
AW45: 67 | AX45: 0 | AY45: 0 | AZ45: 0
AW46: 67 | AX46: 0 | AY46: 0 | AZ46: 0
AW47: 67 | AX47: 0 | AY47: 0 | AZ47: 0
AW48: 67 | AX48: 0 | AY48: 0 | AZ48: 0
AW49: 67 | AX49: 0 | AY49: =ROUNDDOWN(0,2) -> 0 | AZ49: 0
AW50: 67 | AX50: 0 | AY50: 0 | AZ50: 0
AW51: 67 | AX51: 0 | AY51: 0 | AZ51: 0
AW52: 67 | AX52: 0 | AY52: 0 | AZ52: 0
AW53: 67 | AX53: 0 | AY53: 0 | AZ53: 0
AW54: 67 | AX54: 0 | AY54: 0 | AZ54: 0
AW55: 67 | AX55: 0 | AY55: 0 | AZ55: 0
AW56: 67 | AX56: 0 | AY56: 0 | AZ56: 0
AW57: 67 | AX57: 0 | AY57: 0 | AZ57: 0
AW58: 67 | AX58: 0 | AY58: 0 | AZ58: 0
AW59: 67 | AX59: 0 | AY59: 0 | AZ59: 0
AW60: 67 | AX60: 0 | AY60: 0 | AZ60: 0
AW61: 67 | AX61: 0 | AY61: 0 | AZ61: 0
AW62: 67 | AX62: 0 | AY62: 0 | AZ62: 0
AW63: 67 | AX63: 0 | AY63: 0 | AZ63: 0
AW64: 67 | AX64: 0 | AY64: 0 | AZ64: 0
AW65: 67 | AX65: 0 | AY65: 0 | AZ65: 0
AW66: 67 | AX66: 0 | AY66: 0 | AZ66: 0
AW67: 67 | AX67: 0 | AY67: 0 | AZ67: 0
AW68: 67 | AX68: 0 | AY68: 0 | AZ68: 0
AW69: 67 | AX69: 0 | AY69: =ROUNDDOWN(0,2) -> 0 | AZ69: 0
AW70: 67 | AX70: 0 | AY70: 0 | AZ70: 0
AW71: 67 | AX71: 0 | AY71: 0 | AZ71: 0
AW72: 67 | AX72: 0 | AY72: 0 | AZ72: 0
AW73: 67 | AX73: 0 | AY73: 0 | AZ73: 0
AW74: 67 | AX74: 0 | AY74: 0 | AZ74: 0
AW75: 67 | AX75: 0 | AY75: 0 | AZ75: 0
AW76: 67 | AX76: 0 | AY76: 0 | AZ76: 0
AW77: 67 | AX77: 0 | AY77: 0 | AZ77: 0
AW78: 67 | AX78: 0 | AY78: 0 | AZ78: 0
AW79: 67 | AX79: 0 | AY79: 0 | AZ79: 0
AW80: 67 | AX80: 0 | AY80: 0 | AZ80: 0
AW81: 67 | AX81: 0 | AY81: 0 | AZ81: 0
AW82: 67 | AX82: 0 | AY82: 0 | AZ82: 0
AW83: 67 | AX83: 0 | AY83: 0 | AZ83: 0
AW84: 67 | AX84: 0 | AY84: 0 | AZ84: 0
AW85: 67 | AX85: 0 | AY85: 0 | AZ85: 0
AW86: 67 | AX86: 0 | AY86: 0 | AZ86: 0
AW87: 67 | AX87: 0 | AY87: 0 | AZ87: 0
AW88: 67 | AX88: 0 | AY88: 0 | AZ88: 0
AW89: 67 | AX89: 0 | AY89: =ROUNDDOWN(0,2) -> 0 | AZ89: 0
AW90: 67 | AX90: 0 | AY90: 0 | AZ90: 0
AW91: 67 | AX91: 0 | AY91: 0 | AZ91: 0
AW92: 67 | AX92: 0 | AY92: 0 | AZ92: 0
AW93: 67 | AX93: 0 | AY93: 0 | AZ93: 0
AW94: 67 | AX94: 0 | AY94: 0 | AZ94: 0
AW95: 67 | AX95: 0 | AY95: 0 | AZ95: 0
AW96: 67 | AX96: 0 | AY96: 0 | AZ96: 0
AW97: 67 | AX97: 0 | AY97: 0 | AZ97: 0
AW98: 67 | AX98: 0 | AY98: 0 | AZ98: 0
AW99: 67 | AX99: 0 | AY99: 0 | AZ99: 0
AW100: 67 | AX100: 0 | AY100: 0 | AZ100: 0
AW101: 67 | AX101: 0 | AY101: 0 | AZ101: 0
AW102: 67 | AX102: 0 | AY102: 0 | AZ102: 0
AW103: 67 | AX103: 0 | AY103: 0 | AZ103: 0
AW104: 67 | AX104: 0 | AY104: 0 | AZ104: 0
AW105: 67 | AX105: 0 | AY105: 0 | AZ105: 0
AW106: 67 | AX106: 0 | AY106: 0 | AZ106: 0
AW107: 67 | AX107: 0 | AY107: 0 | AZ107: 0
AW108: 67 | AX108: 0 | AY108: 0 | AZ108: 0
AW109: 67 | AX109: 0 | AY109: =ROUNDDOWN(0,2) -> 0 | AZ109: 0
AW110: 67 | AX110: 0 | AY110: 0 | AZ110: 0
AW111: 67 | AX111: 0 | AY111: 0 | AZ111: 0
AW112: 67 | AX112: 0 | AY112: 0 | AZ112: 0
AW113: 67 | AX113: 0 | AY113: 0 | AZ113: 0
AW114: 67 | AX114: 0 | AY114: 0 | AZ114: 0
AW115: 67 | AX115: 0 | AY115: 0 | AZ115: 0
AW116: 67 | AX116: 0 | AY116: 0 | AZ116: 0
AW117: 67 | AX117: 0 | AY117: 0 | AZ117: 0
AW118: 67 | AX118: 0 | AY118: 0 | AZ118: 0
AW119: 67 | AX119: 0 | AY119: 0 | AZ119: 0
AW120: 67 | AX120: 0 | AY120: 0 | AZ120: 0
AW121: 67 | AX121: 0 | AY121: 0 | AZ121: 0
AW122: 67 | AX122: 0 | AY122: 0 | AZ122: 0
AW123: 67 | AX123: 0 | AY123: 0 | AZ123: 0
AW124: 67 | AX124: 0 | AY124: 0 | AZ124: 0
AW125: 67 | AX125: 0 | AY125: 0 | AZ125: 0
AW126: 67 | AX126: 0 | AY126: 0 | AZ126: 0

Sheet O-Net
A2: รายงานผลการทดสอบทางการศึกษาระดับชาติขั้นพื้นฐาน (O0.00NET)
A3: มัธยมศึกษาปีที่ 3 ปีการศึกษา 2555
A4: ฉบับที่ 1 0.00 ผลการทดสอบ O0.00NET รายบุคคล
A5: รหัสโรงเรียน xxxxxxxxx | G5: ชื่อโรงเรียน xxxxxxxxxx
A6: สังกัด สำนักงานคณะกรรมการการศึกษาขั้นพื้นฐาน | E6: จังหวัด xxxxxxxx | K6: ขนาดโรงเรียน ใหญ่พิเศษ | R6: ที่ตั้งโรงเรียน ในเมือง
A8: ลำดับ | B8: เลขที่ นั่งสอบ | C8: เลขประจำตัว ประชาชน | D8: ชื่อ 0.00 สกุล | E8: คะแนนนักเรียน | M8: ระดับผลการทดสอบ O 0.00 NET | U8: ร้อยละ 20 ผลการทดสอบ O0.00NET
E9: 91 | F9: 94 | G9: 95 | H9: 92 | I9: 96 | J9: 97 | K9: 98 | L9: 93 | M9: 91 | N9: 94 | O9: 95 | P9: 92 | Q9: 96 | R9: 97 | S9: 98 | T9: 93
A10: 1 | B10: xxxxxx | C10: 1111111111111 | D10: สมชาย สุขสบาย | E10: 39.2 | F10: 25.6 | G10: 20 | H10: 30 | I10: 42.5 | J10: 32.5 | K10: 50 | L10: 26 | M10: 1.5 | N10: 1.5 | O10: 1 | P10: 1.5 | Q10: 1.5 | R10: 1.5 | S10: 2.5 | T10: 1.5 | U10: 0.3
A11: 2 | B11: xxxxxx | C11: 2222222222222 | D11: สมหวัง ตั้งใจเรียน | E11: 60 | F11: 26.4 | G11: 42 | H11: 54 | I11: 60 | J11: 52.5 | K11: 56 | L11: 24 | M11: 2.5 | N11: 1.5 | O11: 2 | P11: 2.5 | Q11: 2.5 | R11: 2.5 | S11: 2.5 | T11: 1.5 | U11: 0.43
C13: หมายเหตุ : | D13: กรณีที่พบคะแนนเป็นเครื่องหมาย * หรือ x กรุณาติดต่อ สทศ.
D14: หากพบเครื่องหมาย + จะไม่นำคะแนนมาคิดค่าสถิติ(เด็กพิเศษ)

Sheet ข้อมูลใบรับรอง
A1: ="โรงเรียน" & ข้อมูลพื้นฐาน!D4 & " อำเภอ" &ข้อมูลพื้นฐาน!D8 & " จังหวัด" &ข้อมูลพื้นฐาน!D9 -> โรงเรียนบ้านหนองคา อำเภอกระสัง จังหวัดบุรีรัมย์
A3: ข้อมูลใบรับรอง
A5: ห้อง | B5: เลขที่ | C5: เลขประจำตัวนักเรียน | D5: ชื่อ - สกุล | F5: เลขบัตรประจำตัวประชาชน | G5: เลขที่เอกสาร | H5: วันที่ออกเอกสาร | K5: คำรับรองบรรทัดที่ 1 | L5: คำรับรองบรรทัดที่ 2 | M5: คำรับรองบรรทัดที่ 3 | N5: หมายเหตุ
H6: วันที่ | I6: เดือน | J6: ปี
A7: =ข้อมูลนักเรียน!A7 -> 1 | B7: =IF(ข้อมูลนักเรียน!B7=0,"",ข้อมูลนักเรียน!B7) -> 1 | C7: =IF(ข้อมูลนักเรียน!C7=0,"",ข้อมูลนักเรียน!C7) -> 00001 | D7: =IF(ข้อมูลนักเรียน!C7=0,"",ข้อมูลนักเรียน!D7 & ข้อมูลนักเรียน!E7) -> เด็กชายสมชาย | E7: =IF(ข้อมูลนักเรียน!C7=0,"",ข้อมูลนักเรียน!F7) -> สุขสบาย | F7: =IF(ข้อมูลนักเรียน!D7=0,"",ข้อมูลนักเรียน!G7) -> 1111111111111 | G7: 1/2556 | H7: 14 | I7: มกราคม | J7: 2556 | K7: กำลังศึกษาอยู่ในระดับชั้นประถมศึกษาปีที่ 6 | N7: ใบรับรองนี้มีอายุ 120 วัน นับแต่วันที่ออกให้
A8: =ข้อมูลนักเรียน!A8 -> 1 | B8: =IF(ข้อมูลนักเรียน!B8=0,"",ข้อมูลนักเรียน!B8) -> 2 | C8: =IF(ข้อมูลนักเรียน!C8=0,"",ข้อมูลนักเรียน!C8) -> 00002 | D8: =IF(ข้อมูลนักเรียน!C8=0,"",ข้อมูลนักเรียน!D8 & ข้อมูลนักเรียน!E8) -> เด็กหญิงสมหวัง | E8: =IF(ข้อมูลนักเรียน!C8=0,"",ข้อมูลนักเรียน!F8) -> ตั้งใจเรียน | F8: =IF(ข้อมูลนักเรียน!D8=0,"",ข้อมูลนักเรียน!G8) -> 2222222222222 | G8: 2/2556 | H8: 15 | I8: มกราคม | J8: 2556 | K8: กำลังศึกษาอยู่ในระดับชั้นประถมศึกษาปีที่ 6 | L8: เป็นนักดนตรี | M8: มีระดับผลการเรียนระดับดี | N8: ใบรับรองนี้มีอายุ 120 วัน นับแต่วันที่ออกให้
A9: =ข้อมูลนักเรียน!A9 -> 0 | B9: =IF(ข้อมูลนักเรียน!B9=0,"",ข้อมูลนักเรียน!B9) ->  | C9: =IF(ข้อมูลนักเรียน!C9=0,"",ข้อมูลนักเรียน!C9) ->  | D9: =IF(ข้อมูลนักเรียน!C9=0,"",ข้อมูลนักเรียน!D9 & ข้อมูลนักเรียน!E9) ->  | E9: =IF(ข้อมูลนักเรียน!C9=0,"",ข้อมูลนักเรียน!F9) ->  | F9: =IF(ข้อมูลนักเรียน!D9=0,"",ข้อมูลนักเรียน!G9) -> 
A10: =ข้อมูลนักเรียน!A10 -> 0 | B10: =IF(ข้อมูลนักเรียน!B10=0,"",ข้อมูลนักเรียน!B10) ->  | C10: =IF(ข้อมูลนักเรียน!C10=0,"",ข้อมูลนักเรียน!C10) ->  | D10: =IF(ข้อมูลนักเรียน!C10=0,"",ข้อมูลนักเรียน!D10 & ข้อมูลนักเรียน!E10) ->  | E10: =IF(ข้อมูลนักเรียน!C10=0,"",ข้อมูลนักเรียน!F10) ->  | F10: =IF(ข้อมูลนักเรียน!D10=0,"",ข้อมูลนักเรียน!G10) -> 
A11: =ข้อมูลนักเรียน!A11 -> 0 | B11: =IF(ข้อมูลนักเรียน!B11=0,"",ข้อมูลนักเรียน!B11) ->  | C11: =IF(ข้อมูลนักเรียน!C11=0,"",ข้อมูลนักเรียน!C11) ->  | D11: =IF(ข้อมูลนักเรียน!C11=0,"",ข้อมูลนักเรียน!D11 & ข้อมูลนักเรียน!E11) ->  | E11: =IF(ข้อมูลนักเรียน!C11=0,"",ข้อมูลนักเรียน!F11) ->  | F11: =IF(ข้อมูลนักเรียน!D11=0,"",ข้อมูลนักเรียน!G11) -> 
A12: =ข้อมูลนักเรียน!A12 -> 0 | B12: =IF(ข้อมูลนักเรียน!B12=0,"",ข้อมูลนักเรียน!B12) ->  | C12: =IF(ข้อมูลนักเรียน!C12=0,"",ข้อมูลนักเรียน!C12) ->  | D12: =IF(ข้อมูลนักเรียน!C12=0,"",ข้อมูลนักเรียน!D12 & ข้อมูลนักเรียน!E12) ->  | E12: =IF(ข้อมูลนักเรียน!C12=0,"",ข้อมูลนักเรียน!F12) ->  | F12: =IF(ข้อมูลนักเรียน!D12=0,"",ข้อมูลนักเรียน!G12) -> 
A13: =ข้อมูลนักเรียน!A13 -> 0 | B13: =IF(ข้อมูลนักเรียน!B13=0,"",ข้อมูลนักเรียน!B13) ->  | C13: =IF(ข้อมูลนักเรียน!C13=0,"",ข้อมูลนักเรียน!C13) ->  | D13: =IF(ข้อมูลนักเรียน!C13=0,"",ข้อมูลนักเรียน!D13 & ข้อมูลนักเรียน!E13) ->  | E13: =IF(ข้อมูลนักเรียน!C13=0,"",ข้อมูลนักเรียน!F13) ->  | F13: =IF(ข้อมูลนักเรียน!D13=0,"",ข้อมูลนักเรียน!G13) -> 
A14: =ข้อมูลนักเรียน!A14 -> 0 | B14: =IF(ข้อมูลนักเรียน!B14=0,"",ข้อมูลนักเรียน!B14) ->  | C14: =IF(ข้อมูลนักเรียน!C14=0,"",ข้อมูลนักเรียน!C14) ->  | D14: =IF(ข้อมูลนักเรียน!C14=0,"",ข้อมูลนักเรียน!D14 & ข้อมูลนักเรียน!E14) ->  | E14: =IF(ข้อมูลนักเรียน!C14=0,"",ข้อมูลนักเรียน!F14) ->  | F14: =IF(ข้อมูลนักเรียน!D14=0,"",ข้อมูลนักเรียน!G14) -> 
A15: =ข้อมูลนักเรียน!A15 -> 0 | B15: =IF(ข้อมูลนักเรียน!B15=0,"",ข้อมูลนักเรียน!B15) ->  | C15: =IF(ข้อมูลนักเรียน!C15=0,"",ข้อมูลนักเรียน!C15) ->  | D15: =IF(ข้อมูลนักเรียน!C15=0,"",ข้อมูลนักเรียน!D15 & ข้อมูลนักเรียน!E15) ->  | E15: =IF(ข้อมูลนักเรียน!C15=0,"",ข้อมูลนักเรียน!F15) ->  | F15: =IF(ข้อมูลนักเรียน!D15=0,"",ข้อมูลนักเรียน!G15) -> 
A16: =ข้อมูลนักเรียน!A16 -> 0 | B16: =IF(ข้อมูลนักเรียน!B16=0,"",ข้อมูลนักเรียน!B16) ->  | C16: =IF(ข้อมูลนักเรียน!C16=0,"",ข้อมูลนักเรียน!C16) ->  | D16: =IF(ข้อมูลนักเรียน!C16=0,"",ข้อมูลนักเรียน!D16 & ข้อมูลนักเรียน!E16) ->  | E16: =IF(ข้อมูลนักเรียน!C16=0,"",ข้อมูลนักเรียน!F16) ->  | F16: =IF(ข้อมูลนักเรียน!D16=0,"",ข้อมูลนักเรียน!G16) -> 
A17: =ข้อมูลนักเรียน!A17 -> 0 | B17: =IF(ข้อมูลนักเรียน!B17=0,"",ข้อมูลนักเรียน!B17) ->  | C17: =IF(ข้อมูลนักเรียน!C17=0,"",ข้อมูลนักเรียน!C17) ->  | D17: =IF(ข้อมูลนักเรียน!C17=0,"",ข้อมูลนักเรียน!D17 & ข้อมูลนักเรียน!E17) ->  | E17: =IF(ข้อมูลนักเรียน!C17=0,"",ข้อมูลนักเรียน!F17) ->  | F17: =IF(ข้อมูลนักเรียน!D17=0,"",ข้อมูลนักเรียน!G17) -> 
A18: =ข้อมูลนักเรียน!A18 -> 0 | B18: =IF(ข้อมูลนักเรียน!B18=0,"",ข้อมูลนักเรียน!B18) ->  | C18: =IF(ข้อมูลนักเรียน!C18=0,"",ข้อมูลนักเรียน!C18) ->  | D18: =IF(ข้อมูลนักเรียน!C18=0,"",ข้อมูลนักเรียน!D18 & ข้อมูลนักเรียน!E18) ->  | E18: =IF(ข้อมูลนักเรียน!C18=0,"",ข้อมูลนักเรียน!F18) ->  | F18: =IF(ข้อมูลนักเรียน!D18=0,"",ข้อมูลนักเรียน!G18) -> 
A19: =ข้อมูลนักเรียน!A19 -> 0 | B19: =IF(ข้อมูลนักเรียน!B19=0,"",ข้อมูลนักเรียน!B19) ->  | C19: =IF(ข้อมูลนักเรียน!C19=0,"",ข้อมูลนักเรียน!C19) ->  | D19: =IF(ข้อมูลนักเรียน!C19=0,"",ข้อมูลนักเรียน!D19 & ข้อมูลนักเรียน!E19) ->  | E19: =IF(ข้อมูลนักเรียน!C19=0,"",ข้อมูลนักเรียน!F19) ->  | F19: =IF(ข้อมูลนักเรียน!D19=0,"",ข้อมูลนักเรียน!G19) -> 
A20: =ข้อมูลนักเรียน!A20 -> 0 | B20: =IF(ข้อมูลนักเรียน!B20=0,"",ข้อมูลนักเรียน!B20) ->  | C20: =IF(ข้อมูลนักเรียน!C20=0,"",ข้อมูลนักเรียน!C20) ->  | D20: =IF(ข้อมูลนักเรียน!C20=0,"",ข้อมูลนักเรียน!D20 & ข้อมูลนักเรียน!E20) ->  | E20: =IF(ข้อมูลนักเรียน!C20=0,"",ข้อมูลนักเรียน!F20) ->  | F20: =IF(ข้อมูลนักเรียน!D20=0,"",ข้อมูลนักเรียน!G20) -> 
A21: =ข้อมูลนักเรียน!A21 -> 0 | B21: =IF(ข้อมูลนักเรียน!B21=0,"",ข้อมูลนักเรียน!B21) ->  | C21: =IF(ข้อมูลนักเรียน!C21=0,"",ข้อมูลนักเรียน!C21) ->  | D21: =IF(ข้อมูลนักเรียน!C21=0,"",ข้อมูลนักเรียน!D21 & ข้อมูลนักเรียน!E21) ->  | E21: =IF(ข้อมูลนักเรียน!C21=0,"",ข้อมูลนักเรียน!F21) ->  | F21: =IF(ข้อมูลนักเรียน!D21=0,"",ข้อมูลนักเรียน!G21) -> 
A22: =ข้อมูลนักเรียน!A22 -> 0 | B22: =IF(ข้อมูลนักเรียน!B22=0,"",ข้อมูลนักเรียน!B22) ->  | C22: =IF(ข้อมูลนักเรียน!C22=0,"",ข้อมูลนักเรียน!C22) ->  | D22: =IF(ข้อมูลนักเรียน!C22=0,"",ข้อมูลนักเรียน!D22 & ข้อมูลนักเรียน!E22) ->  | E22: =IF(ข้อมูลนักเรียน!C22=0,"",ข้อมูลนักเรียน!F22) ->  | F22: =IF(ข้อมูลนักเรียน!D22=0,"",ข้อมูลนักเรียน!G22) -> 
A23: =ข้อมูลนักเรียน!A23 -> 0 | B23: =IF(ข้อมูลนักเรียน!B23=0,"",ข้อมูลนักเรียน!B23) ->  | C23: =IF(ข้อมูลนักเรียน!C23=0,"",ข้อมูลนักเรียน!C23) ->  | D23: =IF(ข้อมูลนักเรียน!C23=0,"",ข้อมูลนักเรียน!D23 & ข้อมูลนักเรียน!E23) ->  | E23: =IF(ข้อมูลนักเรียน!C23=0,"",ข้อมูลนักเรียน!F23) ->  | F23: =IF(ข้อมูลนักเรียน!D23=0,"",ข้อมูลนักเรียน!G23) -> 
A24: =ข้อมูลนักเรียน!A24 -> 0 | B24: =IF(ข้อมูลนักเรียน!B24=0,"",ข้อมูลนักเรียน!B24) ->  | C24: =IF(ข้อมูลนักเรียน!C24=0,"",ข้อมูลนักเรียน!C24) ->  | D24: =IF(ข้อมูลนักเรียน!C24=0,"",ข้อมูลนักเรียน!D24 & ข้อมูลนักเรียน!E24) ->  | E24: =IF(ข้อมูลนักเรียน!C24=0,"",ข้อมูลนักเรียน!F24) ->  | F24: =IF(ข้อมูลนักเรียน!D24=0,"",ข้อมูลนักเรียน!G24) -> 
A25: =ข้อมูลนักเรียน!A25 -> 0 | B25: =IF(ข้อมูลนักเรียน!B25=0,"",ข้อมูลนักเรียน!B25) ->  | C25: =IF(ข้อมูลนักเรียน!C25=0,"",ข้อมูลนักเรียน!C25) ->  | D25: =IF(ข้อมูลนักเรียน!C25=0,"",ข้อมูลนักเรียน!D25 & ข้อมูลนักเรียน!E25) ->  | E25: =IF(ข้อมูลนักเรียน!C25=0,"",ข้อมูลนักเรียน!F25) ->  | F25: =IF(ข้อมูลนักเรียน!D25=0,"",ข้อมูลนักเรียน!G25) -> 
A26: =ข้อมูลนักเรียน!A26 -> 0 | B26: =IF(ข้อมูลนักเรียน!B26=0,"",ข้อมูลนักเรียน!B26) ->  | C26: =IF(ข้อมูลนักเรียน!C26=0,"",ข้อมูลนักเรียน!C26) ->  | D26: =IF(ข้อมูลนักเรียน!C26=0,"",ข้อมูลนักเรียน!D26 & ข้อมูลนักเรียน!E26) ->  | E26: =IF(ข้อมูลนักเรียน!C26=0,"",ข้อมูลนักเรียน!F26) ->  | F26: =IF(ข้อมูลนักเรียน!D26=0,"",ข้อมูลนักเรียน!G26) -> 
A27: =ข้อมูลนักเรียน!A27 -> 0 | B27: =IF(ข้อมูลนักเรียน!B27=0,"",ข้อมูลนักเรียน!B27) ->  | C27: =IF(ข้อมูลนักเรียน!C27=0,"",ข้อมูลนักเรียน!C27) ->  | D27: =IF(ข้อมูลนักเรียน!C27=0,"",ข้อมูลนักเรียน!D27 & ข้อมูลนักเรียน!E27) ->  | E27: =IF(ข้อมูลนักเรียน!C27=0,"",ข้อมูลนักเรียน!F27) ->  | F27: =IF(ข้อมูลนักเรียน!D27=0,"",ข้อมูลนักเรียน!G27) -> 
A28: =ข้อมูลนักเรียน!A28 -> 0 | B28: =IF(ข้อมูลนักเรียน!B28=0,"",ข้อมูลนักเรียน!B28) ->  | C28: =IF(ข้อมูลนักเรียน!C28=0,"",ข้อมูลนักเรียน!C28) ->  | D28: =IF(ข้อมูลนักเรียน!C28=0,"",ข้อมูลนักเรียน!D28 & ข้อมูลนักเรียน!E28) ->  | E28: =IF(ข้อมูลนักเรียน!C28=0,"",ข้อมูลนักเรียน!F28) ->  | F28: =IF(ข้อมูลนักเรียน!D28=0,"",ข้อมูลนักเรียน!G28) -> 
A29: =ข้อมูลนักเรียน!A29 -> 0 | B29: =IF(ข้อมูลนักเรียน!B29=0,"",ข้อมูลนักเรียน!B29) ->  | C29: =IF(ข้อมูลนักเรียน!C29=0,"",ข้อมูลนักเรียน!C29) ->  | D29: =IF(ข้อมูลนักเรียน!C29=0,"",ข้อมูลนักเรียน!D29 & ข้อมูลนักเรียน!E29) ->  | E29: =IF(ข้อมูลนักเรียน!C29=0,"",ข้อมูลนักเรียน!F29) ->  | F29: =IF(ข้อมูลนักเรียน!D29=0,"",ข้อมูลนักเรียน!G29) -> 
A30: =ข้อมูลนักเรียน!A30 -> 0 | B30: =IF(ข้อมูลนักเรียน!B30=0,"",ข้อมูลนักเรียน!B30) ->  | C30: =IF(ข้อมูลนักเรียน!C30=0,"",ข้อมูลนักเรียน!C30) ->  | D30: =IF(ข้อมูลนักเรียน!C30=0,"",ข้อมูลนักเรียน!D30 & ข้อมูลนักเรียน!E30) ->  | E30: =IF(ข้อมูลนักเรียน!C30=0,"",ข้อมูลนักเรียน!F30) ->  | F30: =IF(ข้อมูลนักเรียน!D30=0,"",ข้อมูลนักเรียน!G30) -> 
A31: =ข้อมูลนักเรียน!A31 -> 0 | B31: =IF(ข้อมูลนักเรียน!B31=0,"",ข้อมูลนักเรียน!B31) ->  | C31: =IF(ข้อมูลนักเรียน!C31=0,"",ข้อมูลนักเรียน!C31) ->  | D31: =IF(ข้อมูลนักเรียน!C31=0,"",ข้อมูลนักเรียน!D31 & ข้อมูลนักเรียน!E31) ->  | E31: =IF(ข้อมูลนักเรียน!C31=0,"",ข้อมูลนักเรียน!F31) ->  | F31: =IF(ข้อมูลนักเรียน!D31=0,"",ข้อมูลนักเรียน!G31) -> 
A32: =ข้อมูลนักเรียน!A32 -> 0 | B32: =IF(ข้อมูลนักเรียน!B32=0,"",ข้อมูลนักเรียน!B32) ->  | C32: =IF(ข้อมูลนักเรียน!C32=0,"",ข้อมูลนักเรียน!C32) ->  | D32: =IF(ข้อมูลนักเรียน!C32=0,"",ข้อมูลนักเรียน!D32 & ข้อมูลนักเรียน!E32) ->  | E32: =IF(ข้อมูลนักเรียน!C32=0,"",ข้อมูลนักเรียน!F32) ->  | F32: =IF(ข้อมูลนักเรียน!D32=0,"",ข้อมูลนักเรียน!G32) -> 
A33: =ข้อมูลนักเรียน!A33 -> 0 | B33: =IF(ข้อมูลนักเรียน!B33=0,"",ข้อมูลนักเรียน!B33) ->  | C33: =IF(ข้อมูลนักเรียน!C33=0,"",ข้อมูลนักเรียน!C33) ->  | D33: =IF(ข้อมูลนักเรียน!C33=0,"",ข้อมูลนักเรียน!D33 & ข้อมูลนักเรียน!E33) ->  | E33: =IF(ข้อมูลนักเรียน!C33=0,"",ข้อมูลนักเรียน!F33) ->  | F33: =IF(ข้อมูลนักเรียน!D33=0,"",ข้อมูลนักเรียน!G33) -> 
A34: =ข้อมูลนักเรียน!A34 -> 0 | B34: =IF(ข้อมูลนักเรียน!B34=0,"",ข้อมูลนักเรียน!B34) ->  | C34: =IF(ข้อมูลนักเรียน!C34=0,"",ข้อมูลนักเรียน!C34) ->  | D34: =IF(ข้อมูลนักเรียน!C34=0,"",ข้อมูลนักเรียน!D34 & ข้อมูลนักเรียน!E34) ->  | E34: =IF(ข้อมูลนักเรียน!C34=0,"",ข้อมูลนักเรียน!F34) ->  | F34: =IF(ข้อมูลนักเรียน!D34=0,"",ข้อมูลนักเรียน!G34) -> 
A35: =ข้อมูลนักเรียน!A35 -> 0 | B35: =IF(ข้อมูลนักเรียน!B35=0,"",ข้อมูลนักเรียน!B35) ->  | C35: =IF(ข้อมูลนักเรียน!C35=0,"",ข้อมูลนักเรียน!C35) ->  | D35: =IF(ข้อมูลนักเรียน!C35=0,"",ข้อมูลนักเรียน!D35 & ข้อมูลนักเรียน!E35) ->  | E35: =IF(ข้อมูลนักเรียน!C35=0,"",ข้อมูลนักเรียน!F35) ->  | F35: =IF(ข้อมูลนักเรียน!D35=0,"",ข้อมูลนักเรียน!G35) -> 
A36: =ข้อมูลนักเรียน!A36 -> 0 | B36: =IF(ข้อมูลนักเรียน!B36=0,"",ข้อมูลนักเรียน!B36) ->  | C36: =IF(ข้อมูลนักเรียน!C36=0,"",ข้อมูลนักเรียน!C36) ->  | D36: =IF(ข้อมูลนักเรียน!C36=0,"",ข้อมูลนักเรียน!D36 & ข้อมูลนักเรียน!E36) ->  | E36: =IF(ข้อมูลนักเรียน!C36=0,"",ข้อมูลนักเรียน!F36) ->  | F36: =IF(ข้อมูลนักเรียน!D36=0,"",ข้อมูลนักเรียน!G36) -> 
A37: =ข้อมูลนักเรียน!A37 -> 0 | B37: =IF(ข้อมูลนักเรียน!B37=0,"",ข้อมูลนักเรียน!B37) ->  | C37: =IF(ข้อมูลนักเรียน!C37=0,"",ข้อมูลนักเรียน!C37) ->  | D37: =IF(ข้อมูลนักเรียน!C37=0,"",ข้อมูลนักเรียน!D37 & ข้อมูลนักเรียน!E37) ->  | E37: =IF(ข้อมูลนักเรียน!C37=0,"",ข้อมูลนักเรียน!F37) ->  | F37: =IF(ข้อมูลนักเรียน!D37=0,"",ข้อมูลนักเรียน!G37) -> 
A38: =ข้อมูลนักเรียน!A38 -> 0 | B38: =IF(ข้อมูลนักเรียน!B38=0,"",ข้อมูลนักเรียน!B38) ->  | C38: =IF(ข้อมูลนักเรียน!C38=0,"",ข้อมูลนักเรียน!C38) ->  | D38: =IF(ข้อมูลนักเรียน!C38=0,"",ข้อมูลนักเรียน!D38 & ข้อมูลนักเรียน!E38) ->  | E38: =IF(ข้อมูลนักเรียน!C38=0,"",ข้อมูลนักเรียน!F38) ->  | F38: =IF(ข้อมูลนักเรียน!D38=0,"",ข้อมูลนักเรียน!G38) -> 
A39: =ข้อมูลนักเรียน!A39 -> 0 | B39: =IF(ข้อมูลนักเรียน!B39=0,"",ข้อมูลนักเรียน!B39) ->  | C39: =IF(ข้อมูลนักเรียน!C39=0,"",ข้อมูลนักเรียน!C39) ->  | D39: =IF(ข้อมูลนักเรียน!C39=0,"",ข้อมูลนักเรียน!D39 & ข้อมูลนักเรียน!E39) ->  | E39: =IF(ข้อมูลนักเรียน!C39=0,"",ข้อมูลนักเรียน!F39) ->  | F39: =IF(ข้อมูลนักเรียน!D39=0,"",ข้อมูลนักเรียน!G39) -> 
A40: =ข้อมูลนักเรียน!A40 -> 0 | B40: =IF(ข้อมูลนักเรียน!B40=0,"",ข้อมูลนักเรียน!B40) ->  | C40: =IF(ข้อมูลนักเรียน!C40=0,"",ข้อมูลนักเรียน!C40) ->  | D40: =IF(ข้อมูลนักเรียน!C40=0,"",ข้อมูลนักเรียน!D40 & ข้อมูลนักเรียน!E40) ->  | E40: =IF(ข้อมูลนักเรียน!C40=0,"",ข้อมูลนักเรียน!F40) ->  | F40: =IF(ข้อมูลนักเรียน!D40=0,"",ข้อมูลนักเรียน!G40) -> 
A41: =ข้อมูลนักเรียน!A41 -> 0 | B41: =IF(ข้อมูลนักเรียน!B41=0,"",ข้อมูลนักเรียน!B41) ->  | C41: =IF(ข้อมูลนักเรียน!C41=0,"",ข้อมูลนักเรียน!C41) ->  | D41: =IF(ข้อมูลนักเรียน!C41=0,"",ข้อมูลนักเรียน!D41 & ข้อมูลนักเรียน!E41) ->  | E41: =IF(ข้อมูลนักเรียน!C41=0,"",ข้อมูลนักเรียน!F41) ->  | F41: =IF(ข้อมูลนักเรียน!D41=0,"",ข้อมูลนักเรียน!G41) -> 
A42: =ข้อมูลนักเรียน!A42 -> 0 | B42: =IF(ข้อมูลนักเรียน!B42=0,"",ข้อมูลนักเรียน!B42) ->  | C42: =IF(ข้อมูลนักเรียน!C42=0,"",ข้อมูลนักเรียน!C42) ->  | D42: =IF(ข้อมูลนักเรียน!C42=0,"",ข้อมูลนักเรียน!D42 & ข้อมูลนักเรียน!E42) ->  | E42: =IF(ข้อมูลนักเรียน!C42=0,"",ข้อมูลนักเรียน!F42) ->  | F42: =IF(ข้อมูลนักเรียน!D42=0,"",ข้อมูลนักเรียน!G42) -> 
A43: =ข้อมูลนักเรียน!A43 -> 0 | B43: =IF(ข้อมูลนักเรียน!B43=0,"",ข้อมูลนักเรียน!B43) ->  | C43: =IF(ข้อมูลนักเรียน!C43=0,"",ข้อมูลนักเรียน!C43) ->  | D43: =IF(ข้อมูลนักเรียน!C43=0,"",ข้อมูลนักเรียน!D43 & ข้อมูลนักเรียน!E43) ->  | E43: =IF(ข้อมูลนักเรียน!C43=0,"",ข้อมูลนักเรียน!F43) ->  | F43: =IF(ข้อมูลนักเรียน!D43=0,"",ข้อมูลนักเรียน!G43) -> 
A44: =ข้อมูลนักเรียน!A44 -> 0 | B44: =IF(ข้อมูลนักเรียน!B44=0,"",ข้อมูลนักเรียน!B44) ->  | C44: =IF(ข้อมูลนักเรียน!C44=0,"",ข้อมูลนักเรียน!C44) ->  | D44: =IF(ข้อมูลนักเรียน!C44=0,"",ข้อมูลนักเรียน!D44 & ข้อมูลนักเรียน!E44) ->  | E44: =IF(ข้อมูลนักเรียน!C44=0,"",ข้อมูลนักเรียน!F44) ->  | F44: =IF(ข้อมูลนักเรียน!D44=0,"",ข้อมูลนักเรียน!G44) -> 
A45: =ข้อมูลนักเรียน!A45 -> 0 | B45: =IF(ข้อมูลนักเรียน!B45=0,"",ข้อมูลนักเรียน!B45) ->  | C45: =IF(ข้อมูลนักเรียน!C45=0,"",ข้อมูลนักเรียน!C45) ->  | D45: =IF(ข้อมูลนักเรียน!C45=0,"",ข้อมูลนักเรียน!D45 & ข้อมูลนักเรียน!E45) ->  | E45: =IF(ข้อมูลนักเรียน!C45=0,"",ข้อมูลนักเรียน!F45) ->  | F45: =IF(ข้อมูลนักเรียน!D45=0,"",ข้อมูลนักเรียน!G45) -> 
A46: =ข้อมูลนักเรียน!A46 -> 0 | B46: =IF(ข้อมูลนักเรียน!B46=0,"",ข้อมูลนักเรียน!B46) ->  | C46: =IF(ข้อมูลนักเรียน!C46=0,"",ข้อมูลนักเรียน!C46) ->  | D46: =IF(ข้อมูลนักเรียน!C46=0,"",ข้อมูลนักเรียน!D46 & ข้อมูลนักเรียน!E46) ->  | E46: =IF(ข้อมูลนักเรียน!C46=0,"",ข้อมูลนักเรียน!F46) ->  | F46: =IF(ข้อมูลนักเรียน!D46=0,"",ข้อมูลนักเรียน!G46) -> 
A47: =ข้อมูลนักเรียน!A47 -> 0 | B47: =IF(ข้อมูลนักเรียน!B47=0,"",ข้อมูลนักเรียน!B47) ->  | C47: =IF(ข้อมูลนักเรียน!C47=0,"",ข้อมูลนักเรียน!C47) ->  | D47: =IF(ข้อมูลนักเรียน!C47=0,"",ข้อมูลนักเรียน!D47 & ข้อมูลนักเรียน!E47) ->  | E47: =IF(ข้อมูลนักเรียน!C47=0,"",ข้อมูลนักเรียน!F47) ->  | F47: =IF(ข้อมูลนักเรียน!D47=0,"",ข้อมูลนักเรียน!G47) -> 
A48: =ข้อมูลนักเรียน!A48 -> 0 | B48: =IF(ข้อมูลนักเรียน!B48=0,"",ข้อมูลนักเรียน!B48) ->  | C48: =IF(ข้อมูลนักเรียน!C48=0,"",ข้อมูลนักเรียน!C48) ->  | D48: =IF(ข้อมูลนักเรียน!C48=0,"",ข้อมูลนักเรียน!D48 & ข้อมูลนักเรียน!E48) ->  | E48: =IF(ข้อมูลนักเรียน!C48=0,"",ข้อมูลนักเรียน!F48) ->  | F48: =IF(ข้อมูลนักเรียน!D48=0,"",ข้อมูลนักเรียน!G48) -> 
A49: =ข้อมูลนักเรียน!A49 -> 0 | B49: =IF(ข้อมูลนักเรียน!B49=0,"",ข้อมูลนักเรียน!B49) ->  | C49: =IF(ข้อมูลนักเรียน!C49=0,"",ข้อมูลนักเรียน!C49) ->  | D49: =IF(ข้อมูลนักเรียน!C49=0,"",ข้อมูลนักเรียน!D49 & ข้อมูลนักเรียน!E49) ->  | E49: =IF(ข้อมูลนักเรียน!C49=0,"",ข้อมูลนักเรียน!F49) ->  | F49: =IF(ข้อมูลนักเรียน!D49=0,"",ข้อมูลนักเรียน!G49) -> 
A50: =ข้อมูลนักเรียน!A50 -> 0 | B50: =IF(ข้อมูลนักเรียน!B50=0,"",ข้อมูลนักเรียน!B50) ->  | C50: =IF(ข้อมูลนักเรียน!C50=0,"",ข้อมูลนักเรียน!C50) ->  | D50: =IF(ข้อมูลนักเรียน!C50=0,"",ข้อมูลนักเรียน!D50 & ข้อมูลนักเรียน!E50) ->  | E50: =IF(ข้อมูลนักเรียน!C50=0,"",ข้อมูลนักเรียน!F50) ->  | F50: =IF(ข้อมูลนักเรียน!D50=0,"",ข้อมูลนักเรียน!G50) -> 
A51: =ข้อมูลนักเรียน!A51 -> 0 | B51: =IF(ข้อมูลนักเรียน!B51=0,"",ข้อมูลนักเรียน!B51) ->  | C51: =IF(ข้อมูลนักเรียน!C51=0,"",ข้อมูลนักเรียน!C51) ->  | D51: =IF(ข้อมูลนักเรียน!C51=0,"",ข้อมูลนักเรียน!D51 & ข้อมูลนักเรียน!E51) ->  | E51: =IF(ข้อมูลนักเรียน!C51=0,"",ข้อมูลนักเรียน!F51) ->  | F51: =IF(ข้อมูลนักเรียน!D51=0,"",ข้อมูลนักเรียน!G51) -> 
A52: =ข้อมูลนักเรียน!A52 -> 0 | B52: =IF(ข้อมูลนักเรียน!B52=0,"",ข้อมูลนักเรียน!B52) ->  | C52: =IF(ข้อมูลนักเรียน!C52=0,"",ข้อมูลนักเรียน!C52) ->  | D52: =IF(ข้อมูลนักเรียน!C52=0,"",ข้อมูลนักเรียน!D52 & ข้อมูลนักเรียน!E52) ->  | E52: =IF(ข้อมูลนักเรียน!C52=0,"",ข้อมูลนักเรียน!F52) ->  | F52: =IF(ข้อมูลนักเรียน!D52=0,"",ข้อมูลนักเรียน!G52) -> 
A53: =ข้อมูลนักเรียน!A53 -> 0 | B53: =IF(ข้อมูลนักเรียน!B53=0,"",ข้อมูลนักเรียน!B53) ->  | C53: =IF(ข้อมูลนักเรียน!C53=0,"",ข้อมูลนักเรียน!C53) ->  | D53: =IF(ข้อมูลนักเรียน!C53=0,"",ข้อมูลนักเรียน!D53 & ข้อมูลนักเรียน!E53) ->  | E53: =IF(ข้อมูลนักเรียน!C53=0,"",ข้อมูลนักเรียน!F53) ->  | F53: =IF(ข้อมูลนักเรียน!D53=0,"",ข้อมูลนักเรียน!G53) -> 
A54: =ข้อมูลนักเรียน!A54 -> 0 | B54: =IF(ข้อมูลนักเรียน!B54=0,"",ข้อมูลนักเรียน!B54) ->  | C54: =IF(ข้อมูลนักเรียน!C54=0,"",ข้อมูลนักเรียน!C54) ->  | D54: =IF(ข้อมูลนักเรียน!C54=0,"",ข้อมูลนักเรียน!D54 & ข้อมูลนักเรียน!E54) ->  | E54: =IF(ข้อมูลนักเรียน!C54=0,"",ข้อมูลนักเรียน!F54) ->  | F54: =IF(ข้อมูลนักเรียน!D54=0,"",ข้อมูลนักเรียน!G54) -> 
A55: =ข้อมูลนักเรียน!A55 -> 0 | B55: =IF(ข้อมูลนักเรียน!B55=0,"",ข้อมูลนักเรียน!B55) ->  | C55: =IF(ข้อมูลนักเรียน!C55=0,"",ข้อมูลนักเรียน!C55) ->  | D55: =IF(ข้อมูลนักเรียน!C55=0,"",ข้อมูลนักเรียน!D55 & ข้อมูลนักเรียน!E55) ->  | E55: =IF(ข้อมูลนักเรียน!C55=0,"",ข้อมูลนักเรียน!F55) ->  | F55: =IF(ข้อมูลนักเรียน!D55=0,"",ข้อมูลนักเรียน!G55) -> 
A56: =ข้อมูลนักเรียน!A56 -> 0 | B56: =IF(ข้อมูลนักเรียน!B56=0,"",ข้อมูลนักเรียน!B56) ->  | C56: =IF(ข้อมูลนักเรียน!C56=0,"",ข้อมูลนักเรียน!C56) ->  | D56: =IF(ข้อมูลนักเรียน!C56=0,"",ข้อมูลนักเรียน!D56 & ข้อมูลนักเรียน!E56) ->  | E56: =IF(ข้อมูลนักเรียน!C56=0,"",ข้อมูลนักเรียน!F56) ->  | F56: =IF(ข้อมูลนักเรียน!D56=0,"",ข้อมูลนักเรียน!G56) -> 
A57: =ข้อมูลนักเรียน!A57 -> 0 | B57: =IF(ข้อมูลนักเรียน!B57=0,"",ข้อมูลนักเรียน!B57) ->  | C57: =IF(ข้อมูลนักเรียน!C57=0,"",ข้อมูลนักเรียน!C57) ->  | D57: =IF(ข้อมูลนักเรียน!C57=0,"",ข้อมูลนักเรียน!D57 & ข้อมูลนักเรียน!E57) ->  | E57: =IF(ข้อมูลนักเรียน!C57=0,"",ข้อมูลนักเรียน!F57) ->  | F57: =IF(ข้อมูลนักเรียน!D57=0,"",ข้อมูลนักเรียน!G57) -> 
A58: =ข้อมูลนักเรียน!A58 -> 0 | B58: =IF(ข้อมูลนักเรียน!B58=0,"",ข้อมูลนักเรียน!B58) ->  | C58: =IF(ข้อมูลนักเรียน!C58=0,"",ข้อมูลนักเรียน!C58) ->  | D58: =IF(ข้อมูลนักเรียน!C58=0,"",ข้อมูลนักเรียน!D58 & ข้อมูลนักเรียน!E58) ->  | E58: =IF(ข้อมูลนักเรียน!C58=0,"",ข้อมูลนักเรียน!F58) ->  | F58: =IF(ข้อมูลนักเรียน!D58=0,"",ข้อมูลนักเรียน!G58) -> 
A59: =ข้อมูลนักเรียน!A59 -> 0 | B59: =IF(ข้อมูลนักเรียน!B59=0,"",ข้อมูลนักเรียน!B59) ->  | C59: =IF(ข้อมูลนักเรียน!C59=0,"",ข้อมูลนักเรียน!C59) ->  | D59: =IF(ข้อมูลนักเรียน!C59=0,"",ข้อมูลนักเรียน!D59 & ข้อมูลนักเรียน!E59) ->  | E59: =IF(ข้อมูลนักเรียน!C59=0,"",ข้อมูลนักเรียน!F59) ->  | F59: =IF(ข้อมูลนักเรียน!D59=0,"",ข้อมูลนักเรียน!G59) -> 
A60: =ข้อมูลนักเรียน!A60 -> 0 | B60: =IF(ข้อมูลนักเรียน!B60=0,"",ข้อมูลนักเรียน!B60) ->  | C60: =IF(ข้อมูลนักเรียน!C60=0,"",ข้อมูลนักเรียน!C60) ->  | D60: =IF(ข้อมูลนักเรียน!C60=0,"",ข้อมูลนักเรียน!D60 & ข้อมูลนักเรียน!E60) ->  | E60: =IF(ข้อมูลนักเรียน!C60=0,"",ข้อมูลนักเรียน!F60) ->  | F60: =IF(ข้อมูลนักเรียน!D60=0,"",ข้อมูลนักเรียน!G60) -> 
A61: =ข้อมูลนักเรียน!A61 -> 0 | B61: =IF(ข้อมูลนักเรียน!B61=0,"",ข้อมูลนักเรียน!B61) ->  | C61: =IF(ข้อมูลนักเรียน!C61=0,"",ข้อมูลนักเรียน!C61) ->  | D61: =IF(ข้อมูลนักเรียน!C61=0,"",ข้อมูลนักเรียน!D61 & ข้อมูลนักเรียน!E61) ->  | E61: =IF(ข้อมูลนักเรียน!C61=0,"",ข้อมูลนักเรียน!F61) ->  | F61: =IF(ข้อมูลนักเรียน!D61=0,"",ข้อมูลนักเรียน!G61) -> 
A62: =ข้อมูลนักเรียน!A62 -> 0 | B62: =IF(ข้อมูลนักเรียน!B62=0,"",ข้อมูลนักเรียน!B62) ->  | C62: =IF(ข้อมูลนักเรียน!C62=0,"",ข้อมูลนักเรียน!C62) ->  | D62: =IF(ข้อมูลนักเรียน!C62=0,"",ข้อมูลนักเรียน!D62 & ข้อมูลนักเรียน!E62) ->  | E62: =IF(ข้อมูลนักเรียน!C62=0,"",ข้อมูลนักเรียน!F62) ->  | F62: =IF(ข้อมูลนักเรียน!D62=0,"",ข้อมูลนักเรียน!G62) -> 
A63: =ข้อมูลนักเรียน!A63 -> 0 | B63: =IF(ข้อมูลนักเรียน!B63=0,"",ข้อมูลนักเรียน!B63) ->  | C63: =IF(ข้อมูลนักเรียน!C63=0,"",ข้อมูลนักเรียน!C63) ->  | D63: =IF(ข้อมูลนักเรียน!C63=0,"",ข้อมูลนักเรียน!D63 & ข้อมูลนักเรียน!E63) ->  | E63: =IF(ข้อมูลนักเรียน!C63=0,"",ข้อมูลนักเรียน!F63) ->  | F63: =IF(ข้อมูลนักเรียน!D63=0,"",ข้อมูลนักเรียน!G63) -> 
A64: =ข้อมูลนักเรียน!A64 -> 0 | B64: =IF(ข้อมูลนักเรียน!B64=0,"",ข้อมูลนักเรียน!B64) ->  | C64: =IF(ข้อมูลนักเรียน!C64=0,"",ข้อมูลนักเรียน!C64) ->  | D64: =IF(ข้อมูลนักเรียน!C64=0,"",ข้อมูลนักเรียน!D64 & ข้อมูลนักเรียน!E64) ->  | E64: =IF(ข้อมูลนักเรียน!C64=0,"",ข้อมูลนักเรียน!F64) ->  | F64: =IF(ข้อมูลนักเรียน!D64=0,"",ข้อมูลนักเรียน!G64) -> 
A65: =ข้อมูลนักเรียน!A65 -> 0 | B65: =IF(ข้อมูลนักเรียน!B65=0,"",ข้อมูลนักเรียน!B65) ->  | C65: =IF(ข้อมูลนักเรียน!C65=0,"",ข้อมูลนักเรียน!C65) ->  | D65: =IF(ข้อมูลนักเรียน!C65=0,"",ข้อมูลนักเรียน!D65 & ข้อมูลนักเรียน!E65) ->  | E65: =IF(ข้อมูลนักเรียน!C65=0,"",ข้อมูลนักเรียน!F65) ->  | F65: =IF(ข้อมูลนักเรียน!D65=0,"",ข้อมูลนักเรียน!G65) -> 
A66: =ข้อมูลนักเรียน!A66 -> 0 | B66: =IF(ข้อมูลนักเรียน!B66=0,"",ข้อมูลนักเรียน!B66) ->  | C66: =IF(ข้อมูลนักเรียน!C66=0,"",ข้อมูลนักเรียน!C66) ->  | D66: =IF(ข้อมูลนักเรียน!C66=0,"",ข้อมูลนักเรียน!D66 & ข้อมูลนักเรียน!E66) ->  | E66: =IF(ข้อมูลนักเรียน!C66=0,"",ข้อมูลนักเรียน!F66) ->  | F66: =IF(ข้อมูลนักเรียน!D66=0,"",ข้อมูลนักเรียน!G66) -> 
A67: =ข้อมูลนักเรียน!A67 -> 0 | B67: =IF(ข้อมูลนักเรียน!B67=0,"",ข้อมูลนักเรียน!B67) ->  | C67: =IF(ข้อมูลนักเรียน!C67=0,"",ข้อมูลนักเรียน!C67) ->  | D67: =IF(ข้อมูลนักเรียน!C67=0,"",ข้อมูลนักเรียน!D67 & ข้อมูลนักเรียน!E67) ->  | E67: =IF(ข้อมูลนักเรียน!C67=0,"",ข้อมูลนักเรียน!F67) ->  | F67: =IF(ข้อมูลนักเรียน!D67=0,"",ข้อมูลนักเรียน!G67) -> 
A68: =ข้อมูลนักเรียน!A68 -> 0 | B68: =IF(ข้อมูลนักเรียน!B68=0,"",ข้อมูลนักเรียน!B68) ->  | C68: =IF(ข้อมูลนักเรียน!C68=0,"",ข้อมูลนักเรียน!C68) ->  | D68: =IF(ข้อมูลนักเรียน!C68=0,"",ข้อมูลนักเรียน!D68 & ข้อมูลนักเรียน!E68) ->  | E68: =IF(ข้อมูลนักเรียน!C68=0,"",ข้อมูลนักเรียน!F68) ->  | F68: =IF(ข้อมูลนักเรียน!D68=0,"",ข้อมูลนักเรียน!G68) -> 
A69: =ข้อมูลนักเรียน!A69 -> 0 | B69: =IF(ข้อมูลนักเรียน!B69=0,"",ข้อมูลนักเรียน!B69) ->  | C69: =IF(ข้อมูลนักเรียน!C69=0,"",ข้อมูลนักเรียน!C69) ->  | D69: =IF(ข้อมูลนักเรียน!C69=0,"",ข้อมูลนักเรียน!D69 & ข้อมูลนักเรียน!E69) ->  | E69: =IF(ข้อมูลนักเรียน!C69=0,"",ข้อมูลนักเรียน!F69) ->  | F69: =IF(ข้อมูลนักเรียน!D69=0,"",ข้อมูลนักเรียน!G69) -> 
A70: =ข้อมูลนักเรียน!A70 -> 0 | B70: =IF(ข้อมูลนักเรียน!B70=0,"",ข้อมูลนักเรียน!B70) ->  | C70: =IF(ข้อมูลนักเรียน!C70=0,"",ข้อมูลนักเรียน!C70) ->  | D70: =IF(ข้อมูลนักเรียน!C70=0,"",ข้อมูลนักเรียน!D70 & ข้อมูลนักเรียน!E70) ->  | E70: =IF(ข้อมูลนักเรียน!C70=0,"",ข้อมูลนักเรียน!F70) ->  | F70: =IF(ข้อมูลนักเรียน!D70=0,"",ข้อมูลนักเรียน!G70) -> 
A71: =ข้อมูลนักเรียน!A71 -> 0 | B71: =IF(ข้อมูลนักเรียน!B71=0,"",ข้อมูลนักเรียน!B71) ->  | C71: =IF(ข้อมูลนักเรียน!C71=0,"",ข้อมูลนักเรียน!C71) ->  | D71: =IF(ข้อมูลนักเรียน!C71=0,"",ข้อมูลนักเรียน!D71 & ข้อมูลนักเรียน!E71) ->  | E71: =IF(ข้อมูลนักเรียน!C71=0,"",ข้อมูลนักเรียน!F71) ->  | F71: =IF(ข้อมูลนักเรียน!D71=0,"",ข้อมูลนักเรียน!G71) -> 
A72: =ข้อมูลนักเรียน!A72 -> 0 | B72: =IF(ข้อมูลนักเรียน!B72=0,"",ข้อมูลนักเรียน!B72) ->  | C72: =IF(ข้อมูลนักเรียน!C72=0,"",ข้อมูลนักเรียน!C72) ->  | D72: =IF(ข้อมูลนักเรียน!C72=0,"",ข้อมูลนักเรียน!D72 & ข้อมูลนักเรียน!E72) ->  | E72: =IF(ข้อมูลนักเรียน!C72=0,"",ข้อมูลนักเรียน!F72) ->  | F72: =IF(ข้อมูลนักเรียน!D72=0,"",ข้อมูลนักเรียน!G72) -> 
A73: =ข้อมูลนักเรียน!A73 -> 0 | B73: =IF(ข้อมูลนักเรียน!B73=0,"",ข้อมูลนักเรียน!B73) ->  | C73: =IF(ข้อมูลนักเรียน!C73=0,"",ข้อมูลนักเรียน!C73) ->  | D73: =IF(ข้อมูลนักเรียน!C73=0,"",ข้อมูลนักเรียน!D73 & ข้อมูลนักเรียน!E73) ->  | E73: =IF(ข้อมูลนักเรียน!C73=0,"",ข้อมูลนักเรียน!F73) ->  | F73: =IF(ข้อมูลนักเรียน!D73=0,"",ข้อมูลนักเรียน!G73) -> 
A74: =ข้อมูลนักเรียน!A74 -> 0 | B74: =IF(ข้อมูลนักเรียน!B74=0,"",ข้อมูลนักเรียน!B74) ->  | C74: =IF(ข้อมูลนักเรียน!C74=0,"",ข้อมูลนักเรียน!C74) ->  | D74: =IF(ข้อมูลนักเรียน!C74=0,"",ข้อมูลนักเรียน!D74 & ข้อมูลนักเรียน!E74) ->  | E74: =IF(ข้อมูลนักเรียน!C74=0,"",ข้อมูลนักเรียน!F74) ->  | F74: =IF(ข้อมูลนักเรียน!D74=0,"",ข้อมูลนักเรียน!G74) -> 
A75: =ข้อมูลนักเรียน!A75 -> 0 | B75: =IF(ข้อมูลนักเรียน!B75=0,"",ข้อมูลนักเรียน!B75) ->  | C75: =IF(ข้อมูลนักเรียน!C75=0,"",ข้อมูลนักเรียน!C75) ->  | D75: =IF(ข้อมูลนักเรียน!C75=0,"",ข้อมูลนักเรียน!D75 & ข้อมูลนักเรียน!E75) ->  | E75: =IF(ข้อมูลนักเรียน!C75=0,"",ข้อมูลนักเรียน!F75) ->  | F75: =IF(ข้อมูลนักเรียน!D75=0,"",ข้อมูลนักเรียน!G75) -> 
A76: =ข้อมูลนักเรียน!A76 -> 0 | B76: =IF(ข้อมูลนักเรียน!B76=0,"",ข้อมูลนักเรียน!B76) ->  | C76: =IF(ข้อมูลนักเรียน!C76=0,"",ข้อมูลนักเรียน!C76) ->  | D76: =IF(ข้อมูลนักเรียน!C76=0,"",ข้อมูลนักเรียน!D76 & ข้อมูลนักเรียน!E76) ->  | E76: =IF(ข้อมูลนักเรียน!C76=0,"",ข้อมูลนักเรียน!F76) ->  | F76: =IF(ข้อมูลนักเรียน!D76=0,"",ข้อมูลนักเรียน!G76) -> 
A77: =ข้อมูลนักเรียน!A77 -> 0 | B77: =IF(ข้อมูลนักเรียน!B77=0,"",ข้อมูลนักเรียน!B77) ->  | C77: =IF(ข้อมูลนักเรียน!C77=0,"",ข้อมูลนักเรียน!C77) ->  | D77: =IF(ข้อมูลนักเรียน!C77=0,"",ข้อมูลนักเรียน!D77 & ข้อมูลนักเรียน!E77) ->  | E77: =IF(ข้อมูลนักเรียน!C77=0,"",ข้อมูลนักเรียน!F77) ->  | F77: =IF(ข้อมูลนักเรียน!D77=0,"",ข้อมูลนักเรียน!G77) -> 
A78: =ข้อมูลนักเรียน!A78 -> 0 | B78: =IF(ข้อมูลนักเรียน!B78=0,"",ข้อมูลนักเรียน!B78) ->  | C78: =IF(ข้อมูลนักเรียน!C78=0,"",ข้อมูลนักเรียน!C78) ->  | D78: =IF(ข้อมูลนักเรียน!C78=0,"",ข้อมูลนักเรียน!D78 & ข้อมูลนักเรียน!E78) ->  | E78: =IF(ข้อมูลนักเรียน!C78=0,"",ข้อมูลนักเรียน!F78) ->  | F78: =IF(ข้อมูลนักเรียน!D78=0,"",ข้อมูลนักเรียน!G78) -> 
A79: =ข้อมูลนักเรียน!A79 -> 0 | B79: =IF(ข้อมูลนักเรียน!B79=0,"",ข้อมูลนักเรียน!B79) ->  | C79: =IF(ข้อมูลนักเรียน!C79=0,"",ข้อมูลนักเรียน!C79) ->  | D79: =IF(ข้อมูลนักเรียน!C79=0,"",ข้อมูลนักเรียน!D79 & ข้อมูลนักเรียน!E79) ->  | E79: =IF(ข้อมูลนักเรียน!C79=0,"",ข้อมูลนักเรียน!F79) ->  | F79: =IF(ข้อมูลนักเรียน!D79=0,"",ข้อมูลนักเรียน!G79) -> 
A80: =ข้อมูลนักเรียน!A80 -> 0 | B80: =IF(ข้อมูลนักเรียน!B80=0,"",ข้อมูลนักเรียน!B80) ->  | C80: =IF(ข้อมูลนักเรียน!C80=0,"",ข้อมูลนักเรียน!C80) ->  | D80: =IF(ข้อมูลนักเรียน!C80=0,"",ข้อมูลนักเรียน!D80 & ข้อมูลนักเรียน!E80) ->  | E80: =IF(ข้อมูลนักเรียน!C80=0,"",ข้อมูลนักเรียน!F80) ->  | F80: =IF(ข้อมูลนักเรียน!D80=0,"",ข้อมูลนักเรียน!G80) -> 
A81: =ข้อมูลนักเรียน!A81 -> 0 | B81: =IF(ข้อมูลนักเรียน!B81=0,"",ข้อมูลนักเรียน!B81) ->  | C81: =IF(ข้อมูลนักเรียน!C81=0,"",ข้อมูลนักเรียน!C81) ->  | D81: =IF(ข้อมูลนักเรียน!C81=0,"",ข้อมูลนักเรียน!D81 & ข้อมูลนักเรียน!E81) ->  | E81: =IF(ข้อมูลนักเรียน!C81=0,"",ข้อมูลนักเรียน!F81) ->  | F81: =IF(ข้อมูลนักเรียน!D81=0,"",ข้อมูลนักเรียน!G81) -> 
A82: =ข้อมูลนักเรียน!A82 -> 0 | B82: =IF(ข้อมูลนักเรียน!B82=0,"",ข้อมูลนักเรียน!B82) ->  | C82: =IF(ข้อมูลนักเรียน!C82=0,"",ข้อมูลนักเรียน!C82) ->  | D82: =IF(ข้อมูลนักเรียน!C82=0,"",ข้อมูลนักเรียน!D82 & ข้อมูลนักเรียน!E82) ->  | E82: =IF(ข้อมูลนักเรียน!C82=0,"",ข้อมูลนักเรียน!F82) ->  | F82: =IF(ข้อมูลนักเรียน!D82=0,"",ข้อมูลนักเรียน!G82) -> 
A83: =ข้อมูลนักเรียน!A83 -> 0 | B83: =IF(ข้อมูลนักเรียน!B83=0,"",ข้อมูลนักเรียน!B83) ->  | C83: =IF(ข้อมูลนักเรียน!C83=0,"",ข้อมูลนักเรียน!C83) ->  | D83: =IF(ข้อมูลนักเรียน!C83=0,"",ข้อมูลนักเรียน!D83 & ข้อมูลนักเรียน!E83) ->  | E83: =IF(ข้อมูลนักเรียน!C83=0,"",ข้อมูลนักเรียน!F83) ->  | F83: =IF(ข้อมูลนักเรียน!D83=0,"",ข้อมูลนักเรียน!G83) -> 
A84: =ข้อมูลนักเรียน!A84 -> 0 | B84: =IF(ข้อมูลนักเรียน!B84=0,"",ข้อมูลนักเรียน!B84) ->  | C84: =IF(ข้อมูลนักเรียน!C84=0,"",ข้อมูลนักเรียน!C84) ->  | D84: =IF(ข้อมูลนักเรียน!C84=0,"",ข้อมูลนักเรียน!D84 & ข้อมูลนักเรียน!E84) ->  | E84: =IF(ข้อมูลนักเรียน!C84=0,"",ข้อมูลนักเรียน!F84) ->  | F84: =IF(ข้อมูลนักเรียน!D84=0,"",ข้อมูลนักเรียน!G84) -> 
A85: =ข้อมูลนักเรียน!A85 -> 0 | B85: =IF(ข้อมูลนักเรียน!B85=0,"",ข้อมูลนักเรียน!B85) ->  | C85: =IF(ข้อมูลนักเรียน!C85=0,"",ข้อมูลนักเรียน!C85) ->  | D85: =IF(ข้อมูลนักเรียน!C85=0,"",ข้อมูลนักเรียน!D85 & ข้อมูลนักเรียน!E85) ->  | E85: =IF(ข้อมูลนักเรียน!C85=0,"",ข้อมูลนักเรียน!F85) ->  | F85: =IF(ข้อมูลนักเรียน!D85=0,"",ข้อมูลนักเรียน!G85) -> 
A86: =ข้อมูลนักเรียน!A86 -> 0 | B86: =IF(ข้อมูลนักเรียน!B86=0,"",ข้อมูลนักเรียน!B86) ->  | C86: =IF(ข้อมูลนักเรียน!C86=0,"",ข้อมูลนักเรียน!C86) ->  | D86: =IF(ข้อมูลนักเรียน!C86=0,"",ข้อมูลนักเรียน!D86 & ข้อมูลนักเรียน!E86) ->  | E86: =IF(ข้อมูลนักเรียน!C86=0,"",ข้อมูลนักเรียน!F86) ->  | F86: =IF(ข้อมูลนักเรียน!D86=0,"",ข้อมูลนักเรียน!G86) -> 
A87: =ข้อมูลนักเรียน!A87 -> 0 | B87: =IF(ข้อมูลนักเรียน!B87=0,"",ข้อมูลนักเรียน!B87) ->  | C87: =IF(ข้อมูลนักเรียน!C87=0,"",ข้อมูลนักเรียน!C87) ->  | D87: =IF(ข้อมูลนักเรียน!C87=0,"",ข้อมูลนักเรียน!D87 & ข้อมูลนักเรียน!E87) ->  | E87: =IF(ข้อมูลนักเรียน!C87=0,"",ข้อมูลนักเรียน!F87) ->  | F87: =IF(ข้อมูลนักเรียน!D87=0,"",ข้อมูลนักเรียน!G87) -> 
A88: =ข้อมูลนักเรียน!A88 -> 0 | B88: =IF(ข้อมูลนักเรียน!B88=0,"",ข้อมูลนักเรียน!B88) ->  | C88: =IF(ข้อมูลนักเรียน!C88=0,"",ข้อมูลนักเรียน!C88) ->  | D88: =IF(ข้อมูลนักเรียน!C88=0,"",ข้อมูลนักเรียน!D88 & ข้อมูลนักเรียน!E88) ->  | E88: =IF(ข้อมูลนักเรียน!C88=0,"",ข้อมูลนักเรียน!F88) ->  | F88: =IF(ข้อมูลนักเรียน!D88=0,"",ข้อมูลนักเรียน!G88) -> 
A89: =ข้อมูลนักเรียน!A89 -> 0 | B89: =IF(ข้อมูลนักเรียน!B89=0,"",ข้อมูลนักเรียน!B89) ->  | C89: =IF(ข้อมูลนักเรียน!C89=0,"",ข้อมูลนักเรียน!C89) ->  | D89: =IF(ข้อมูลนักเรียน!C89=0,"",ข้อมูลนักเรียน!D89 & ข้อมูลนักเรียน!E89) ->  | E89: =IF(ข้อมูลนักเรียน!C89=0,"",ข้อมูลนักเรียน!F89) ->  | F89: =IF(ข้อมูลนักเรียน!D89=0,"",ข้อมูลนักเรียน!G89) -> 
A90: =ข้อมูลนักเรียน!A90 -> 0 | B90: =IF(ข้อมูลนักเรียน!B90=0,"",ข้อมูลนักเรียน!B90) ->  | C90: =IF(ข้อมูลนักเรียน!C90=0,"",ข้อมูลนักเรียน!C90) ->  | D90: =IF(ข้อมูลนักเรียน!C90=0,"",ข้อมูลนักเรียน!D90 & ข้อมูลนักเรียน!E90) ->  | E90: =IF(ข้อมูลนักเรียน!C90=0,"",ข้อมูลนักเรียน!F90) ->  | F90: =IF(ข้อมูลนักเรียน!D90=0,"",ข้อมูลนักเรียน!G90) -> 
A91: =ข้อมูลนักเรียน!A91 -> 0 | B91: =IF(ข้อมูลนักเรียน!B91=0,"",ข้อมูลนักเรียน!B91) ->  | C91: =IF(ข้อมูลนักเรียน!C91=0,"",ข้อมูลนักเรียน!C91) ->  | D91: =IF(ข้อมูลนักเรียน!C91=0,"",ข้อมูลนักเรียน!D91 & ข้อมูลนักเรียน!E91) ->  | E91: =IF(ข้อมูลนักเรียน!C91=0,"",ข้อมูลนักเรียน!F91) ->  | F91: =IF(ข้อมูลนักเรียน!D91=0,"",ข้อมูลนักเรียน!G91) -> 
A92: =ข้อมูลนักเรียน!A92 -> 0 | B92: =IF(ข้อมูลนักเรียน!B92=0,"",ข้อมูลนักเรียน!B92) ->  | C92: =IF(ข้อมูลนักเรียน!C92=0,"",ข้อมูลนักเรียน!C92) ->  | D92: =IF(ข้อมูลนักเรียน!C92=0,"",ข้อมูลนักเรียน!D92 & ข้อมูลนักเรียน!E92) ->  | E92: =IF(ข้อมูลนักเรียน!C92=0,"",ข้อมูลนักเรียน!F92) ->  | F92: =IF(ข้อมูลนักเรียน!D92=0,"",ข้อมูลนักเรียน!G92) -> 
A93: =ข้อมูลนักเรียน!A93 -> 0 | B93: =IF(ข้อมูลนักเรียน!B93=0,"",ข้อมูลนักเรียน!B93) ->  | C93: =IF(ข้อมูลนักเรียน!C93=0,"",ข้อมูลนักเรียน!C93) ->  | D93: =IF(ข้อมูลนักเรียน!C93=0,"",ข้อมูลนักเรียน!D93 & ข้อมูลนักเรียน!E93) ->  | E93: =IF(ข้อมูลนักเรียน!C93=0,"",ข้อมูลนักเรียน!F93) ->  | F93: =IF(ข้อมูลนักเรียน!D93=0,"",ข้อมูลนักเรียน!G93) -> 
A94: =ข้อมูลนักเรียน!A94 -> 0 | B94: =IF(ข้อมูลนักเรียน!B94=0,"",ข้อมูลนักเรียน!B94) ->  | C94: =IF(ข้อมูลนักเรียน!C94=0,"",ข้อมูลนักเรียน!C94) ->  | D94: =IF(ข้อมูลนักเรียน!C94=0,"",ข้อมูลนักเรียน!D94 & ข้อมูลนักเรียน!E94) ->  | E94: =IF(ข้อมูลนักเรียน!C94=0,"",ข้อมูลนักเรียน!F94) ->  | F94: =IF(ข้อมูลนักเรียน!D94=0,"",ข้อมูลนักเรียน!G94) -> 
A95: =ข้อมูลนักเรียน!A95 -> 0 | B95: =IF(ข้อมูลนักเรียน!B95=0,"",ข้อมูลนักเรียน!B95) ->  | C95: =IF(ข้อมูลนักเรียน!C95=0,"",ข้อมูลนักเรียน!C95) ->  | D95: =IF(ข้อมูลนักเรียน!C95=0,"",ข้อมูลนักเรียน!D95 & ข้อมูลนักเรียน!E95) ->  | E95: =IF(ข้อมูลนักเรียน!C95=0,"",ข้อมูลนักเรียน!F95) ->  | F95: =IF(ข้อมูลนักเรียน!D95=0,"",ข้อมูลนักเรียน!G95) -> 
A96: =ข้อมูลนักเรียน!A96 -> 0 | B96: =IF(ข้อมูลนักเรียน!B96=0,"",ข้อมูลนักเรียน!B96) ->  | C96: =IF(ข้อมูลนักเรียน!C96=0,"",ข้อมูลนักเรียน!C96) ->  | D96: =IF(ข้อมูลนักเรียน!C96=0,"",ข้อมูลนักเรียน!D96 & ข้อมูลนักเรียน!E96) ->  | E96: =IF(ข้อมูลนักเรียน!C96=0,"",ข้อมูลนักเรียน!F96) ->  | F96: =IF(ข้อมูลนักเรียน!D96=0,"",ข้อมูลนักเรียน!G96) -> 
A97: =ข้อมูลนักเรียน!A97 -> 0 | B97: =IF(ข้อมูลนักเรียน!B97=0,"",ข้อมูลนักเรียน!B97) ->  | C97: =IF(ข้อมูลนักเรียน!C97=0,"",ข้อมูลนักเรียน!C97) ->  | D97: =IF(ข้อมูลนักเรียน!C97=0,"",ข้อมูลนักเรียน!D97 & ข้อมูลนักเรียน!E97) ->  | E97: =IF(ข้อมูลนักเรียน!C97=0,"",ข้อมูลนักเรียน!F97) ->  | F97: =IF(ข้อมูลนักเรียน!D97=0,"",ข้อมูลนักเรียน!G97) -> 
A98: =ข้อมูลนักเรียน!A98 -> 0 | B98: =IF(ข้อมูลนักเรียน!B98=0,"",ข้อมูลนักเรียน!B98) ->  | C98: =IF(ข้อมูลนักเรียน!C98=0,"",ข้อมูลนักเรียน!C98) ->  | D98: =IF(ข้อมูลนักเรียน!C98=0,"",ข้อมูลนักเรียน!D98 & ข้อมูลนักเรียน!E98) ->  | E98: =IF(ข้อมูลนักเรียน!C98=0,"",ข้อมูลนักเรียน!F98) ->  | F98: =IF(ข้อมูลนักเรียน!D98=0,"",ข้อมูลนักเรียน!G98) -> 
A99: =ข้อมูลนักเรียน!A99 -> 0 | B99: =IF(ข้อมูลนักเรียน!B99=0,"",ข้อมูลนักเรียน!B99) ->  | C99: =IF(ข้อมูลนักเรียน!C99=0,"",ข้อมูลนักเรียน!C99) ->  | D99: =IF(ข้อมูลนักเรียน!C99=0,"",ข้อมูลนักเรียน!D99 & ข้อมูลนักเรียน!E99) ->  | E99: =IF(ข้อมูลนักเรียน!C99=0,"",ข้อมูลนักเรียน!F99) ->  | F99: =IF(ข้อมูลนักเรียน!D99=0,"",ข้อมูลนักเรียน!G99) -> 
A100: =ข้อมูลนักเรียน!A100 -> 0 | B100: =IF(ข้อมูลนักเรียน!B100=0,"",ข้อมูลนักเรียน!B100) ->  | C100: =IF(ข้อมูลนักเรียน!C100=0,"",ข้อมูลนักเรียน!C100) ->  | D100: =IF(ข้อมูลนักเรียน!C100=0,"",ข้อมูลนักเรียน!D100 & ข้อมูลนักเรียน!E100) ->  | E100: =IF(ข้อมูลนักเรียน!C100=0,"",ข้อมูลนักเรียน!F100) ->  | F100: =IF(ข้อมูลนักเรียน!D100=0,"",ข้อมูลนักเรียน!G100) -> 
A101: =ข้อมูลนักเรียน!A101 -> 0 | B101: =IF(ข้อมูลนักเรียน!B101=0,"",ข้อมูลนักเรียน!B101) ->  | C101: =IF(ข้อมูลนักเรียน!C101=0,"",ข้อมูลนักเรียน!C101) ->  | D101: =IF(ข้อมูลนักเรียน!C101=0,"",ข้อมูลนักเรียน!D101 & ข้อมูลนักเรียน!E101) ->  | E101: =IF(ข้อมูลนักเรียน!C101=0,"",ข้อมูลนักเรียน!F101) ->  | F101: =IF(ข้อมูลนักเรียน!D101=0,"",ข้อมูลนักเรียน!G101) -> 
A102: =ข้อมูลนักเรียน!A102 -> 0 | B102: =IF(ข้อมูลนักเรียน!B102=0,"",ข้อมูลนักเรียน!B102) ->  | C102: =IF(ข้อมูลนักเรียน!C102=0,"",ข้อมูลนักเรียน!C102) ->  | D102: =IF(ข้อมูลนักเรียน!C102=0,"",ข้อมูลนักเรียน!D102 & ข้อมูลนักเรียน!E102) ->  | E102: =IF(ข้อมูลนักเรียน!C102=0,"",ข้อมูลนักเรียน!F102) ->  | F102: =IF(ข้อมูลนักเรียน!D102=0,"",ข้อมูลนักเรียน!G102) -> 
A103: =ข้อมูลนักเรียน!A103 -> 0 | B103: =IF(ข้อมูลนักเรียน!B103=0,"",ข้อมูลนักเรียน!B103) ->  | C103: =IF(ข้อมูลนักเรียน!C103=0,"",ข้อมูลนักเรียน!C103) ->  | D103: =IF(ข้อมูลนักเรียน!C103=0,"",ข้อมูลนักเรียน!D103 & ข้อมูลนักเรียน!E103) ->  | E103: =IF(ข้อมูลนักเรียน!C103=0,"",ข้อมูลนักเรียน!F103) ->  | F103: =IF(ข้อมูลนักเรียน!D103=0,"",ข้อมูลนักเรียน!G103) -> 
A104: =ข้อมูลนักเรียน!A104 -> 0 | B104: =IF(ข้อมูลนักเรียน!B104=0,"",ข้อมูลนักเรียน!B104) ->  | C104: =IF(ข้อมูลนักเรียน!C104=0,"",ข้อมูลนักเรียน!C104) ->  | D104: =IF(ข้อมูลนักเรียน!C104=0,"",ข้อมูลนักเรียน!D104 & ข้อมูลนักเรียน!E104) ->  | E104: =IF(ข้อมูลนักเรียน!C104=0,"",ข้อมูลนักเรียน!F104) ->  | F104: =IF(ข้อมูลนักเรียน!D104=0,"",ข้อมูลนักเรียน!G104) -> 
A105: =ข้อมูลนักเรียน!A105 -> 0 | B105: =IF(ข้อมูลนักเรียน!B105=0,"",ข้อมูลนักเรียน!B105) ->  | C105: =IF(ข้อมูลนักเรียน!C105=0,"",ข้อมูลนักเรียน!C105) ->  | D105: =IF(ข้อมูลนักเรียน!C105=0,"",ข้อมูลนักเรียน!D105 & ข้อมูลนักเรียน!E105) ->  | E105: =IF(ข้อมูลนักเรียน!C105=0,"",ข้อมูลนักเรียน!F105) ->  | F105: =IF(ข้อมูลนักเรียน!D105=0,"",ข้อมูลนักเรียน!G105) -> 
A106: =ข้อมูลนักเรียน!A106 -> 0 | B106: =IF(ข้อมูลนักเรียน!B106=0,"",ข้อมูลนักเรียน!B106) ->  | C106: =IF(ข้อมูลนักเรียน!C106=0,"",ข้อมูลนักเรียน!C106) ->  | D106: =IF(ข้อมูลนักเรียน!C106=0,"",ข้อมูลนักเรียน!D106 & ข้อมูลนักเรียน!E106) ->  | E106: =IF(ข้อมูลนักเรียน!C106=0,"",ข้อมูลนักเรียน!F106) ->  | F106: =IF(ข้อมูลนักเรียน!D106=0,"",ข้อมูลนักเรียน!G106) -> 
A107: =ข้อมูลนักเรียน!A107 -> 0 | B107: =IF(ข้อมูลนักเรียน!B107=0,"",ข้อมูลนักเรียน!B107) ->  | C107: =IF(ข้อมูลนักเรียน!C107=0,"",ข้อมูลนักเรียน!C107) ->  | D107: =IF(ข้อมูลนักเรียน!C107=0,"",ข้อมูลนักเรียน!D107 & ข้อมูลนักเรียน!E107) ->  | E107: =IF(ข้อมูลนักเรียน!C107=0,"",ข้อมูลนักเรียน!F107) ->  | F107: =IF(ข้อมูลนักเรียน!D107=0,"",ข้อมูลนักเรียน!G107) -> 
A108: =ข้อมูลนักเรียน!A108 -> 0 | B108: =IF(ข้อมูลนักเรียน!B108=0,"",ข้อมูลนักเรียน!B108) ->  | C108: =IF(ข้อมูลนักเรียน!C108=0,"",ข้อมูลนักเรียน!C108) ->  | D108: =IF(ข้อมูลนักเรียน!C108=0,"",ข้อมูลนักเรียน!D108 & ข้อมูลนักเรียน!E108) ->  | E108: =IF(ข้อมูลนักเรียน!C108=0,"",ข้อมูลนักเรียน!F108) ->  | F108: =IF(ข้อมูลนักเรียน!D108=0,"",ข้อมูลนักเรียน!G108) -> 
A109: =ข้อมูลนักเรียน!A109 -> 0 | B109: =IF(ข้อมูลนักเรียน!B109=0,"",ข้อมูลนักเรียน!B109) ->  | C109: =IF(ข้อมูลนักเรียน!C109=0,"",ข้อมูลนักเรียน!C109) ->  | D109: =IF(ข้อมูลนักเรียน!C109=0,"",ข้อมูลนักเรียน!D109 & ข้อมูลนักเรียน!E109) ->  | E109: =IF(ข้อมูลนักเรียน!C109=0,"",ข้อมูลนักเรียน!F109) ->  | F109: =IF(ข้อมูลนักเรียน!D109=0,"",ข้อมูลนักเรียน!G109) -> 
A110: =ข้อมูลนักเรียน!A110 -> 0 | B110: =IF(ข้อมูลนักเรียน!B110=0,"",ข้อมูลนักเรียน!B110) ->  | C110: =IF(ข้อมูลนักเรียน!C110=0,"",ข้อมูลนักเรียน!C110) ->  | D110: =IF(ข้อมูลนักเรียน!C110=0,"",ข้อมูลนักเรียน!D110 & ข้อมูลนักเรียน!E110) ->  | E110: =IF(ข้อมูลนักเรียน!C110=0,"",ข้อมูลนักเรียน!F110) ->  | F110: =IF(ข้อมูลนักเรียน!D110=0,"",ข้อมูลนักเรียน!G110) -> 
A111: =ข้อมูลนักเรียน!A111 -> 0 | B111: =IF(ข้อมูลนักเรียน!B111=0,"",ข้อมูลนักเรียน!B111) ->  | C111: =IF(ข้อมูลนักเรียน!C111=0,"",ข้อมูลนักเรียน!C111) ->  | D111: =IF(ข้อมูลนักเรียน!C111=0,"",ข้อมูลนักเรียน!D111 & ข้อมูลนักเรียน!E111) ->  | E111: =IF(ข้อมูลนักเรียน!C111=0,"",ข้อมูลนักเรียน!F111) ->  | F111: =IF(ข้อมูลนักเรียน!D111=0,"",ข้อมูลนักเรียน!G111) -> 
A112: =ข้อมูลนักเรียน!A112 -> 0 | B112: =IF(ข้อมูลนักเรียน!B112=0,"",ข้อมูลนักเรียน!B112) ->  | C112: =IF(ข้อมูลนักเรียน!C112=0,"",ข้อมูลนักเรียน!C112) ->  | D112: =IF(ข้อมูลนักเรียน!C112=0,"",ข้อมูลนักเรียน!D112 & ข้อมูลนักเรียน!E112) ->  | E112: =IF(ข้อมูลนักเรียน!C112=0,"",ข้อมูลนักเรียน!F112) ->  | F112: =IF(ข้อมูลนักเรียน!D112=0,"",ข้อมูลนักเรียน!G112) -> 
A113: =ข้อมูลนักเรียน!A113 -> 0 | B113: =IF(ข้อมูลนักเรียน!B113=0,"",ข้อมูลนักเรียน!B113) ->  | C113: =IF(ข้อมูลนักเรียน!C113=0,"",ข้อมูลนักเรียน!C113) ->  | D113: =IF(ข้อมูลนักเรียน!C113=0,"",ข้อมูลนักเรียน!D113 & ข้อมูลนักเรียน!E113) ->  | E113: =IF(ข้อมูลนักเรียน!C113=0,"",ข้อมูลนักเรียน!F113) ->  | F113: =IF(ข้อมูลนักเรียน!D113=0,"",ข้อมูลนักเรียน!G113) -> 
A114: =ข้อมูลนักเรียน!A114 -> 0 | B114: =IF(ข้อมูลนักเรียน!B114=0,"",ข้อมูลนักเรียน!B114) ->  | C114: =IF(ข้อมูลนักเรียน!C114=0,"",ข้อมูลนักเรียน!C114) ->  | D114: =IF(ข้อมูลนักเรียน!C114=0,"",ข้อมูลนักเรียน!D114 & ข้อมูลนักเรียน!E114) ->  | E114: =IF(ข้อมูลนักเรียน!C114=0,"",ข้อมูลนักเรียน!F114) ->  | F114: =IF(ข้อมูลนักเรียน!D114=0,"",ข้อมูลนักเรียน!G114) -> 
A115: =ข้อมูลนักเรียน!A115 -> 0 | B115: =IF(ข้อมูลนักเรียน!B115=0,"",ข้อมูลนักเรียน!B115) ->  | C115: =IF(ข้อมูลนักเรียน!C115=0,"",ข้อมูลนักเรียน!C115) ->  | D115: =IF(ข้อมูลนักเรียน!C115=0,"",ข้อมูลนักเรียน!D115 & ข้อมูลนักเรียน!E115) ->  | E115: =IF(ข้อมูลนักเรียน!C115=0,"",ข้อมูลนักเรียน!F115) ->  | F115: =IF(ข้อมูลนักเรียน!D115=0,"",ข้อมูลนักเรียน!G115) -> 
A116: =ข้อมูลนักเรียน!A116 -> 0 | B116: =IF(ข้อมูลนักเรียน!B116=0,"",ข้อมูลนักเรียน!B116) ->  | C116: =IF(ข้อมูลนักเรียน!C116=0,"",ข้อมูลนักเรียน!C116) ->  | D116: =IF(ข้อมูลนักเรียน!C116=0,"",ข้อมูลนักเรียน!D116 & ข้อมูลนักเรียน!E116) ->  | E116: =IF(ข้อมูลนักเรียน!C116=0,"",ข้อมูลนักเรียน!F116) ->  | F116: =IF(ข้อมูลนักเรียน!D116=0,"",ข้อมูลนักเรียน!G116) -> 
A117: =ข้อมูลนักเรียน!A117 -> 0 | B117: =IF(ข้อมูลนักเรียน!B117=0,"",ข้อมูลนักเรียน!B117) ->  | C117: =IF(ข้อมูลนักเรียน!C117=0,"",ข้อมูลนักเรียน!C117) ->  | D117: =IF(ข้อมูลนักเรียน!C117=0,"",ข้อมูลนักเรียน!D117 & ข้อมูลนักเรียน!E117) ->  | E117: =IF(ข้อมูลนักเรียน!C117=0,"",ข้อมูลนักเรียน!F117) ->  | F117: =IF(ข้อมูลนักเรียน!D117=0,"",ข้อมูลนักเรียน!G117) -> 
A118: =ข้อมูลนักเรียน!A118 -> 0 | B118: =IF(ข้อมูลนักเรียน!B118=0,"",ข้อมูลนักเรียน!B118) ->  | C118: =IF(ข้อมูลนักเรียน!C118=0,"",ข้อมูลนักเรียน!C118) ->  | D118: =IF(ข้อมูลนักเรียน!C118=0,"",ข้อมูลนักเรียน!D118 & ข้อมูลนักเรียน!E118) ->  | E118: =IF(ข้อมูลนักเรียน!C118=0,"",ข้อมูลนักเรียน!F118) ->  | F118: =IF(ข้อมูลนักเรียน!D118=0,"",ข้อมูลนักเรียน!G118) -> 
A119: =ข้อมูลนักเรียน!A119 -> 0 | B119: =IF(ข้อมูลนักเรียน!B119=0,"",ข้อมูลนักเรียน!B119) ->  | C119: =IF(ข้อมูลนักเรียน!C119=0,"",ข้อมูลนักเรียน!C119) ->  | D119: =IF(ข้อมูลนักเรียน!C119=0,"",ข้อมูลนักเรียน!D119 & ข้อมูลนักเรียน!E119) ->  | E119: =IF(ข้อมูลนักเรียน!C119=0,"",ข้อมูลนักเรียน!F119) ->  | F119: =IF(ข้อมูลนักเรียน!D119=0,"",ข้อมูลนักเรียน!G119) -> 
A120: =ข้อมูลนักเรียน!A120 -> 0 | B120: =IF(ข้อมูลนักเรียน!B120=0,"",ข้อมูลนักเรียน!B120) ->  | C120: =IF(ข้อมูลนักเรียน!C120=0,"",ข้อมูลนักเรียน!C120) ->  | D120: =IF(ข้อมูลนักเรียน!C120=0,"",ข้อมูลนักเรียน!D120 & ข้อมูลนักเรียน!E120) ->  | E120: =IF(ข้อมูลนักเรียน!C120=0,"",ข้อมูลนักเรียน!F120) ->  | F120: =IF(ข้อมูลนักเรียน!D120=0,"",ข้อมูลนักเรียน!G120) -> 
A121: =ข้อมูลนักเรียน!A121 -> 0 | B121: =IF(ข้อมูลนักเรียน!B121=0,"",ข้อมูลนักเรียน!B121) ->  | C121: =IF(ข้อมูลนักเรียน!C121=0,"",ข้อมูลนักเรียน!C121) ->  | D121: =IF(ข้อมูลนักเรียน!C121=0,"",ข้อมูลนักเรียน!D121 & ข้อมูลนักเรียน!E121) ->  | E121: =IF(ข้อมูลนักเรียน!C121=0,"",ข้อมูลนักเรียน!F121) ->  | F121: =IF(ข้อมูลนักเรียน!D121=0,"",ข้อมูลนักเรียน!G121) -> 
A122: =ข้อมูลนักเรียน!A122 -> 0 | B122: =IF(ข้อมูลนักเรียน!B122=0,"",ข้อมูลนักเรียน!B122) ->  | C122: =IF(ข้อมูลนักเรียน!C122=0,"",ข้อมูลนักเรียน!C122) ->  | D122: =IF(ข้อมูลนักเรียน!C122=0,"",ข้อมูลนักเรียน!D122 & ข้อมูลนักเรียน!E122) ->  | E122: =IF(ข้อมูลนักเรียน!C122=0,"",ข้อมูลนักเรียน!F122) ->  | F122: =IF(ข้อมูลนักเรียน!D122=0,"",ข้อมูลนักเรียน!G122) -> 
A123: =ข้อมูลนักเรียน!A123 -> 0 | B123: =IF(ข้อมูลนักเรียน!B123=0,"",ข้อมูลนักเรียน!B123) ->  | C123: =IF(ข้อมูลนักเรียน!C123=0,"",ข้อมูลนักเรียน!C123) ->  | D123: =IF(ข้อมูลนักเรียน!C123=0,"",ข้อมูลนักเรียน!D123 & ข้อมูลนักเรียน!E123) ->  | E123: =IF(ข้อมูลนักเรียน!C123=0,"",ข้อมูลนักเรียน!F123) ->  | F123: =IF(ข้อมูลนักเรียน!D123=0,"",ข้อมูลนักเรียน!G123) -> 
A124: =ข้อมูลนักเรียน!A124 -> 0 | B124: =IF(ข้อมูลนักเรียน!B124=0,"",ข้อมูลนักเรียน!B124) ->  | C124: =IF(ข้อมูลนักเรียน!C124=0,"",ข้อมูลนักเรียน!C124) ->  | D124: =IF(ข้อมูลนักเรียน!C124=0,"",ข้อมูลนักเรียน!D124 & ข้อมูลนักเรียน!E124) ->  | E124: =IF(ข้อมูลนักเรียน!C124=0,"",ข้อมูลนักเรียน!F124) ->  | F124: =IF(ข้อมูลนักเรียน!D124=0,"",ข้อมูลนักเรียน!G124) -> 
A125: =ข้อมูลนักเรียน!A125 -> 0 | B125: =IF(ข้อมูลนักเรียน!B125=0,"",ข้อมูลนักเรียน!B125) ->  | C125: =IF(ข้อมูลนักเรียน!C125=0,"",ข้อมูลนักเรียน!C125) ->  | D125: =IF(ข้อมูลนักเรียน!C125=0,"",ข้อมูลนักเรียน!D125 & ข้อมูลนักเรียน!E125) ->  | E125: =IF(ข้อมูลนักเรียน!C125=0,"",ข้อมูลนักเรียน!F125) ->  | F125: =IF(ข้อมูลนักเรียน!D125=0,"",ข้อมูลนักเรียน!G125) -> 
A126: =ข้อมูลนักเรียน!A126 -> 0 | B126: =IF(ข้อมูลนักเรียน!B126=0,"",ข้อมูลนักเรียน!B126) ->  | C126: =IF(ข้อมูลนักเรียน!C126=0,"",ข้อมูลนักเรียน!C126) ->  | D126: =IF(ข้อมูลนักเรียน!C126=0,"",ข้อมูลนักเรียน!D126 & ข้อมูลนักเรียน!E126) ->  | E126: =IF(ข้อมูลนักเรียน!C126=0,"",ข้อมูลนักเรียน!F126) ->  | F126: =IF(ข้อมูลนักเรียน!D126=0,"",ข้อมูลนักเรียน!G126) -> 

Sheet เกรด1
A1: ปีการศึกษา : | D1: =ข้อมูลนักเรียน!F4 -> 2550 | P1: ประถมศึกษาปีที่ 1
A2: ห้อง | B2: เลขที่ | C2: รหัสนักเรียน | D2: ชื่อ - สกุล | G2: วิชา | H2: =IF(หลักสูตร!$B$4=0,"ช่องว่าง",หลักสูตร!$C$4) -> ภาษาไทย | I2: =IF(หลักสูตร!$B$5=0,"ช่องว่าง",หลักสูตร!$C$5) -> คณิตศาสตร์ | J2: =IF(หลักสูตร!$B$6=0,"ช่องว่าง",หลักสูตร!$C$6) -> วิทยาศาสตร์ | K2: =IF(หลักสูตร!$B$7=0,"ช่องว่าง",หลักสูตร!$C$7) -> สังคมศึกษา ศาสนาและวัฒนธรรม | L2: =IF(หลักสูตร!$B$8=0,"ช่องว่าง",หลักสูตร!$C$8) -> ประวัติศาสตร์ | M2: =IF(หลักสูตร!$B$9=0,"ช่องว่าง",หลักสูตร!$C$9) -> สุขศึกษาและพลศึกษา | N2: =IF(หลักสูตร!$B$10=0,"ช่องว่าง",หลักสูตร!$C$10) -> ศิลปะ | O2: =IF(หลักสูตร!$B$11=0,"ช่องว่าง",หลักสูตร!$C$11) -> การงานอาชีพและเทคโนโลยี | P2: =IF(หลักสูตร!$B$12=0,"ช่องว่าง",หลักสูตร!$C$12) -> ภาษาต่างประเทศ | Q2: =IF(หลักสูตร!$B$13=0,"ช่องว่าง",หลักสูตร!$C$13) -> คอมพิวเตอร์ | R2: =IF(หลักสูตร!$B$14=0,"ช่องว่าง",หลักสูตร!$C$14) -> งานเกษตร | S2: =IF(หลักสูตร!$B$15=0,"ช่องว่าง",หลักสูตร!$C$15) -> 0 | T2: =IF(หลักสูตร!$B$16=0,"ช่องว่าง",หลักสูตร!$C$16) -> ช่องว่าง | U2: =IF(หลักสูตร!$B$17=0,"ช่องว่าง",หลักสูตร!$C$17) -> ช่องว่าง | V2: =IF(หลักสูตร!$B$18=0,"ช่องว่าง",หลักสูตร!$C$18) -> ช่องว่าง | W2: =IF(หลักสูตร!$B$19=0,"ช่องว่าง",หลักสูตร!$C$19) -> ช่องว่าง | X2: =IF(หลักสูตร!$B$20=0,"ช่องว่าง",หลักสูตร!$C$20) -> ช่องว่าง | Y2: =IF(หลักสูตร!$B$21=0,"ช่องว่าง",หลักสูตร!$C$21) -> ช่องว่าง | Z2: =IF(หลักสูตร!$B$23=0,"ช่องว่าง",หลักสูตร!$C$23) -> แนะแนว | AA2: =IF(หลักสูตร!$B$24=0,"ช่องว่าง",หลักสูตร!$C$24) -> ลูกเสือ เนตรนารี | AB2: =IF(หลักสูตร!$B$25=0,"ช่องว่าง",หลักสูตร!$C$25) -> ชุมนุม | AC2: =IF(หลักสูตร!$B$26=0,"ช่องว่าง",หลักสูตร!$C$26) -> กิจกรรมเพื่อสังคมและสาธารณประโยชน์ | AD2: =IF(หลักสูตร!$B$27=0,"ช่องว่าง",หลักสูตร!$C$27) -> ช่องว่าง | AE2: คุณลักษณะ | AF2: อ่าน คิดฯ | AG2: สรุปกิจกรรม | AH2: เกรดเฉลี่ย | AI2: ชื่อวิชาเลือก รหัสวิชา ตามด้วยชื่อวิชา ตัวอย่าง ง31202 เกษตรอินทรีย์ | AJ2: อ่าน คิดฯ | AK2: ชื่อชุมนุม
H3: =IF(หลักสูตร!$B$4=0,"",หลักสูตร!$B$4) -> ท11101 | I3: =IF(หลักสูตร!$B$5=0,"",หลักสูตร!$B$5) -> ค11101 | J3: =IF(หลักสูตร!$B$6=0,"",หลักสูตร!$B$6) -> ว11101 | K3: =IF(หลักสูตร!$B$7=0,"",หลักสูตร!$B$7) -> ส11101 | L3: =IF(หลักสูตร!$B$8=0,"",หลักสูตร!$B$8) -> ส11102 | M3: =IF(หลักสูตร!$B$9=0,"",หลักสูตร!$B$9) -> พ11101 | N3: =IF(หลักสูตร!$B$10=0,"",หลักสูตร!$B$10) -> ศ11101 | O3: =IF(หลักสูตร!$B$11=0,"",หลักสูตร!$B$11) -> ง11101 | P3: =IF(หลักสูตร!$B$12=0,"",หลักสูตร!$B$12) -> อ11101 | Q3: =IF(หลักสูตร!$B$13=0,"",หลักสูตร!$B$13) -> ง11201 | R3: =IF(หลักสูตร!$B$14=0,"",หลักสูตร!$B$14) -> ง11202 | S3: =IF(หลักสูตร!$B$15=0,"",หลักสูตร!$B$15) -> ว่าง | T3: =IF(หลักสูตร!$B$16=0,"",หลักสูตร!$B$16) ->  | U3: =IF(หลักสูตร!$B$17=0,"",หลักสูตร!$B$17) ->  | V3: =IF(หลักสูตร!$B$18=0,"",หลักสูตร!$B$18) ->  | W3: =IF(หลักสูตร!$B$19=0,"",หลักสูตร!$B$19) ->  | X3: =IF(หลักสูตร!$B$20=0,"",หลักสูตร!$B$20) ->  | Y3: =IF(หลักสูตร!$B$21=0,"",หลักสูตร!$B$21) ->  | Z3: =IF(หลักสูตร!$B$23=0,"",หลักสูตร!$B$23) -> ก1 | AA3: =IF(หลักสูตร!$B$24=0,"",หลักสูตร!$B$24) -> ก2 | AB3: =IF(หลักสูตร!$B$25=0,"",หลักสูตร!$B$25) -> ก3 | AC3: =IF(หลักสูตร!$B$26=0,"",หลักสูตร!$B$26) -> ก4 | AD3: =IF(หลักสูตร!$B$27=0,"",หลักสูตร!$B$27) ->  | AH3: =SUMIF(H5:Y5,"<>กิจกรรม",H6:AA6) -> 23
H4: =IF(หลักสูตร!$F$4=0,"",หลักสูตร!$F$4) -> 200 | I4: =IF(หลักสูตร!$F$5=0,"",หลักสูตร!$F$5) -> 200 | J4: =IF(หลักสูตร!$F$6=0,"",หลักสูตร!$F$6) -> 80 | K4: =IF(หลักสูตร!$F$7=0,"",หลักสูตร!$F$7) -> 80 | L4: =IF(หลักสูตร!$F$8=0,"",หลักสูตร!$F$8) -> 40 | M4: =IF(หลักสูตร!$F$9=0,"",หลักสูตร!$F$9) -> 80 | N4: =IF(หลักสูตร!$F$10=0,"",หลักสูตร!$F$10) -> 80 | O4: =IF(หลักสูตร!$F$11=0,"",หลักสูตร!$F$11) -> 40 | P4: =IF(หลักสูตร!$F$12=0,"",หลักสูตร!$F$12) -> 40 | Q4: =IF(หลักสูตร!$F$13=0,"",หลักสูตร!$F$13) -> 40 | R4: =IF(หลักสูตร!$F$14=0,"",หลักสูตร!$F$14) -> 40 | S4: =IF(หลักสูตร!$F$15=0,"",หลักสูตร!$F$15) ->  | T4: =IF(หลักสูตร!$F$16=0,"",หลักสูตร!$F$16) ->  | U4: =IF(หลักสูตร!$F$17=0,"",หลักสูตร!$F$17) ->  | V4: =IF(หลักสูตร!$F$18=0,"",หลักสูตร!$F$18) ->  | W4: =IF(หลักสูตร!$F$19=0,"",หลักสูตร!$F$19) ->  | X4: =IF(หลักสูตร!$F$20=0,"",หลักสูตร!$F$20) ->  | Y4: =IF(หลักสูตร!$F$21=0,"",หลักสูตร!$F$21) ->  | Z4: =IF(หลักสูตร!$F$23=0,"",หลักสูตร!$F$23) -> 40 | AA4: =IF(หลักสูตร!$F$24=0,"",หลักสูตร!$F$24) -> 40 | AB4: =IF(หลักสูตร!$F$25=0,"",หลักสูตร!$F$25) -> 30 | AC4: =IF(หลักสูตร!$F$26=0,"",หลักสูตร!$F$26) -> 10 | AD4: =IF(หลักสูตร!$F$27=0,"",หลักสูตร!$F$27) -> 
G5: ประเภท | H5: =IF(หลักสูตร!$D$4=0,"",หลักสูตร!$D$4) -> พื้นฐาน | I5: =IF(หลักสูตร!$D$5=0,"",หลักสูตร!$D$5) -> พื้นฐาน | J5: =IF(หลักสูตร!$D$6=0,"",หลักสูตร!$D$6) -> พื้นฐาน | K5: =IF(หลักสูตร!$D$7=0,"",หลักสูตร!$D$7) -> พื้นฐาน | L5: =IF(หลักสูตร!$D$8=0,"",หลักสูตร!$D$8) -> พื้นฐาน | M5: =IF(หลักสูตร!$D$9=0,"",หลักสูตร!$D$9) -> พื้นฐาน | N5: =IF(หลักสูตร!$D$10=0,"",หลักสูตร!$D$10) -> พื้นฐาน | O5: =IF(หลักสูตร!$D$11=0,"",หลักสูตร!$D$11) -> พื้นฐาน | P5: =IF(หลักสูตร!$D$12=0,"",หลักสูตร!$D$12) -> พื้นฐาน | Q5: =IF(หลักสูตร!$D$13=0,"",หลักสูตร!$D$13) -> เพิ่มเติม | R5: =IF(หลักสูตร!$D$14=0,"",หลักสูตร!$D$14) -> เพิ่มเติม | S5: =IF(หลักสูตร!$D$15=0,"",หลักสูตร!$D$15) -> เพิ่มเติม | T5: =IF(หลักสูตร!$D$16=0,"",หลักสูตร!$D$16) ->  | U5: =IF(หลักสูตร!$D$17=0,"",หลักสูตร!$D$17) ->  | V5: =IF(หลักสูตร!$D$18=0,"",หลักสูตร!$D$18) ->  | W5: =IF(หลักสูตร!$D$19=0,"",หลักสูตร!$D$19) ->  | X5: =IF(หลักสูตร!$D$20=0,"",หลักสูตร!$D$20) ->  | Y5: =IF(หลักสูตร!$D$21=0,"",หลักสูตร!$D$21) ->  | Z5: =IF(หลักสูตร!$D$3=0,"",หลักสูตร!$D$23) -> กิจกรรม | AA5: =IF(หลักสูตร!$D$4=0,"",หลักสูตร!$D$24) -> กิจกรรม | AB5: =IF(หลักสูตร!$D$5=0,"",หลักสูตร!$D$25) -> กิจกรรม | AC5: =IF(หลักสูตร!$D$6=0,"",หลักสูตร!$D$26) -> กิจกรรม | AD5: =IF(หลักสูตร!$D$7=0,"",หลักสูตร!$D$27) -> 0
G6: น้ำหนัก | H6: =IF(หลักสูตร!$G$4=0,"",หลักสูตร!$G$4) -> 5 | I6: =IF(หลักสูตร!$G$5=0,"",หลักสูตร!$G$5) -> 5 | J6: =IF(หลักสูตร!$G$6=0,"",หลักสูตร!$G$6) -> 2 | K6: =IF(หลักสูตร!$G$7=0,"",หลักสูตร!$G$7) -> 2 | L6: =IF(หลักสูตร!$G$8=0,"",หลักสูตร!$G$8) -> 1 | M6: =IF(หลักสูตร!$G$9=0,"",หลักสูตร!$G$9) -> 2 | N6: =IF(หลักสูตร!$G$10=0,"",หลักสูตร!$G$10) -> 2 | O6: =IF(หลักสูตร!$G$11=0,"",หลักสูตร!$G$11) -> 1 | P6: =IF(หลักสูตร!$G$12=0,"",หลักสูตร!$G$12) -> 1 | Q6: =IF(หลักสูตร!$G$13=0,"",หลักสูตร!$G$13) -> 1 | R6: =IF(หลักสูตร!$G$14=0,"",หลักสูตร!$G$14) -> 1 | S6: =IF(หลักสูตร!$G$15=0,"",หลักสูตร!$G$15) ->  | T6: =IF(หลักสูตร!$G$16=0,"",หลักสูตร!$G$16) ->  | U6: =IF(หลักสูตร!$G$17=0,"",หลักสูตร!$G$17) ->  | V6: =IF(หลักสูตร!$G$18=0,"",หลักสูตร!$G$18) ->  | W6: =IF(หลักสูตร!$G$19=0,"",หลักสูตร!$G$19) ->  | X6: =IF(หลักสูตร!$G$20=0,"",หลักสูตร!$G$20) ->  | Y6: =IF(หลักสูตร!$G$21=0,"",หลักสูตร!$G$21) ->  | Z6: =IF(หลักสูตร!$G$23=0,"",หลักสูตร!$G$23) -> - | AA6: =IF(หลักสูตร!$G$24=0,"",หลักสูตร!$G$24) -> - | AB6: =IF(หลักสูตร!$G$25=0,"",หลักสูตร!$G$25) -> - | AC6: =IF(หลักสูตร!$G$26=0,"",หลักสูตร!$G$26) -> - | AD6: =IF(หลักสูตร!$G$27=0,"",หลักสูตร!$G$27) -> - | AH6: =SUMIF(H5:Y5,"<>กิจกรรม",H6:AA6) -> 23
A7: =ข้อมูลนักเรียน!A7 -> 1 | B7: =IF(ข้อมูลนักเรียน!B7=0,"",ข้อมูลนักเรียน!B7) -> 1 | C7: =IF(ข้อมูลนักเรียน!C7=0,"",ข้อมูลนักเรียน!C7) -> 00001 | D7: =IF(ข้อมูลนักเรียน!C7=0,"",ข้อมูลนักเรียน!D7 & ข้อมูลนักเรียน!E7 & " "& ข้อมูลนักเรียน!F7) -> เด็กชายสมชาย สุขสบาย | E7: =IF(ข้อมูลนักเรียน!C7=0,"",ข้อมูลนักเรียน!G7) -> 1111111111111 | F7: =ข้อมูลนักเรียน!B7 -> 1 | H7: 1 | I7: 1 | J7: 1 | K7: 2 | L7: 1 | M7: 2 | N7: 3 | O7: 4 | P7: 4 | Q7: 1.5 | R7: ผ | Z7: ผ | AA7: ผ | AB7: ผ | AC7: ผ | AE7: 1 | AF7: 2 | AG7: =IF(COUNTIFS(Z7:AD7,"=มผ") > 0,"ไม่ผ่าน","ผ่าน") -> ผ่าน | AH7: =ROUNDDOWN(2.11363636363636,2) -> 2.11 | AJ7: =IF(AF7=1,"ผ่าน",IF(AF7=2,"ดี",IF(AF7=3,"ดีเยี่ยม","ปรับปรุง"))) -> ดี | AK7: คอมพิวเตอร์ | AL7: 22 | AM7: เกรด | AN7: อ่าน/คุณ | AO7: กิจกรรม
A8: =ข้อมูลนักเรียน!A8 -> 1 | B8: =IF(ข้อมูลนักเรียน!B8=0,"",ข้อมูลนักเรียน!B8) -> 2 | C8: =IF(ข้อมูลนักเรียน!C8=0,"",ข้อมูลนักเรียน!C8) -> 00002 | D8: =IF(ข้อมูลนักเรียน!C8=0,"",ข้อมูลนักเรียน!D8 & ข้อมูลนักเรียน!E8 & " "& ข้อมูลนักเรียน!F8) -> เด็กหญิงสมหวัง ตั้งใจเรียน | E8: =IF(ข้อมูลนักเรียน!C8=0,"",ข้อมูลนักเรียน!G8) -> 2222222222222 | F8: =ข้อมูลนักเรียน!B8 -> 2 | H8: 1 | I8: 4 | J8: 3.5 | K8: 4 | L8: 3 | M8: 4 | N8: 3 | O8: 4 | P8: 3 | Q8: 1.5 | R8: มผ | Z8: ผ | AA8: ผ | AB8: ผ | AC8: ผ | AE8: 2 | AF8: 3 | AG8: ผ่าน | AH8: =ROUNDDOWN(3.43181818181818,2) -> 3.43 | AJ8: =IF(AF8=1,"ผ่าน",IF(AF8=2,"ดี",IF(AF8=3,"ดีเยี่ยม","ปรับปรุง"))) -> ดีเยี่ยม | AK8: วิทยาศาสตร์ | AL8: 22 | AM8: 0 | AN8: 0 | AO8: ผ
A9: =ข้อมูลนักเรียน!A9 -> 0 | B9: =IF(ข้อมูลนักเรียน!B9=0,"",ข้อมูลนักเรียน!B9) ->  | C9: =IF(ข้อมูลนักเรียน!C9=0,"",ข้อมูลนักเรียน!C9) ->  | D9: =IF(ข้อมูลนักเรียน!C9=0,"",ข้อมูลนักเรียน!D9 & ข้อมูลนักเรียน!E9 & " "& ข้อมูลนักเรียน!F9) ->  | E9: =IF(ข้อมูลนักเรียน!C9=0,"",ข้อมูลนักเรียน!G9) ->  | F9: =ข้อมูลนักเรียน!B9 -> 0 | H9: 1 | I9: 2 | J9: 3 | K9: 1 | L9: 2 | M9: 3 | N9: 1 | O9: 1.5 | P9: 2 | Q9: 3 | R9: 2 | Z9: ผ | AA9: ผ | AB9: ผ | AC9: ผ | AE9: 1 | AF9: 2 | AG9: =IF(COUNTIFS(Z9:AD9,"=มผ") > 0,"ไม่ผ่าน","ผ่าน") -> ผ่าน | AH9: =ROUNDDOWN(1.80434782608696,2) -> 1.8 | AJ9: =IF(AF9=1,"ผ่าน",IF(AF9=2,"ดี",IF(AF9=3,"ดีเยี่ยม","ปรับปรุง"))) -> ดี | AL9: 23 | AM9: 1 | AN9: 1 | AO9: มผ
A10: =ข้อมูลนักเรียน!A10 -> 0 | B10: =IF(ข้อมูลนักเรียน!B10=0,"",ข้อมูลนักเรียน!B10) ->  | C10: =IF(ข้อมูลนักเรียน!C10=0,"",ข้อมูลนักเรียน!C10) ->  | D10: =IF(ข้อมูลนักเรียน!C10=0,"",ข้อมูลนักเรียน!D10 & ข้อมูลนักเรียน!E10 & " "& ข้อมูลนักเรียน!F10) ->  | E10: =IF(ข้อมูลนักเรียน!C10=0,"",ข้อมูลนักเรียน!G10) ->  | F10: =ข้อมูลนักเรียน!B10 -> 0 | AG10: ผ่าน | AH10: =ROUNDDOWN(0,2) -> 0 | AJ10: ปรับปรุง | AL10: 23 | AM10: 1.5 | AN10: 2
A11: =ข้อมูลนักเรียน!A11 -> 0 | B11: =IF(ข้อมูลนักเรียน!B11=0,"",ข้อมูลนักเรียน!B11) ->  | C11: =IF(ข้อมูลนักเรียน!C11=0,"",ข้อมูลนักเรียน!C11) ->  | D11: =IF(ข้อมูลนักเรียน!C11=0,"",ข้อมูลนักเรียน!D11 & ข้อมูลนักเรียน!E11 & " "& ข้อมูลนักเรียน!F11) ->  | E11: =IF(ข้อมูลนักเรียน!C11=0,"",ข้อมูลนักเรียน!G11) ->  | F11: =ข้อมูลนักเรียน!B11 -> 0 | AG11: ผ่าน | AH11: 0 | AJ11: ปรับปรุง | AL11: 23 | AM11: 2 | AN11: 3
A12: =ข้อมูลนักเรียน!A12 -> 0 | B12: =IF(ข้อมูลนักเรียน!B12=0,"",ข้อมูลนักเรียน!B12) ->  | C12: =IF(ข้อมูลนักเรียน!C12=0,"",ข้อมูลนักเรียน!C12) ->  | D12: =IF(ข้อมูลนักเรียน!C12=0,"",ข้อมูลนักเรียน!D12 & ข้อมูลนักเรียน!E12 & " "& ข้อมูลนักเรียน!F12) ->  | E12: =IF(ข้อมูลนักเรียน!C12=0,"",ข้อมูลนักเรียน!G12) ->  | F12: =ข้อมูลนักเรียน!B12 -> 0 | AG12: ผ่าน | AH12: 0 | AJ12: ปรับปรุง | AL12: 23 | AM12: 2.5
A13: =ข้อมูลนักเรียน!A13 -> 0 | B13: =IF(ข้อมูลนักเรียน!B13=0,"",ข้อมูลนักเรียน!B13) ->  | C13: =IF(ข้อมูลนักเรียน!C13=0,"",ข้อมูลนักเรียน!C13) ->  | D13: =IF(ข้อมูลนักเรียน!C13=0,"",ข้อมูลนักเรียน!D13 & ข้อมูลนักเรียน!E13 & " "& ข้อมูลนักเรียน!F13) ->  | E13: =IF(ข้อมูลนักเรียน!C13=0,"",ข้อมูลนักเรียน!G13) ->  | F13: =ข้อมูลนักเรียน!B13 -> 0 | AG13: ผ่าน | AH13: 0 | AJ13: ปรับปรุง | AL13: 23 | AM13: 3
A14: =ข้อมูลนักเรียน!A14 -> 0 | B14: =IF(ข้อมูลนักเรียน!B14=0,"",ข้อมูลนักเรียน!B14) ->  | C14: =IF(ข้อมูลนักเรียน!C14=0,"",ข้อมูลนักเรียน!C14) ->  | D14: =IF(ข้อมูลนักเรียน!C14=0,"",ข้อมูลนักเรียน!D14 & ข้อมูลนักเรียน!E14 & " "& ข้อมูลนักเรียน!F14) ->  | E14: =IF(ข้อมูลนักเรียน!C14=0,"",ข้อมูลนักเรียน!G14) ->  | F14: =ข้อมูลนักเรียน!B14 -> 0 | AG14: ผ่าน | AH14: 0 | AJ14: ปรับปรุง | AL14: 23 | AM14: 3.5
A15: =ข้อมูลนักเรียน!A15 -> 0 | B15: =IF(ข้อมูลนักเรียน!B15=0,"",ข้อมูลนักเรียน!B15) ->  | C15: =IF(ข้อมูลนักเรียน!C15=0,"",ข้อมูลนักเรียน!C15) ->  | D15: =IF(ข้อมูลนักเรียน!C15=0,"",ข้อมูลนักเรียน!D15 & ข้อมูลนักเรียน!E15 & " "& ข้อมูลนักเรียน!F15) ->  | E15: =IF(ข้อมูลนักเรียน!C15=0,"",ข้อมูลนักเรียน!G15) ->  | F15: =ข้อมูลนักเรียน!B15 -> 0 | AG15: ผ่าน | AH15: 0 | AJ15: ปรับปรุง | AL15: 23 | AM15: 4
A16: =ข้อมูลนักเรียน!A16 -> 0 | B16: =IF(ข้อมูลนักเรียน!B16=0,"",ข้อมูลนักเรียน!B16) ->  | C16: =IF(ข้อมูลนักเรียน!C16=0,"",ข้อมูลนักเรียน!C16) ->  | D16: =IF(ข้อมูลนักเรียน!C16=0,"",ข้อมูลนักเรียน!D16 & ข้อมูลนักเรียน!E16 & " "& ข้อมูลนักเรียน!F16) ->  | E16: =IF(ข้อมูลนักเรียน!C16=0,"",ข้อมูลนักเรียน!G16) ->  | F16: =ข้อมูลนักเรียน!B16 -> 0 | AG16: ผ่าน | AH16: 0 | AJ16: ปรับปรุง | AL16: 23 | AM16: ร
A17: =ข้อมูลนักเรียน!A17 -> 0 | B17: =IF(ข้อมูลนักเรียน!B17=0,"",ข้อมูลนักเรียน!B17) ->  | C17: =IF(ข้อมูลนักเรียน!C17=0,"",ข้อมูลนักเรียน!C17) ->  | D17: =IF(ข้อมูลนักเรียน!C17=0,"",ข้อมูลนักเรียน!D17 & ข้อมูลนักเรียน!E17 & " "& ข้อมูลนักเรียน!F17) ->  | E17: =IF(ข้อมูลนักเรียน!C17=0,"",ข้อมูลนักเรียน!G17) ->  | F17: =ข้อมูลนักเรียน!B17 -> 0 | AG17: ผ่าน | AH17: 0 | AJ17: ปรับปรุง | AL17: 23 | AM17: มส
A18: =ข้อมูลนักเรียน!A18 -> 0 | B18: =IF(ข้อมูลนักเรียน!B18=0,"",ข้อมูลนักเรียน!B18) ->  | C18: =IF(ข้อมูลนักเรียน!C18=0,"",ข้อมูลนักเรียน!C18) ->  | D18: =IF(ข้อมูลนักเรียน!C18=0,"",ข้อมูลนักเรียน!D18 & ข้อมูลนักเรียน!E18 & " "& ข้อมูลนักเรียน!F18) ->  | E18: =IF(ข้อมูลนักเรียน!C18=0,"",ข้อมูลนักเรียน!G18) ->  | F18: =ข้อมูลนักเรียน!B18 -> 0 | AG18: ผ่าน | AH18: 0 | AJ18: ปรับปรุง | AL18: 23 | AM18: ผ
A19: =ข้อมูลนักเรียน!A19 -> 0 | B19: =IF(ข้อมูลนักเรียน!B19=0,"",ข้อมูลนักเรียน!B19) ->  | C19: =IF(ข้อมูลนักเรียน!C19=0,"",ข้อมูลนักเรียน!C19) ->  | D19: =IF(ข้อมูลนักเรียน!C19=0,"",ข้อมูลนักเรียน!D19 & ข้อมูลนักเรียน!E19 & " "& ข้อมูลนักเรียน!F19) ->  | E19: =IF(ข้อมูลนักเรียน!C19=0,"",ข้อมูลนักเรียน!G19) ->  | F19: =ข้อมูลนักเรียน!B19 -> 0 | AG19: ผ่าน | AH19: 0 | AJ19: ปรับปรุง | AL19: 23 | AM19: มผ
A20: =ข้อมูลนักเรียน!A20 -> 0 | B20: =IF(ข้อมูลนักเรียน!B20=0,"",ข้อมูลนักเรียน!B20) ->  | C20: =IF(ข้อมูลนักเรียน!C20=0,"",ข้อมูลนักเรียน!C20) ->  | D20: =IF(ข้อมูลนักเรียน!C20=0,"",ข้อมูลนักเรียน!D20 & ข้อมูลนักเรียน!E20 & " "& ข้อมูลนักเรียน!F20) ->  | E20: =IF(ข้อมูลนักเรียน!C20=0,"",ข้อมูลนักเรียน!G20) ->  | F20: =ข้อมูลนักเรียน!B20 -> 0 | AG20: ผ่าน | AH20: 0 | AJ20: ปรับปรุง | AL20: 23
A21: =ข้อมูลนักเรียน!A21 -> 0 | B21: =IF(ข้อมูลนักเรียน!B21=0,"",ข้อมูลนักเรียน!B21) ->  | C21: =IF(ข้อมูลนักเรียน!C21=0,"",ข้อมูลนักเรียน!C21) ->  | D21: =IF(ข้อมูลนักเรียน!C21=0,"",ข้อมูลนักเรียน!D21 & ข้อมูลนักเรียน!E21 & " "& ข้อมูลนักเรียน!F21) ->  | E21: =IF(ข้อมูลนักเรียน!C21=0,"",ข้อมูลนักเรียน!G21) ->  | F21: =ข้อมูลนักเรียน!B21 -> 0 | AG21: ผ่าน | AH21: 0 | AJ21: ปรับปรุง | AL21: 23
A22: =ข้อมูลนักเรียน!A22 -> 0 | B22: =IF(ข้อมูลนักเรียน!B22=0,"",ข้อมูลนักเรียน!B22) ->  | C22: =IF(ข้อมูลนักเรียน!C22=0,"",ข้อมูลนักเรียน!C22) ->  | D22: =IF(ข้อมูลนักเรียน!C22=0,"",ข้อมูลนักเรียน!D22 & ข้อมูลนักเรียน!E22 & " "& ข้อมูลนักเรียน!F22) ->  | E22: =IF(ข้อมูลนักเรียน!C22=0,"",ข้อมูลนักเรียน!G22) ->  | F22: =ข้อมูลนักเรียน!B22 -> 0 | AG22: ผ่าน | AH22: 0 | AJ22: ปรับปรุง | AL22: 23
A23: =ข้อมูลนักเรียน!A23 -> 0 | B23: =IF(ข้อมูลนักเรียน!B23=0,"",ข้อมูลนักเรียน!B23) ->  | C23: =IF(ข้อมูลนักเรียน!C23=0,"",ข้อมูลนักเรียน!C23) ->  | D23: =IF(ข้อมูลนักเรียน!C23=0,"",ข้อมูลนักเรียน!D23 & ข้อมูลนักเรียน!E23 & " "& ข้อมูลนักเรียน!F23) ->  | E23: =IF(ข้อมูลนักเรียน!C23=0,"",ข้อมูลนักเรียน!G23) ->  | F23: =ข้อมูลนักเรียน!B23 -> 0 | AG23: ผ่าน | AH23: 0 | AJ23: ปรับปรุง | AL23: 23
A24: =ข้อมูลนักเรียน!A24 -> 0 | B24: =IF(ข้อมูลนักเรียน!B24=0,"",ข้อมูลนักเรียน!B24) ->  | C24: =IF(ข้อมูลนักเรียน!C24=0,"",ข้อมูลนักเรียน!C24) ->  | D24: =IF(ข้อมูลนักเรียน!C24=0,"",ข้อมูลนักเรียน!D24 & ข้อมูลนักเรียน!E24 & " "& ข้อมูลนักเรียน!F24) ->  | E24: =IF(ข้อมูลนักเรียน!C24=0,"",ข้อมูลนักเรียน!G24) ->  | F24: =ข้อมูลนักเรียน!B24 -> 0 | AG24: ผ่าน | AH24: 0 | AJ24: ปรับปรุง | AL24: 23
A25: =ข้อมูลนักเรียน!A25 -> 0 | B25: =IF(ข้อมูลนักเรียน!B25=0,"",ข้อมูลนักเรียน!B25) ->  | C25: =IF(ข้อมูลนักเรียน!C25=0,"",ข้อมูลนักเรียน!C25) ->  | D25: =IF(ข้อมูลนักเรียน!C25=0,"",ข้อมูลนักเรียน!D25 & ข้อมูลนักเรียน!E25 & " "& ข้อมูลนักเรียน!F25) ->  | E25: =IF(ข้อมูลนักเรียน!C25=0,"",ข้อมูลนักเรียน!G25) ->  | F25: =ข้อมูลนักเรียน!B25 -> 0 | AG25: ผ่าน | AH25: 0 | AJ25: ปรับปรุง | AL25: 23
A26: =ข้อมูลนักเรียน!A26 -> 0 | B26: =IF(ข้อมูลนักเรียน!B26=0,"",ข้อมูลนักเรียน!B26) ->  | C26: =IF(ข้อมูลนักเรียน!C26=0,"",ข้อมูลนักเรียน!C26) ->  | D26: =IF(ข้อมูลนักเรียน!C26=0,"",ข้อมูลนักเรียน!D26 & ข้อมูลนักเรียน!E26 & " "& ข้อมูลนักเรียน!F26) ->  | E26: =IF(ข้อมูลนักเรียน!C26=0,"",ข้อมูลนักเรียน!G26) ->  | F26: =ข้อมูลนักเรียน!B26 -> 0 | AG26: ผ่าน | AH26: 0 | AJ26: ปรับปรุง | AL26: 23
A27: =ข้อมูลนักเรียน!A27 -> 0 | B27: =IF(ข้อมูลนักเรียน!B27=0,"",ข้อมูลนักเรียน!B27) ->  | C27: =IF(ข้อมูลนักเรียน!C27=0,"",ข้อมูลนักเรียน!C27) ->  | D27: =IF(ข้อมูลนักเรียน!C27=0,"",ข้อมูลนักเรียน!D27 & ข้อมูลนักเรียน!E27 & " "& ข้อมูลนักเรียน!F27) ->  | E27: =IF(ข้อมูลนักเรียน!C27=0,"",ข้อมูลนักเรียน!G27) ->  | F27: =ข้อมูลนักเรียน!B27 -> 0 | AG27: ผ่าน | AH27: 0 | AJ27: ปรับปรุง | AL27: 23
A28: =ข้อมูลนักเรียน!A28 -> 0 | B28: =IF(ข้อมูลนักเรียน!B28=0,"",ข้อมูลนักเรียน!B28) ->  | C28: =IF(ข้อมูลนักเรียน!C28=0,"",ข้อมูลนักเรียน!C28) ->  | D28: =IF(ข้อมูลนักเรียน!C28=0,"",ข้อมูลนักเรียน!D28 & ข้อมูลนักเรียน!E28 & " "& ข้อมูลนักเรียน!F28) ->  | E28: =IF(ข้อมูลนักเรียน!C28=0,"",ข้อมูลนักเรียน!G28) ->  | F28: =ข้อมูลนักเรียน!B28 -> 0 | AG28: ผ่าน | AH28: 0 | AJ28: ปรับปรุง | AL28: 23
A29: =ข้อมูลนักเรียน!A29 -> 0 | B29: =IF(ข้อมูลนักเรียน!B29=0,"",ข้อมูลนักเรียน!B29) ->  | C29: =IF(ข้อมูลนักเรียน!C29=0,"",ข้อมูลนักเรียน!C29) ->  | D29: =IF(ข้อมูลนักเรียน!C29=0,"",ข้อมูลนักเรียน!D29 & ข้อมูลนักเรียน!E29 & " "& ข้อมูลนักเรียน!F29) ->  | E29: =IF(ข้อมูลนักเรียน!C29=0,"",ข้อมูลนักเรียน!G29) ->  | F29: =ข้อมูลนักเรียน!B29 -> 0 | AG29: ผ่าน | AH29: 0 | AJ29: ปรับปรุง | AL29: 23
A30: =ข้อมูลนักเรียน!A30 -> 0 | B30: =IF(ข้อมูลนักเรียน!B30=0,"",ข้อมูลนักเรียน!B30) ->  | C30: =IF(ข้อมูลนักเรียน!C30=0,"",ข้อมูลนักเรียน!C30) ->  | D30: =IF(ข้อมูลนักเรียน!C30=0,"",ข้อมูลนักเรียน!D30 & ข้อมูลนักเรียน!E30 & " "& ข้อมูลนักเรียน!F30) ->  | E30: =IF(ข้อมูลนักเรียน!C30=0,"",ข้อมูลนักเรียน!G30) ->  | F30: =ข้อมูลนักเรียน!B30 -> 0 | AG30: ผ่าน | AH30: 0 | AJ30: ปรับปรุง | AL30: 23
A31: =ข้อมูลนักเรียน!A31 -> 0 | B31: =IF(ข้อมูลนักเรียน!B31=0,"",ข้อมูลนักเรียน!B31) ->  | C31: =IF(ข้อมูลนักเรียน!C31=0,"",ข้อมูลนักเรียน!C31) ->  | D31: =IF(ข้อมูลนักเรียน!C31=0,"",ข้อมูลนักเรียน!D31 & ข้อมูลนักเรียน!E31 & " "& ข้อมูลนักเรียน!F31) ->  | E31: =IF(ข้อมูลนักเรียน!C31=0,"",ข้อมูลนักเรียน!G31) ->  | F31: =ข้อมูลนักเรียน!B31 -> 0 | AG31: ผ่าน | AH31: 0 | AJ31: ปรับปรุง | AL31: 23
A32: =ข้อมูลนักเรียน!A32 -> 0 | B32: =IF(ข้อมูลนักเรียน!B32=0,"",ข้อมูลนักเรียน!B32) ->  | C32: =IF(ข้อมูลนักเรียน!C32=0,"",ข้อมูลนักเรียน!C32) ->  | D32: =IF(ข้อมูลนักเรียน!C32=0,"",ข้อมูลนักเรียน!D32 & ข้อมูลนักเรียน!E32 & " "& ข้อมูลนักเรียน!F32) ->  | E32: =IF(ข้อมูลนักเรียน!C32=0,"",ข้อมูลนักเรียน!G32) ->  | F32: =ข้อมูลนักเรียน!B32 -> 0 | AG32: ผ่าน | AH32: 0 | AJ32: ปรับปรุง | AL32: 23
A33: =ข้อมูลนักเรียน!A33 -> 0 | B33: =IF(ข้อมูลนักเรียน!B33=0,"",ข้อมูลนักเรียน!B33) ->  | C33: =IF(ข้อมูลนักเรียน!C33=0,"",ข้อมูลนักเรียน!C33) ->  | D33: =IF(ข้อมูลนักเรียน!C33=0,"",ข้อมูลนักเรียน!D33 & ข้อมูลนักเรียน!E33 & " "& ข้อมูลนักเรียน!F33) ->  | E33: =IF(ข้อมูลนักเรียน!C33=0,"",ข้อมูลนักเรียน!G33) ->  | F33: =ข้อมูลนักเรียน!B33 -> 0 | AG33: ผ่าน | AH33: 0 | AJ33: ปรับปรุง | AL33: 23
A34: =ข้อมูลนักเรียน!A34 -> 0 | B34: =IF(ข้อมูลนักเรียน!B34=0,"",ข้อมูลนักเรียน!B34) ->  | C34: =IF(ข้อมูลนักเรียน!C34=0,"",ข้อมูลนักเรียน!C34) ->  | D34: =IF(ข้อมูลนักเรียน!C34=0,"",ข้อมูลนักเรียน!D34 & ข้อมูลนักเรียน!E34 & " "& ข้อมูลนักเรียน!F34) ->  | E34: =IF(ข้อมูลนักเรียน!C34=0,"",ข้อมูลนักเรียน!G34) ->  | F34: =ข้อมูลนักเรียน!B34 -> 0 | AG34: ผ่าน | AH34: 0 | AJ34: ปรับปรุง | AL34: 23
A35: =ข้อมูลนักเรียน!A35 -> 0 | B35: =IF(ข้อมูลนักเรียน!B35=0,"",ข้อมูลนักเรียน!B35) ->  | C35: =IF(ข้อมูลนักเรียน!C35=0,"",ข้อมูลนักเรียน!C35) ->  | D35: =IF(ข้อมูลนักเรียน!C35=0,"",ข้อมูลนักเรียน!D35 & ข้อมูลนักเรียน!E35 & " "& ข้อมูลนักเรียน!F35) ->  | E35: =IF(ข้อมูลนักเรียน!C35=0,"",ข้อมูลนักเรียน!G35) ->  | F35: =ข้อมูลนักเรียน!B35 -> 0 | AG35: ผ่าน | AH35: 0 | AJ35: ปรับปรุง | AL35: 23
A36: =ข้อมูลนักเรียน!A36 -> 0 | B36: =IF(ข้อมูลนักเรียน!B36=0,"",ข้อมูลนักเรียน!B36) ->  | C36: =IF(ข้อมูลนักเรียน!C36=0,"",ข้อมูลนักเรียน!C36) ->  | D36: =IF(ข้อมูลนักเรียน!C36=0,"",ข้อมูลนักเรียน!D36 & ข้อมูลนักเรียน!E36 & " "& ข้อมูลนักเรียน!F36) ->  | E36: =IF(ข้อมูลนักเรียน!C36=0,"",ข้อมูลนักเรียน!G36) ->  | F36: =ข้อมูลนักเรียน!B36 -> 0 | AG36: ผ่าน | AH36: 0 | AJ36: ปรับปรุง | AL36: 23
A37: =ข้อมูลนักเรียน!A37 -> 0 | B37: =IF(ข้อมูลนักเรียน!B37=0,"",ข้อมูลนักเรียน!B37) ->  | C37: =IF(ข้อมูลนักเรียน!C37=0,"",ข้อมูลนักเรียน!C37) ->  | D37: =IF(ข้อมูลนักเรียน!C37=0,"",ข้อมูลนักเรียน!D37 & ข้อมูลนักเรียน!E37 & " "& ข้อมูลนักเรียน!F37) ->  | E37: =IF(ข้อมูลนักเรียน!C37=0,"",ข้อมูลนักเรียน!G37) ->  | F37: =ข้อมูลนักเรียน!B37 -> 0 | AG37: ผ่าน | AH37: 0 | AJ37: ปรับปรุง | AL37: 23
A38: =ข้อมูลนักเรียน!A38 -> 0 | B38: =IF(ข้อมูลนักเรียน!B38=0,"",ข้อมูลนักเรียน!B38) ->  | C38: =IF(ข้อมูลนักเรียน!C38=0,"",ข้อมูลนักเรียน!C38) ->  | D38: =IF(ข้อมูลนักเรียน!C38=0,"",ข้อมูลนักเรียน!D38 & ข้อมูลนักเรียน!E38 & " "& ข้อมูลนักเรียน!F38) ->  | E38: =IF(ข้อมูลนักเรียน!C38=0,"",ข้อมูลนักเรียน!G38) ->  | F38: =ข้อมูลนักเรียน!B38 -> 0 | AG38: ผ่าน | AH38: 0 | AJ38: ปรับปรุง | AL38: 23
A39: =ข้อมูลนักเรียน!A39 -> 0 | B39: =IF(ข้อมูลนักเรียน!B39=0,"",ข้อมูลนักเรียน!B39) ->  | C39: =IF(ข้อมูลนักเรียน!C39=0,"",ข้อมูลนักเรียน!C39) ->  | D39: =IF(ข้อมูลนักเรียน!C39=0,"",ข้อมูลนักเรียน!D39 & ข้อมูลนักเรียน!E39 & " "& ข้อมูลนักเรียน!F39) ->  | E39: =IF(ข้อมูลนักเรียน!C39=0,"",ข้อมูลนักเรียน!G39) ->  | F39: =ข้อมูลนักเรียน!B39 -> 0 | AG39: ผ่าน | AH39: 0 | AJ39: ปรับปรุง | AL39: 23
A40: =ข้อมูลนักเรียน!A40 -> 0 | B40: =IF(ข้อมูลนักเรียน!B40=0,"",ข้อมูลนักเรียน!B40) ->  | C40: =IF(ข้อมูลนักเรียน!C40=0,"",ข้อมูลนักเรียน!C40) ->  | D40: =IF(ข้อมูลนักเรียน!C40=0,"",ข้อมูลนักเรียน!D40 & ข้อมูลนักเรียน!E40 & " "& ข้อมูลนักเรียน!F40) ->  | E40: =IF(ข้อมูลนักเรียน!C40=0,"",ข้อมูลนักเรียน!G40) ->  | F40: =ข้อมูลนักเรียน!B40 -> 0 | AG40: ผ่าน | AH40: 0 | AJ40: ปรับปรุง | AL40: 23
A41: =ข้อมูลนักเรียน!A41 -> 0 | B41: =IF(ข้อมูลนักเรียน!B41=0,"",ข้อมูลนักเรียน!B41) ->  | C41: =IF(ข้อมูลนักเรียน!C41=0,"",ข้อมูลนักเรียน!C41) ->  | D41: =IF(ข้อมูลนักเรียน!C41=0,"",ข้อมูลนักเรียน!D41 & ข้อมูลนักเรียน!E41 & " "& ข้อมูลนักเรียน!F41) ->  | E41: =IF(ข้อมูลนักเรียน!C41=0,"",ข้อมูลนักเรียน!G41) ->  | F41: =ข้อมูลนักเรียน!B41 -> 0 | AG41: ผ่าน | AH41: 0 | AJ41: ปรับปรุง | AL41: 23
A42: =ข้อมูลนักเรียน!A42 -> 0 | B42: =IF(ข้อมูลนักเรียน!B42=0,"",ข้อมูลนักเรียน!B42) ->  | C42: =IF(ข้อมูลนักเรียน!C42=0,"",ข้อมูลนักเรียน!C42) ->  | D42: =IF(ข้อมูลนักเรียน!C42=0,"",ข้อมูลนักเรียน!D42 & ข้อมูลนักเรียน!E42 & " "& ข้อมูลนักเรียน!F42) ->  | E42: =IF(ข้อมูลนักเรียน!C42=0,"",ข้อมูลนักเรียน!G42) ->  | F42: =ข้อมูลนักเรียน!B42 -> 0 | AG42: ผ่าน | AH42: =ROUNDDOWN(0,2) -> 0 | AJ42: ปรับปรุง | AL42: 23
A43: =ข้อมูลนักเรียน!A43 -> 0 | B43: =IF(ข้อมูลนักเรียน!B43=0,"",ข้อมูลนักเรียน!B43) ->  | C43: =IF(ข้อมูลนักเรียน!C43=0,"",ข้อมูลนักเรียน!C43) ->  | D43: =IF(ข้อมูลนักเรียน!C43=0,"",ข้อมูลนักเรียน!D43 & ข้อมูลนักเรียน!E43 & " "& ข้อมูลนักเรียน!F43) ->  | E43: =IF(ข้อมูลนักเรียน!C43=0,"",ข้อมูลนักเรียน!G43) ->  | F43: =ข้อมูลนักเรียน!B43 -> 0 | AG43: ผ่าน | AH43: 0 | AJ43: ปรับปรุง | AL43: 23
A44: =ข้อมูลนักเรียน!A44 -> 0 | B44: =IF(ข้อมูลนักเรียน!B44=0,"",ข้อมูลนักเรียน!B44) ->  | C44: =IF(ข้อมูลนักเรียน!C44=0,"",ข้อมูลนักเรียน!C44) ->  | D44: =IF(ข้อมูลนักเรียน!C44=0,"",ข้อมูลนักเรียน!D44 & ข้อมูลนักเรียน!E44 & " "& ข้อมูลนักเรียน!F44) ->  | E44: =IF(ข้อมูลนักเรียน!C44=0,"",ข้อมูลนักเรียน!G44) ->  | F44: =ข้อมูลนักเรียน!B44 -> 0 | AG44: ผ่าน | AH44: 0 | AJ44: ปรับปรุง | AL44: 23
A45: =ข้อมูลนักเรียน!A45 -> 0 | B45: =IF(ข้อมูลนักเรียน!B45=0,"",ข้อมูลนักเรียน!B45) ->  | C45: =IF(ข้อมูลนักเรียน!C45=0,"",ข้อมูลนักเรียน!C45) ->  | D45: =IF(ข้อมูลนักเรียน!C45=0,"",ข้อมูลนักเรียน!D45 & ข้อมูลนักเรียน!E45 & " "& ข้อมูลนักเรียน!F45) ->  | E45: =IF(ข้อมูลนักเรียน!C45=0,"",ข้อมูลนักเรียน!G45) ->  | F45: =ข้อมูลนักเรียน!B45 -> 0 | AG45: ผ่าน | AH45: 0 | AJ45: ปรับปรุง | AL45: 23
A46: =ข้อมูลนักเรียน!A46 -> 0 | B46: =IF(ข้อมูลนักเรียน!B46=0,"",ข้อมูลนักเรียน!B46) ->  | C46: =IF(ข้อมูลนักเรียน!C46=0,"",ข้อมูลนักเรียน!C46) ->  | D46: =IF(ข้อมูลนักเรียน!C46=0,"",ข้อมูลนักเรียน!D46 & ข้อมูลนักเรียน!E46 & " "& ข้อมูลนักเรียน!F46) ->  | E46: =IF(ข้อมูลนักเรียน!C46=0,"",ข้อมูลนักเรียน!G46) ->  | F46: =ข้อมูลนักเรียน!B46 -> 0 | AG46: ผ่าน | AH46: 0 | AJ46: ปรับปรุง | AL46: 23
A47: =ข้อมูลนักเรียน!A47 -> 0 | B47: =IF(ข้อมูลนักเรียน!B47=0,"",ข้อมูลนักเรียน!B47) ->  | C47: =IF(ข้อมูลนักเรียน!C47=0,"",ข้อมูลนักเรียน!C47) ->  | D47: =IF(ข้อมูลนักเรียน!C47=0,"",ข้อมูลนักเรียน!D47 & ข้อมูลนักเรียน!E47 & " "& ข้อมูลนักเรียน!F47) ->  | E47: =IF(ข้อมูลนักเรียน!C47=0,"",ข้อมูลนักเรียน!G47) ->  | F47: =ข้อมูลนักเรียน!B47 -> 0 | AG47: ผ่าน | AH47: 0 | AJ47: ปรับปรุง | AL47: 23
A48: =ข้อมูลนักเรียน!A48 -> 0 | B48: =IF(ข้อมูลนักเรียน!B48=0,"",ข้อมูลนักเรียน!B48) ->  | C48: =IF(ข้อมูลนักเรียน!C48=0,"",ข้อมูลนักเรียน!C48) ->  | D48: =IF(ข้อมูลนักเรียน!C48=0,"",ข้อมูลนักเรียน!D48 & ข้อมูลนักเรียน!E48 & " "& ข้อมูลนักเรียน!F48) ->  | E48: =IF(ข้อมูลนักเรียน!C48=0,"",ข้อมูลนักเรียน!G48) ->  | F48: =ข้อมูลนักเรียน!B48 -> 0 | AG48: ผ่าน | AH48: 0 | AJ48: ปรับปรุง | AL48: 23
A49: =ข้อมูลนักเรียน!A49 -> 0 | B49: =IF(ข้อมูลนักเรียน!B49=0,"",ข้อมูลนักเรียน!B49) ->  | C49: =IF(ข้อมูลนักเรียน!C49=0,"",ข้อมูลนักเรียน!C49) ->  | D49: =IF(ข้อมูลนักเรียน!C49=0,"",ข้อมูลนักเรียน!D49 & ข้อมูลนักเรียน!E49 & " "& ข้อมูลนักเรียน!F49) ->  | E49: =IF(ข้อมูลนักเรียน!C49=0,"",ข้อมูลนักเรียน!G49) ->  | F49: =ข้อมูลนักเรียน!B49 -> 0 | AG49: ผ่าน | AH49: 0 | AJ49: ปรับปรุง | AL49: 23
A50: =ข้อมูลนักเรียน!A50 -> 0 | B50: =IF(ข้อมูลนักเรียน!B50=0,"",ข้อมูลนักเรียน!B50) ->  | C50: =IF(ข้อมูลนักเรียน!C50=0,"",ข้อมูลนักเรียน!C50) ->  | D50: =IF(ข้อมูลนักเรียน!C50=0,"",ข้อมูลนักเรียน!D50 & ข้อมูลนักเรียน!E50 & " "& ข้อมูลนักเรียน!F50) ->  | E50: =IF(ข้อมูลนักเรียน!C50=0,"",ข้อมูลนักเรียน!G50) ->  | F50: =ข้อมูลนักเรียน!B50 -> 0 | AG50: ผ่าน | AH50: 0 | AJ50: ปรับปรุง | AL50: 23
A51: =ข้อมูลนักเรียน!A51 -> 0 | B51: =IF(ข้อมูลนักเรียน!B51=0,"",ข้อมูลนักเรียน!B51) ->  | C51: =IF(ข้อมูลนักเรียน!C51=0,"",ข้อมูลนักเรียน!C51) ->  | D51: =IF(ข้อมูลนักเรียน!C51=0,"",ข้อมูลนักเรียน!D51 & ข้อมูลนักเรียน!E51 & " "& ข้อมูลนักเรียน!F51) ->  | E51: =IF(ข้อมูลนักเรียน!C51=0,"",ข้อมูลนักเรียน!G51) ->  | F51: =ข้อมูลนักเรียน!B51 -> 0 | AG51: ผ่าน | AH51: 0 | AJ51: ปรับปรุง | AL51: 23
A52: =ข้อมูลนักเรียน!A52 -> 0 | B52: =IF(ข้อมูลนักเรียน!B52=0,"",ข้อมูลนักเรียน!B52) ->  | C52: =IF(ข้อมูลนักเรียน!C52=0,"",ข้อมูลนักเรียน!C52) ->  | D52: =IF(ข้อมูลนักเรียน!C52=0,"",ข้อมูลนักเรียน!D52 & ข้อมูลนักเรียน!E52 & " "& ข้อมูลนักเรียน!F52) ->  | E52: =IF(ข้อมูลนักเรียน!C52=0,"",ข้อมูลนักเรียน!G52) ->  | F52: =ข้อมูลนักเรียน!B52 -> 0 | AG52: ผ่าน | AH52: 0 | AJ52: ปรับปรุง | AL52: 23
A53: =ข้อมูลนักเรียน!A53 -> 0 | B53: =IF(ข้อมูลนักเรียน!B53=0,"",ข้อมูลนักเรียน!B53) ->  | C53: =IF(ข้อมูลนักเรียน!C53=0,"",ข้อมูลนักเรียน!C53) ->  | D53: =IF(ข้อมูลนักเรียน!C53=0,"",ข้อมูลนักเรียน!D53 & ข้อมูลนักเรียน!E53 & " "& ข้อมูลนักเรียน!F53) ->  | E53: =IF(ข้อมูลนักเรียน!C53=0,"",ข้อมูลนักเรียน!G53) ->  | F53: =ข้อมูลนักเรียน!B53 -> 0 | AG53: ผ่าน | AH53: 0 | AJ53: ปรับปรุง | AL53: 23
A54: =ข้อมูลนักเรียน!A54 -> 0 | B54: =IF(ข้อมูลนักเรียน!B54=0,"",ข้อมูลนักเรียน!B54) ->  | C54: =IF(ข้อมูลนักเรียน!C54=0,"",ข้อมูลนักเรียน!C54) ->  | D54: =IF(ข้อมูลนักเรียน!C54=0,"",ข้อมูลนักเรียน!D54 & ข้อมูลนักเรียน!E54 & " "& ข้อมูลนักเรียน!F54) ->  | E54: =IF(ข้อมูลนักเรียน!C54=0,"",ข้อมูลนักเรียน!G54) ->  | F54: =ข้อมูลนักเรียน!B54 -> 0 | AG54: ผ่าน | AH54: 0 | AJ54: ปรับปรุง | AL54: 23
A55: =ข้อมูลนักเรียน!A55 -> 0 | B55: =IF(ข้อมูลนักเรียน!B55=0,"",ข้อมูลนักเรียน!B55) ->  | C55: =IF(ข้อมูลนักเรียน!C55=0,"",ข้อมูลนักเรียน!C55) ->  | D55: =IF(ข้อมูลนักเรียน!C55=0,"",ข้อมูลนักเรียน!D55 & ข้อมูลนักเรียน!E55 & " "& ข้อมูลนักเรียน!F55) ->  | E55: =IF(ข้อมูลนักเรียน!C55=0,"",ข้อมูลนักเรียน!G55) ->  | F55: =ข้อมูลนักเรียน!B55 -> 0 | AG55: ผ่าน | AH55: 0 | AJ55: ปรับปรุง | AL55: 23
A56: =ข้อมูลนักเรียน!A56 -> 0 | B56: =IF(ข้อมูลนักเรียน!B56=0,"",ข้อมูลนักเรียน!B56) ->  | C56: =IF(ข้อมูลนักเรียน!C56=0,"",ข้อมูลนักเรียน!C56) ->  | D56: =IF(ข้อมูลนักเรียน!C56=0,"",ข้อมูลนักเรียน!D56 & ข้อมูลนักเรียน!E56 & " "& ข้อมูลนักเรียน!F56) ->  | E56: =IF(ข้อมูลนักเรียน!C56=0,"",ข้อมูลนักเรียน!G56) ->  | F56: =ข้อมูลนักเรียน!B56 -> 0 | AG56: ผ่าน | AH56: 0 | AJ56: ปรับปรุง | AL56: 23
A57: =ข้อมูลนักเรียน!A57 -> 0 | B57: =IF(ข้อมูลนักเรียน!B57=0,"",ข้อมูลนักเรียน!B57) ->  | C57: =IF(ข้อมูลนักเรียน!C57=0,"",ข้อมูลนักเรียน!C57) ->  | D57: =IF(ข้อมูลนักเรียน!C57=0,"",ข้อมูลนักเรียน!D57 & ข้อมูลนักเรียน!E57 & " "& ข้อมูลนักเรียน!F57) ->  | E57: =IF(ข้อมูลนักเรียน!C57=0,"",ข้อมูลนักเรียน!G57) ->  | F57: =ข้อมูลนักเรียน!B57 -> 0 | AG57: ผ่าน | AH57: 0 | AJ57: ปรับปรุง | AL57: 23
A58: =ข้อมูลนักเรียน!A58 -> 0 | B58: =IF(ข้อมูลนักเรียน!B58=0,"",ข้อมูลนักเรียน!B58) ->  | C58: =IF(ข้อมูลนักเรียน!C58=0,"",ข้อมูลนักเรียน!C58) ->  | D58: =IF(ข้อมูลนักเรียน!C58=0,"",ข้อมูลนักเรียน!D58 & ข้อมูลนักเรียน!E58 & " "& ข้อมูลนักเรียน!F58) ->  | E58: =IF(ข้อมูลนักเรียน!C58=0,"",ข้อมูลนักเรียน!G58) ->  | F58: =ข้อมูลนักเรียน!B58 -> 0 | AG58: ผ่าน | AH58: 0 | AJ58: ปรับปรุง | AL58: 23
A59: =ข้อมูลนักเรียน!A59 -> 0 | B59: =IF(ข้อมูลนักเรียน!B59=0,"",ข้อมูลนักเรียน!B59) ->  | C59: =IF(ข้อมูลนักเรียน!C59=0,"",ข้อมูลนักเรียน!C59) ->  | D59: =IF(ข้อมูลนักเรียน!C59=0,"",ข้อมูลนักเรียน!D59 & ข้อมูลนักเรียน!E59 & " "& ข้อมูลนักเรียน!F59) ->  | E59: =IF(ข้อมูลนักเรียน!C59=0,"",ข้อมูลนักเรียน!G59) ->  | F59: =ข้อมูลนักเรียน!B59 -> 0 | AG59: ผ่าน | AH59: 0 | AJ59: ปรับปรุง | AL59: 23
A60: =ข้อมูลนักเรียน!A60 -> 0 | B60: =IF(ข้อมูลนักเรียน!B60=0,"",ข้อมูลนักเรียน!B60) ->  | C60: =IF(ข้อมูลนักเรียน!C60=0,"",ข้อมูลนักเรียน!C60) ->  | D60: =IF(ข้อมูลนักเรียน!C60=0,"",ข้อมูลนักเรียน!D60 & ข้อมูลนักเรียน!E60 & " "& ข้อมูลนักเรียน!F60) ->  | E60: =IF(ข้อมูลนักเรียน!C60=0,"",ข้อมูลนักเรียน!G60) ->  | F60: =ข้อมูลนักเรียน!B60 -> 0 | AG60: ผ่าน | AH60: 0 | AJ60: ปรับปรุง | AL60: 23
A61: =ข้อมูลนักเรียน!A61 -> 0 | B61: =IF(ข้อมูลนักเรียน!B61=0,"",ข้อมูลนักเรียน!B61) ->  | C61: =IF(ข้อมูลนักเรียน!C61=0,"",ข้อมูลนักเรียน!C61) ->  | D61: =IF(ข้อมูลนักเรียน!C61=0,"",ข้อมูลนักเรียน!D61 & ข้อมูลนักเรียน!E61 & " "& ข้อมูลนักเรียน!F61) ->  | E61: =IF(ข้อมูลนักเรียน!C61=0,"",ข้อมูลนักเรียน!G61) ->  | F61: =ข้อมูลนักเรียน!B61 -> 0 | AG61: ผ่าน | AH61: 0 | AJ61: ปรับปรุง | AL61: 23
A62: =ข้อมูลนักเรียน!A62 -> 0 | B62: =IF(ข้อมูลนักเรียน!B62=0,"",ข้อมูลนักเรียน!B62) ->  | C62: =IF(ข้อมูลนักเรียน!C62=0,"",ข้อมูลนักเรียน!C62) ->  | D62: =IF(ข้อมูลนักเรียน!C62=0,"",ข้อมูลนักเรียน!D62 & ข้อมูลนักเรียน!E62 & " "& ข้อมูลนักเรียน!F62) ->  | E62: =IF(ข้อมูลนักเรียน!C62=0,"",ข้อมูลนักเรียน!G62) ->  | F62: =ข้อมูลนักเรียน!B62 -> 0 | AG62: ผ่าน | AH62: 0 | AJ62: ปรับปรุง | AL62: 23
A63: =ข้อมูลนักเรียน!A63 -> 0 | B63: =IF(ข้อมูลนักเรียน!B63=0,"",ข้อมูลนักเรียน!B63) ->  | C63: =IF(ข้อมูลนักเรียน!C63=0,"",ข้อมูลนักเรียน!C63) ->  | D63: =IF(ข้อมูลนักเรียน!C63=0,"",ข้อมูลนักเรียน!D63 & ข้อมูลนักเรียน!E63 & " "& ข้อมูลนักเรียน!F63) ->  | E63: =IF(ข้อมูลนักเรียน!C63=0,"",ข้อมูลนักเรียน!G63) ->  | F63: =ข้อมูลนักเรียน!B63 -> 0 | AG63: ผ่าน | AH63: 0 | AJ63: ปรับปรุง | AL63: 23
A64: =ข้อมูลนักเรียน!A64 -> 0 | B64: =IF(ข้อมูลนักเรียน!B64=0,"",ข้อมูลนักเรียน!B64) ->  | C64: =IF(ข้อมูลนักเรียน!C64=0,"",ข้อมูลนักเรียน!C64) ->  | D64: =IF(ข้อมูลนักเรียน!C64=0,"",ข้อมูลนักเรียน!D64 & ข้อมูลนักเรียน!E64 & " "& ข้อมูลนักเรียน!F64) ->  | E64: =IF(ข้อมูลนักเรียน!C64=0,"",ข้อมูลนักเรียน!G64) ->  | F64: =ข้อมูลนักเรียน!B64 -> 0 | AG64: ผ่าน | AH64: 0 | AJ64: ปรับปรุง | AL64: 23
A65: =ข้อมูลนักเรียน!A65 -> 0 | B65: =IF(ข้อมูลนักเรียน!B65=0,"",ข้อมูลนักเรียน!B65) ->  | C65: =IF(ข้อมูลนักเรียน!C65=0,"",ข้อมูลนักเรียน!C65) ->  | D65: =IF(ข้อมูลนักเรียน!C65=0,"",ข้อมูลนักเรียน!D65 & ข้อมูลนักเรียน!E65 & " "& ข้อมูลนักเรียน!F65) ->  | E65: =IF(ข้อมูลนักเรียน!C65=0,"",ข้อมูลนักเรียน!G65) ->  | F65: =ข้อมูลนักเรียน!B65 -> 0 | AG65: ผ่าน | AH65: 0 | AJ65: ปรับปรุง | AL65: 23
A66: =ข้อมูลนักเรียน!A66 -> 0 | B66: =IF(ข้อมูลนักเรียน!B66=0,"",ข้อมูลนักเรียน!B66) ->  | C66: =IF(ข้อมูลนักเรียน!C66=0,"",ข้อมูลนักเรียน!C66) ->  | D66: =IF(ข้อมูลนักเรียน!C66=0,"",ข้อมูลนักเรียน!D66 & ข้อมูลนักเรียน!E66 & " "& ข้อมูลนักเรียน!F66) ->  | E66: =IF(ข้อมูลนักเรียน!C66=0,"",ข้อมูลนักเรียน!G66) ->  | F66: =ข้อมูลนักเรียน!B66 -> 0 | AG66: ผ่าน | AH66: 0 | AJ66: ปรับปรุง | AL66: 23
A67: =ข้อมูลนักเรียน!A67 -> 0 | B67: =IF(ข้อมูลนักเรียน!B67=0,"",ข้อมูลนักเรียน!B67) ->  | C67: =IF(ข้อมูลนักเรียน!C67=0,"",ข้อมูลนักเรียน!C67) ->  | D67: =IF(ข้อมูลนักเรียน!C67=0,"",ข้อมูลนักเรียน!D67 & ข้อมูลนักเรียน!E67 & " "& ข้อมูลนักเรียน!F67) ->  | E67: =IF(ข้อมูลนักเรียน!C67=0,"",ข้อมูลนักเรียน!G67) ->  | F67: =ข้อมูลนักเรียน!B67 -> 0 | AG67: ผ่าน | AH67: 0 | AJ67: ปรับปรุง | AL67: 23
A68: =ข้อมูลนักเรียน!A68 -> 0 | B68: =IF(ข้อมูลนักเรียน!B68=0,"",ข้อมูลนักเรียน!B68) ->  | C68: =IF(ข้อมูลนักเรียน!C68=0,"",ข้อมูลนักเรียน!C68) ->  | D68: =IF(ข้อมูลนักเรียน!C68=0,"",ข้อมูลนักเรียน!D68 & ข้อมูลนักเรียน!E68 & " "& ข้อมูลนักเรียน!F68) ->  | E68: =IF(ข้อมูลนักเรียน!C68=0,"",ข้อมูลนักเรียน!G68) ->  | F68: =ข้อมูลนักเรียน!B68 -> 0 | AG68: ผ่าน | AH68: 0 | AJ68: ปรับปรุง | AL68: 23
A69: =ข้อมูลนักเรียน!A69 -> 0 | B69: =IF(ข้อมูลนักเรียน!B69=0,"",ข้อมูลนักเรียน!B69) ->  | C69: =IF(ข้อมูลนักเรียน!C69=0,"",ข้อมูลนักเรียน!C69) ->  | D69: =IF(ข้อมูลนักเรียน!C69=0,"",ข้อมูลนักเรียน!D69 & ข้อมูลนักเรียน!E69 & " "& ข้อมูลนักเรียน!F69) ->  | E69: =IF(ข้อมูลนักเรียน!C69=0,"",ข้อมูลนักเรียน!G69) ->  | F69: =ข้อมูลนักเรียน!B69 -> 0 | AG69: ผ่าน | AH69: 0 | AJ69: ปรับปรุง | AL69: 23
A70: =ข้อมูลนักเรียน!A70 -> 0 | B70: =IF(ข้อมูลนักเรียน!B70=0,"",ข้อมูลนักเรียน!B70) ->  | C70: =IF(ข้อมูลนักเรียน!C70=0,"",ข้อมูลนักเรียน!C70) ->  | D70: =IF(ข้อมูลนักเรียน!C70=0,"",ข้อมูลนักเรียน!D70 & ข้อมูลนักเรียน!E70 & " "& ข้อมูลนักเรียน!F70) ->  | E70: =IF(ข้อมูลนักเรียน!C70=0,"",ข้อมูลนักเรียน!G70) ->  | F70: =ข้อมูลนักเรียน!B70 -> 0 | AG70: ผ่าน | AH70: 0 | AJ70: ปรับปรุง | AL70: 23
A71: =ข้อมูลนักเรียน!A71 -> 0 | B71: =IF(ข้อมูลนักเรียน!B71=0,"",ข้อมูลนักเรียน!B71) ->  | C71: =IF(ข้อมูลนักเรียน!C71=0,"",ข้อมูลนักเรียน!C71) ->  | D71: =IF(ข้อมูลนักเรียน!C71=0,"",ข้อมูลนักเรียน!D71 & ข้อมูลนักเรียน!E71 & " "& ข้อมูลนักเรียน!F71) ->  | E71: =IF(ข้อมูลนักเรียน!C71=0,"",ข้อมูลนักเรียน!G71) ->  | F71: =ข้อมูลนักเรียน!B71 -> 0 | AG71: ผ่าน | AH71: 0 | AJ71: ปรับปรุง | AL71: 23
A72: =ข้อมูลนักเรียน!A72 -> 0 | B72: =IF(ข้อมูลนักเรียน!B72=0,"",ข้อมูลนักเรียน!B72) ->  | C72: =IF(ข้อมูลนักเรียน!C72=0,"",ข้อมูลนักเรียน!C72) ->  | D72: =IF(ข้อมูลนักเรียน!C72=0,"",ข้อมูลนักเรียน!D72 & ข้อมูลนักเรียน!E72 & " "& ข้อมูลนักเรียน!F72) ->  | E72: =IF(ข้อมูลนักเรียน!C72=0,"",ข้อมูลนักเรียน!G72) ->  | F72: =ข้อมูลนักเรียน!B72 -> 0 | AG72: ผ่าน | AH72: 0 | AJ72: ปรับปรุง | AL72: 23
A73: =ข้อมูลนักเรียน!A73 -> 0 | B73: =IF(ข้อมูลนักเรียน!B73=0,"",ข้อมูลนักเรียน!B73) ->  | C73: =IF(ข้อมูลนักเรียน!C73=0,"",ข้อมูลนักเรียน!C73) ->  | D73: =IF(ข้อมูลนักเรียน!C73=0,"",ข้อมูลนักเรียน!D73 & ข้อมูลนักเรียน!E73 & " "& ข้อมูลนักเรียน!F73) ->  | E73: =IF(ข้อมูลนักเรียน!C73=0,"",ข้อมูลนักเรียน!G73) ->  | F73: =ข้อมูลนักเรียน!B73 -> 0 | AG73: =IF(COUNTIFS(Z73:AD73,"=มผ") > 0,"ไม่ผ่าน","ผ่าน") -> ผ่าน | AH73: 0 | AJ73: =IF(AF73=1,"ผ่าน",IF(AF73=2,"ดี",IF(AF73=3,"ดีเยี่ยม","ปรับปรุง"))) -> ปรับปรุง | AL73: 23
A74: =ข้อมูลนักเรียน!A74 -> 0 | B74: =IF(ข้อมูลนักเรียน!B74=0,"",ข้อมูลนักเรียน!B74) ->  | C74: =IF(ข้อมูลนักเรียน!C74=0,"",ข้อมูลนักเรียน!C74) ->  | D74: =IF(ข้อมูลนักเรียน!C74=0,"",ข้อมูลนักเรียน!D74 & ข้อมูลนักเรียน!E74 & " "& ข้อมูลนักเรียน!F74) ->  | E74: =IF(ข้อมูลนักเรียน!C74=0,"",ข้อมูลนักเรียน!G74) ->  | F74: =ข้อมูลนักเรียน!B74 -> 0 | AG74: ผ่าน | AH74: =ROUNDDOWN(0,2) -> 0 | AJ74: ปรับปรุง | AL74: 23
A75: =ข้อมูลนักเรียน!A75 -> 0 | B75: =IF(ข้อมูลนักเรียน!B75=0,"",ข้อมูลนักเรียน!B75) ->  | C75: =IF(ข้อมูลนักเรียน!C75=0,"",ข้อมูลนักเรียน!C75) ->  | D75: =IF(ข้อมูลนักเรียน!C75=0,"",ข้อมูลนักเรียน!D75 & ข้อมูลนักเรียน!E75 & " "& ข้อมูลนักเรียน!F75) ->  | E75: =IF(ข้อมูลนักเรียน!C75=0,"",ข้อมูลนักเรียน!G75) ->  | F75: =ข้อมูลนักเรียน!B75 -> 0 | AG75: ผ่าน | AH75: 0 | AJ75: ปรับปรุง | AL75: 23
A76: =ข้อมูลนักเรียน!A76 -> 0 | B76: =IF(ข้อมูลนักเรียน!B76=0,"",ข้อมูลนักเรียน!B76) ->  | C76: =IF(ข้อมูลนักเรียน!C76=0,"",ข้อมูลนักเรียน!C76) ->  | D76: =IF(ข้อมูลนักเรียน!C76=0,"",ข้อมูลนักเรียน!D76 & ข้อมูลนักเรียน!E76 & " "& ข้อมูลนักเรียน!F76) ->  | E76: =IF(ข้อมูลนักเรียน!C76=0,"",ข้อมูลนักเรียน!G76) ->  | F76: =ข้อมูลนักเรียน!B76 -> 0 | AG76: ผ่าน | AH76: 0 | AJ76: ปรับปรุง | AL76: 23
A77: =ข้อมูลนักเรียน!A77 -> 0 | B77: =IF(ข้อมูลนักเรียน!B77=0,"",ข้อมูลนักเรียน!B77) ->  | C77: =IF(ข้อมูลนักเรียน!C77=0,"",ข้อมูลนักเรียน!C77) ->  | D77: =IF(ข้อมูลนักเรียน!C77=0,"",ข้อมูลนักเรียน!D77 & ข้อมูลนักเรียน!E77 & " "& ข้อมูลนักเรียน!F77) ->  | E77: =IF(ข้อมูลนักเรียน!C77=0,"",ข้อมูลนักเรียน!G77) ->  | F77: =ข้อมูลนักเรียน!B77 -> 0 | AG77: ผ่าน | AH77: 0 | AJ77: ปรับปรุง | AL77: 23
A78: =ข้อมูลนักเรียน!A78 -> 0 | B78: =IF(ข้อมูลนักเรียน!B78=0,"",ข้อมูลนักเรียน!B78) ->  | C78: =IF(ข้อมูลนักเรียน!C78=0,"",ข้อมูลนักเรียน!C78) ->  | D78: =IF(ข้อมูลนักเรียน!C78=0,"",ข้อมูลนักเรียน!D78 & ข้อมูลนักเรียน!E78 & " "& ข้อมูลนักเรียน!F78) ->  | E78: =IF(ข้อมูลนักเรียน!C78=0,"",ข้อมูลนักเรียน!G78) ->  | F78: =ข้อมูลนักเรียน!B78 -> 0 | AG78: ผ่าน | AH78: 0 | AJ78: ปรับปรุง | AL78: 23
A79: =ข้อมูลนักเรียน!A79 -> 0 | B79: =IF(ข้อมูลนักเรียน!B79=0,"",ข้อมูลนักเรียน!B79) ->  | C79: =IF(ข้อมูลนักเรียน!C79=0,"",ข้อมูลนักเรียน!C79) ->  | D79: =IF(ข้อมูลนักเรียน!C79=0,"",ข้อมูลนักเรียน!D79 & ข้อมูลนักเรียน!E79 & " "& ข้อมูลนักเรียน!F79) ->  | E79: =IF(ข้อมูลนักเรียน!C79=0,"",ข้อมูลนักเรียน!G79) ->  | F79: =ข้อมูลนักเรียน!B79 -> 0 | AG79: ผ่าน | AH79: 0 | AJ79: ปรับปรุง | AL79: 23
A80: =ข้อมูลนักเรียน!A80 -> 0 | B80: =IF(ข้อมูลนักเรียน!B80=0,"",ข้อมูลนักเรียน!B80) ->  | C80: =IF(ข้อมูลนักเรียน!C80=0,"",ข้อมูลนักเรียน!C80) ->  | D80: =IF(ข้อมูลนักเรียน!C80=0,"",ข้อมูลนักเรียน!D80 & ข้อมูลนักเรียน!E80 & " "& ข้อมูลนักเรียน!F80) ->  | E80: =IF(ข้อมูลนักเรียน!C80=0,"",ข้อมูลนักเรียน!G80) ->  | F80: =ข้อมูลนักเรียน!B80 -> 0 | AG80: ผ่าน | AH80: 0 | AJ80: ปรับปรุง | AL80: 23
A81: =ข้อมูลนักเรียน!A81 -> 0 | B81: =IF(ข้อมูลนักเรียน!B81=0,"",ข้อมูลนักเรียน!B81) ->  | C81: =IF(ข้อมูลนักเรียน!C81=0,"",ข้อมูลนักเรียน!C81) ->  | D81: =IF(ข้อมูลนักเรียน!C81=0,"",ข้อมูลนักเรียน!D81 & ข้อมูลนักเรียน!E81 & " "& ข้อมูลนักเรียน!F81) ->  | E81: =IF(ข้อมูลนักเรียน!C81=0,"",ข้อมูลนักเรียน!G81) ->  | F81: =ข้อมูลนักเรียน!B81 -> 0 | AG81: ผ่าน | AH81: 0 | AJ81: ปรับปรุง | AL81: 23
A82: =ข้อมูลนักเรียน!A82 -> 0 | B82: =IF(ข้อมูลนักเรียน!B82=0,"",ข้อมูลนักเรียน!B82) ->  | C82: =IF(ข้อมูลนักเรียน!C82=0,"",ข้อมูลนักเรียน!C82) ->  | D82: =IF(ข้อมูลนักเรียน!C82=0,"",ข้อมูลนักเรียน!D82 & ข้อมูลนักเรียน!E82 & " "& ข้อมูลนักเรียน!F82) ->  | E82: =IF(ข้อมูลนักเรียน!C82=0,"",ข้อมูลนักเรียน!G82) ->  | F82: =ข้อมูลนักเรียน!B82 -> 0 | AG82: ผ่าน | AH82: 0 | AJ82: ปรับปรุง | AL82: 23
A83: =ข้อมูลนักเรียน!A83 -> 0 | B83: =IF(ข้อมูลนักเรียน!B83=0,"",ข้อมูลนักเรียน!B83) ->  | C83: =IF(ข้อมูลนักเรียน!C83=0,"",ข้อมูลนักเรียน!C83) ->  | D83: =IF(ข้อมูลนักเรียน!C83=0,"",ข้อมูลนักเรียน!D83 & ข้อมูลนักเรียน!E83 & " "& ข้อมูลนักเรียน!F83) ->  | E83: =IF(ข้อมูลนักเรียน!C83=0,"",ข้อมูลนักเรียน!G83) ->  | F83: =ข้อมูลนักเรียน!B83 -> 0 | AG83: ผ่าน | AH83: 0 | AJ83: ปรับปรุง | AL83: 23
A84: =ข้อมูลนักเรียน!A84 -> 0 | B84: =IF(ข้อมูลนักเรียน!B84=0,"",ข้อมูลนักเรียน!B84) ->  | C84: =IF(ข้อมูลนักเรียน!C84=0,"",ข้อมูลนักเรียน!C84) ->  | D84: =IF(ข้อมูลนักเรียน!C84=0,"",ข้อมูลนักเรียน!D84 & ข้อมูลนักเรียน!E84 & " "& ข้อมูลนักเรียน!F84) ->  | E84: =IF(ข้อมูลนักเรียน!C84=0,"",ข้อมูลนักเรียน!G84) ->  | F84: =ข้อมูลนักเรียน!B84 -> 0 | AG84: ผ่าน | AH84: 0 | AJ84: ปรับปรุง | AL84: 23
A85: =ข้อมูลนักเรียน!A85 -> 0 | B85: =IF(ข้อมูลนักเรียน!B85=0,"",ข้อมูลนักเรียน!B85) ->  | C85: =IF(ข้อมูลนักเรียน!C85=0,"",ข้อมูลนักเรียน!C85) ->  | D85: =IF(ข้อมูลนักเรียน!C85=0,"",ข้อมูลนักเรียน!D85 & ข้อมูลนักเรียน!E85 & " "& ข้อมูลนักเรียน!F85) ->  | E85: =IF(ข้อมูลนักเรียน!C85=0,"",ข้อมูลนักเรียน!G85) ->  | F85: =ข้อมูลนักเรียน!B85 -> 0 | AG85: ผ่าน | AH85: 0 | AJ85: ปรับปรุง | AL85: 23
A86: =ข้อมูลนักเรียน!A86 -> 0 | B86: =IF(ข้อมูลนักเรียน!B86=0,"",ข้อมูลนักเรียน!B86) ->  | C86: =IF(ข้อมูลนักเรียน!C86=0,"",ข้อมูลนักเรียน!C86) ->  | D86: =IF(ข้อมูลนักเรียน!C86=0,"",ข้อมูลนักเรียน!D86 & ข้อมูลนักเรียน!E86 & " "& ข้อมูลนักเรียน!F86) ->  | E86: =IF(ข้อมูลนักเรียน!C86=0,"",ข้อมูลนักเรียน!G86) ->  | F86: =ข้อมูลนักเรียน!B86 -> 0 | AG86: ผ่าน | AH86: 0 | AJ86: ปรับปรุง | AL86: 23
A87: =ข้อมูลนักเรียน!A87 -> 0 | B87: =IF(ข้อมูลนักเรียน!B87=0,"",ข้อมูลนักเรียน!B87) ->  | C87: =IF(ข้อมูลนักเรียน!C87=0,"",ข้อมูลนักเรียน!C87) ->  | D87: =IF(ข้อมูลนักเรียน!C87=0,"",ข้อมูลนักเรียน!D87 & ข้อมูลนักเรียน!E87 & " "& ข้อมูลนักเรียน!F87) ->  | E87: =IF(ข้อมูลนักเรียน!C87=0,"",ข้อมูลนักเรียน!G87) ->  | F87: =ข้อมูลนักเรียน!B87 -> 0 | AG87: ผ่าน | AH87: 0 | AJ87: ปรับปรุง | AL87: 23
A88: =ข้อมูลนักเรียน!A88 -> 0 | B88: =IF(ข้อมูลนักเรียน!B88=0,"",ข้อมูลนักเรียน!B88) ->  | C88: =IF(ข้อมูลนักเรียน!C88=0,"",ข้อมูลนักเรียน!C88) ->  | D88: =IF(ข้อมูลนักเรียน!C88=0,"",ข้อมูลนักเรียน!D88 & ข้อมูลนักเรียน!E88 & " "& ข้อมูลนักเรียน!F88) ->  | E88: =IF(ข้อมูลนักเรียน!C88=0,"",ข้อมูลนักเรียน!G88) ->  | F88: =ข้อมูลนักเรียน!B88 -> 0 | AG88: ผ่าน | AH88: 0 | AJ88: ปรับปรุง | AL88: 23
A89: =ข้อมูลนักเรียน!A89 -> 0 | B89: =IF(ข้อมูลนักเรียน!B89=0,"",ข้อมูลนักเรียน!B89) ->  | C89: =IF(ข้อมูลนักเรียน!C89=0,"",ข้อมูลนักเรียน!C89) ->  | D89: =IF(ข้อมูลนักเรียน!C89=0,"",ข้อมูลนักเรียน!D89 & ข้อมูลนักเรียน!E89 & " "& ข้อมูลนักเรียน!F89) ->  | E89: =IF(ข้อมูลนักเรียน!C89=0,"",ข้อมูลนักเรียน!G89) ->  | F89: =ข้อมูลนักเรียน!B89 -> 0 | AG89: ผ่าน | AH89: 0 | AJ89: ปรับปรุง | AL89: 23
A90: =ข้อมูลนักเรียน!A90 -> 0 | B90: =IF(ข้อมูลนักเรียน!B90=0,"",ข้อมูลนักเรียน!B90) ->  | C90: =IF(ข้อมูลนักเรียน!C90=0,"",ข้อมูลนักเรียน!C90) ->  | D90: =IF(ข้อมูลนักเรียน!C90=0,"",ข้อมูลนักเรียน!D90 & ข้อมูลนักเรียน!E90 & " "& ข้อมูลนักเรียน!F90) ->  | E90: =IF(ข้อมูลนักเรียน!C90=0,"",ข้อมูลนักเรียน!G90) ->  | F90: =ข้อมูลนักเรียน!B90 -> 0 | AG90: ผ่าน | AH90: 0 | AJ90: ปรับปรุง | AL90: 23
A91: =ข้อมูลนักเรียน!A91 -> 0 | B91: =IF(ข้อมูลนักเรียน!B91=0,"",ข้อมูลนักเรียน!B91) ->  | C91: =IF(ข้อมูลนักเรียน!C91=0,"",ข้อมูลนักเรียน!C91) ->  | D91: =IF(ข้อมูลนักเรียน!C91=0,"",ข้อมูลนักเรียน!D91 & ข้อมูลนักเรียน!E91 & " "& ข้อมูลนักเรียน!F91) ->  | E91: =IF(ข้อมูลนักเรียน!C91=0,"",ข้อมูลนักเรียน!G91) ->  | F91: =ข้อมูลนักเรียน!B91 -> 0 | AG91: ผ่าน | AH91: 0 | AJ91: ปรับปรุง | AL91: 23
A92: =ข้อมูลนักเรียน!A92 -> 0 | B92: =IF(ข้อมูลนักเรียน!B92=0,"",ข้อมูลนักเรียน!B92) ->  | C92: =IF(ข้อมูลนักเรียน!C92=0,"",ข้อมูลนักเรียน!C92) ->  | D92: =IF(ข้อมูลนักเรียน!C92=0,"",ข้อมูลนักเรียน!D92 & ข้อมูลนักเรียน!E92 & " "& ข้อมูลนักเรียน!F92) ->  | E92: =IF(ข้อมูลนักเรียน!C92=0,"",ข้อมูลนักเรียน!G92) ->  | F92: =ข้อมูลนักเรียน!B92 -> 0 | AG92: ผ่าน | AH92: 0 | AJ92: ปรับปรุง | AL92: 23
A93: =ข้อมูลนักเรียน!A93 -> 0 | B93: =IF(ข้อมูลนักเรียน!B93=0,"",ข้อมูลนักเรียน!B93) ->  | C93: =IF(ข้อมูลนักเรียน!C93=0,"",ข้อมูลนักเรียน!C93) ->  | D93: =IF(ข้อมูลนักเรียน!C93=0,"",ข้อมูลนักเรียน!D93 & ข้อมูลนักเรียน!E93 & " "& ข้อมูลนักเรียน!F93) ->  | E93: =IF(ข้อมูลนักเรียน!C93=0,"",ข้อมูลนักเรียน!G93) ->  | F93: =ข้อมูลนักเรียน!B93 -> 0 | AG93: ผ่าน | AH93: 0 | AJ93: ปรับปรุง | AL93: 23
A94: =ข้อมูลนักเรียน!A94 -> 0 | B94: =IF(ข้อมูลนักเรียน!B94=0,"",ข้อมูลนักเรียน!B94) ->  | C94: =IF(ข้อมูลนักเรียน!C94=0,"",ข้อมูลนักเรียน!C94) ->  | D94: =IF(ข้อมูลนักเรียน!C94=0,"",ข้อมูลนักเรียน!D94 & ข้อมูลนักเรียน!E94 & " "& ข้อมูลนักเรียน!F94) ->  | E94: =IF(ข้อมูลนักเรียน!C94=0,"",ข้อมูลนักเรียน!G94) ->  | F94: =ข้อมูลนักเรียน!B94 -> 0 | AG94: ผ่าน | AH94: 0 | AJ94: ปรับปรุง | AL94: 23
A95: =ข้อมูลนักเรียน!A95 -> 0 | B95: =IF(ข้อมูลนักเรียน!B95=0,"",ข้อมูลนักเรียน!B95) ->  | C95: =IF(ข้อมูลนักเรียน!C95=0,"",ข้อมูลนักเรียน!C95) ->  | D95: =IF(ข้อมูลนักเรียน!C95=0,"",ข้อมูลนักเรียน!D95 & ข้อมูลนักเรียน!E95 & " "& ข้อมูลนักเรียน!F95) ->  | E95: =IF(ข้อมูลนักเรียน!C95=0,"",ข้อมูลนักเรียน!G95) ->  | F95: =ข้อมูลนักเรียน!B95 -> 0 | AG95: ผ่าน | AH95: 0 | AJ95: ปรับปรุง | AL95: 23
A96: =ข้อมูลนักเรียน!A96 -> 0 | B96: =IF(ข้อมูลนักเรียน!B96=0,"",ข้อมูลนักเรียน!B96) ->  | C96: =IF(ข้อมูลนักเรียน!C96=0,"",ข้อมูลนักเรียน!C96) ->  | D96: =IF(ข้อมูลนักเรียน!C96=0,"",ข้อมูลนักเรียน!D96 & ข้อมูลนักเรียน!E96 & " "& ข้อมูลนักเรียน!F96) ->  | E96: =IF(ข้อมูลนักเรียน!C96=0,"",ข้อมูลนักเรียน!G96) ->  | F96: =ข้อมูลนักเรียน!B96 -> 0 | AG96: ผ่าน | AH96: 0 | AJ96: ปรับปรุง | AL96: 23
A97: =ข้อมูลนักเรียน!A97 -> 0 | B97: =IF(ข้อมูลนักเรียน!B97=0,"",ข้อมูลนักเรียน!B97) ->  | C97: =IF(ข้อมูลนักเรียน!C97=0,"",ข้อมูลนักเรียน!C97) ->  | D97: =IF(ข้อมูลนักเรียน!C97=0,"",ข้อมูลนักเรียน!D97 & ข้อมูลนักเรียน!E97 & " "& ข้อมูลนักเรียน!F97) ->  | E97: =IF(ข้อมูลนักเรียน!C97=0,"",ข้อมูลนักเรียน!G97) ->  | F97: =ข้อมูลนักเรียน!B97 -> 0 | AG97: ผ่าน | AH97: 0 | AJ97: ปรับปรุง | AL97: 23
A98: =ข้อมูลนักเรียน!A98 -> 0 | B98: =IF(ข้อมูลนักเรียน!B98=0,"",ข้อมูลนักเรียน!B98) ->  | C98: =IF(ข้อมูลนักเรียน!C98=0,"",ข้อมูลนักเรียน!C98) ->  | D98: =IF(ข้อมูลนักเรียน!C98=0,"",ข้อมูลนักเรียน!D98 & ข้อมูลนักเรียน!E98 & " "& ข้อมูลนักเรียน!F98) ->  | E98: =IF(ข้อมูลนักเรียน!C98=0,"",ข้อมูลนักเรียน!G98) ->  | F98: =ข้อมูลนักเรียน!B98 -> 0 | AG98: ผ่าน | AH98: 0 | AJ98: ปรับปรุง | AL98: 23
A99: =ข้อมูลนักเรียน!A99 -> 0 | B99: =IF(ข้อมูลนักเรียน!B99=0,"",ข้อมูลนักเรียน!B99) ->  | C99: =IF(ข้อมูลนักเรียน!C99=0,"",ข้อมูลนักเรียน!C99) ->  | D99: =IF(ข้อมูลนักเรียน!C99=0,"",ข้อมูลนักเรียน!D99 & ข้อมูลนักเรียน!E99 & " "& ข้อมูลนักเรียน!F99) ->  | E99: =IF(ข้อมูลนักเรียน!C99=0,"",ข้อมูลนักเรียน!G99) ->  | F99: =ข้อมูลนักเรียน!B99 -> 0 | AG99: ผ่าน | AH99: 0 | AJ99: ปรับปรุง | AL99: 23
A100: =ข้อมูลนักเรียน!A100 -> 0 | B100: =IF(ข้อมูลนักเรียน!B100=0,"",ข้อมูลนักเรียน!B100) ->  | C100: =IF(ข้อมูลนักเรียน!C100=0,"",ข้อมูลนักเรียน!C100) ->  | D100: =IF(ข้อมูลนักเรียน!C100=0,"",ข้อมูลนักเรียน!D100 & ข้อมูลนักเรียน!E100 & " "& ข้อมูลนักเรียน!F100) ->  | E100: =IF(ข้อมูลนักเรียน!C100=0,"",ข้อมูลนักเรียน!G100) ->  | F100: =ข้อมูลนักเรียน!B100 -> 0 | AG100: ผ่าน | AH100: 0 | AJ100: ปรับปรุง | AL100: 23
A101: =ข้อมูลนักเรียน!A101 -> 0 | B101: =IF(ข้อมูลนักเรียน!B101=0,"",ข้อมูลนักเรียน!B101) ->  | C101: =IF(ข้อมูลนักเรียน!C101=0,"",ข้อมูลนักเรียน!C101) ->  | D101: =IF(ข้อมูลนักเรียน!C101=0,"",ข้อมูลนักเรียน!D101 & ข้อมูลนักเรียน!E101 & " "& ข้อมูลนักเรียน!F101) ->  | E101: =IF(ข้อมูลนักเรียน!C101=0,"",ข้อมูลนักเรียน!G101) ->  | F101: =ข้อมูลนักเรียน!B101 -> 0 | AG101: ผ่าน | AH101: 0 | AJ101: ปรับปรุง | AL101: 23
A102: =ข้อมูลนักเรียน!A102 -> 0 | B102: =IF(ข้อมูลนักเรียน!B102=0,"",ข้อมูลนักเรียน!B102) ->  | C102: =IF(ข้อมูลนักเรียน!C102=0,"",ข้อมูลนักเรียน!C102) ->  | D102: =IF(ข้อมูลนักเรียน!C102=0,"",ข้อมูลนักเรียน!D102 & ข้อมูลนักเรียน!E102 & " "& ข้อมูลนักเรียน!F102) ->  | E102: =IF(ข้อมูลนักเรียน!C102=0,"",ข้อมูลนักเรียน!G102) ->  | F102: =ข้อมูลนักเรียน!B102 -> 0 | AG102: ผ่าน | AH102: 0 | AJ102: ปรับปรุง | AL102: 23
A103: =ข้อมูลนักเรียน!A103 -> 0 | B103: =IF(ข้อมูลนักเรียน!B103=0,"",ข้อมูลนักเรียน!B103) ->  | C103: =IF(ข้อมูลนักเรียน!C103=0,"",ข้อมูลนักเรียน!C103) ->  | D103: =IF(ข้อมูลนักเรียน!C103=0,"",ข้อมูลนักเรียน!D103 & ข้อมูลนักเรียน!E103 & " "& ข้อมูลนักเรียน!F103) ->  | E103: =IF(ข้อมูลนักเรียน!C103=0,"",ข้อมูลนักเรียน!G103) ->  | F103: =ข้อมูลนักเรียน!B103 -> 0 | AG103: ผ่าน | AH103: 0 | AJ103: ปรับปรุง | AL103: 23
A104: =ข้อมูลนักเรียน!A104 -> 0 | B104: =IF(ข้อมูลนักเรียน!B104=0,"",ข้อมูลนักเรียน!B104) ->  | C104: =IF(ข้อมูลนักเรียน!C104=0,"",ข้อมูลนักเรียน!C104) ->  | D104: =IF(ข้อมูลนักเรียน!C104=0,"",ข้อมูลนักเรียน!D104 & ข้อมูลนักเรียน!E104 & " "& ข้อมูลนักเรียน!F104) ->  | E104: =IF(ข้อมูลนักเรียน!C104=0,"",ข้อมูลนักเรียน!G104) ->  | F104: =ข้อมูลนักเรียน!B104 -> 0 | AG104: ผ่าน | AH104: 0 | AJ104: ปรับปรุง | AL104: 23
A105: =ข้อมูลนักเรียน!A105 -> 0 | B105: =IF(ข้อมูลนักเรียน!B105=0,"",ข้อมูลนักเรียน!B105) ->  | C105: =IF(ข้อมูลนักเรียน!C105=0,"",ข้อมูลนักเรียน!C105) ->  | D105: =IF(ข้อมูลนักเรียน!C105=0,"",ข้อมูลนักเรียน!D105 & ข้อมูลนักเรียน!E105 & " "& ข้อมูลนักเรียน!F105) ->  | E105: =IF(ข้อมูลนักเรียน!C105=0,"",ข้อมูลนักเรียน!G105) ->  | F105: =ข้อมูลนักเรียน!B105 -> 0 | AG105: ผ่าน | AH105: 0 | AJ105: ปรับปรุง | AL105: 23
A106: =ข้อมูลนักเรียน!A106 -> 0 | B106: =IF(ข้อมูลนักเรียน!B106=0,"",ข้อมูลนักเรียน!B106) ->  | C106: =IF(ข้อมูลนักเรียน!C106=0,"",ข้อมูลนักเรียน!C106) ->  | D106: =IF(ข้อมูลนักเรียน!C106=0,"",ข้อมูลนักเรียน!D106 & ข้อมูลนักเรียน!E106 & " "& ข้อมูลนักเรียน!F106) ->  | E106: =IF(ข้อมูลนักเรียน!C106=0,"",ข้อมูลนักเรียน!G106) ->  | F106: =ข้อมูลนักเรียน!B106 -> 0 | AG106: ผ่าน | AH106: =ROUNDDOWN(0,2) -> 0 | AJ106: ปรับปรุง | AL106: 23
A107: =ข้อมูลนักเรียน!A107 -> 0 | B107: =IF(ข้อมูลนักเรียน!B107=0,"",ข้อมูลนักเรียน!B107) ->  | C107: =IF(ข้อมูลนักเรียน!C107=0,"",ข้อมูลนักเรียน!C107) ->  | D107: =IF(ข้อมูลนักเรียน!C107=0,"",ข้อมูลนักเรียน!D107 & ข้อมูลนักเรียน!E107 & " "& ข้อมูลนักเรียน!F107) ->  | E107: =IF(ข้อมูลนักเรียน!C107=0,"",ข้อมูลนักเรียน!G107) ->  | F107: =ข้อมูลนักเรียน!B107 -> 0 | AG107: ผ่าน | AH107: 0 | AJ107: ปรับปรุง | AL107: 23
A108: =ข้อมูลนักเรียน!A108 -> 0 | B108: =IF(ข้อมูลนักเรียน!B108=0,"",ข้อมูลนักเรียน!B108) ->  | C108: =IF(ข้อมูลนักเรียน!C108=0,"",ข้อมูลนักเรียน!C108) ->  | D108: =IF(ข้อมูลนักเรียน!C108=0,"",ข้อมูลนักเรียน!D108 & ข้อมูลนักเรียน!E108 & " "& ข้อมูลนักเรียน!F108) ->  | E108: =IF(ข้อมูลนักเรียน!C108=0,"",ข้อมูลนักเรียน!G108) ->  | F108: =ข้อมูลนักเรียน!B108 -> 0 | AG108: ผ่าน | AH108: 0 | AJ108: ปรับปรุง | AL108: 23
A109: =ข้อมูลนักเรียน!A109 -> 0 | B109: =IF(ข้อมูลนักเรียน!B109=0,"",ข้อมูลนักเรียน!B109) ->  | C109: =IF(ข้อมูลนักเรียน!C109=0,"",ข้อมูลนักเรียน!C109) ->  | D109: =IF(ข้อมูลนักเรียน!C109=0,"",ข้อมูลนักเรียน!D109 & ข้อมูลนักเรียน!E109 & " "& ข้อมูลนักเรียน!F109) ->  | E109: =IF(ข้อมูลนักเรียน!C109=0,"",ข้อมูลนักเรียน!G109) ->  | F109: =ข้อมูลนักเรียน!B109 -> 0 | AG109: ผ่าน | AH109: 0 | AJ109: ปรับปรุง | AL109: 23
A110: =ข้อมูลนักเรียน!A110 -> 0 | B110: =IF(ข้อมูลนักเรียน!B110=0,"",ข้อมูลนักเรียน!B110) ->  | C110: =IF(ข้อมูลนักเรียน!C110=0,"",ข้อมูลนักเรียน!C110) ->  | D110: =IF(ข้อมูลนักเรียน!C110=0,"",ข้อมูลนักเรียน!D110 & ข้อมูลนักเรียน!E110 & " "& ข้อมูลนักเรียน!F110) ->  | E110: =IF(ข้อมูลนักเรียน!C110=0,"",ข้อมูลนักเรียน!G110) ->  | F110: =ข้อมูลนักเรียน!B110 -> 0 | AG110: ผ่าน | AH110: 0 | AJ110: ปรับปรุง | AL110: 23
A111: =ข้อมูลนักเรียน!A111 -> 0 | B111: =IF(ข้อมูลนักเรียน!B111=0,"",ข้อมูลนักเรียน!B111) ->  | C111: =IF(ข้อมูลนักเรียน!C111=0,"",ข้อมูลนักเรียน!C111) ->  | D111: =IF(ข้อมูลนักเรียน!C111=0,"",ข้อมูลนักเรียน!D111 & ข้อมูลนักเรียน!E111 & " "& ข้อมูลนักเรียน!F111) ->  | E111: =IF(ข้อมูลนักเรียน!C111=0,"",ข้อมูลนักเรียน!G111) ->  | F111: =ข้อมูลนักเรียน!B111 -> 0 | AG111: ผ่าน | AH111: 0 | AJ111: ปรับปรุง | AL111: 23
A112: =ข้อมูลนักเรียน!A112 -> 0 | B112: =IF(ข้อมูลนักเรียน!B112=0,"",ข้อมูลนักเรียน!B112) ->  | C112: =IF(ข้อมูลนักเรียน!C112=0,"",ข้อมูลนักเรียน!C112) ->  | D112: =IF(ข้อมูลนักเรียน!C112=0,"",ข้อมูลนักเรียน!D112 & ข้อมูลนักเรียน!E112 & " "& ข้อมูลนักเรียน!F112) ->  | E112: =IF(ข้อมูลนักเรียน!C112=0,"",ข้อมูลนักเรียน!G112) ->  | F112: =ข้อมูลนักเรียน!B112 -> 0 | AG112: ผ่าน | AH112: 0 | AJ112: ปรับปรุง | AL112: 23
A113: =ข้อมูลนักเรียน!A113 -> 0 | B113: =IF(ข้อมูลนักเรียน!B113=0,"",ข้อมูลนักเรียน!B113) ->  | C113: =IF(ข้อมูลนักเรียน!C113=0,"",ข้อมูลนักเรียน!C113) ->  | D113: =IF(ข้อมูลนักเรียน!C113=0,"",ข้อมูลนักเรียน!D113 & ข้อมูลนักเรียน!E113 & " "& ข้อมูลนักเรียน!F113) ->  | E113: =IF(ข้อมูลนักเรียน!C113=0,"",ข้อมูลนักเรียน!G113) ->  | F113: =ข้อมูลนักเรียน!B113 -> 0 | AG113: ผ่าน | AH113: 0 | AJ113: ปรับปรุง | AL113: 23
A114: =ข้อมูลนักเรียน!A114 -> 0 | B114: =IF(ข้อมูลนักเรียน!B114=0,"",ข้อมูลนักเรียน!B114) ->  | C114: =IF(ข้อมูลนักเรียน!C114=0,"",ข้อมูลนักเรียน!C114) ->  | D114: =IF(ข้อมูลนักเรียน!C114=0,"",ข้อมูลนักเรียน!D114 & ข้อมูลนักเรียน!E114 & " "& ข้อมูลนักเรียน!F114) ->  | E114: =IF(ข้อมูลนักเรียน!C114=0,"",ข้อมูลนักเรียน!G114) ->  | F114: =ข้อมูลนักเรียน!B114 -> 0 | AG114: ผ่าน | AH114: 0 | AJ114: ปรับปรุง | AL114: 23
A115: =ข้อมูลนักเรียน!A115 -> 0 | B115: =IF(ข้อมูลนักเรียน!B115=0,"",ข้อมูลนักเรียน!B115) ->  | C115: =IF(ข้อมูลนักเรียน!C115=0,"",ข้อมูลนักเรียน!C115) ->  | D115: =IF(ข้อมูลนักเรียน!C115=0,"",ข้อมูลนักเรียน!D115 & ข้อมูลนักเรียน!E115 & " "& ข้อมูลนักเรียน!F115) ->  | E115: =IF(ข้อมูลนักเรียน!C115=0,"",ข้อมูลนักเรียน!G115) ->  | F115: =ข้อมูลนักเรียน!B115 -> 0 | AG115: ผ่าน | AH115: 0 | AJ115: ปรับปรุง | AL115: 23
A116: =ข้อมูลนักเรียน!A116 -> 0 | B116: =IF(ข้อมูลนักเรียน!B116=0,"",ข้อมูลนักเรียน!B116) ->  | C116: =IF(ข้อมูลนักเรียน!C116=0,"",ข้อมูลนักเรียน!C116) ->  | D116: =IF(ข้อมูลนักเรียน!C116=0,"",ข้อมูลนักเรียน!D116 & ข้อมูลนักเรียน!E116 & " "& ข้อมูลนักเรียน!F116) ->  | E116: =IF(ข้อมูลนักเรียน!C116=0,"",ข้อมูลนักเรียน!G116) ->  | F116: =ข้อมูลนักเรียน!B116 -> 0 | AG116: ผ่าน | AH116: 0 | AJ116: ปรับปรุง | AL116: 23
A117: =ข้อมูลนักเรียน!A117 -> 0 | B117: =IF(ข้อมูลนักเรียน!B117=0,"",ข้อมูลนักเรียน!B117) ->  | C117: =IF(ข้อมูลนักเรียน!C117=0,"",ข้อมูลนักเรียน!C117) ->  | D117: =IF(ข้อมูลนักเรียน!C117=0,"",ข้อมูลนักเรียน!D117 & ข้อมูลนักเรียน!E117 & " "& ข้อมูลนักเรียน!F117) ->  | E117: =IF(ข้อมูลนักเรียน!C117=0,"",ข้อมูลนักเรียน!G117) ->  | F117: =ข้อมูลนักเรียน!B117 -> 0 | AG117: ผ่าน | AH117: 0 | AJ117: ปรับปรุง | AL117: 23
A118: =ข้อมูลนักเรียน!A118 -> 0 | B118: =IF(ข้อมูลนักเรียน!B118=0,"",ข้อมูลนักเรียน!B118) ->  | C118: =IF(ข้อมูลนักเรียน!C118=0,"",ข้อมูลนักเรียน!C118) ->  | D118: =IF(ข้อมูลนักเรียน!C118=0,"",ข้อมูลนักเรียน!D118 & ข้อมูลนักเรียน!E118 & " "& ข้อมูลนักเรียน!F118) ->  | E118: =IF(ข้อมูลนักเรียน!C118=0,"",ข้อมูลนักเรียน!G118) ->  | F118: =ข้อมูลนักเรียน!B118 -> 0 | AG118: ผ่าน | AH118: 0 | AJ118: ปรับปรุง | AL118: 23
A119: =ข้อมูลนักเรียน!A119 -> 0 | B119: =IF(ข้อมูลนักเรียน!B119=0,"",ข้อมูลนักเรียน!B119) ->  | C119: =IF(ข้อมูลนักเรียน!C119=0,"",ข้อมูลนักเรียน!C119) ->  | D119: =IF(ข้อมูลนักเรียน!C119=0,"",ข้อมูลนักเรียน!D119 & ข้อมูลนักเรียน!E119 & " "& ข้อมูลนักเรียน!F119) ->  | E119: =IF(ข้อมูลนักเรียน!C119=0,"",ข้อมูลนักเรียน!G119) ->  | F119: =ข้อมูลนักเรียน!B119 -> 0 | AG119: ผ่าน | AH119: 0 | AJ119: ปรับปรุง | AL119: 23
A120: =ข้อมูลนักเรียน!A120 -> 0 | B120: =IF(ข้อมูลนักเรียน!B120=0,"",ข้อมูลนักเรียน!B120) ->  | C120: =IF(ข้อมูลนักเรียน!C120=0,"",ข้อมูลนักเรียน!C120) ->  | D120: =IF(ข้อมูลนักเรียน!C120=0,"",ข้อมูลนักเรียน!D120 & ข้อมูลนักเรียน!E120 & " "& ข้อมูลนักเรียน!F120) ->  | E120: =IF(ข้อมูลนักเรียน!C120=0,"",ข้อมูลนักเรียน!G120) ->  | F120: =ข้อมูลนักเรียน!B120 -> 0 | AG120: ผ่าน | AH120: 0 | AJ120: ปรับปรุง | AL120: 23
A121: =ข้อมูลนักเรียน!A121 -> 0 | B121: =IF(ข้อมูลนักเรียน!B121=0,"",ข้อมูลนักเรียน!B121) ->  | C121: =IF(ข้อมูลนักเรียน!C121=0,"",ข้อมูลนักเรียน!C121) ->  | D121: =IF(ข้อมูลนักเรียน!C121=0,"",ข้อมูลนักเรียน!D121 & ข้อมูลนักเรียน!E121 & " "& ข้อมูลนักเรียน!F121) ->  | E121: =IF(ข้อมูลนักเรียน!C121=0,"",ข้อมูลนักเรียน!G121) ->  | F121: =ข้อมูลนักเรียน!B121 -> 0 | AG121: ผ่าน | AH121: 0 | AJ121: ปรับปรุง | AL121: 23
A122: =ข้อมูลนักเรียน!A122 -> 0 | B122: =IF(ข้อมูลนักเรียน!B122=0,"",ข้อมูลนักเรียน!B122) ->  | C122: =IF(ข้อมูลนักเรียน!C122=0,"",ข้อมูลนักเรียน!C122) ->  | D122: =IF(ข้อมูลนักเรียน!C122=0,"",ข้อมูลนักเรียน!D122 & ข้อมูลนักเรียน!E122 & " "& ข้อมูลนักเรียน!F122) ->  | E122: =IF(ข้อมูลนักเรียน!C122=0,"",ข้อมูลนักเรียน!G122) ->  | F122: =ข้อมูลนักเรียน!B122 -> 0 | AG122: ผ่าน | AH122: 0 | AJ122: ปรับปรุง | AL122: 23
A123: =ข้อมูลนักเรียน!A123 -> 0 | B123: =IF(ข้อมูลนักเรียน!B123=0,"",ข้อมูลนักเรียน!B123) ->  | C123: =IF(ข้อมูลนักเรียน!C123=0,"",ข้อมูลนักเรียน!C123) ->  | D123: =IF(ข้อมูลนักเรียน!C123=0,"",ข้อมูลนักเรียน!D123 & ข้อมูลนักเรียน!E123 & " "& ข้อมูลนักเรียน!F123) ->  | E123: =IF(ข้อมูลนักเรียน!C123=0,"",ข้อมูลนักเรียน!G123) ->  | F123: =ข้อมูลนักเรียน!B123 -> 0 | AG123: ผ่าน | AH123: 0 | AJ123: ปรับปรุง | AL123: 23
A124: =ข้อมูลนักเรียน!A124 -> 0 | B124: =IF(ข้อมูลนักเรียน!B124=0,"",ข้อมูลนักเรียน!B124) ->  | C124: =IF(ข้อมูลนักเรียน!C124=0,"",ข้อมูลนักเรียน!C124) ->  | D124: =IF(ข้อมูลนักเรียน!C124=0,"",ข้อมูลนักเรียน!D124 & ข้อมูลนักเรียน!E124 & " "& ข้อมูลนักเรียน!F124) ->  | E124: =IF(ข้อมูลนักเรียน!C124=0,"",ข้อมูลนักเรียน!G124) ->  | F124: =ข้อมูลนักเรียน!B124 -> 0 | AG124: ผ่าน | AH124: 0 | AJ124: ปรับปรุง | AL124: 23
A125: =ข้อมูลนักเรียน!A125 -> 0 | B125: =IF(ข้อมูลนักเรียน!B125=0,"",ข้อมูลนักเรียน!B125) ->  | C125: =IF(ข้อมูลนักเรียน!C125=0,"",ข้อมูลนักเรียน!C125) ->  | D125: =IF(ข้อมูลนักเรียน!C125=0,"",ข้อมูลนักเรียน!D125 & ข้อมูลนักเรียน!E125 & " "& ข้อมูลนักเรียน!F125) ->  | E125: =IF(ข้อมูลนักเรียน!C125=0,"",ข้อมูลนักเรียน!G125) ->  | F125: =ข้อมูลนักเรียน!B125 -> 0 | AG125: ผ่าน | AH125: 0 | AJ125: ปรับปรุง | AL125: 23
A126: =ข้อมูลนักเรียน!A126 -> 0 | B126: =IF(ข้อมูลนักเรียน!B126=0,"",ข้อมูลนักเรียน!B126) ->  | C126: =IF(ข้อมูลนักเรียน!C126=0,"",ข้อมูลนักเรียน!C126) ->  | D126: =IF(ข้อมูลนักเรียน!C126=0,"",ข้อมูลนักเรียน!D126 & ข้อมูลนักเรียน!E126 & " "& ข้อมูลนักเรียน!F126) ->  | E126: =IF(ข้อมูลนักเรียน!C126=0,"",ข้อมูลนักเรียน!G126) ->  | F126: =ข้อมูลนักเรียน!B126 -> 0 | AG126: ผ่าน | AH126: 0 | AJ126: ปรับปรุง | AL126: 23
H127: =LEFT(H3) -> ท | I127: =LEFT(I3) -> ค | J127: ว | K127: ส | L127: ส | M127: พ | N127: ศ | O127: ง | P127: อ | Q127: ง | R127: ง | S127: ว
G128: 0 | H128: =COUNTIF(H$7:H$126,$G128) -> 0 | I128: 0 | J128: 0 | K128: 0 | L128: 0 | M128: 0 | N128: 0 | O128: 0 | P128: 0 | Q128: 0 | R128: 0 | S128: 0 | T128: 0 | U128: 0 | V128: 0 | W128: 0 | X128: 0 | Y128: 0
G129: 1 | H129: =COUNTIF(H$7:H$126,$G129) -> 3 | I129: 1 | J129: 1 | K129: 1 | L129: 1 | M129: 0 | N129: 1 | O129: 0 | P129: 0 | Q129: 0 | R129: 0 | S129: 0 | T129: 0 | U129: =COUNTIF(U$7:U$126,$G129) -> 0 | V129: 0 | W129: 0 | X129: 0 | Y129: 0
G130: 1.5 | H130: 0 | I130: 0 | J130: 0 | K130: 0 | L130: 0 | M130: 0 | N130: 0 | O130: 1 | P130: 0 | Q130: 2 | R130: 0 | S130: 0 | T130: 0 | U130: 0 | V130: 0 | W130: 0 | X130: 0 | Y130: 0
G131: 2 | H131: 0 | I131: 1 | J131: 0 | K131: 1 | L131: 1 | M131: 1 | N131: 0 | O131: 0 | P131: 1 | Q131: 0 | R131: 1 | S131: 0 | T131: 0 | U131: 0 | V131: 0 | W131: 0 | X131: 0 | Y131: 0
G132: 2.5 | H132: 0 | I132: 0 | J132: 0 | K132: 0 | L132: 0 | M132: 0 | N132: 0 | O132: 0 | P132: 0 | Q132: 0 | R132: 0 | S132: 0 | T132: 0 | U132: 0 | V132: 0 | W132: 0 | X132: 0 | Y132: 0
G133: 3 | H133: 0 | I133: 0 | J133: 1 | K133: 0 | L133: 1 | M133: 1 | N133: 2 | O133: 0 | P133: 1 | Q133: 1 | R133: 0 | S133: 0 | T133: 0 | U133: 0 | V133: 0 | W133: 0 | X133: 0 | Y133: 0
G134: 3.5 | H134: 0 | I134: 0 | J134: 1 | K134: 0 | L134: 0 | M134: 0 | N134: 0 | O134: 0 | P134: 0 | Q134: 0 | R134: 0 | S134: 0 | T134: 0 | U134: 0 | V134: 0 | W134: 0 | X134: 0 | Y134: 0
G135: 4 | H135: 0 | I135: 1 | J135: 0 | K135: 1 | L135: 0 | M135: 1 | N135: 0 | O135: 2 | P135: 1 | Q135: 0 | R135: 0 | S135: 0 | T135: 0 | U135: 0 | V135: 0 | W135: 0 | X135: 0 | Y135: 0
G136: ร | H136: 0 | I136: 0 | J136: 0 | K136: 0 | L136: 0 | M136: 0 | N136: 0 | O136: 0 | P136: 0 | Q136: 0 | R136: 0 | S136: 0 | T136: 0 | U136: 0 | V136: 0 | W136: 0 | X136: 0 | Y136: 0
D137: =LEFT(Q3,1) -> ง | G137: มส | H137: 0 | I137: 0 | J137: 0 | K137: 0 | L137: 0 | M137: 0 | N137: 0 | O137: 0 | P137: 0 | Q137: 0 | R137: 0 | S137: 0 | T137: 0 | U137: 0 | V137: 0 | W137: 0 | X137: 0 | Y137: 0
G138: ผ | H138: 0 | I138: 0 | J138: 0 | K138: 0 | L138: 0 | M138: 0 | N138: 0 | O138: 0 | P138: 0 | Q138: 0 | R138: 1 | S138: 0 | T138: 0 | U138: 0 | V138: 0 | W138: 0 | X138: 0 | Y138: 0
G139: มผ | H139: 0 | I139: 0 | J139: 0 | K139: 0 | L139: 0 | M139: 0 | N139: 0 | O139: 0 | P139: 0 | Q139: 0 | R139: 1 | S139: 0 | T139: 0 | U139: 0 | V139: 0 | W139: 0 | X139: 0 | Y139: 0

Sheet เกรด2
A1: ปีการศึกษา : | D1: =ข้อมูลนักเรียน!F4+1 -> 2551 | P1: ประถมศึกษาปีที่ 2
A2: ห้อง | B2: เลขที่ | C2: รหัสนักเรียน | D2: ชื่อ - สกุล | G2: วิชา | H2: =IF(หลักสูตร!$J$4=0,"ช่องว่าง",หลักสูตร!$K$4) -> ภาษาไทย | I2: =IF(หลักสูตร!$J$5=0,"ช่องว่าง",หลักสูตร!$K$5) -> คณิตศาสตร์ | J2: =IF(หลักสูตร!$J$6=0,"ช่องว่าง",หลักสูตร!$K$6) -> วิทยาศาสตร์ | K2: =IF(หลักสูตร!$J$7=0,"ช่องว่าง",หลักสูตร!$K$7) -> สังคมศึกษา ศาสนาและวัฒนธรรม | L2: =IF(หลักสูตร!$J$8=0,"ช่องว่าง",หลักสูตร!$K$8) -> ประวัติศาสตร์ | M2: =IF(หลักสูตร!$J$9=0,"ช่องว่าง",หลักสูตร!$K$9) -> สุขศึกษาและพลศึกษา | N2: =IF(หลักสูตร!$J$10=0,"ช่องว่าง",หลักสูตร!$K$10) -> ศิลปะ | O2: =IF(หลักสูตร!$J$11=0,"ช่องว่าง",หลักสูตร!$K$11) -> การงานอาชีพและเทคโนโลยี | P2: =IF(หลักสูตร!$J$12=0,"ช่องว่าง",หลักสูตร!$K$12) -> ภาษาต่างประเทศ | Q2: =IF(หลักสูตร!$J$13=0,"ช่องว่าง",หลักสูตร!$K$13) -> คอมพิวเตอร์ | R2: =IF(หลักสูตร!$J$14=0,"ช่องว่าง",หลักสูตร!$K$14) -> ภาษาอังกฤษพูด | S2: =IF(หลักสูตร!$J$15=0,"ช่องว่าง",หลักสูตร!$K$15) -> 0 | T2: =IF(หลักสูตร!$J$16=0,"ช่องว่าง",หลักสูตร!$K$16) -> ช่องว่าง | U2: =IF(หลักสูตร!$J$17=0,"ช่องว่าง",หลักสูตร!$K$17) -> ช่องว่าง | V2: =IF(หลักสูตร!$J$18=0,"ช่องว่าง",หลักสูตร!$K$18) -> ช่องว่าง | W2: =IF(หลักสูตร!$J$19=0,"ช่องว่าง",หลักสูตร!$K$19) -> ช่องว่าง | X2: =IF(หลักสูตร!$J$20=0,"ช่องว่าง",หลักสูตร!$K$20) -> ช่องว่าง | Y2: =IF(หลักสูตร!$J$21=0,"ช่องว่าง",หลักสูตร!$K$21) -> ช่องว่าง | Z2: =IF(หลักสูตร!$J$23=0,"ช่องว่าง",หลักสูตร!$K$23) -> แนะแนว | AA2: =IF(หลักสูตร!$J$24=0,"ช่องว่าง",หลักสูตร!$K$24) -> ลูกเสือ เนตรนารี | AB2: =IF(หลักสูตร!$J$25=0,"ช่องว่าง",หลักสูตร!$K$25) -> ชุมนุม | AC2: =IF(หลักสูตร!$J$26=0,"ช่องว่าง",หลักสูตร!$K$26) -> กิจกรรมเพื่อสังคมและสาธารณประโยชน์ | AD2: =IF(หลักสูตร!$J$27=0,"ช่องว่าง",หลักสูตร!$K$27) -> ช่องว่าง | AE2: คุณลักษณะ | AF2: อ่าน คิดฯ | AG2: สรุปกิจกรรม | AH2: เกรดเฉลี่ย | AI2: ชื่อวิชาเลือก รหัสวิชา ตามด้วยชื่อวิชา ตัวอย่าง ง31202 เกษตรอินทรีย์ | AJ2: อ่าน คิดฯ | AK2: ชื่อชุมนุม
H3: =IF(หลักสูตร!$J$4=0,"",หลักสูตร!$J$4) -> ท12101 | I3: =IF(หลักสูตร!$J$5=0,"",หลักสูตร!$J$5) -> ค12101 | J3: =IF(หลักสูตร!$J$6=0,"",หลักสูตร!$J$6) -> ว12101 | K3: =IF(หลักสูตร!$J$7=0,"",หลักสูตร!$J$7) -> ส12101 | L3: =IF(หลักสูตร!$J$8=0,"",หลักสูตร!$J$8) -> ส12102 | M3: =IF(หลักสูตร!$J$9=0,"",หลักสูตร!$J$9) -> พ12101 | N3: =IF(หลักสูตร!$J$10=0,"",หลักสูตร!$J$10) -> ศ12101 | O3: =IF(หลักสูตร!$J$11=0,"",หลักสูตร!$J$11) -> ง12101 | P3: =IF(หลักสูตร!$J$12=0,"",หลักสูตร!$J$12) -> อ12101 | Q3: =IF(หลักสูตร!$J$13=0,"",หลักสูตร!$J$13) -> ง12201 | R3: =IF(หลักสูตร!$J$14=0,"",หลักสูตร!$J$14) -> อ12201 | S3: =IF(หลักสูตร!$J$15=0,"",หลักสูตร!$J$15) -> ว่าง | T3: =IF(หลักสูตร!$J$16=0,"",หลักสูตร!$J$16) ->  | U3: =IF(หลักสูตร!$J$17=0,"",หลักสูตร!$J$17) ->  | V3: =IF(หลักสูตร!$J$18=0,"",หลักสูตร!$J$18) ->  | W3: =IF(หลักสูตร!$J$19=0,"",หลักสูตร!$J$19) ->  | X3: =IF(หลักสูตร!$J$20=0,"",หลักสูตร!$J$20) ->  | Y3: =IF(หลักสูตร!$J$21=0,"",หลักสูตร!$J$21) ->  | Z3: =IF(หลักสูตร!$J$23=0,"",หลักสูตร!$J$23) -> ก1 | AA3: =IF(หลักสูตร!$J$24=0,"",หลักสูตร!$J$24) -> ก2 | AB3: =IF(หลักสูตร!$J$25=0,"",หลักสูตร!$J$25) -> ก3 | AC3: =IF(หลักสูตร!$J$26=0,"",หลักสูตร!$J$26) -> ก4 | AD3: =IF(หลักสูตร!$J$27=0,"",หลักสูตร!$J$27) ->  | AH3: =SUMIF(H5:Y5,"<>กิจกรรม",H6:AA6) -> 23
H4: =IF(หลักสูตร!$N$4=0,"",หลักสูตร!$N$4) -> 200 | I4: =IF(หลักสูตร!$N$5=0,"",หลักสูตร!$N$5) -> 200 | J4: =IF(หลักสูตร!$N$6=0,"",หลักสูตร!$N$6) -> 80 | K4: =IF(หลักสูตร!$N$7=0,"",หลักสูตร!$N$7) -> 80 | L4: =IF(หลักสูตร!$N$8=0,"",หลักสูตร!$N$8) -> 40 | M4: =IF(หลักสูตร!$N$9=0,"",หลักสูตร!$N$9) -> 80 | N4: =IF(หลักสูตร!$N$10=0,"",หลักสูตร!$N$10) -> 80 | O4: =IF(หลักสูตร!$N$11=0,"",หลักสูตร!$N$11) -> 40 | P4: =IF(หลักสูตร!$N$12=0,"",หลักสูตร!$N$12) -> 40 | Q4: =IF(หลักสูตร!$N$13=0,"",หลักสูตร!$N$13) -> 40 | R4: =IF(หลักสูตร!$N$14=0,"",หลักสูตร!$N$14) -> 40 | S4: =IF(หลักสูตร!$N$15=0,"",หลักสูตร!$N$15) ->  | T4: =IF(หลักสูตร!$N$16=0,"",หลักสูตร!$N$16) ->  | U4: =IF(หลักสูตร!$N$17=0,"",หลักสูตร!$N$17) ->  | V4: =IF(หลักสูตร!$N$18=0,"",หลักสูตร!$N$18) ->  | W4: =IF(หลักสูตร!$N$19=0,"",หลักสูตร!$N$19) ->  | X4: =IF(หลักสูตร!$N$20=0,"",หลักสูตร!$N$20) ->  | Y4: =IF(หลักสูตร!$N$21=0,"",หลักสูตร!$N$21) ->  | Z4: =IF(หลักสูตร!$N$23=0,"",หลักสูตร!$N$23) -> 40 | AA4: =IF(หลักสูตร!$N$24=0,"",หลักสูตร!$N$24) -> 40 | AB4: =IF(หลักสูตร!$N$25=0,"",หลักสูตร!$N$25) -> 30 | AC4: =IF(หลักสูตร!$N$26=0,"",หลักสูตร!$N$26) -> 10 | AD4: =IF(หลักสูตร!$N$27=0,"",หลักสูตร!$N$27) -> 
G5: ประเภท | H5: =IF(หลักสูตร!$L$4=0,"",หลักสูตร!$L$4) -> พื้นฐาน | I5: =IF(หลักสูตร!$L$5=0,"",หลักสูตร!$L$5) -> พื้นฐาน | J5: =IF(หลักสูตร!$L$6=0,"",หลักสูตร!$L$6) -> พื้นฐาน | K5: =IF(หลักสูตร!$L$7=0,"",หลักสูตร!$L$7) -> พื้นฐาน | L5: =IF(หลักสูตร!$L$8=0,"",หลักสูตร!$L$8) -> พื้นฐาน | M5: =IF(หลักสูตร!$L$9=0,"",หลักสูตร!$L$9) -> พื้นฐาน | N5: =IF(หลักสูตร!$L$10=0,"",หลักสูตร!$L$10) -> พื้นฐาน | O5: =IF(หลักสูตร!$L$11=0,"",หลักสูตร!$L$11) -> พื้นฐาน | P5: =IF(หลักสูตร!$L$12=0,"",หลักสูตร!$L$12) -> พื้นฐาน | Q5: =IF(หลักสูตร!$L$13=0,"",หลักสูตร!$L$13) -> เพิ่มเติม | R5: =IF(หลักสูตร!$L$14=0,"",หลักสูตร!$L$14) -> เพิ่มเติม | S5: =IF(หลักสูตร!$L$15=0,"",หลักสูตร!$L$15) -> เพิ่มเติม | T5: =IF(หลักสูตร!$L$16=0,"",หลักสูตร!$L$16) ->  | U5: =IF(หลักสูตร!$L$17=0,"",หลักสูตร!$L$17) ->  | V5: =IF(หลักสูตร!$L$18=0,"",หลักสูตร!$L$18) ->  | W5: =IF(หลักสูตร!$L$19=0,"",หลักสูตร!$L$19) ->  | X5: =IF(หลักสูตร!$L$20=0,"",หลักสูตร!$L$20) ->  | Y5: =IF(หลักสูตร!$L$21=0,"",หลักสูตร!$L$21) ->  | Z5: =IF(หลักสูตร!$L$23=0,"",หลักสูตร!$L$23) -> กิจกรรม | AA5: =IF(หลักสูตร!$L$24=0,"",หลักสูตร!$L$24) -> กิจกรรม | AB5: =IF(หลักสูตร!$L$25=0,"",หลักสูตร!$L$25) -> กิจกรรม | AC5: =IF(หลักสูตร!$L$26=0,"",หลักสูตร!$L$26) -> กิจกรรม | AD5: =IF(หลักสูตร!$L$27=0,"",หลักสูตร!$L$27) -> 
G6: น้ำหนัก | H6: =IF(หลักสูตร!$O$4=0,"",หลักสูตร!$O$4) -> 5 | I6: =IF(หลักสูตร!$O$5=0,"",หลักสูตร!$O$5) -> 5 | J6: =IF(หลักสูตร!$O$6=0,"",หลักสูตร!$O$6) -> 2 | K6: =IF(หลักสูตร!$O$7=0,"",หลักสูตร!$O$7) -> 2 | L6: =IF(หลักสูตร!$O$8=0,"",หลักสูตร!$O$8) -> 1 | M6: =IF(หลักสูตร!$O$9=0,"",หลักสูตร!$O$9) -> 2 | N6: =IF(หลักสูตร!$O$10=0,"",หลักสูตร!$O$10) -> 2 | O6: =IF(หลักสูตร!$O$11=0,"",หลักสูตร!$O$11) -> 1 | P6: =IF(หลักสูตร!$O$12=0,"",หลักสูตร!$O$12) -> 1 | Q6: =IF(หลักสูตร!$O$13=0,"",หลักสูตร!$O$13) -> 1 | R6: =IF(หลักสูตร!$O$14=0,"",หลักสูตร!$O$14) -> 1 | S6: =IF(หลักสูตร!$O$15=0,"",หลักสูตร!$O$15) ->  | T6: =IF(หลักสูตร!$O$16=0,"",หลักสูตร!$O$16) ->  | U6: =IF(หลักสูตร!$O$17=0,"",หลักสูตร!$O$17) ->  | V6: =IF(หลักสูตร!$O$18=0,"",หลักสูตร!$O$18) ->  | W6: =IF(หลักสูตร!$O$19=0,"",หลักสูตร!$O$19) ->  | X6: =IF(หลักสูตร!$O$20=0,"",หลักสูตร!$O$20) ->  | Y6: =IF(หลักสูตร!$O$21=0,"",หลักสูตร!$O$21) ->  | Z6: =IF(หลักสูตร!$O$23=0,"",หลักสูตร!$O$23) -> - | AA6: =IF(หลักสูตร!$O$24=0,"",หลักสูตร!$O$24) -> - | AB6: =IF(หลักสูตร!$O$25=0,"",หลักสูตร!$O$25) -> - | AC6: =IF(หลักสูตร!$O$26=0,"",หลักสูตร!$O$26) -> - | AD6: =IF(หลักสูตร!$O$27=0,"",หลักสูตร!$O$27) -> - | AH6: =SUMIF(H5:Y5,"<>กิจกรรม",H6:AA6) -> 23
A7: =ข้อมูลนักเรียน!A7 -> 1 | B7: =IF(ข้อมูลนักเรียน!B7=0,"",ข้อมูลนักเรียน!B7) -> 1 | C7: =IF(ข้อมูลนักเรียน!C7=0,"",ข้อมูลนักเรียน!C7) -> 00001 | D7: =IF(ข้อมูลนักเรียน!C7=0,"",ข้อมูลนักเรียน!D7 & ข้อมูลนักเรียน!E7 & " "& ข้อมูลนักเรียน!F7) -> เด็กชายสมชาย สุขสบาย | E7: =IF(ข้อมูลนักเรียน!C7=0,"",ข้อมูลนักเรียน!G7) -> 1111111111111 | F7: =ข้อมูลนักเรียน!B7 -> 1 | H7: 1 | I7: 1 | J7: 1 | K7: 2 | L7: 1 | M7: 1 | N7: 1 | O7: 2 | P7: 1 | Q7: 1.5 | X7: 1.5 | Y7: 1.5 | Z7: ผ | AA7: ผ | AB7: มผ | AC7: ผ | AE7: 2 | AF7: 3 | AG7: =IF(COUNTIFS(Z7:AD7,"=มผ") > 0,"ไม่ผ่าน","ผ่าน") -> ไม่ผ่าน | AH7: =ROUNDDOWN(1.10869565217391,2) -> 1.1 | AJ7: =IF(AF7=1,"ผ่าน",IF(AF7=2,"ดี",IF(AF7=3,"ดีเยี่ยม","ปรับปรุง"))) -> ดีเยี่ยม | AK7: คอมพิวเตอร์ | AL7: 23 | AM7: เกรด | AN7: อ่าน/คุณ | AO7: กิจกรรม
A8: =ข้อมูลนักเรียน!A8 -> 1 | B8: =IF(ข้อมูลนักเรียน!B8=0,"",ข้อมูลนักเรียน!B8) -> 2 | C8: =IF(ข้อมูลนักเรียน!C8=0,"",ข้อมูลนักเรียน!C8) -> 00002 | D8: =IF(ข้อมูลนักเรียน!C8=0,"",ข้อมูลนักเรียน!D8 & ข้อมูลนักเรียน!E8 & " "& ข้อมูลนักเรียน!F8) -> เด็กหญิงสมหวัง ตั้งใจเรียน | E8: =IF(ข้อมูลนักเรียน!C8=0,"",ข้อมูลนักเรียน!G8) -> 2222222222222 | F8: =ข้อมูลนักเรียน!B8 -> 2 | H8: 2 | I8: 2 | J8: 2 | K8: 2 | L8: 2 | M8: 2 | N8: 2 | O8: 2 | P8: 3.5 | Q8: 1.5 | X8: 1.5 | Y8: 1.5 | Z8: ผ | AA8: ผ | AB8: ผ | AC8: ผ | AE8: 2 | AF8: 3 | AG8: ผ่าน | AH8: =ROUNDDOWN(1.95652173913043,2) -> 1.95 | AJ8: ดีเยี่ยม | AL8: 23 | AM8: 0 | AN8: 0 | AO8: ผ
A9: =ข้อมูลนักเรียน!A9 -> 0 | B9: =IF(ข้อมูลนักเรียน!B9=0,"",ข้อมูลนักเรียน!B9) ->  | C9: =IF(ข้อมูลนักเรียน!C9=0,"",ข้อมูลนักเรียน!C9) ->  | D9: =IF(ข้อมูลนักเรียน!C9=0,"",ข้อมูลนักเรียน!D9 & ข้อมูลนักเรียน!E9 & " "& ข้อมูลนักเรียน!F9) ->  | E9: =IF(ข้อมูลนักเรียน!C9=0,"",ข้อมูลนักเรียน!G9) ->  | F9: =ข้อมูลนักเรียน!B9 -> 0 | AG9: =IF(COUNTIFS(Z9:AD9,"=มผ") > 0,"ไม่ผ่าน","ผ่าน") -> ผ่าน | AH9: =ROUNDDOWN(0,2) -> 0 | AJ9: =IF(AF9=1,"ผ่าน",IF(AF9=2,"ดี",IF(AF9=3,"ดีเยี่ยม","ปรับปรุง"))) -> ปรับปรุง | AL9: 23 | AM9: 1 | AN9: 1 | AO9: มผ
A10: =ข้อมูลนักเรียน!A10 -> 0 | B10: =IF(ข้อมูลนักเรียน!B10=0,"",ข้อมูลนักเรียน!B10) ->  | C10: =IF(ข้อมูลนักเรียน!C10=0,"",ข้อมูลนักเรียน!C10) ->  | D10: =IF(ข้อมูลนักเรียน!C10=0,"",ข้อมูลนักเรียน!D10 & ข้อมูลนักเรียน!E10 & " "& ข้อมูลนักเรียน!F10) ->  | E10: =IF(ข้อมูลนักเรียน!C10=0,"",ข้อมูลนักเรียน!G10) ->  | F10: =ข้อมูลนักเรียน!B10 -> 0 | AG10: ผ่าน | AH10: 0 | AJ10: ปรับปรุง | AL10: 23 | AM10: 1.5 | AN10: 2
A11: =ข้อมูลนักเรียน!A11 -> 0 | B11: =IF(ข้อมูลนักเรียน!B11=0,"",ข้อมูลนักเรียน!B11) ->  | C11: =IF(ข้อมูลนักเรียน!C11=0,"",ข้อมูลนักเรียน!C11) ->  | D11: =IF(ข้อมูลนักเรียน!C11=0,"",ข้อมูลนักเรียน!D11 & ข้อมูลนักเรียน!E11 & " "& ข้อมูลนักเรียน!F11) ->  | E11: =IF(ข้อมูลนักเรียน!C11=0,"",ข้อมูลนักเรียน!G11) ->  | F11: =ข้อมูลนักเรียน!B11 -> 0 | AG11: ผ่าน | AH11: 0 | AJ11: ปรับปรุง | AL11: 23 | AM11: 2 | AN11: 3
A12: =ข้อมูลนักเรียน!A12 -> 0 | B12: =IF(ข้อมูลนักเรียน!B12=0,"",ข้อมูลนักเรียน!B12) ->  | C12: =IF(ข้อมูลนักเรียน!C12=0,"",ข้อมูลนักเรียน!C12) ->  | D12: =IF(ข้อมูลนักเรียน!C12=0,"",ข้อมูลนักเรียน!D12 & ข้อมูลนักเรียน!E12 & " "& ข้อมูลนักเรียน!F12) ->  | E12: =IF(ข้อมูลนักเรียน!C12=0,"",ข้อมูลนักเรียน!G12) ->  | F12: =ข้อมูลนักเรียน!B12 -> 0 | AG12: ผ่าน | AH12: 0 | AJ12: ปรับปรุง | AL12: 23 | AM12: 2.5
A13: =ข้อมูลนักเรียน!A13 -> 0 | B13: =IF(ข้อมูลนักเรียน!B13=0,"",ข้อมูลนักเรียน!B13) ->  | C13: =IF(ข้อมูลนักเรียน!C13=0,"",ข้อมูลนักเรียน!C13) ->  | D13: =IF(ข้อมูลนักเรียน!C13=0,"",ข้อมูลนักเรียน!D13 & ข้อมูลนักเรียน!E13 & " "& ข้อมูลนักเรียน!F13) ->  | E13: =IF(ข้อมูลนักเรียน!C13=0,"",ข้อมูลนักเรียน!G13) ->  | F13: =ข้อมูลนักเรียน!B13 -> 0 | AG13: ผ่าน | AH13: 0 | AJ13: ปรับปรุง | AL13: 23 | AM13: 3
A14: =ข้อมูลนักเรียน!A14 -> 0 | B14: =IF(ข้อมูลนักเรียน!B14=0,"",ข้อมูลนักเรียน!B14) ->  | C14: =IF(ข้อมูลนักเรียน!C14=0,"",ข้อมูลนักเรียน!C14) ->  | D14: =IF(ข้อมูลนักเรียน!C14=0,"",ข้อมูลนักเรียน!D14 & ข้อมูลนักเรียน!E14 & " "& ข้อมูลนักเรียน!F14) ->  | E14: =IF(ข้อมูลนักเรียน!C14=0,"",ข้อมูลนักเรียน!G14) ->  | F14: =ข้อมูลนักเรียน!B14 -> 0 | AG14: ผ่าน | AH14: 0 | AJ14: ปรับปรุง | AL14: 23 | AM14: 3.5
A15: =ข้อมูลนักเรียน!A15 -> 0 | B15: =IF(ข้อมูลนักเรียน!B15=0,"",ข้อมูลนักเรียน!B15) ->  | C15: =IF(ข้อมูลนักเรียน!C15=0,"",ข้อมูลนักเรียน!C15) ->  | D15: =IF(ข้อมูลนักเรียน!C15=0,"",ข้อมูลนักเรียน!D15 & ข้อมูลนักเรียน!E15 & " "& ข้อมูลนักเรียน!F15) ->  | E15: =IF(ข้อมูลนักเรียน!C15=0,"",ข้อมูลนักเรียน!G15) ->  | F15: =ข้อมูลนักเรียน!B15 -> 0 | AG15: ผ่าน | AH15: 0 | AJ15: ปรับปรุง | AL15: 23 | AM15: 4
A16: =ข้อมูลนักเรียน!A16 -> 0 | B16: =IF(ข้อมูลนักเรียน!B16=0,"",ข้อมูลนักเรียน!B16) ->  | C16: =IF(ข้อมูลนักเรียน!C16=0,"",ข้อมูลนักเรียน!C16) ->  | D16: =IF(ข้อมูลนักเรียน!C16=0,"",ข้อมูลนักเรียน!D16 & ข้อมูลนักเรียน!E16 & " "& ข้อมูลนักเรียน!F16) ->  | E16: =IF(ข้อมูลนักเรียน!C16=0,"",ข้อมูลนักเรียน!G16) ->  | F16: =ข้อมูลนักเรียน!B16 -> 0 | AG16: ผ่าน | AH16: 0 | AJ16: ปรับปรุง | AL16: 23 | AM16: ร
A17: =ข้อมูลนักเรียน!A17 -> 0 | B17: =IF(ข้อมูลนักเรียน!B17=0,"",ข้อมูลนักเรียน!B17) ->  | C17: =IF(ข้อมูลนักเรียน!C17=0,"",ข้อมูลนักเรียน!C17) ->  | D17: =IF(ข้อมูลนักเรียน!C17=0,"",ข้อมูลนักเรียน!D17 & ข้อมูลนักเรียน!E17 & " "& ข้อมูลนักเรียน!F17) ->  | E17: =IF(ข้อมูลนักเรียน!C17=0,"",ข้อมูลนักเรียน!G17) ->  | F17: =ข้อมูลนักเรียน!B17 -> 0 | AG17: ผ่าน | AH17: 0 | AJ17: ปรับปรุง | AL17: 23 | AM17: มส
A18: =ข้อมูลนักเรียน!A18 -> 0 | B18: =IF(ข้อมูลนักเรียน!B18=0,"",ข้อมูลนักเรียน!B18) ->  | C18: =IF(ข้อมูลนักเรียน!C18=0,"",ข้อมูลนักเรียน!C18) ->  | D18: =IF(ข้อมูลนักเรียน!C18=0,"",ข้อมูลนักเรียน!D18 & ข้อมูลนักเรียน!E18 & " "& ข้อมูลนักเรียน!F18) ->  | E18: =IF(ข้อมูลนักเรียน!C18=0,"",ข้อมูลนักเรียน!G18) ->  | F18: =ข้อมูลนักเรียน!B18 -> 0 | AG18: ผ่าน | AH18: 0 | AJ18: ปรับปรุง | AL18: 23 | AM18: ผ
A19: =ข้อมูลนักเรียน!A19 -> 0 | B19: =IF(ข้อมูลนักเรียน!B19=0,"",ข้อมูลนักเรียน!B19) ->  | C19: =IF(ข้อมูลนักเรียน!C19=0,"",ข้อมูลนักเรียน!C19) ->  | D19: =IF(ข้อมูลนักเรียน!C19=0,"",ข้อมูลนักเรียน!D19 & ข้อมูลนักเรียน!E19 & " "& ข้อมูลนักเรียน!F19) ->  | E19: =IF(ข้อมูลนักเรียน!C19=0,"",ข้อมูลนักเรียน!G19) ->  | F19: =ข้อมูลนักเรียน!B19 -> 0 | AG19: ผ่าน | AH19: 0 | AJ19: ปรับปรุง | AL19: 23 | AM19: มผ
A20: =ข้อมูลนักเรียน!A20 -> 0 | B20: =IF(ข้อมูลนักเรียน!B20=0,"",ข้อมูลนักเรียน!B20) ->  | C20: =IF(ข้อมูลนักเรียน!C20=0,"",ข้อมูลนักเรียน!C20) ->  | D20: =IF(ข้อมูลนักเรียน!C20=0,"",ข้อมูลนักเรียน!D20 & ข้อมูลนักเรียน!E20 & " "& ข้อมูลนักเรียน!F20) ->  | E20: =IF(ข้อมูลนักเรียน!C20=0,"",ข้อมูลนักเรียน!G20) ->  | F20: =ข้อมูลนักเรียน!B20 -> 0 | AG20: ผ่าน | AH20: 0 | AJ20: ปรับปรุง | AL20: 23
A21: =ข้อมูลนักเรียน!A21 -> 0 | B21: =IF(ข้อมูลนักเรียน!B21=0,"",ข้อมูลนักเรียน!B21) ->  | C21: =IF(ข้อมูลนักเรียน!C21=0,"",ข้อมูลนักเรียน!C21) ->  | D21: =IF(ข้อมูลนักเรียน!C21=0,"",ข้อมูลนักเรียน!D21 & ข้อมูลนักเรียน!E21 & " "& ข้อมูลนักเรียน!F21) ->  | E21: =IF(ข้อมูลนักเรียน!C21=0,"",ข้อมูลนักเรียน!G21) ->  | F21: =ข้อมูลนักเรียน!B21 -> 0 | AG21: ผ่าน | AH21: 0 | AJ21: ปรับปรุง | AL21: 23
A22: =ข้อมูลนักเรียน!A22 -> 0 | B22: =IF(ข้อมูลนักเรียน!B22=0,"",ข้อมูลนักเรียน!B22) ->  | C22: =IF(ข้อมูลนักเรียน!C22=0,"",ข้อมูลนักเรียน!C22) ->  | D22: =IF(ข้อมูลนักเรียน!C22=0,"",ข้อมูลนักเรียน!D22 & ข้อมูลนักเรียน!E22 & " "& ข้อมูลนักเรียน!F22) ->  | E22: =IF(ข้อมูลนักเรียน!C22=0,"",ข้อมูลนักเรียน!G22) ->  | F22: =ข้อมูลนักเรียน!B22 -> 0 | AG22: ผ่าน | AH22: 0 | AJ22: ปรับปรุง | AL22: 23
A23: =ข้อมูลนักเรียน!A23 -> 0 | B23: =IF(ข้อมูลนักเรียน!B23=0,"",ข้อมูลนักเรียน!B23) ->  | C23: =IF(ข้อมูลนักเรียน!C23=0,"",ข้อมูลนักเรียน!C23) ->  | D23: =IF(ข้อมูลนักเรียน!C23=0,"",ข้อมูลนักเรียน!D23 & ข้อมูลนักเรียน!E23 & " "& ข้อมูลนักเรียน!F23) ->  | E23: =IF(ข้อมูลนักเรียน!C23=0,"",ข้อมูลนักเรียน!G23) ->  | F23: =ข้อมูลนักเรียน!B23 -> 0 | AG23: ผ่าน | AH23: 0 | AJ23: ปรับปรุง | AL23: 23
A24: =ข้อมูลนักเรียน!A24 -> 0 | B24: =IF(ข้อมูลนักเรียน!B24=0,"",ข้อมูลนักเรียน!B24) ->  | C24: =IF(ข้อมูลนักเรียน!C24=0,"",ข้อมูลนักเรียน!C24) ->  | D24: =IF(ข้อมูลนักเรียน!C24=0,"",ข้อมูลนักเรียน!D24 & ข้อมูลนักเรียน!E24 & " "& ข้อมูลนักเรียน!F24) ->  | E24: =IF(ข้อมูลนักเรียน!C24=0,"",ข้อมูลนักเรียน!G24) ->  | F24: =ข้อมูลนักเรียน!B24 -> 0 | AG24: ผ่าน | AH24: 0 | AJ24: ปรับปรุง | AL24: 23
A25: =ข้อมูลนักเรียน!A25 -> 0 | B25: =IF(ข้อมูลนักเรียน!B25=0,"",ข้อมูลนักเรียน!B25) ->  | C25: =IF(ข้อมูลนักเรียน!C25=0,"",ข้อมูลนักเรียน!C25) ->  | D25: =IF(ข้อมูลนักเรียน!C25=0,"",ข้อมูลนักเรียน!D25 & ข้อมูลนักเรียน!E25 & " "& ข้อมูลนักเรียน!F25) ->  | E25: =IF(ข้อมูลนักเรียน!C25=0,"",ข้อมูลนักเรียน!G25) ->  | F25: =ข้อมูลนักเรียน!B25 -> 0 | AG25: ผ่าน | AH25: 0 | AJ25: ปรับปรุง | AL25: 23
A26: =ข้อมูลนักเรียน!A26 -> 0 | B26: =IF(ข้อมูลนักเรียน!B26=0,"",ข้อมูลนักเรียน!B26) ->  | C26: =IF(ข้อมูลนักเรียน!C26=0,"",ข้อมูลนักเรียน!C26) ->  | D26: =IF(ข้อมูลนักเรียน!C26=0,"",ข้อมูลนักเรียน!D26 & ข้อมูลนักเรียน!E26 & " "& ข้อมูลนักเรียน!F26) ->  | E26: =IF(ข้อมูลนักเรียน!C26=0,"",ข้อมูลนักเรียน!G26) ->  | F26: =ข้อมูลนักเรียน!B26 -> 0 | AG26: ผ่าน | AH26: 0 | AJ26: ปรับปรุง | AL26: 23
A27: =ข้อมูลนักเรียน!A27 -> 0 | B27: =IF(ข้อมูลนักเรียน!B27=0,"",ข้อมูลนักเรียน!B27) ->  | C27: =IF(ข้อมูลนักเรียน!C27=0,"",ข้อมูลนักเรียน!C27) ->  | D27: =IF(ข้อมูลนักเรียน!C27=0,"",ข้อมูลนักเรียน!D27 & ข้อมูลนักเรียน!E27 & " "& ข้อมูลนักเรียน!F27) ->  | E27: =IF(ข้อมูลนักเรียน!C27=0,"",ข้อมูลนักเรียน!G27) ->  | F27: =ข้อมูลนักเรียน!B27 -> 0 | AG27: ผ่าน | AH27: 0 | AJ27: ปรับปรุง | AL27: 23
A28: =ข้อมูลนักเรียน!A28 -> 0 | B28: =IF(ข้อมูลนักเรียน!B28=0,"",ข้อมูลนักเรียน!B28) ->  | C28: =IF(ข้อมูลนักเรียน!C28=0,"",ข้อมูลนักเรียน!C28) ->  | D28: =IF(ข้อมูลนักเรียน!C28=0,"",ข้อมูลนักเรียน!D28 & ข้อมูลนักเรียน!E28 & " "& ข้อมูลนักเรียน!F28) ->  | E28: =IF(ข้อมูลนักเรียน!C28=0,"",ข้อมูลนักเรียน!G28) ->  | F28: =ข้อมูลนักเรียน!B28 -> 0 | AG28: ผ่าน | AH28: 0 | AJ28: ปรับปรุง | AL28: 23
A29: =ข้อมูลนักเรียน!A29 -> 0 | B29: =IF(ข้อมูลนักเรียน!B29=0,"",ข้อมูลนักเรียน!B29) ->  | C29: =IF(ข้อมูลนักเรียน!C29=0,"",ข้อมูลนักเรียน!C29) ->  | D29: =IF(ข้อมูลนักเรียน!C29=0,"",ข้อมูลนักเรียน!D29 & ข้อมูลนักเรียน!E29 & " "& ข้อมูลนักเรียน!F29) ->  | E29: =IF(ข้อมูลนักเรียน!C29=0,"",ข้อมูลนักเรียน!G29) ->  | F29: =ข้อมูลนักเรียน!B29 -> 0 | AG29: ผ่าน | AH29: 0 | AJ29: ปรับปรุง | AL29: 23
A30: =ข้อมูลนักเรียน!A30 -> 0 | B30: =IF(ข้อมูลนักเรียน!B30=0,"",ข้อมูลนักเรียน!B30) ->  | C30: =IF(ข้อมูลนักเรียน!C30=0,"",ข้อมูลนักเรียน!C30) ->  | D30: =IF(ข้อมูลนักเรียน!C30=0,"",ข้อมูลนักเรียน!D30 & ข้อมูลนักเรียน!E30 & " "& ข้อมูลนักเรียน!F30) ->  | E30: =IF(ข้อมูลนักเรียน!C30=0,"",ข้อมูลนักเรียน!G30) ->  | F30: =ข้อมูลนักเรียน!B30 -> 0 | AG30: ผ่าน | AH30: 0 | AJ30: ปรับปรุง | AL30: 23
A31: =ข้อมูลนักเรียน!A31 -> 0 | B31: =IF(ข้อมูลนักเรียน!B31=0,"",ข้อมูลนักเรียน!B31) ->  | C31: =IF(ข้อมูลนักเรียน!C31=0,"",ข้อมูลนักเรียน!C31) ->  | D31: =IF(ข้อมูลนักเรียน!C31=0,"",ข้อมูลนักเรียน!D31 & ข้อมูลนักเรียน!E31 & " "& ข้อมูลนักเรียน!F31) ->  | E31: =IF(ข้อมูลนักเรียน!C31=0,"",ข้อมูลนักเรียน!G31) ->  | F31: =ข้อมูลนักเรียน!B31 -> 0 | AG31: ผ่าน | AH31: 0 | AJ31: ปรับปรุง | AL31: 23
A32: =ข้อมูลนักเรียน!A32 -> 0 | B32: =IF(ข้อมูลนักเรียน!B32=0,"",ข้อมูลนักเรียน!B32) ->  | C32: =IF(ข้อมูลนักเรียน!C32=0,"",ข้อมูลนักเรียน!C32) ->  | D32: =IF(ข้อมูลนักเรียน!C32=0,"",ข้อมูลนักเรียน!D32 & ข้อมูลนักเรียน!E32 & " "& ข้อมูลนักเรียน!F32) ->  | E32: =IF(ข้อมูลนักเรียน!C32=0,"",ข้อมูลนักเรียน!G32) ->  | F32: =ข้อมูลนักเรียน!B32 -> 0 | AG32: ผ่าน | AH32: 0 | AJ32: ปรับปรุง | AL32: 23
A33: =ข้อมูลนักเรียน!A33 -> 0 | B33: =IF(ข้อมูลนักเรียน!B33=0,"",ข้อมูลนักเรียน!B33) ->  | C33: =IF(ข้อมูลนักเรียน!C33=0,"",ข้อมูลนักเรียน!C33) ->  | D33: =IF(ข้อมูลนักเรียน!C33=0,"",ข้อมูลนักเรียน!D33 & ข้อมูลนักเรียน!E33 & " "& ข้อมูลนักเรียน!F33) ->  | E33: =IF(ข้อมูลนักเรียน!C33=0,"",ข้อมูลนักเรียน!G33) ->  | F33: =ข้อมูลนักเรียน!B33 -> 0 | AG33: ผ่าน | AH33: 0 | AJ33: ปรับปรุง | AL33: 23
A34: =ข้อมูลนักเรียน!A34 -> 0 | B34: =IF(ข้อมูลนักเรียน!B34=0,"",ข้อมูลนักเรียน!B34) ->  | C34: =IF(ข้อมูลนักเรียน!C34=0,"",ข้อมูลนักเรียน!C34) ->  | D34: =IF(ข้อมูลนักเรียน!C34=0,"",ข้อมูลนักเรียน!D34 & ข้อมูลนักเรียน!E34 & " "& ข้อมูลนักเรียน!F34) ->  | E34: =IF(ข้อมูลนักเรียน!C34=0,"",ข้อมูลนักเรียน!G34) ->  | F34: =ข้อมูลนักเรียน!B34 -> 0 | AG34: ผ่าน | AH34: 0 | AJ34: ปรับปรุง | AL34: 23
A35: =ข้อมูลนักเรียน!A35 -> 0 | B35: =IF(ข้อมูลนักเรียน!B35=0,"",ข้อมูลนักเรียน!B35) ->  | C35: =IF(ข้อมูลนักเรียน!C35=0,"",ข้อมูลนักเรียน!C35) ->  | D35: =IF(ข้อมูลนักเรียน!C35=0,"",ข้อมูลนักเรียน!D35 & ข้อมูลนักเรียน!E35 & " "& ข้อมูลนักเรียน!F35) ->  | E35: =IF(ข้อมูลนักเรียน!C35=0,"",ข้อมูลนักเรียน!G35) ->  | F35: =ข้อมูลนักเรียน!B35 -> 0 | AG35: ผ่าน | AH35: 0 | AJ35: ปรับปรุง | AL35: 23
A36: =ข้อมูลนักเรียน!A36 -> 0 | B36: =IF(ข้อมูลนักเรียน!B36=0,"",ข้อมูลนักเรียน!B36) ->  | C36: =IF(ข้อมูลนักเรียน!C36=0,"",ข้อมูลนักเรียน!C36) ->  | D36: =IF(ข้อมูลนักเรียน!C36=0,"",ข้อมูลนักเรียน!D36 & ข้อมูลนักเรียน!E36 & " "& ข้อมูลนักเรียน!F36) ->  | E36: =IF(ข้อมูลนักเรียน!C36=0,"",ข้อมูลนักเรียน!G36) ->  | F36: =ข้อมูลนักเรียน!B36 -> 0 | AG36: ผ่าน | AH36: 0 | AJ36: ปรับปรุง | AL36: 23
A37: =ข้อมูลนักเรียน!A37 -> 0 | B37: =IF(ข้อมูลนักเรียน!B37=0,"",ข้อมูลนักเรียน!B37) ->  | C37: =IF(ข้อมูลนักเรียน!C37=0,"",ข้อมูลนักเรียน!C37) ->  | D37: =IF(ข้อมูลนักเรียน!C37=0,"",ข้อมูลนักเรียน!D37 & ข้อมูลนักเรียน!E37 & " "& ข้อมูลนักเรียน!F37) ->  | E37: =IF(ข้อมูลนักเรียน!C37=0,"",ข้อมูลนักเรียน!G37) ->  | F37: =ข้อมูลนักเรียน!B37 -> 0 | AG37: ผ่าน | AH37: 0 | AJ37: ปรับปรุง | AL37: 23
A38: =ข้อมูลนักเรียน!A38 -> 0 | B38: =IF(ข้อมูลนักเรียน!B38=0,"",ข้อมูลนักเรียน!B38) ->  | C38: =IF(ข้อมูลนักเรียน!C38=0,"",ข้อมูลนักเรียน!C38) ->  | D38: =IF(ข้อมูลนักเรียน!C38=0,"",ข้อมูลนักเรียน!D38 & ข้อมูลนักเรียน!E38 & " "& ข้อมูลนักเรียน!F38) ->  | E38: =IF(ข้อมูลนักเรียน!C38=0,"",ข้อมูลนักเรียน!G38) ->  | F38: =ข้อมูลนักเรียน!B38 -> 0 | AG38: ผ่าน | AH38: 0 | AJ38: ปรับปรุง | AL38: 23
A39: =ข้อมูลนักเรียน!A39 -> 0 | B39: =IF(ข้อมูลนักเรียน!B39=0,"",ข้อมูลนักเรียน!B39) ->  | C39: =IF(ข้อมูลนักเรียน!C39=0,"",ข้อมูลนักเรียน!C39) ->  | D39: =IF(ข้อมูลนักเรียน!C39=0,"",ข้อมูลนักเรียน!D39 & ข้อมูลนักเรียน!E39 & " "& ข้อมูลนักเรียน!F39) ->  | E39: =IF(ข้อมูลนักเรียน!C39=0,"",ข้อมูลนักเรียน!G39) ->  | F39: =ข้อมูลนักเรียน!B39 -> 0 | AG39: ผ่าน | AH39: 0 | AJ39: ปรับปรุง | AL39: 23
A40: =ข้อมูลนักเรียน!A40 -> 0 | B40: =IF(ข้อมูลนักเรียน!B40=0,"",ข้อมูลนักเรียน!B40) ->  | C40: =IF(ข้อมูลนักเรียน!C40=0,"",ข้อมูลนักเรียน!C40) ->  | D40: =IF(ข้อมูลนักเรียน!C40=0,"",ข้อมูลนักเรียน!D40 & ข้อมูลนักเรียน!E40 & " "& ข้อมูลนักเรียน!F40) ->  | E40: =IF(ข้อมูลนักเรียน!C40=0,"",ข้อมูลนักเรียน!G40) ->  | F40: =ข้อมูลนักเรียน!B40 -> 0 | AG40: ผ่าน | AH40: 0 | AJ40: ปรับปรุง | AL40: 23
A41: =ข้อมูลนักเรียน!A41 -> 0 | B41: =IF(ข้อมูลนักเรียน!B41=0,"",ข้อมูลนักเรียน!B41) ->  | C41: =IF(ข้อมูลนักเรียน!C41=0,"",ข้อมูลนักเรียน!C41) ->  | D41: =IF(ข้อมูลนักเรียน!C41=0,"",ข้อมูลนักเรียน!D41 & ข้อมูลนักเรียน!E41 & " "& ข้อมูลนักเรียน!F41) ->  | E41: =IF(ข้อมูลนักเรียน!C41=0,"",ข้อมูลนักเรียน!G41) ->  | F41: =ข้อมูลนักเรียน!B41 -> 0 | AG41: ผ่าน | AH41: =ROUNDDOWN(0,2) -> 0 | AJ41: ปรับปรุง | AL41: 23
A42: =ข้อมูลนักเรียน!A42 -> 0 | B42: =IF(ข้อมูลนักเรียน!B42=0,"",ข้อมูลนักเรียน!B42) ->  | C42: =IF(ข้อมูลนักเรียน!C42=0,"",ข้อมูลนักเรียน!C42) ->  | D42: =IF(ข้อมูลนักเรียน!C42=0,"",ข้อมูลนักเรียน!D42 & ข้อมูลนักเรียน!E42 & " "& ข้อมูลนักเรียน!F42) ->  | E42: =IF(ข้อมูลนักเรียน!C42=0,"",ข้อมูลนักเรียน!G42) ->  | F42: =ข้อมูลนักเรียน!B42 -> 0 | AG42: ผ่าน | AH42: 0 | AJ42: ปรับปรุง | AL42: 23
A43: =ข้อมูลนักเรียน!A43 -> 0 | B43: =IF(ข้อมูลนักเรียน!B43=0,"",ข้อมูลนักเรียน!B43) ->  | C43: =IF(ข้อมูลนักเรียน!C43=0,"",ข้อมูลนักเรียน!C43) ->  | D43: =IF(ข้อมูลนักเรียน!C43=0,"",ข้อมูลนักเรียน!D43 & ข้อมูลนักเรียน!E43 & " "& ข้อมูลนักเรียน!F43) ->  | E43: =IF(ข้อมูลนักเรียน!C43=0,"",ข้อมูลนักเรียน!G43) ->  | F43: =ข้อมูลนักเรียน!B43 -> 0 | AG43: ผ่าน | AH43: 0 | AJ43: ปรับปรุง | AL43: 23
A44: =ข้อมูลนักเรียน!A44 -> 0 | B44: =IF(ข้อมูลนักเรียน!B44=0,"",ข้อมูลนักเรียน!B44) ->  | C44: =IF(ข้อมูลนักเรียน!C44=0,"",ข้อมูลนักเรียน!C44) ->  | D44: =IF(ข้อมูลนักเรียน!C44=0,"",ข้อมูลนักเรียน!D44 & ข้อมูลนักเรียน!E44 & " "& ข้อมูลนักเรียน!F44) ->  | E44: =IF(ข้อมูลนักเรียน!C44=0,"",ข้อมูลนักเรียน!G44) ->  | F44: =ข้อมูลนักเรียน!B44 -> 0 | AG44: ผ่าน | AH44: 0 | AJ44: ปรับปรุง | AL44: 23
A45: =ข้อมูลนักเรียน!A45 -> 0 | B45: =IF(ข้อมูลนักเรียน!B45=0,"",ข้อมูลนักเรียน!B45) ->  | C45: =IF(ข้อมูลนักเรียน!C45=0,"",ข้อมูลนักเรียน!C45) ->  | D45: =IF(ข้อมูลนักเรียน!C45=0,"",ข้อมูลนักเรียน!D45 & ข้อมูลนักเรียน!E45 & " "& ข้อมูลนักเรียน!F45) ->  | E45: =IF(ข้อมูลนักเรียน!C45=0,"",ข้อมูลนักเรียน!G45) ->  | F45: =ข้อมูลนักเรียน!B45 -> 0 | AG45: ผ่าน | AH45: 0 | AJ45: ปรับปรุง | AL45: 23
A46: =ข้อมูลนักเรียน!A46 -> 0 | B46: =IF(ข้อมูลนักเรียน!B46=0,"",ข้อมูลนักเรียน!B46) ->  | C46: =IF(ข้อมูลนักเรียน!C46=0,"",ข้อมูลนักเรียน!C46) ->  | D46: =IF(ข้อมูลนักเรียน!C46=0,"",ข้อมูลนักเรียน!D46 & ข้อมูลนักเรียน!E46 & " "& ข้อมูลนักเรียน!F46) ->  | E46: =IF(ข้อมูลนักเรียน!C46=0,"",ข้อมูลนักเรียน!G46) ->  | F46: =ข้อมูลนักเรียน!B46 -> 0 | AG46: ผ่าน | AH46: 0 | AJ46: ปรับปรุง | AL46: 23
A47: =ข้อมูลนักเรียน!A47 -> 0 | B47: =IF(ข้อมูลนักเรียน!B47=0,"",ข้อมูลนักเรียน!B47) ->  | C47: =IF(ข้อมูลนักเรียน!C47=0,"",ข้อมูลนักเรียน!C47) ->  | D47: =IF(ข้อมูลนักเรียน!C47=0,"",ข้อมูลนักเรียน!D47 & ข้อมูลนักเรียน!E47 & " "& ข้อมูลนักเรียน!F47) ->  | E47: =IF(ข้อมูลนักเรียน!C47=0,"",ข้อมูลนักเรียน!G47) ->  | F47: =ข้อมูลนักเรียน!B47 -> 0 | AG47: ผ่าน | AH47: 0 | AJ47: ปรับปรุง | AL47: 23
A48: =ข้อมูลนักเรียน!A48 -> 0 | B48: =IF(ข้อมูลนักเรียน!B48=0,"",ข้อมูลนักเรียน!B48) ->  | C48: =IF(ข้อมูลนักเรียน!C48=0,"",ข้อมูลนักเรียน!C48) ->  | D48: =IF(ข้อมูลนักเรียน!C48=0,"",ข้อมูลนักเรียน!D48 & ข้อมูลนักเรียน!E48 & " "& ข้อมูลนักเรียน!F48) ->  | E48: =IF(ข้อมูลนักเรียน!C48=0,"",ข้อมูลนักเรียน!G48) ->  | F48: =ข้อมูลนักเรียน!B48 -> 0 | AG48: ผ่าน | AH48: 0 | AJ48: ปรับปรุง | AL48: 23
A49: =ข้อมูลนักเรียน!A49 -> 0 | B49: =IF(ข้อมูลนักเรียน!B49=0,"",ข้อมูลนักเรียน!B49) ->  | C49: =IF(ข้อมูลนักเรียน!C49=0,"",ข้อมูลนักเรียน!C49) ->  | D49: =IF(ข้อมูลนักเรียน!C49=0,"",ข้อมูลนักเรียน!D49 & ข้อมูลนักเรียน!E49 & " "& ข้อมูลนักเรียน!F49) ->  | E49: =IF(ข้อมูลนักเรียน!C49=0,"",ข้อมูลนักเรียน!G49) ->  | F49: =ข้อมูลนักเรียน!B49 -> 0 | AG49: ผ่าน | AH49: 0 | AJ49: ปรับปรุง | AL49: 23
A50: =ข้อมูลนักเรียน!A50 -> 0 | B50: =IF(ข้อมูลนักเรียน!B50=0,"",ข้อมูลนักเรียน!B50) ->  | C50: =IF(ข้อมูลนักเรียน!C50=0,"",ข้อมูลนักเรียน!C50) ->  | D50: =IF(ข้อมูลนักเรียน!C50=0,"",ข้อมูลนักเรียน!D50 & ข้อมูลนักเรียน!E50 & " "& ข้อมูลนักเรียน!F50) ->  | E50: =IF(ข้อมูลนักเรียน!C50=0,"",ข้อมูลนักเรียน!G50) ->  | F50: =ข้อมูลนักเรียน!B50 -> 0 | AG50: ผ่าน | AH50: 0 | AJ50: ปรับปรุง | AL50: 23
A51: =ข้อมูลนักเรียน!A51 -> 0 | B51: =IF(ข้อมูลนักเรียน!B51=0,"",ข้อมูลนักเรียน!B51) ->  | C51: =IF(ข้อมูลนักเรียน!C51=0,"",ข้อมูลนักเรียน!C51) ->  | D51: =IF(ข้อมูลนักเรียน!C51=0,"",ข้อมูลนักเรียน!D51 & ข้อมูลนักเรียน!E51 & " "& ข้อมูลนักเรียน!F51) ->  | E51: =IF(ข้อมูลนักเรียน!C51=0,"",ข้อมูลนักเรียน!G51) ->  | F51: =ข้อมูลนักเรียน!B51 -> 0 | AG51: ผ่าน | AH51: 0 | AJ51: ปรับปรุง | AL51: 23
A52: =ข้อมูลนักเรียน!A52 -> 0 | B52: =IF(ข้อมูลนักเรียน!B52=0,"",ข้อมูลนักเรียน!B52) ->  | C52: =IF(ข้อมูลนักเรียน!C52=0,"",ข้อมูลนักเรียน!C52) ->  | D52: =IF(ข้อมูลนักเรียน!C52=0,"",ข้อมูลนักเรียน!D52 & ข้อมูลนักเรียน!E52 & " "& ข้อมูลนักเรียน!F52) ->  | E52: =IF(ข้อมูลนักเรียน!C52=0,"",ข้อมูลนักเรียน!G52) ->  | F52: =ข้อมูลนักเรียน!B52 -> 0 | AG52: ผ่าน | AH52: 0 | AJ52: ปรับปรุง | AL52: 23
A53: =ข้อมูลนักเรียน!A53 -> 0 | B53: =IF(ข้อมูลนักเรียน!B53=0,"",ข้อมูลนักเรียน!B53) ->  | C53: =IF(ข้อมูลนักเรียน!C53=0,"",ข้อมูลนักเรียน!C53) ->  | D53: =IF(ข้อมูลนักเรียน!C53=0,"",ข้อมูลนักเรียน!D53 & ข้อมูลนักเรียน!E53 & " "& ข้อมูลนักเรียน!F53) ->  | E53: =IF(ข้อมูลนักเรียน!C53=0,"",ข้อมูลนักเรียน!G53) ->  | F53: =ข้อมูลนักเรียน!B53 -> 0 | AG53: ผ่าน | AH53: 0 | AJ53: ปรับปรุง | AL53: 23
A54: =ข้อมูลนักเรียน!A54 -> 0 | B54: =IF(ข้อมูลนักเรียน!B54=0,"",ข้อมูลนักเรียน!B54) ->  | C54: =IF(ข้อมูลนักเรียน!C54=0,"",ข้อมูลนักเรียน!C54) ->  | D54: =IF(ข้อมูลนักเรียน!C54=0,"",ข้อมูลนักเรียน!D54 & ข้อมูลนักเรียน!E54 & " "& ข้อมูลนักเรียน!F54) ->  | E54: =IF(ข้อมูลนักเรียน!C54=0,"",ข้อมูลนักเรียน!G54) ->  | F54: =ข้อมูลนักเรียน!B54 -> 0 | AG54: ผ่าน | AH54: 0 | AJ54: ปรับปรุง | AL54: 23
A55: =ข้อมูลนักเรียน!A55 -> 0 | B55: =IF(ข้อมูลนักเรียน!B55=0,"",ข้อมูลนักเรียน!B55) ->  | C55: =IF(ข้อมูลนักเรียน!C55=0,"",ข้อมูลนักเรียน!C55) ->  | D55: =IF(ข้อมูลนักเรียน!C55=0,"",ข้อมูลนักเรียน!D55 & ข้อมูลนักเรียน!E55 & " "& ข้อมูลนักเรียน!F55) ->  | E55: =IF(ข้อมูลนักเรียน!C55=0,"",ข้อมูลนักเรียน!G55) ->  | F55: =ข้อมูลนักเรียน!B55 -> 0 | AG55: ผ่าน | AH55: 0 | AJ55: ปรับปรุง | AL55: 23
A56: =ข้อมูลนักเรียน!A56 -> 0 | B56: =IF(ข้อมูลนักเรียน!B56=0,"",ข้อมูลนักเรียน!B56) ->  | C56: =IF(ข้อมูลนักเรียน!C56=0,"",ข้อมูลนักเรียน!C56) ->  | D56: =IF(ข้อมูลนักเรียน!C56=0,"",ข้อมูลนักเรียน!D56 & ข้อมูลนักเรียน!E56 & " "& ข้อมูลนักเรียน!F56) ->  | E56: =IF(ข้อมูลนักเรียน!C56=0,"",ข้อมูลนักเรียน!G56) ->  | F56: =ข้อมูลนักเรียน!B56 -> 0 | AG56: ผ่าน | AH56: 0 | AJ56: ปรับปรุง | AL56: 23
A57: =ข้อมูลนักเรียน!A57 -> 0 | B57: =IF(ข้อมูลนักเรียน!B57=0,"",ข้อมูลนักเรียน!B57) ->  | C57: =IF(ข้อมูลนักเรียน!C57=0,"",ข้อมูลนักเรียน!C57) ->  | D57: =IF(ข้อมูลนักเรียน!C57=0,"",ข้อมูลนักเรียน!D57 & ข้อมูลนักเรียน!E57 & " "& ข้อมูลนักเรียน!F57) ->  | E57: =IF(ข้อมูลนักเรียน!C57=0,"",ข้อมูลนักเรียน!G57) ->  | F57: =ข้อมูลนักเรียน!B57 -> 0 | AG57: ผ่าน | AH57: 0 | AJ57: ปรับปรุง | AL57: 23
A58: =ข้อมูลนักเรียน!A58 -> 0 | B58: =IF(ข้อมูลนักเรียน!B58=0,"",ข้อมูลนักเรียน!B58) ->  | C58: =IF(ข้อมูลนักเรียน!C58=0,"",ข้อมูลนักเรียน!C58) ->  | D58: =IF(ข้อมูลนักเรียน!C58=0,"",ข้อมูลนักเรียน!D58 & ข้อมูลนักเรียน!E58 & " "& ข้อมูลนักเรียน!F58) ->  | E58: =IF(ข้อมูลนักเรียน!C58=0,"",ข้อมูลนักเรียน!G58) ->  | F58: =ข้อมูลนักเรียน!B58 -> 0 | AG58: ผ่าน | AH58: 0 | AJ58: ปรับปรุง | AL58: 23
A59: =ข้อมูลนักเรียน!A59 -> 0 | B59: =IF(ข้อมูลนักเรียน!B59=0,"",ข้อมูลนักเรียน!B59) ->  | C59: =IF(ข้อมูลนักเรียน!C59=0,"",ข้อมูลนักเรียน!C59) ->  | D59: =IF(ข้อมูลนักเรียน!C59=0,"",ข้อมูลนักเรียน!D59 & ข้อมูลนักเรียน!E59 & " "& ข้อมูลนักเรียน!F59) ->  | E59: =IF(ข้อมูลนักเรียน!C59=0,"",ข้อมูลนักเรียน!G59) ->  | F59: =ข้อมูลนักเรียน!B59 -> 0 | AG59: ผ่าน | AH59: 0 | AJ59: ปรับปรุง | AL59: 23
A60: =ข้อมูลนักเรียน!A60 -> 0 | B60: =IF(ข้อมูลนักเรียน!B60=0,"",ข้อมูลนักเรียน!B60) ->  | C60: =IF(ข้อมูลนักเรียน!C60=0,"",ข้อมูลนักเรียน!C60) ->  | D60: =IF(ข้อมูลนักเรียน!C60=0,"",ข้อมูลนักเรียน!D60 & ข้อมูลนักเรียน!E60 & " "& ข้อมูลนักเรียน!F60) ->  | E60: =IF(ข้อมูลนักเรียน!C60=0,"",ข้อมูลนักเรียน!G60) ->  | F60: =ข้อมูลนักเรียน!B60 -> 0 | AG60: ผ่าน | AH60: 0 | AJ60: ปรับปรุง | AL60: 23
A61: =ข้อมูลนักเรียน!A61 -> 0 | B61: =IF(ข้อมูลนักเรียน!B61=0,"",ข้อมูลนักเรียน!B61) ->  | C61: =IF(ข้อมูลนักเรียน!C61=0,"",ข้อมูลนักเรียน!C61) ->  | D61: =IF(ข้อมูลนักเรียน!C61=0,"",ข้อมูลนักเรียน!D61 & ข้อมูลนักเรียน!E61 & " "& ข้อมูลนักเรียน!F61) ->  | E61: =IF(ข้อมูลนักเรียน!C61=0,"",ข้อมูลนักเรียน!G61) ->  | F61: =ข้อมูลนักเรียน!B61 -> 0 | AG61: ผ่าน | AH61: 0 | AJ61: ปรับปรุง | AL61: 23
A62: =ข้อมูลนักเรียน!A62 -> 0 | B62: =IF(ข้อมูลนักเรียน!B62=0,"",ข้อมูลนักเรียน!B62) ->  | C62: =IF(ข้อมูลนักเรียน!C62=0,"",ข้อมูลนักเรียน!C62) ->  | D62: =IF(ข้อมูลนักเรียน!C62=0,"",ข้อมูลนักเรียน!D62 & ข้อมูลนักเรียน!E62 & " "& ข้อมูลนักเรียน!F62) ->  | E62: =IF(ข้อมูลนักเรียน!C62=0,"",ข้อมูลนักเรียน!G62) ->  | F62: =ข้อมูลนักเรียน!B62 -> 0 | AG62: ผ่าน | AH62: 0 | AJ62: ปรับปรุง | AL62: 23
A63: =ข้อมูลนักเรียน!A63 -> 0 | B63: =IF(ข้อมูลนักเรียน!B63=0,"",ข้อมูลนักเรียน!B63) ->  | C63: =IF(ข้อมูลนักเรียน!C63=0,"",ข้อมูลนักเรียน!C63) ->  | D63: =IF(ข้อมูลนักเรียน!C63=0,"",ข้อมูลนักเรียน!D63 & ข้อมูลนักเรียน!E63 & " "& ข้อมูลนักเรียน!F63) ->  | E63: =IF(ข้อมูลนักเรียน!C63=0,"",ข้อมูลนักเรียน!G63) ->  | F63: =ข้อมูลนักเรียน!B63 -> 0 | AG63: ผ่าน | AH63: 0 | AJ63: ปรับปรุง | AL63: 23
A64: =ข้อมูลนักเรียน!A64 -> 0 | B64: =IF(ข้อมูลนักเรียน!B64=0,"",ข้อมูลนักเรียน!B64) ->  | C64: =IF(ข้อมูลนักเรียน!C64=0,"",ข้อมูลนักเรียน!C64) ->  | D64: =IF(ข้อมูลนักเรียน!C64=0,"",ข้อมูลนักเรียน!D64 & ข้อมูลนักเรียน!E64 & " "& ข้อมูลนักเรียน!F64) ->  | E64: =IF(ข้อมูลนักเรียน!C64=0,"",ข้อมูลนักเรียน!G64) ->  | F64: =ข้อมูลนักเรียน!B64 -> 0 | AG64: ผ่าน | AH64: 0 | AJ64: ปรับปรุง | AL64: 23
A65: =ข้อมูลนักเรียน!A65 -> 0 | B65: =IF(ข้อมูลนักเรียน!B65=0,"",ข้อมูลนักเรียน!B65) ->  | C65: =IF(ข้อมูลนักเรียน!C65=0,"",ข้อมูลนักเรียน!C65) ->  | D65: =IF(ข้อมูลนักเรียน!C65=0,"",ข้อมูลนักเรียน!D65 & ข้อมูลนักเรียน!E65 & " "& ข้อมูลนักเรียน!F65) ->  | E65: =IF(ข้อมูลนักเรียน!C65=0,"",ข้อมูลนักเรียน!G65) ->  | F65: =ข้อมูลนักเรียน!B65 -> 0 | AG65: ผ่าน | AH65: 0 | AJ65: ปรับปรุง | AL65: 23
A66: =ข้อมูลนักเรียน!A66 -> 0 | B66: =IF(ข้อมูลนักเรียน!B66=0,"",ข้อมูลนักเรียน!B66) ->  | C66: =IF(ข้อมูลนักเรียน!C66=0,"",ข้อมูลนักเรียน!C66) ->  | D66: =IF(ข้อมูลนักเรียน!C66=0,"",ข้อมูลนักเรียน!D66 & ข้อมูลนักเรียน!E66 & " "& ข้อมูลนักเรียน!F66) ->  | E66: =IF(ข้อมูลนักเรียน!C66=0,"",ข้อมูลนักเรียน!G66) ->  | F66: =ข้อมูลนักเรียน!B66 -> 0 | AG66: ผ่าน | AH66: 0 | AJ66: ปรับปรุง | AL66: 23
A67: =ข้อมูลนักเรียน!A67 -> 0 | B67: =IF(ข้อมูลนักเรียน!B67=0,"",ข้อมูลนักเรียน!B67) ->  | C67: =IF(ข้อมูลนักเรียน!C67=0,"",ข้อมูลนักเรียน!C67) ->  | D67: =IF(ข้อมูลนักเรียน!C67=0,"",ข้อมูลนักเรียน!D67 & ข้อมูลนักเรียน!E67 & " "& ข้อมูลนักเรียน!F67) ->  | E67: =IF(ข้อมูลนักเรียน!C67=0,"",ข้อมูลนักเรียน!G67) ->  | F67: =ข้อมูลนักเรียน!B67 -> 0 | AG67: ผ่าน | AH67: 0 | AJ67: ปรับปรุง | AL67: 23
A68: =ข้อมูลนักเรียน!A68 -> 0 | B68: =IF(ข้อมูลนักเรียน!B68=0,"",ข้อมูลนักเรียน!B68) ->  | C68: =IF(ข้อมูลนักเรียน!C68=0,"",ข้อมูลนักเรียน!C68) ->  | D68: =IF(ข้อมูลนักเรียน!C68=0,"",ข้อมูลนักเรียน!D68 & ข้อมูลนักเรียน!E68 & " "& ข้อมูลนักเรียน!F68) ->  | E68: =IF(ข้อมูลนักเรียน!C68=0,"",ข้อมูลนักเรียน!G68) ->  | F68: =ข้อมูลนักเรียน!B68 -> 0 | AG68: ผ่าน | AH68: 0 | AJ68: ปรับปรุง | AL68: 23
A69: =ข้อมูลนักเรียน!A69 -> 0 | B69: =IF(ข้อมูลนักเรียน!B69=0,"",ข้อมูลนักเรียน!B69) ->  | C69: =IF(ข้อมูลนักเรียน!C69=0,"",ข้อมูลนักเรียน!C69) ->  | D69: =IF(ข้อมูลนักเรียน!C69=0,"",ข้อมูลนักเรียน!D69 & ข้อมูลนักเรียน!E69 & " "& ข้อมูลนักเรียน!F69) ->  | E69: =IF(ข้อมูลนักเรียน!C69=0,"",ข้อมูลนักเรียน!G69) ->  | F69: =ข้อมูลนักเรียน!B69 -> 0 | AG69: ผ่าน | AH69: 0 | AJ69: ปรับปรุง | AL69: 23
A70: =ข้อมูลนักเรียน!A70 -> 0 | B70: =IF(ข้อมูลนักเรียน!B70=0,"",ข้อมูลนักเรียน!B70) ->  | C70: =IF(ข้อมูลนักเรียน!C70=0,"",ข้อมูลนักเรียน!C70) ->  | D70: =IF(ข้อมูลนักเรียน!C70=0,"",ข้อมูลนักเรียน!D70 & ข้อมูลนักเรียน!E70 & " "& ข้อมูลนักเรียน!F70) ->  | E70: =IF(ข้อมูลนักเรียน!C70=0,"",ข้อมูลนักเรียน!G70) ->  | F70: =ข้อมูลนักเรียน!B70 -> 0 | AG70: ผ่าน | AH70: 0 | AJ70: ปรับปรุง | AL70: 23
A71: =ข้อมูลนักเรียน!A71 -> 0 | B71: =IF(ข้อมูลนักเรียน!B71=0,"",ข้อมูลนักเรียน!B71) ->  | C71: =IF(ข้อมูลนักเรียน!C71=0,"",ข้อมูลนักเรียน!C71) ->  | D71: =IF(ข้อมูลนักเรียน!C71=0,"",ข้อมูลนักเรียน!D71 & ข้อมูลนักเรียน!E71 & " "& ข้อมูลนักเรียน!F71) ->  | E71: =IF(ข้อมูลนักเรียน!C71=0,"",ข้อมูลนักเรียน!G71) ->  | F71: =ข้อมูลนักเรียน!B71 -> 0 | AG71: ผ่าน | AH71: 0 | AJ71: ปรับปรุง | AL71: 23
A72: =ข้อมูลนักเรียน!A72 -> 0 | B72: =IF(ข้อมูลนักเรียน!B72=0,"",ข้อมูลนักเรียน!B72) ->  | C72: =IF(ข้อมูลนักเรียน!C72=0,"",ข้อมูลนักเรียน!C72) ->  | D72: =IF(ข้อมูลนักเรียน!C72=0,"",ข้อมูลนักเรียน!D72 & ข้อมูลนักเรียน!E72 & " "& ข้อมูลนักเรียน!F72) ->  | E72: =IF(ข้อมูลนักเรียน!C72=0,"",ข้อมูลนักเรียน!G72) ->  | F72: =ข้อมูลนักเรียน!B72 -> 0 | AG72: ผ่าน | AH72: 0 | AJ72: ปรับปรุง | AL72: 23
A73: =ข้อมูลนักเรียน!A73 -> 0 | B73: =IF(ข้อมูลนักเรียน!B73=0,"",ข้อมูลนักเรียน!B73) ->  | C73: =IF(ข้อมูลนักเรียน!C73=0,"",ข้อมูลนักเรียน!C73) ->  | D73: =IF(ข้อมูลนักเรียน!C73=0,"",ข้อมูลนักเรียน!D73 & ข้อมูลนักเรียน!E73 & " "& ข้อมูลนักเรียน!F73) ->  | E73: =IF(ข้อมูลนักเรียน!C73=0,"",ข้อมูลนักเรียน!G73) ->  | F73: =ข้อมูลนักเรียน!B73 -> 0 | AG73: =IF(COUNTIFS(Z73:AD73,"=มผ") > 0,"ไม่ผ่าน","ผ่าน") -> ผ่าน | AH73: =ROUNDDOWN(0,2) -> 0 | AJ73: =IF(AF73=1,"ผ่าน",IF(AF73=2,"ดี",IF(AF73=3,"ดีเยี่ยม","ปรับปรุง"))) -> ปรับปรุง | AL73: 23
A74: =ข้อมูลนักเรียน!A74 -> 0 | B74: =IF(ข้อมูลนักเรียน!B74=0,"",ข้อมูลนักเรียน!B74) ->  | C74: =IF(ข้อมูลนักเรียน!C74=0,"",ข้อมูลนักเรียน!C74) ->  | D74: =IF(ข้อมูลนักเรียน!C74=0,"",ข้อมูลนักเรียน!D74 & ข้อมูลนักเรียน!E74 & " "& ข้อมูลนักเรียน!F74) ->  | E74: =IF(ข้อมูลนักเรียน!C74=0,"",ข้อมูลนักเรียน!G74) ->  | F74: =ข้อมูลนักเรียน!B74 -> 0 | AG74: ผ่าน | AH74: 0 | AJ74: ปรับปรุง | AL74: 23
A75: =ข้อมูลนักเรียน!A75 -> 0 | B75: =IF(ข้อมูลนักเรียน!B75=0,"",ข้อมูลนักเรียน!B75) ->  | C75: =IF(ข้อมูลนักเรียน!C75=0,"",ข้อมูลนักเรียน!C75) ->  | D75: =IF(ข้อมูลนักเรียน!C75=0,"",ข้อมูลนักเรียน!D75 & ข้อมูลนักเรียน!E75 & " "& ข้อมูลนักเรียน!F75) ->  | E75: =IF(ข้อมูลนักเรียน!C75=0,"",ข้อมูลนักเรียน!G75) ->  | F75: =ข้อมูลนักเรียน!B75 -> 0 | AG75: ผ่าน | AH75: 0 | AJ75: ปรับปรุง | AL75: 23
A76: =ข้อมูลนักเรียน!A76 -> 0 | B76: =IF(ข้อมูลนักเรียน!B76=0,"",ข้อมูลนักเรียน!B76) ->  | C76: =IF(ข้อมูลนักเรียน!C76=0,"",ข้อมูลนักเรียน!C76) ->  | D76: =IF(ข้อมูลนักเรียน!C76=0,"",ข้อมูลนักเรียน!D76 & ข้อมูลนักเรียน!E76 & " "& ข้อมูลนักเรียน!F76) ->  | E76: =IF(ข้อมูลนักเรียน!C76=0,"",ข้อมูลนักเรียน!G76) ->  | F76: =ข้อมูลนักเรียน!B76 -> 0 | AG76: ผ่าน | AH76: 0 | AJ76: ปรับปรุง | AL76: 23
A77: =ข้อมูลนักเรียน!A77 -> 0 | B77: =IF(ข้อมูลนักเรียน!B77=0,"",ข้อมูลนักเรียน!B77) ->  | C77: =IF(ข้อมูลนักเรียน!C77=0,"",ข้อมูลนักเรียน!C77) ->  | D77: =IF(ข้อมูลนักเรียน!C77=0,"",ข้อมูลนักเรียน!D77 & ข้อมูลนักเรียน!E77 & " "& ข้อมูลนักเรียน!F77) ->  | E77: =IF(ข้อมูลนักเรียน!C77=0,"",ข้อมูลนักเรียน!G77) ->  | F77: =ข้อมูลนักเรียน!B77 -> 0 | AG77: ผ่าน | AH77: 0 | AJ77: ปรับปรุง | AL77: 23
A78: =ข้อมูลนักเรียน!A78 -> 0 | B78: =IF(ข้อมูลนักเรียน!B78=0,"",ข้อมูลนักเรียน!B78) ->  | C78: =IF(ข้อมูลนักเรียน!C78=0,"",ข้อมูลนักเรียน!C78) ->  | D78: =IF(ข้อมูลนักเรียน!C78=0,"",ข้อมูลนักเรียน!D78 & ข้อมูลนักเรียน!E78 & " "& ข้อมูลนักเรียน!F78) ->  | E78: =IF(ข้อมูลนักเรียน!C78=0,"",ข้อมูลนักเรียน!G78) ->  | F78: =ข้อมูลนักเรียน!B78 -> 0 | AG78: ผ่าน | AH78: 0 | AJ78: ปรับปรุง | AL78: 23
A79: =ข้อมูลนักเรียน!A79 -> 0 | B79: =IF(ข้อมูลนักเรียน!B79=0,"",ข้อมูลนักเรียน!B79) ->  | C79: =IF(ข้อมูลนักเรียน!C79=0,"",ข้อมูลนักเรียน!C79) ->  | D79: =IF(ข้อมูลนักเรียน!C79=0,"",ข้อมูลนักเรียน!D79 & ข้อมูลนักเรียน!E79 & " "& ข้อมูลนักเรียน!F79) ->  | E79: =IF(ข้อมูลนักเรียน!C79=0,"",ข้อมูลนักเรียน!G79) ->  | F79: =ข้อมูลนักเรียน!B79 -> 0 | AG79: ผ่าน | AH79: 0 | AJ79: ปรับปรุง | AL79: 23
A80: =ข้อมูลนักเรียน!A80 -> 0 | B80: =IF(ข้อมูลนักเรียน!B80=0,"",ข้อมูลนักเรียน!B80) ->  | C80: =IF(ข้อมูลนักเรียน!C80=0,"",ข้อมูลนักเรียน!C80) ->  | D80: =IF(ข้อมูลนักเรียน!C80=0,"",ข้อมูลนักเรียน!D80 & ข้อมูลนักเรียน!E80 & " "& ข้อมูลนักเรียน!F80) ->  | E80: =IF(ข้อมูลนักเรียน!C80=0,"",ข้อมูลนักเรียน!G80) ->  | F80: =ข้อมูลนักเรียน!B80 -> 0 | AG80: ผ่าน | AH80: 0 | AJ80: ปรับปรุง | AL80: 23
A81: =ข้อมูลนักเรียน!A81 -> 0 | B81: =IF(ข้อมูลนักเรียน!B81=0,"",ข้อมูลนักเรียน!B81) ->  | C81: =IF(ข้อมูลนักเรียน!C81=0,"",ข้อมูลนักเรียน!C81) ->  | D81: =IF(ข้อมูลนักเรียน!C81=0,"",ข้อมูลนักเรียน!D81 & ข้อมูลนักเรียน!E81 & " "& ข้อมูลนักเรียน!F81) ->  | E81: =IF(ข้อมูลนักเรียน!C81=0,"",ข้อมูลนักเรียน!G81) ->  | F81: =ข้อมูลนักเรียน!B81 -> 0 | AG81: ผ่าน | AH81: 0 | AJ81: ปรับปรุง | AL81: 23
A82: =ข้อมูลนักเรียน!A82 -> 0 | B82: =IF(ข้อมูลนักเรียน!B82=0,"",ข้อมูลนักเรียน!B82) ->  | C82: =IF(ข้อมูลนักเรียน!C82=0,"",ข้อมูลนักเรียน!C82) ->  | D82: =IF(ข้อมูลนักเรียน!C82=0,"",ข้อมูลนักเรียน!D82 & ข้อมูลนักเรียน!E82 & " "& ข้อมูลนักเรียน!F82) ->  | E82: =IF(ข้อมูลนักเรียน!C82=0,"",ข้อมูลนักเรียน!G82) ->  | F82: =ข้อมูลนักเรียน!B82 -> 0 | AG82: ผ่าน | AH82: 0 | AJ82: ปรับปรุง | AL82: 23
A83: =ข้อมูลนักเรียน!A83 -> 0 | B83: =IF(ข้อมูลนักเรียน!B83=0,"",ข้อมูลนักเรียน!B83) ->  | C83: =IF(ข้อมูลนักเรียน!C83=0,"",ข้อมูลนักเรียน!C83) ->  | D83: =IF(ข้อมูลนักเรียน!C83=0,"",ข้อมูลนักเรียน!D83 & ข้อมูลนักเรียน!E83 & " "& ข้อมูลนักเรียน!F83) ->  | E83: =IF(ข้อมูลนักเรียน!C83=0,"",ข้อมูลนักเรียน!G83) ->  | F83: =ข้อมูลนักเรียน!B83 -> 0 | AG83: ผ่าน | AH83: 0 | AJ83: ปรับปรุง | AL83: 23
A84: =ข้อมูลนักเรียน!A84 -> 0 | B84: =IF(ข้อมูลนักเรียน!B84=0,"",ข้อมูลนักเรียน!B84) ->  | C84: =IF(ข้อมูลนักเรียน!C84=0,"",ข้อมูลนักเรียน!C84) ->  | D84: =IF(ข้อมูลนักเรียน!C84=0,"",ข้อมูลนักเรียน!D84 & ข้อมูลนักเรียน!E84 & " "& ข้อมูลนักเรียน!F84) ->  | E84: =IF(ข้อมูลนักเรียน!C84=0,"",ข้อมูลนักเรียน!G84) ->  | F84: =ข้อมูลนักเรียน!B84 -> 0 | AG84: ผ่าน | AH84: 0 | AJ84: ปรับปรุง | AL84: 23
A85: =ข้อมูลนักเรียน!A85 -> 0 | B85: =IF(ข้อมูลนักเรียน!B85=0,"",ข้อมูลนักเรียน!B85) ->  | C85: =IF(ข้อมูลนักเรียน!C85=0,"",ข้อมูลนักเรียน!C85) ->  | D85: =IF(ข้อมูลนักเรียน!C85=0,"",ข้อมูลนักเรียน!D85 & ข้อมูลนักเรียน!E85 & " "& ข้อมูลนักเรียน!F85) ->  | E85: =IF(ข้อมูลนักเรียน!C85=0,"",ข้อมูลนักเรียน!G85) ->  | F85: =ข้อมูลนักเรียน!B85 -> 0 | AG85: ผ่าน | AH85: 0 | AJ85: ปรับปรุง | AL85: 23
A86: =ข้อมูลนักเรียน!A86 -> 0 | B86: =IF(ข้อมูลนักเรียน!B86=0,"",ข้อมูลนักเรียน!B86) ->  | C86: =IF(ข้อมูลนักเรียน!C86=0,"",ข้อมูลนักเรียน!C86) ->  | D86: =IF(ข้อมูลนักเรียน!C86=0,"",ข้อมูลนักเรียน!D86 & ข้อมูลนักเรียน!E86 & " "& ข้อมูลนักเรียน!F86) ->  | E86: =IF(ข้อมูลนักเรียน!C86=0,"",ข้อมูลนักเรียน!G86) ->  | F86: =ข้อมูลนักเรียน!B86 -> 0 | AG86: ผ่าน | AH86: 0 | AJ86: ปรับปรุง | AL86: 23
A87: =ข้อมูลนักเรียน!A87 -> 0 | B87: =IF(ข้อมูลนักเรียน!B87=0,"",ข้อมูลนักเรียน!B87) ->  | C87: =IF(ข้อมูลนักเรียน!C87=0,"",ข้อมูลนักเรียน!C87) ->  | D87: =IF(ข้อมูลนักเรียน!C87=0,"",ข้อมูลนักเรียน!D87 & ข้อมูลนักเรียน!E87 & " "& ข้อมูลนักเรียน!F87) ->  | E87: =IF(ข้อมูลนักเรียน!C87=0,"",ข้อมูลนักเรียน!G87) ->  | F87: =ข้อมูลนักเรียน!B87 -> 0 | AG87: ผ่าน | AH87: 0 | AJ87: ปรับปรุง | AL87: 23
A88: =ข้อมูลนักเรียน!A88 -> 0 | B88: =IF(ข้อมูลนักเรียน!B88=0,"",ข้อมูลนักเรียน!B88) ->  | C88: =IF(ข้อมูลนักเรียน!C88=0,"",ข้อมูลนักเรียน!C88) ->  | D88: =IF(ข้อมูลนักเรียน!C88=0,"",ข้อมูลนักเรียน!D88 & ข้อมูลนักเรียน!E88 & " "& ข้อมูลนักเรียน!F88) ->  | E88: =IF(ข้อมูลนักเรียน!C88=0,"",ข้อมูลนักเรียน!G88) ->  | F88: =ข้อมูลนักเรียน!B88 -> 0 | AG88: ผ่าน | AH88: 0 | AJ88: ปรับปรุง | AL88: 23
A89: =ข้อมูลนักเรียน!A89 -> 0 | B89: =IF(ข้อมูลนักเรียน!B89=0,"",ข้อมูลนักเรียน!B89) ->  | C89: =IF(ข้อมูลนักเรียน!C89=0,"",ข้อมูลนักเรียน!C89) ->  | D89: =IF(ข้อมูลนักเรียน!C89=0,"",ข้อมูลนักเรียน!D89 & ข้อมูลนักเรียน!E89 & " "& ข้อมูลนักเรียน!F89) ->  | E89: =IF(ข้อมูลนักเรียน!C89=0,"",ข้อมูลนักเรียน!G89) ->  | F89: =ข้อมูลนักเรียน!B89 -> 0 | AG89: ผ่าน | AH89: 0 | AJ89: ปรับปรุง | AL89: 23
A90: =ข้อมูลนักเรียน!A90 -> 0 | B90: =IF(ข้อมูลนักเรียน!B90=0,"",ข้อมูลนักเรียน!B90) ->  | C90: =IF(ข้อมูลนักเรียน!C90=0,"",ข้อมูลนักเรียน!C90) ->  | D90: =IF(ข้อมูลนักเรียน!C90=0,"",ข้อมูลนักเรียน!D90 & ข้อมูลนักเรียน!E90 & " "& ข้อมูลนักเรียน!F90) ->  | E90: =IF(ข้อมูลนักเรียน!C90=0,"",ข้อมูลนักเรียน!G90) ->  | F90: =ข้อมูลนักเรียน!B90 -> 0 | AG90: ผ่าน | AH90: 0 | AJ90: ปรับปรุง | AL90: 23
A91: =ข้อมูลนักเรียน!A91 -> 0 | B91: =IF(ข้อมูลนักเรียน!B91=0,"",ข้อมูลนักเรียน!B91) ->  | C91: =IF(ข้อมูลนักเรียน!C91=0,"",ข้อมูลนักเรียน!C91) ->  | D91: =IF(ข้อมูลนักเรียน!C91=0,"",ข้อมูลนักเรียน!D91 & ข้อมูลนักเรียน!E91 & " "& ข้อมูลนักเรียน!F91) ->  | E91: =IF(ข้อมูลนักเรียน!C91=0,"",ข้อมูลนักเรียน!G91) ->  | F91: =ข้อมูลนักเรียน!B91 -> 0 | AG91: ผ่าน | AH91: 0 | AJ91: ปรับปรุง | AL91: 23
A92: =ข้อมูลนักเรียน!A92 -> 0 | B92: =IF(ข้อมูลนักเรียน!B92=0,"",ข้อมูลนักเรียน!B92) ->  | C92: =IF(ข้อมูลนักเรียน!C92=0,"",ข้อมูลนักเรียน!C92) ->  | D92: =IF(ข้อมูลนักเรียน!C92=0,"",ข้อมูลนักเรียน!D92 & ข้อมูลนักเรียน!E92 & " "& ข้อมูลนักเรียน!F92) ->  | E92: =IF(ข้อมูลนักเรียน!C92=0,"",ข้อมูลนักเรียน!G92) ->  | F92: =ข้อมูลนักเรียน!B92 -> 0 | AG92: ผ่าน | AH92: 0 | AJ92: ปรับปรุง | AL92: 23
A93: =ข้อมูลนักเรียน!A93 -> 0 | B93: =IF(ข้อมูลนักเรียน!B93=0,"",ข้อมูลนักเรียน!B93) ->  | C93: =IF(ข้อมูลนักเรียน!C93=0,"",ข้อมูลนักเรียน!C93) ->  | D93: =IF(ข้อมูลนักเรียน!C93=0,"",ข้อมูลนักเรียน!D93 & ข้อมูลนักเรียน!E93 & " "& ข้อมูลนักเรียน!F93) ->  | E93: =IF(ข้อมูลนักเรียน!C93=0,"",ข้อมูลนักเรียน!G93) ->  | F93: =ข้อมูลนักเรียน!B93 -> 0 | AG93: ผ่าน | AH93: 0 | AJ93: ปรับปรุง | AL93: 23
A94: =ข้อมูลนักเรียน!A94 -> 0 | B94: =IF(ข้อมูลนักเรียน!B94=0,"",ข้อมูลนักเรียน!B94) ->  | C94: =IF(ข้อมูลนักเรียน!C94=0,"",ข้อมูลนักเรียน!C94) ->  | D94: =IF(ข้อมูลนักเรียน!C94=0,"",ข้อมูลนักเรียน!D94 & ข้อมูลนักเรียน!E94 & " "& ข้อมูลนักเรียน!F94) ->  | E94: =IF(ข้อมูลนักเรียน!C94=0,"",ข้อมูลนักเรียน!G94) ->  | F94: =ข้อมูลนักเรียน!B94 -> 0 | AG94: ผ่าน | AH94: 0 | AJ94: ปรับปรุง | AL94: 23
A95: =ข้อมูลนักเรียน!A95 -> 0 | B95: =IF(ข้อมูลนักเรียน!B95=0,"",ข้อมูลนักเรียน!B95) ->  | C95: =IF(ข้อมูลนักเรียน!C95=0,"",ข้อมูลนักเรียน!C95) ->  | D95: =IF(ข้อมูลนักเรียน!C95=0,"",ข้อมูลนักเรียน!D95 & ข้อมูลนักเรียน!E95 & " "& ข้อมูลนักเรียน!F95) ->  | E95: =IF(ข้อมูลนักเรียน!C95=0,"",ข้อมูลนักเรียน!G95) ->  | F95: =ข้อมูลนักเรียน!B95 -> 0 | AG95: ผ่าน | AH95: 0 | AJ95: ปรับปรุง | AL95: 23
A96: =ข้อมูลนักเรียน!A96 -> 0 | B96: =IF(ข้อมูลนักเรียน!B96=0,"",ข้อมูลนักเรียน!B96) ->  | C96: =IF(ข้อมูลนักเรียน!C96=0,"",ข้อมูลนักเรียน!C96) ->  | D96: =IF(ข้อมูลนักเรียน!C96=0,"",ข้อมูลนักเรียน!D96 & ข้อมูลนักเรียน!E96 & " "& ข้อมูลนักเรียน!F96) ->  | E96: =IF(ข้อมูลนักเรียน!C96=0,"",ข้อมูลนักเรียน!G96) ->  | F96: =ข้อมูลนักเรียน!B96 -> 0 | AG96: ผ่าน | AH96: 0 | AJ96: ปรับปรุง | AL96: 23
A97: =ข้อมูลนักเรียน!A97 -> 0 | B97: =IF(ข้อมูลนักเรียน!B97=0,"",ข้อมูลนักเรียน!B97) ->  | C97: =IF(ข้อมูลนักเรียน!C97=0,"",ข้อมูลนักเรียน!C97) ->  | D97: =IF(ข้อมูลนักเรียน!C97=0,"",ข้อมูลนักเรียน!D97 & ข้อมูลนักเรียน!E97 & " "& ข้อมูลนักเรียน!F97) ->  | E97: =IF(ข้อมูลนักเรียน!C97=0,"",ข้อมูลนักเรียน!G97) ->  | F97: =ข้อมูลนักเรียน!B97 -> 0 | AG97: ผ่าน | AH97: 0 | AJ97: ปรับปรุง | AL97: 23
A98: =ข้อมูลนักเรียน!A98 -> 0 | B98: =IF(ข้อมูลนักเรียน!B98=0,"",ข้อมูลนักเรียน!B98) ->  | C98: =IF(ข้อมูลนักเรียน!C98=0,"",ข้อมูลนักเรียน!C98) ->  | D98: =IF(ข้อมูลนักเรียน!C98=0,"",ข้อมูลนักเรียน!D98 & ข้อมูลนักเรียน!E98 & " "& ข้อมูลนักเรียน!F98) ->  | E98: =IF(ข้อมูลนักเรียน!C98=0,"",ข้อมูลนักเรียน!G98) ->  | F98: =ข้อมูลนักเรียน!B98 -> 0 | AG98: ผ่าน | AH98: 0 | AJ98: ปรับปรุง | AL98: 23
A99: =ข้อมูลนักเรียน!A99 -> 0 | B99: =IF(ข้อมูลนักเรียน!B99=0,"",ข้อมูลนักเรียน!B99) ->  | C99: =IF(ข้อมูลนักเรียน!C99=0,"",ข้อมูลนักเรียน!C99) ->  | D99: =IF(ข้อมูลนักเรียน!C99=0,"",ข้อมูลนักเรียน!D99 & ข้อมูลนักเรียน!E99 & " "& ข้อมูลนักเรียน!F99) ->  | E99: =IF(ข้อมูลนักเรียน!C99=0,"",ข้อมูลนักเรียน!G99) ->  | F99: =ข้อมูลนักเรียน!B99 -> 0 | AG99: ผ่าน | AH99: 0 | AJ99: ปรับปรุง | AL99: 23
A100: =ข้อมูลนักเรียน!A100 -> 0 | B100: =IF(ข้อมูลนักเรียน!B100=0,"",ข้อมูลนักเรียน!B100) ->  | C100: =IF(ข้อมูลนักเรียน!C100=0,"",ข้อมูลนักเรียน!C100) ->  | D100: =IF(ข้อมูลนักเรียน!C100=0,"",ข้อมูลนักเรียน!D100 & ข้อมูลนักเรียน!E100 & " "& ข้อมูลนักเรียน!F100) ->  | E100: =IF(ข้อมูลนักเรียน!C100=0,"",ข้อมูลนักเรียน!G100) ->  | F100: =ข้อมูลนักเรียน!B100 -> 0 | AG100: ผ่าน | AH100: 0 | AJ100: ปรับปรุง | AL100: 23
A101: =ข้อมูลนักเรียน!A101 -> 0 | B101: =IF(ข้อมูลนักเรียน!B101=0,"",ข้อมูลนักเรียน!B101) ->  | C101: =IF(ข้อมูลนักเรียน!C101=0,"",ข้อมูลนักเรียน!C101) ->  | D101: =IF(ข้อมูลนักเรียน!C101=0,"",ข้อมูลนักเรียน!D101 & ข้อมูลนักเรียน!E101 & " "& ข้อมูลนักเรียน!F101) ->  | E101: =IF(ข้อมูลนักเรียน!C101=0,"",ข้อมูลนักเรียน!G101) ->  | F101: =ข้อมูลนักเรียน!B101 -> 0 | AG101: ผ่าน | AH101: 0 | AJ101: ปรับปรุง | AL101: 23
A102: =ข้อมูลนักเรียน!A102 -> 0 | B102: =IF(ข้อมูลนักเรียน!B102=0,"",ข้อมูลนักเรียน!B102) ->  | C102: =IF(ข้อมูลนักเรียน!C102=0,"",ข้อมูลนักเรียน!C102) ->  | D102: =IF(ข้อมูลนักเรียน!C102=0,"",ข้อมูลนักเรียน!D102 & ข้อมูลนักเรียน!E102 & " "& ข้อมูลนักเรียน!F102) ->  | E102: =IF(ข้อมูลนักเรียน!C102=0,"",ข้อมูลนักเรียน!G102) ->  | F102: =ข้อมูลนักเรียน!B102 -> 0 | AG102: ผ่าน | AH102: 0 | AJ102: ปรับปรุง | AL102: 23
A103: =ข้อมูลนักเรียน!A103 -> 0 | B103: =IF(ข้อมูลนักเรียน!B103=0,"",ข้อมูลนักเรียน!B103) ->  | C103: =IF(ข้อมูลนักเรียน!C103=0,"",ข้อมูลนักเรียน!C103) ->  | D103: =IF(ข้อมูลนักเรียน!C103=0,"",ข้อมูลนักเรียน!D103 & ข้อมูลนักเรียน!E103 & " "& ข้อมูลนักเรียน!F103) ->  | E103: =IF(ข้อมูลนักเรียน!C103=0,"",ข้อมูลนักเรียน!G103) ->  | F103: =ข้อมูลนักเรียน!B103 -> 0 | AG103: ผ่าน | AH103: 0 | AJ103: ปรับปรุง | AL103: 23
A104: =ข้อมูลนักเรียน!A104 -> 0 | B104: =IF(ข้อมูลนักเรียน!B104=0,"",ข้อมูลนักเรียน!B104) ->  | C104: =IF(ข้อมูลนักเรียน!C104=0,"",ข้อมูลนักเรียน!C104) ->  | D104: =IF(ข้อมูลนักเรียน!C104=0,"",ข้อมูลนักเรียน!D104 & ข้อมูลนักเรียน!E104 & " "& ข้อมูลนักเรียน!F104) ->  | E104: =IF(ข้อมูลนักเรียน!C104=0,"",ข้อมูลนักเรียน!G104) ->  | F104: =ข้อมูลนักเรียน!B104 -> 0 | AG104: ผ่าน | AH104: 0 | AJ104: ปรับปรุง | AL104: 23
A105: =ข้อมูลนักเรียน!A105 -> 0 | B105: =IF(ข้อมูลนักเรียน!B105=0,"",ข้อมูลนักเรียน!B105) ->  | C105: =IF(ข้อมูลนักเรียน!C105=0,"",ข้อมูลนักเรียน!C105) ->  | D105: =IF(ข้อมูลนักเรียน!C105=0,"",ข้อมูลนักเรียน!D105 & ข้อมูลนักเรียน!E105 & " "& ข้อมูลนักเรียน!F105) ->  | E105: =IF(ข้อมูลนักเรียน!C105=0,"",ข้อมูลนักเรียน!G105) ->  | F105: =ข้อมูลนักเรียน!B105 -> 0 | AG105: ผ่าน | AH105: =ROUNDDOWN(0,2) -> 0 | AJ105: ปรับปรุง | AL105: 23
A106: =ข้อมูลนักเรียน!A106 -> 0 | B106: =IF(ข้อมูลนักเรียน!B106=0,"",ข้อมูลนักเรียน!B106) ->  | C106: =IF(ข้อมูลนักเรียน!C106=0,"",ข้อมูลนักเรียน!C106) ->  | D106: =IF(ข้อมูลนักเรียน!C106=0,"",ข้อมูลนักเรียน!D106 & ข้อมูลนักเรียน!E106 & " "& ข้อมูลนักเรียน!F106) ->  | E106: =IF(ข้อมูลนักเรียน!C106=0,"",ข้อมูลนักเรียน!G106) ->  | F106: =ข้อมูลนักเรียน!B106 -> 0 | AG106: ผ่าน | AH106: 0 | AJ106: ปรับปรุง | AL106: 23
A107: =ข้อมูลนักเรียน!A107 -> 0 | B107: =IF(ข้อมูลนักเรียน!B107=0,"",ข้อมูลนักเรียน!B107) ->  | C107: =IF(ข้อมูลนักเรียน!C107=0,"",ข้อมูลนักเรียน!C107) ->  | D107: =IF(ข้อมูลนักเรียน!C107=0,"",ข้อมูลนักเรียน!D107 & ข้อมูลนักเรียน!E107 & " "& ข้อมูลนักเรียน!F107) ->  | E107: =IF(ข้อมูลนักเรียน!C107=0,"",ข้อมูลนักเรียน!G107) ->  | F107: =ข้อมูลนักเรียน!B107 -> 0 | AG107: ผ่าน | AH107: 0 | AJ107: ปรับปรุง | AL107: 23
A108: =ข้อมูลนักเรียน!A108 -> 0 | B108: =IF(ข้อมูลนักเรียน!B108=0,"",ข้อมูลนักเรียน!B108) ->  | C108: =IF(ข้อมูลนักเรียน!C108=0,"",ข้อมูลนักเรียน!C108) ->  | D108: =IF(ข้อมูลนักเรียน!C108=0,"",ข้อมูลนักเรียน!D108 & ข้อมูลนักเรียน!E108 & " "& ข้อมูลนักเรียน!F108) ->  | E108: =IF(ข้อมูลนักเรียน!C108=0,"",ข้อมูลนักเรียน!G108) ->  | F108: =ข้อมูลนักเรียน!B108 -> 0 | AG108: ผ่าน | AH108: 0 | AJ108: ปรับปรุง | AL108: 23
A109: =ข้อมูลนักเรียน!A109 -> 0 | B109: =IF(ข้อมูลนักเรียน!B109=0,"",ข้อมูลนักเรียน!B109) ->  | C109: =IF(ข้อมูลนักเรียน!C109=0,"",ข้อมูลนักเรียน!C109) ->  | D109: =IF(ข้อมูลนักเรียน!C109=0,"",ข้อมูลนักเรียน!D109 & ข้อมูลนักเรียน!E109 & " "& ข้อมูลนักเรียน!F109) ->  | E109: =IF(ข้อมูลนักเรียน!C109=0,"",ข้อมูลนักเรียน!G109) ->  | F109: =ข้อมูลนักเรียน!B109 -> 0 | AG109: ผ่าน | AH109: 0 | AJ109: ปรับปรุง | AL109: 23
A110: =ข้อมูลนักเรียน!A110 -> 0 | B110: =IF(ข้อมูลนักเรียน!B110=0,"",ข้อมูลนักเรียน!B110) ->  | C110: =IF(ข้อมูลนักเรียน!C110=0,"",ข้อมูลนักเรียน!C110) ->  | D110: =IF(ข้อมูลนักเรียน!C110=0,"",ข้อมูลนักเรียน!D110 & ข้อมูลนักเรียน!E110 & " "& ข้อมูลนักเรียน!F110) ->  | E110: =IF(ข้อมูลนักเรียน!C110=0,"",ข้อมูลนักเรียน!G110) ->  | F110: =ข้อมูลนักเรียน!B110 -> 0 | AG110: ผ่าน | AH110: 0 | AJ110: ปรับปรุง | AL110: 23
A111: =ข้อมูลนักเรียน!A111 -> 0 | B111: =IF(ข้อมูลนักเรียน!B111=0,"",ข้อมูลนักเรียน!B111) ->  | C111: =IF(ข้อมูลนักเรียน!C111=0,"",ข้อมูลนักเรียน!C111) ->  | D111: =IF(ข้อมูลนักเรียน!C111=0,"",ข้อมูลนักเรียน!D111 & ข้อมูลนักเรียน!E111 & " "& ข้อมูลนักเรียน!F111) ->  | E111: =IF(ข้อมูลนักเรียน!C111=0,"",ข้อมูลนักเรียน!G111) ->  | F111: =ข้อมูลนักเรียน!B111 -> 0 | AG111: ผ่าน | AH111: 0 | AJ111: ปรับปรุง | AL111: 23
A112: =ข้อมูลนักเรียน!A112 -> 0 | B112: =IF(ข้อมูลนักเรียน!B112=0,"",ข้อมูลนักเรียน!B112) ->  | C112: =IF(ข้อมูลนักเรียน!C112=0,"",ข้อมูลนักเรียน!C112) ->  | D112: =IF(ข้อมูลนักเรียน!C112=0,"",ข้อมูลนักเรียน!D112 & ข้อมูลนักเรียน!E112 & " "& ข้อมูลนักเรียน!F112) ->  | E112: =IF(ข้อมูลนักเรียน!C112=0,"",ข้อมูลนักเรียน!G112) ->  | F112: =ข้อมูลนักเรียน!B112 -> 0 | AG112: ผ่าน | AH112: 0 | AJ112: ปรับปรุง | AL112: 23
A113: =ข้อมูลนักเรียน!A113 -> 0 | B113: =IF(ข้อมูลนักเรียน!B113=0,"",ข้อมูลนักเรียน!B113) ->  | C113: =IF(ข้อมูลนักเรียน!C113=0,"",ข้อมูลนักเรียน!C113) ->  | D113: =IF(ข้อมูลนักเรียน!C113=0,"",ข้อมูลนักเรียน!D113 & ข้อมูลนักเรียน!E113 & " "& ข้อมูลนักเรียน!F113) ->  | E113: =IF(ข้อมูลนักเรียน!C113=0,"",ข้อมูลนักเรียน!G113) ->  | F113: =ข้อมูลนักเรียน!B113 -> 0 | AG113: ผ่าน | AH113: 0 | AJ113: ปรับปรุง | AL113: 23
A114: =ข้อมูลนักเรียน!A114 -> 0 | B114: =IF(ข้อมูลนักเรียน!B114=0,"",ข้อมูลนักเรียน!B114) ->  | C114: =IF(ข้อมูลนักเรียน!C114=0,"",ข้อมูลนักเรียน!C114) ->  | D114: =IF(ข้อมูลนักเรียน!C114=0,"",ข้อมูลนักเรียน!D114 & ข้อมูลนักเรียน!E114 & " "& ข้อมูลนักเรียน!F114) ->  | E114: =IF(ข้อมูลนักเรียน!C114=0,"",ข้อมูลนักเรียน!G114) ->  | F114: =ข้อมูลนักเรียน!B114 -> 0 | AG114: ผ่าน | AH114: 0 | AJ114: ปรับปรุง | AL114: 23
A115: =ข้อมูลนักเรียน!A115 -> 0 | B115: =IF(ข้อมูลนักเรียน!B115=0,"",ข้อมูลนักเรียน!B115) ->  | C115: =IF(ข้อมูลนักเรียน!C115=0,"",ข้อมูลนักเรียน!C115) ->  | D115: =IF(ข้อมูลนักเรียน!C115=0,"",ข้อมูลนักเรียน!D115 & ข้อมูลนักเรียน!E115 & " "& ข้อมูลนักเรียน!F115) ->  | E115: =IF(ข้อมูลนักเรียน!C115=0,"",ข้อมูลนักเรียน!G115) ->  | F115: =ข้อมูลนักเรียน!B115 -> 0 | AG115: ผ่าน | AH115: 0 | AJ115: ปรับปรุง | AL115: 23
A116: =ข้อมูลนักเรียน!A116 -> 0 | B116: =IF(ข้อมูลนักเรียน!B116=0,"",ข้อมูลนักเรียน!B116) ->  | C116: =IF(ข้อมูลนักเรียน!C116=0,"",ข้อมูลนักเรียน!C116) ->  | D116: =IF(ข้อมูลนักเรียน!C116=0,"",ข้อมูลนักเรียน!D116 & ข้อมูลนักเรียน!E116 & " "& ข้อมูลนักเรียน!F116) ->  | E116: =IF(ข้อมูลนักเรียน!C116=0,"",ข้อมูลนักเรียน!G116) ->  | F116: =ข้อมูลนักเรียน!B116 -> 0 | AG116: ผ่าน | AH116: 0 | AJ116: ปรับปรุง | AL116: 23
A117: =ข้อมูลนักเรียน!A117 -> 0 | B117: =IF(ข้อมูลนักเรียน!B117=0,"",ข้อมูลนักเรียน!B117) ->  | C117: =IF(ข้อมูลนักเรียน!C117=0,"",ข้อมูลนักเรียน!C117) ->  | D117: =IF(ข้อมูลนักเรียน!C117=0,"",ข้อมูลนักเรียน!D117 & ข้อมูลนักเรียน!E117 & " "& ข้อมูลนักเรียน!F117) ->  | E117: =IF(ข้อมูลนักเรียน!C117=0,"",ข้อมูลนักเรียน!G117) ->  | F117: =ข้อมูลนักเรียน!B117 -> 0 | AG117: ผ่าน | AH117: 0 | AJ117: ปรับปรุง | AL117: 23
A118: =ข้อมูลนักเรียน!A118 -> 0 | B118: =IF(ข้อมูลนักเรียน!B118=0,"",ข้อมูลนักเรียน!B118) ->  | C118: =IF(ข้อมูลนักเรียน!C118=0,"",ข้อมูลนักเรียน!C118) ->  | D118: =IF(ข้อมูลนักเรียน!C118=0,"",ข้อมูลนักเรียน!D118 & ข้อมูลนักเรียน!E118 & " "& ข้อมูลนักเรียน!F118) ->  | E118: =IF(ข้อมูลนักเรียน!C118=0,"",ข้อมูลนักเรียน!G118) ->  | F118: =ข้อมูลนักเรียน!B118 -> 0 | AG118: ผ่าน | AH118: 0 | AJ118: ปรับปรุง | AL118: 23
A119: =ข้อมูลนักเรียน!A119 -> 0 | B119: =IF(ข้อมูลนักเรียน!B119=0,"",ข้อมูลนักเรียน!B119) ->  | C119: =IF(ข้อมูลนักเรียน!C119=0,"",ข้อมูลนักเรียน!C119) ->  | D119: =IF(ข้อมูลนักเรียน!C119=0,"",ข้อมูลนักเรียน!D119 & ข้อมูลนักเรียน!E119 & " "& ข้อมูลนักเรียน!F119) ->  | E119: =IF(ข้อมูลนักเรียน!C119=0,"",ข้อมูลนักเรียน!G119) ->  | F119: =ข้อมูลนักเรียน!B119 -> 0 | AG119: ผ่าน | AH119: 0 | AJ119: ปรับปรุง | AL119: 23
A120: =ข้อมูลนักเรียน!A120 -> 0 | B120: =IF(ข้อมูลนักเรียน!B120=0,"",ข้อมูลนักเรียน!B120) ->  | C120: =IF(ข้อมูลนักเรียน!C120=0,"",ข้อมูลนักเรียน!C120) ->  | D120: =IF(ข้อมูลนักเรียน!C120=0,"",ข้อมูลนักเรียน!D120 & ข้อมูลนักเรียน!E120 & " "& ข้อมูลนักเรียน!F120) ->  | E120: =IF(ข้อมูลนักเรียน!C120=0,"",ข้อมูลนักเรียน!G120) ->  | F120: =ข้อมูลนักเรียน!B120 -> 0 | AG120: ผ่าน | AH120: 0 | AJ120: ปรับปรุง | AL120: 23
A121: =ข้อมูลนักเรียน!A121 -> 0 | B121: =IF(ข้อมูลนักเรียน!B121=0,"",ข้อมูลนักเรียน!B121) ->  | C121: =IF(ข้อมูลนักเรียน!C121=0,"",ข้อมูลนักเรียน!C121) ->  | D121: =IF(ข้อมูลนักเรียน!C121=0,"",ข้อมูลนักเรียน!D121 & ข้อมูลนักเรียน!E121 & " "& ข้อมูลนักเรียน!F121) ->  | E121: =IF(ข้อมูลนักเรียน!C121=0,"",ข้อมูลนักเรียน!G121) ->  | F121: =ข้อมูลนักเรียน!B121 -> 0 | AG121: ผ่าน | AH121: 0 | AJ121: ปรับปรุง | AL121: 23
A122: =ข้อมูลนักเรียน!A122 -> 0 | B122: =IF(ข้อมูลนักเรียน!B122=0,"",ข้อมูลนักเรียน!B122) ->  | C122: =IF(ข้อมูลนักเรียน!C122=0,"",ข้อมูลนักเรียน!C122) ->  | D122: =IF(ข้อมูลนักเรียน!C122=0,"",ข้อมูลนักเรียน!D122 & ข้อมูลนักเรียน!E122 & " "& ข้อมูลนักเรียน!F122) ->  | E122: =IF(ข้อมูลนักเรียน!C122=0,"",ข้อมูลนักเรียน!G122) ->  | F122: =ข้อมูลนักเรียน!B122 -> 0 | AG122: ผ่าน | AH122: 0 | AJ122: ปรับปรุง | AL122: 23
A123: =ข้อมูลนักเรียน!A123 -> 0 | B123: =IF(ข้อมูลนักเรียน!B123=0,"",ข้อมูลนักเรียน!B123) ->  | C123: =IF(ข้อมูลนักเรียน!C123=0,"",ข้อมูลนักเรียน!C123) ->  | D123: =IF(ข้อมูลนักเรียน!C123=0,"",ข้อมูลนักเรียน!D123 & ข้อมูลนักเรียน!E123 & " "& ข้อมูลนักเรียน!F123) ->  | E123: =IF(ข้อมูลนักเรียน!C123=0,"",ข้อมูลนักเรียน!G123) ->  | F123: =ข้อมูลนักเรียน!B123 -> 0 | AG123: ผ่าน | AH123: 0 | AJ123: ปรับปรุง | AL123: 23
A124: =ข้อมูลนักเรียน!A124 -> 0 | B124: =IF(ข้อมูลนักเรียน!B124=0,"",ข้อมูลนักเรียน!B124) ->  | C124: =IF(ข้อมูลนักเรียน!C124=0,"",ข้อมูลนักเรียน!C124) ->  | D124: =IF(ข้อมูลนักเรียน!C124=0,"",ข้อมูลนักเรียน!D124 & ข้อมูลนักเรียน!E124 & " "& ข้อมูลนักเรียน!F124) ->  | E124: =IF(ข้อมูลนักเรียน!C124=0,"",ข้อมูลนักเรียน!G124) ->  | F124: =ข้อมูลนักเรียน!B124 -> 0 | AG124: ผ่าน | AH124: 0 | AJ124: ปรับปรุง | AL124: 23
A125: =ข้อมูลนักเรียน!A125 -> 0 | B125: =IF(ข้อมูลนักเรียน!B125=0,"",ข้อมูลนักเรียน!B125) ->  | C125: =IF(ข้อมูลนักเรียน!C125=0,"",ข้อมูลนักเรียน!C125) ->  | D125: =IF(ข้อมูลนักเรียน!C125=0,"",ข้อมูลนักเรียน!D125 & ข้อมูลนักเรียน!E125 & " "& ข้อมูลนักเรียน!F125) ->  | E125: =IF(ข้อมูลนักเรียน!C125=0,"",ข้อมูลนักเรียน!G125) ->  | F125: =ข้อมูลนักเรียน!B125 -> 0 | AG125: ผ่าน | AH125: 0 | AJ125: ปรับปรุง | AL125: 23
A126: =ข้อมูลนักเรียน!A126 -> 0 | B126: =IF(ข้อมูลนักเรียน!B126=0,"",ข้อมูลนักเรียน!B126) ->  | C126: =IF(ข้อมูลนักเรียน!C126=0,"",ข้อมูลนักเรียน!C126) ->  | D126: =IF(ข้อมูลนักเรียน!C126=0,"",ข้อมูลนักเรียน!D126 & ข้อมูลนักเรียน!E126 & " "& ข้อมูลนักเรียน!F126) ->  | E126: =IF(ข้อมูลนักเรียน!C126=0,"",ข้อมูลนักเรียน!G126) ->  | F126: =ข้อมูลนักเรียน!B126 -> 0 | AG126: ผ่าน | AH126: 0 | AJ126: ปรับปรุง | AL126: 23
H127: =LEFT(H3) -> ท | I127: =LEFT(I3) -> ค | J127: ว | K127: ส | L127: ส | M127: พ | N127: ศ | O127: ง | P127: อ | Q127: ง | R127: อ | S127: ว
D128: เกรด | G128: 0 | H128: =COUNTIF(H$7:H$126,$G128) -> 0 | I128: =COUNTIF(I$7:I$126,$G128) -> 0 | J128: 0 | K128: 0 | L128: 0 | M128: 0 | N128: 0 | O128: 0 | P128: 0 | Q128: 0 | R128: 0 | S128: 0 | T128: 0 | U128: =COUNTIF(U$7:U$126,$G128) -> 0 | V128: 0 | W128: 0 | X128: 0 | Y128: 0
G129: 1 | H129: 1 | I129: 1 | J129: 1 | K129: 0 | L129: 1 | M129: 1 | N129: 1 | O129: 0 | P129: 1 | Q129: 0 | R129: 0 | S129: 0 | T129: 0 | U129: 0 | V129: 0 | W129: 0 | X129: 0 | Y129: 0
G130: 1.5 | H130: 0 | I130: 0 | J130: 0 | K130: 0 | L130: 0 | M130: 0 | N130: 0 | O130: 0 | P130: 0 | Q130: 2 | R130: 0 | S130: 0 | T130: 0 | U130: 0 | V130: 0 | W130: 0 | X130: 2 | Y130: 2
G131: 2 | H131: 1 | I131: 1 | J131: 1 | K131: 2 | L131: 1 | M131: 1 | N131: 1 | O131: 2 | P131: 0 | Q131: 0 | R131: 0 | S131: 0 | T131: 0 | U131: 0 | V131: 0 | W131: 0 | X131: 0 | Y131: 0
G132: 2.5 | H132: 0 | I132: 0 | J132: 0 | K132: 0 | L132: 0 | M132: 0 | N132: 0 | O132: 0 | P132: 0 | Q132: 0 | R132: 0 | S132: 0 | T132: 0 | U132: 0 | V132: 0 | W132: 0 | X132: 0 | Y132: 0
G133: 3 | H133: 0 | I133: 0 | J133: 0 | K133: 0 | L133: 0 | M133: 0 | N133: 0 | O133: 0 | P133: 0 | Q133: 0 | R133: 0 | S133: 0 | T133: 0 | U133: 0 | V133: 0 | W133: 0 | X133: 0 | Y133: 0
G134: 3.5 | H134: 0 | I134: 0 | J134: 0 | K134: 0 | L134: 0 | M134: 0 | N134: 0 | O134: 0 | P134: 1 | Q134: 0 | R134: 0 | S134: 0 | T134: 0 | U134: 0 | V134: 0 | W134: 0 | X134: 0 | Y134: 0
G135: 4 | H135: 0 | I135: 0 | J135: 0 | K135: 0 | L135: 0 | M135: 0 | N135: 0 | O135: 0 | P135: 0 | Q135: 0 | R135: 0 | S135: 0 | T135: 0 | U135: 0 | V135: 0 | W135: 0 | X135: 0 | Y135: 0
G136: ร | H136: 0 | I136: 0 | J136: 0 | K136: 0 | L136: 0 | M136: 0 | N136: 0 | O136: 0 | P136: 0 | Q136: 0 | R136: 0 | S136: 0 | T136: 0 | U136: 0 | V136: 0 | W136: 0 | X136: 0 | Y136: 0
G137: มส | H137: 0 | I137: 0 | J137: 0 | K137: 0 | L137: 0 | M137: 0 | N137: 0 | O137: 0 | P137: 0 | Q137: 0 | R137: 0 | S137: 0 | T137: 0 | U137: 0 | V137: 0 | W137: 0 | X137: 0 | Y137: 0
G138: ผ | H138: 0 | I138: 0 | J138: 0 | K138: 0 | L138: 0 | M138: 0 | N138: 0 | O138: 0 | P138: 0 | Q138: 0 | R138: 0 | S138: 0 | T138: 0 | U138: 0 | V138: 0 | W138: 0 | X138: 0 | Y138: 0
G139: มผ | H139: 0 | I139: 0 | J139: 0 | K139: 0 | L139: 0 | M139: 0 | N139: 0 | O139: 0 | P139: 0 | Q139: 0 | R139: 0 | S139: 0 | T139: 0 | U139: 0 | V139: 0 | W139: 0 | X139: 0 | Y139: 0

Sheet เกรด3
A1: ปีการศึกษา : | D1: =ข้อมูลนักเรียน!F4+2 -> 2552 | P1: ประถมศึกษาปีที่ 3
A2: ห้อง | B2: เลขที่ | C2: รหัสนักเรียน | D2: ชื่อ - สกุล | G2: วิชา | H2: =IF(หลักสูตร!$R$4=0,"ช่องว่าง",หลักสูตร!$S$4) -> ภาษาไทย | I2: =IF(หลักสูตร!$R$5=0,"ช่องว่าง",หลักสูตร!$S$5) -> คณิตศาสตร์ | J2: =IF(หลักสูตร!$R$6=0,"ช่องว่าง",หลักสูตร!$S$6) -> วิทยาศาสตร์ | K2: =IF(หลักสูตร!$R$7=0,"ช่องว่าง",หลักสูตร!$S$7) -> สังคมศึกษา ศาสนาและวัฒนธรรม | L2: =IF(หลักสูตร!$R$8=0,"ช่องว่าง",หลักสูตร!$S$8) -> ประวัติศาสตร์ | M2: =IF(หลักสูตร!$R$9=0,"ช่องว่าง",หลักสูตร!$S$9) -> สุขศึกษาและพลศึกษา | N2: =IF(หลักสูตร!$R$10=0,"ช่องว่าง",หลักสูตร!$S$10) -> ศิลปะ | O2: =IF(หลักสูตร!$R$11=0,"ช่องว่าง",หลักสูตร!$S$11) -> การงานอาชีพและเทคโนโลยี | P2: =IF(หลักสูตร!$R$12=0,"ช่องว่าง",หลักสูตร!$S$12) -> ภาษาต่างประเทศ | Q2: =IF(หลักสูตร!$R$13=0,"ช่องว่าง",หลักสูตร!$S$13) -> คอมพิวเตอร์ | R2: =IF(หลักสูตร!$R$14=0,"ช่องว่าง",หลักสูตร!$S$14) -> 0 | S2: =IF(หลักสูตร!$R$15=0,"ช่องว่าง",หลักสูตร!$S$15) -> 0 | T2: =IF(หลักสูตร!$R$16=0,"ช่องว่าง",หลักสูตร!$S$16) -> ช่องว่าง | U2: =IF(หลักสูตร!$R$17=0,"ช่องว่าง",หลักสูตร!$S$17) -> ช่องว่าง | V2: =IF(หลักสูตร!$R$18=0,"ช่องว่าง",หลักสูตร!$S$18) -> ช่องว่าง | W2: =IF(หลักสูตร!$R$19=0,"ช่องว่าง",หลักสูตร!$S$19) -> ช่องว่าง | X2: =IF(หลักสูตร!$R$20=0,"ช่องว่าง",หลักสูตร!$S$20) -> ช่องว่าง | Y2: =IF(หลักสูตร!$R$21=0,"ช่องว่าง",หลักสูตร!$S$21) -> ช่องว่าง | Z2: =IF(หลักสูตร!$R$23=0,"ช่องว่าง",หลักสูตร!$S$23) -> แนะแนว | AA2: =IF(หลักสูตร!$R$24=0,"ช่องว่าง",หลักสูตร!$S$24) -> ลูกเสือ เนตรนารี | AB2: =IF(หลักสูตร!$R$25=0,"ช่องว่าง",หลักสูตร!$S$25) -> ชุมนุม | AC2: =IF(หลักสูตร!$R$26=0,"ช่องว่าง",หลักสูตร!$S$26) -> กิจกรรมเพื่อสังคมและสาธารณประโยชน์ | AD2: =IF(หลักสูตร!$R$27=0,"ช่องว่าง",หลักสูตร!$S$27) -> ช่องว่าง | AE2: คุณลักษณะ | AF2: อ่าน คิดฯ | AG2: สรุปกิจกรรม | AH2: เกรดเฉลี่ย | AI2: ชื่อวิชาเลือก รหัสวิชา ตามด้วยชื่อวิชา ตัวอย่าง ง31202 เกษตรอินทรีย์ | AJ2: อ่าน คิดฯ | AK2: ชื่อชุมนุม
H3: =IF(หลักสูตร!$R$4=0,"",หลักสูตร!$R$4) -> ท13101 | I3: =IF(หลักสูตร!$R$5=0,"",หลักสูตร!$R$5) -> ค13101 | J3: =IF(หลักสูตร!$R$6=0,"",หลักสูตร!$R$6) -> ว13101 | K3: =IF(หลักสูตร!$R$7=0,"",หลักสูตร!$R$7) -> ส13101 | L3: =IF(หลักสูตร!$R$8=0,"",หลักสูตร!$R$8) -> ส13102 | M3: =IF(หลักสูตร!$R$9=0,"",หลักสูตร!$R$9) -> พ13101 | N3: =IF(หลักสูตร!$R$10=0,"",หลักสูตร!$R$10) -> ศ13101 | O3: =IF(หลักสูตร!$R$11=0,"",หลักสูตร!$R$11) -> ง13101 | P3: =IF(หลักสูตร!$R$12=0,"",หลักสูตร!$R$12) -> อ13101 | Q3: =IF(หลักสูตร!$R$13=0,"",หลักสูตร!$R$13) -> ง13201 | R3: =IF(หลักสูตร!$R$14=0,"",หลักสูตร!$R$14) -> ว่าง | S3: =IF(หลักสูตร!$R$15=0,"",หลักสูตร!$R$15) -> ว่าง | T3: =IF(หลักสูตร!$R$16=0,"",หลักสูตร!$R$16) ->  | U3: =IF(หลักสูตร!$R$17=0,"",หลักสูตร!$R$17) ->  | V3: =IF(หลักสูตร!$R$18=0,"",หลักสูตร!$R$18) ->  | W3: =IF(หลักสูตร!$R$19=0,"",หลักสูตร!$R$19) ->  | X3: =IF(หลักสูตร!$R$20=0,"",หลักสูตร!$R$20) ->  | Y3: =IF(หลักสูตร!$R$21=0,"",หลักสูตร!$R$21) ->  | Z3: =IF(หลักสูตร!$R$23=0,"",หลักสูตร!$R$23) -> ก1 | AA3: =IF(หลักสูตร!$R$24=0,"",หลักสูตร!$R$24) -> ก2 | AB3: =IF(หลักสูตร!$R$25=0,"",หลักสูตร!$R$25) -> ก3 | AC3: =IF(หลักสูตร!$R$26=0,"",หลักสูตร!$R$26) -> ก4 | AD3: =IF(หลักสูตร!$R$27=0,"",หลักสูตร!$R$27) ->  | AH3: =SUMIF(H5:Y5,"<>กิจกรรม",H6:AA6) -> 22
H4: =IF(หลักสูตร!$V$4=0,"",หลักสูตร!$V$4) -> 200 | I4: =IF(หลักสูตร!$V$5=0,"",หลักสูตร!$V$5) -> 200 | J4: =IF(หลักสูตร!$V$6=0,"",หลักสูตร!$V$6) -> 80 | K4: =IF(หลักสูตร!$V$7=0,"",หลักสูตร!$V$7) -> 80 | L4: =IF(หลักสูตร!$V$8=0,"",หลักสูตร!$V$8) -> 40 | M4: =IF(หลักสูตร!$V$9=0,"",หลักสูตร!$V$9) -> 80 | N4: =IF(หลักสูตร!$V$10=0,"",หลักสูตร!$V$10) -> 80 | O4: =IF(หลักสูตร!$V$11=0,"",หลักสูตร!$V$11) -> 40 | P4: =IF(หลักสูตร!$V$12=0,"",หลักสูตร!$V$12) -> 40 | Q4: =IF(หลักสูตร!$V$13=0,"",หลักสูตร!$V$13) -> 40 | R4: =IF(หลักสูตร!$V$14=0,"",หลักสูตร!$V$14) ->  | S4: =IF(หลักสูตร!$V$15=0,"",หลักสูตร!$V$15) ->  | T4: =IF(หลักสูตร!$V$16=0,"",หลักสูตร!$V$16) ->  | U4: =IF(หลักสูตร!$V$17=0,"",หลักสูตร!$V$17) ->  | V4: =IF(หลักสูตร!$V$18=0,"",หลักสูตร!$V$18) ->  | W4: =IF(หลักสูตร!$V$19=0,"",หลักสูตร!$V$19) ->  | X4: =IF(หลักสูตร!$V$20=0,"",หลักสูตร!$V$20) ->  | Y4: =IF(หลักสูตร!$V$21=0,"",หลักสูตร!$V$21) ->  | Z4: =IF(หลักสูตร!$V$23=0,"",หลักสูตร!$V$23) -> 40 | AA4: =IF(หลักสูตร!$V$24=0,"",หลักสูตร!$V$24) -> 40 | AB4: =IF(หลักสูตร!$V$25=0,"",หลักสูตร!$V$25) -> 30 | AC4: =IF(หลักสูตร!$V$26=0,"",หลักสูตร!$V$26) -> 10 | AD4: =IF(หลักสูตร!$V$27=0,"",หลักสูตร!$V$27) -> 
G5: ประเภท | H5: =IF(หลักสูตร!$T$4=0,"",หลักสูตร!$T$4) -> พื้นฐาน | I5: =IF(หลักสูตร!$T$5=0,"",หลักสูตร!$T$5) -> พื้นฐาน | J5: =IF(หลักสูตร!$T$6=0,"",หลักสูตร!$T$6) -> พื้นฐาน | K5: =IF(หลักสูตร!$T$7=0,"",หลักสูตร!$T$7) -> พื้นฐาน | L5: =IF(หลักสูตร!$T$8=0,"",หลักสูตร!$T$8) -> พื้นฐาน | M5: =IF(หลักสูตร!$T$9=0,"",หลักสูตร!$T$9) -> พื้นฐาน | N5: =IF(หลักสูตร!$T$10=0,"",หลักสูตร!$T$10) -> พื้นฐาน | O5: =IF(หลักสูตร!$T$11=0,"",หลักสูตร!$T$11) -> พื้นฐาน | P5: =IF(หลักสูตร!$T$12=0,"",หลักสูตร!$T$12) -> พื้นฐาน | Q5: =IF(หลักสูตร!$T$13=0,"",หลักสูตร!$T$13) -> เพิ่มเติม | R5: =IF(หลักสูตร!$T$14=0,"",หลักสูตร!$T$14) -> เพิ่มเติม | S5: =IF(หลักสูตร!$T$15=0,"",หลักสูตร!$T$15) -> เพิ่มเติม | T5: =IF(หลักสูตร!$T$16=0,"",หลักสูตร!$T$16) ->  | U5: =IF(หลักสูตร!$T$17=0,"",หลักสูตร!$T$17) ->  | V5: =IF(หลักสูตร!$T$18=0,"",หลักสูตร!$T$18) ->  | W5: =IF(หลักสูตร!$T$19=0,"",หลักสูตร!$T$19) ->  | X5: =IF(หลักสูตร!$T$20=0,"",หลักสูตร!$T$20) ->  | Y5: =IF(หลักสูตร!$T$21=0,"",หลักสูตร!$T$21) ->  | Z5: =IF(หลักสูตร!$T$23=0,"",หลักสูตร!$T$23) -> กิจกรรม | AA5: =IF(หลักสูตร!$T$24=0,"",หลักสูตร!$T$24) -> กิจกรรม | AB5: =IF(หลักสูตร!$T$25=0,"",หลักสูตร!$T$25) -> กิจกรรม | AC5: =IF(หลักสูตร!$T$26=0,"",หลักสูตร!$T$26) -> กิจกรรม | AD5: =IF(หลักสูตร!$T$27=0,"",หลักสูตร!$T$27) -> 
G6: น้ำหนัก | H6: =IF(หลักสูตร!$W$4=0,"",หลักสูตร!$W$4) -> 5 | I6: =IF(หลักสูตร!$W$5=0,"",หลักสูตร!$W$5) -> 5 | J6: =IF(หลักสูตร!$W$6=0,"",หลักสูตร!$W$6) -> 2 | K6: =IF(หลักสูตร!$W$7=0,"",หลักสูตร!$W$7) -> 2 | L6: =IF(หลักสูตร!$W$8=0,"",หลักสูตร!$W$8) -> 1 | M6: =IF(หลักสูตร!$W$9=0,"",หลักสูตร!$W$9) -> 2 | N6: =IF(หลักสูตร!$W$10=0,"",หลักสูตร!$W$10) -> 2 | O6: =IF(หลักสูตร!$W$11=0,"",หลักสูตร!$W$11) -> 1 | P6: =IF(หลักสูตร!$W$12=0,"",หลักสูตร!$W$12) -> 1 | Q6: =IF(หลักสูตร!$W$13=0,"",หลักสูตร!$W$13) -> 1 | R6: =IF(หลักสูตร!$W$14=0,"",หลักสูตร!$W$14) ->  | S6: =IF(หลักสูตร!$W$15=0,"",หลักสูตร!$W$15) ->  | T6: =IF(หลักสูตร!$W$16=0,"",หลักสูตร!$W$16) ->  | U6: =IF(หลักสูตร!$W$17=0,"",หลักสูตร!$W$17) ->  | V6: =IF(หลักสูตร!$W$18=0,"",หลักสูตร!$W$18) ->  | W6: =IF(หลักสูตร!$W$19=0,"",หลักสูตร!$W$19) ->  | X6: =IF(หลักสูตร!$W$20=0,"",หลักสูตร!$W$20) ->  | Y6: =IF(หลักสูตร!$W$21=0,"",หลักสูตร!$W$21) ->  | Z6: =IF(หลักสูตร!$W$23=0,"",หลักสูตร!$W$23) -> - | AA6: =IF(หลักสูตร!$W$24=0,"",หลักสูตร!$W$24) -> - | AB6: =IF(หลักสูตร!$W$25=0,"",หลักสูตร!$W$25) -> - | AC6: =IF(หลักสูตร!$W$26=0,"",หลักสูตร!$W$26) -> - | AD6: =IF(หลักสูตร!$W$27=0,"",หลักสูตร!$W$27) -> - | AH6: =SUMIF(H5:Y5,"<>กิจกรรม",H6:AA6) -> 22
A7: =ข้อมูลนักเรียน!A7 -> 1 | B7: =IF(ข้อมูลนักเรียน!B7=0,"",ข้อมูลนักเรียน!B7) -> 1 | C7: =IF(ข้อมูลนักเรียน!C7=0,"",ข้อมูลนักเรียน!C7) -> 00001 | D7: =IF(ข้อมูลนักเรียน!C7=0,"",ข้อมูลนักเรียน!D7 & ข้อมูลนักเรียน!E7 & " "& ข้อมูลนักเรียน!F7) -> เด็กชายสมชาย สุขสบาย | E7: =IF(ข้อมูลนักเรียน!C7=0,"",ข้อมูลนักเรียน!G7) -> 1111111111111 | F7: =ข้อมูลนักเรียน!B7 -> 1 | H7: 1 | I7: 1 | J7: 1 | K7: 1 | L7: 2 | M7: 3 | N7: 1 | O7: 2 | P7: 3 | Q7: 1.5 | X7: 1.5 | Y7: 1.5 | Z7: ผ | AA7: ผ | AB7: ผ | AC7: ผ | AE7: 3 | AF7: 3 | AG7: =IF(COUNTIFS(Z7:AD7,"=มผ") > 0,"ไม่ผ่าน","ผ่าน") -> ผ่าน | AH7: =ROUNDDOWN(1.79545454545455,2) -> 1.79 | AJ7: =IF(AF7=1,"ผ่าน",IF(AF7=2,"ดี",IF(AF7=3,"ดีเยี่ยม","ปรับปรุง"))) -> ดีเยี่ยม | AK7: คอมพิวเตอร์ | AL7: 22 | AM7: เกรด | AN7: อ่าน/คุณ | AO7: กิจกรรม
A8: =ข้อมูลนักเรียน!A8 -> 1 | B8: =IF(ข้อมูลนักเรียน!B8=0,"",ข้อมูลนักเรียน!B8) -> 2 | C8: =IF(ข้อมูลนักเรียน!C8=0,"",ข้อมูลนักเรียน!C8) -> 00002 | D8: =IF(ข้อมูลนักเรียน!C8=0,"",ข้อมูลนักเรียน!D8 & ข้อมูลนักเรียน!E8 & " "& ข้อมูลนักเรียน!F8) -> เด็กหญิงสมหวัง ตั้งใจเรียน | E8: =IF(ข้อมูลนักเรียน!C8=0,"",ข้อมูลนักเรียน!G8) -> 2222222222222 | F8: =ข้อมูลนักเรียน!B8 -> 2 | H8: 1 | I8: 2 | J8: 3 | K8: 4 | L8: 1 | M8: 2 | N8: 3 | O8: 4 | P8: 1.5 | Q8: 1.5 | X8: 1.5 | Y8: 1.5 | Z8: ผ | AA8: ผ | AB8: ผ | AC8: ผ | AE8: 2 | AF8: 3 | AG8: ผ่าน | AH8: =ROUNDDOWN(2.13636363636364,2) -> 2.13 | AJ8: ดีเยี่ยม | AL8: 22 | AM8: 0 | AN8: 0 | AO8: ผ
A9: =ข้อมูลนักเรียน!A9 -> 0 | B9: =IF(ข้อมูลนักเรียน!B9=0,"",ข้อมูลนักเรียน!B9) ->  | C9: =IF(ข้อมูลนักเรียน!C9=0,"",ข้อมูลนักเรียน!C9) ->  | D9: =IF(ข้อมูลนักเรียน!C9=0,"",ข้อมูลนักเรียน!D9 & ข้อมูลนักเรียน!E9 & " "& ข้อมูลนักเรียน!F9) ->  | E9: =IF(ข้อมูลนักเรียน!C9=0,"",ข้อมูลนักเรียน!G9) ->  | F9: =ข้อมูลนักเรียน!B9 -> 0 | AG9: =IF(COUNTIFS(Z9:AD9,"=มผ") > 0,"ไม่ผ่าน","ผ่าน") -> ผ่าน | AH9: =ROUNDDOWN(0,2) -> 0 | AJ9: =IF(AF9=1,"ผ่าน",IF(AF9=2,"ดี",IF(AF9=3,"ดีเยี่ยม","ปรับปรุง"))) -> ปรับปรุง | AL9: 22 | AM9: 1 | AN9: 1 | AO9: มผ
A10: =ข้อมูลนักเรียน!A10 -> 0 | B10: =IF(ข้อมูลนักเรียน!B10=0,"",ข้อมูลนักเรียน!B10) ->  | C10: =IF(ข้อมูลนักเรียน!C10=0,"",ข้อมูลนักเรียน!C10) ->  | D10: =IF(ข้อมูลนักเรียน!C10=0,"",ข้อมูลนักเรียน!D10 & ข้อมูลนักเรียน!E10 & " "& ข้อมูลนักเรียน!F10) ->  | E10: =IF(ข้อมูลนักเรียน!C10=0,"",ข้อมูลนักเรียน!G10) ->  | F10: =ข้อมูลนักเรียน!B10 -> 0 | AG10: ผ่าน | AH10: 0 | AJ10: ปรับปรุง | AL10: 22 | AM10: 1.5 | AN10: 2
A11: =ข้อมูลนักเรียน!A11 -> 0 | B11: =IF(ข้อมูลนักเรียน!B11=0,"",ข้อมูลนักเรียน!B11) ->  | C11: =IF(ข้อมูลนักเรียน!C11=0,"",ข้อมูลนักเรียน!C11) ->  | D11: =IF(ข้อมูลนักเรียน!C11=0,"",ข้อมูลนักเรียน!D11 & ข้อมูลนักเรียน!E11 & " "& ข้อมูลนักเรียน!F11) ->  | E11: =IF(ข้อมูลนักเรียน!C11=0,"",ข้อมูลนักเรียน!G11) ->  | F11: =ข้อมูลนักเรียน!B11 -> 0 | AG11: ผ่าน | AH11: 0 | AJ11: ปรับปรุง | AL11: 22 | AM11: 2 | AN11: 3
A12: =ข้อมูลนักเรียน!A12 -> 0 | B12: =IF(ข้อมูลนักเรียน!B12=0,"",ข้อมูลนักเรียน!B12) ->  | C12: =IF(ข้อมูลนักเรียน!C12=0,"",ข้อมูลนักเรียน!C12) ->  | D12: =IF(ข้อมูลนักเรียน!C12=0,"",ข้อมูลนักเรียน!D12 & ข้อมูลนักเรียน!E12 & " "& ข้อมูลนักเรียน!F12) ->  | E12: =IF(ข้อมูลนักเรียน!C12=0,"",ข้อมูลนักเรียน!G12) ->  | F12: =ข้อมูลนักเรียน!B12 -> 0 | AG12: ผ่าน | AH12: 0 | AJ12: ปรับปรุง | AL12: 22 | AM12: 2.5
A13: =ข้อมูลนักเรียน!A13 -> 0 | B13: =IF(ข้อมูลนักเรียน!B13=0,"",ข้อมูลนักเรียน!B13) ->  | C13: =IF(ข้อมูลนักเรียน!C13=0,"",ข้อมูลนักเรียน!C13) ->  | D13: =IF(ข้อมูลนักเรียน!C13=0,"",ข้อมูลนักเรียน!D13 & ข้อมูลนักเรียน!E13 & " "& ข้อมูลนักเรียน!F13) ->  | E13: =IF(ข้อมูลนักเรียน!C13=0,"",ข้อมูลนักเรียน!G13) ->  | F13: =ข้อมูลนักเรียน!B13 -> 0 | AG13: ผ่าน | AH13: 0 | AJ13: ปรับปรุง | AL13: 22 | AM13: 3
A14: =ข้อมูลนักเรียน!A14 -> 0 | B14: =IF(ข้อมูลนักเรียน!B14=0,"",ข้อมูลนักเรียน!B14) ->  | C14: =IF(ข้อมูลนักเรียน!C14=0,"",ข้อมูลนักเรียน!C14) ->  | D14: =IF(ข้อมูลนักเรียน!C14=0,"",ข้อมูลนักเรียน!D14 & ข้อมูลนักเรียน!E14 & " "& ข้อมูลนักเรียน!F14) ->  | E14: =IF(ข้อมูลนักเรียน!C14=0,"",ข้อมูลนักเรียน!G14) ->  | F14: =ข้อมูลนักเรียน!B14 -> 0 | AG14: ผ่าน | AH14: 0 | AJ14: ปรับปรุง | AL14: 22 | AM14: 3.5
A15: =ข้อมูลนักเรียน!A15 -> 0 | B15: =IF(ข้อมูลนักเรียน!B15=0,"",ข้อมูลนักเรียน!B15) ->  | C15: =IF(ข้อมูลนักเรียน!C15=0,"",ข้อมูลนักเรียน!C15) ->  | D15: =IF(ข้อมูลนักเรียน!C15=0,"",ข้อมูลนักเรียน!D15 & ข้อมูลนักเรียน!E15 & " "& ข้อมูลนักเรียน!F15) ->  | E15: =IF(ข้อมูลนักเรียน!C15=0,"",ข้อมูลนักเรียน!G15) ->  | F15: =ข้อมูลนักเรียน!B15 -> 0 | AG15: ผ่าน | AH15: 0 | AJ15: ปรับปรุง | AL15: 22 | AM15: 4
A16: =ข้อมูลนักเรียน!A16 -> 0 | B16: =IF(ข้อมูลนักเรียน!B16=0,"",ข้อมูลนักเรียน!B16) ->  | C16: =IF(ข้อมูลนักเรียน!C16=0,"",ข้อมูลนักเรียน!C16) ->  | D16: =IF(ข้อมูลนักเรียน!C16=0,"",ข้อมูลนักเรียน!D16 & ข้อมูลนักเรียน!E16 & " "& ข้อมูลนักเรียน!F16) ->  | E16: =IF(ข้อมูลนักเรียน!C16=0,"",ข้อมูลนักเรียน!G16) ->  | F16: =ข้อมูลนักเรียน!B16 -> 0 | AG16: ผ่าน | AH16: 0 | AJ16: ปรับปรุง | AL16: 22 | AM16: ร
A17: =ข้อมูลนักเรียน!A17 -> 0 | B17: =IF(ข้อมูลนักเรียน!B17=0,"",ข้อมูลนักเรียน!B17) ->  | C17: =IF(ข้อมูลนักเรียน!C17=0,"",ข้อมูลนักเรียน!C17) ->  | D17: =IF(ข้อมูลนักเรียน!C17=0,"",ข้อมูลนักเรียน!D17 & ข้อมูลนักเรียน!E17 & " "& ข้อมูลนักเรียน!F17) ->  | E17: =IF(ข้อมูลนักเรียน!C17=0,"",ข้อมูลนักเรียน!G17) ->  | F17: =ข้อมูลนักเรียน!B17 -> 0 | AG17: ผ่าน | AH17: 0 | AJ17: ปรับปรุง | AL17: 22 | AM17: มส
A18: =ข้อมูลนักเรียน!A18 -> 0 | B18: =IF(ข้อมูลนักเรียน!B18=0,"",ข้อมูลนักเรียน!B18) ->  | C18: =IF(ข้อมูลนักเรียน!C18=0,"",ข้อมูลนักเรียน!C18) ->  | D18: =IF(ข้อมูลนักเรียน!C18=0,"",ข้อมูลนักเรียน!D18 & ข้อมูลนักเรียน!E18 & " "& ข้อมูลนักเรียน!F18) ->  | E18: =IF(ข้อมูลนักเรียน!C18=0,"",ข้อมูลนักเรียน!G18) ->  | F18: =ข้อมูลนักเรียน!B18 -> 0 | AG18: ผ่าน | AH18: 0 | AJ18: ปรับปรุง | AL18: 22 | AM18: ผ
A19: =ข้อมูลนักเรียน!A19 -> 0 | B19: =IF(ข้อมูลนักเรียน!B19=0,"",ข้อมูลนักเรียน!B19) ->  | C19: =IF(ข้อมูลนักเรียน!C19=0,"",ข้อมูลนักเรียน!C19) ->  | D19: =IF(ข้อมูลนักเรียน!C19=0,"",ข้อมูลนักเรียน!D19 & ข้อมูลนักเรียน!E19 & " "& ข้อมูลนักเรียน!F19) ->  | E19: =IF(ข้อมูลนักเรียน!C19=0,"",ข้อมูลนักเรียน!G19) ->  | F19: =ข้อมูลนักเรียน!B19 -> 0 | AG19: ผ่าน | AH19: 0 | AJ19: ปรับปรุง | AL19: 22 | AM19: มผ
A20: =ข้อมูลนักเรียน!A20 -> 0 | B20: =IF(ข้อมูลนักเรียน!B20=0,"",ข้อมูลนักเรียน!B20) ->  | C20: =IF(ข้อมูลนักเรียน!C20=0,"",ข้อมูลนักเรียน!C20) ->  | D20: =IF(ข้อมูลนักเรียน!C20=0,"",ข้อมูลนักเรียน!D20 & ข้อมูลนักเรียน!E20 & " "& ข้อมูลนักเรียน!F20) ->  | E20: =IF(ข้อมูลนักเรียน!C20=0,"",ข้อมูลนักเรียน!G20) ->  | F20: =ข้อมูลนักเรียน!B20 -> 0 | AG20: ผ่าน | AH20: 0 | AJ20: ปรับปรุง | AL20: 22
A21: =ข้อมูลนักเรียน!A21 -> 0 | B21: =IF(ข้อมูลนักเรียน!B21=0,"",ข้อมูลนักเรียน!B21) ->  | C21: =IF(ข้อมูลนักเรียน!C21=0,"",ข้อมูลนักเรียน!C21) ->  | D21: =IF(ข้อมูลนักเรียน!C21=0,"",ข้อมูลนักเรียน!D21 & ข้อมูลนักเรียน!E21 & " "& ข้อมูลนักเรียน!F21) ->  | E21: =IF(ข้อมูลนักเรียน!C21=0,"",ข้อมูลนักเรียน!G21) ->  | F21: =ข้อมูลนักเรียน!B21 -> 0 | AG21: ผ่าน | AH21: 0 | AJ21: ปรับปรุง | AL21: 22
A22: =ข้อมูลนักเรียน!A22 -> 0 | B22: =IF(ข้อมูลนักเรียน!B22=0,"",ข้อมูลนักเรียน!B22) ->  | C22: =IF(ข้อมูลนักเรียน!C22=0,"",ข้อมูลนักเรียน!C22) ->  | D22: =IF(ข้อมูลนักเรียน!C22=0,"",ข้อมูลนักเรียน!D22 & ข้อมูลนักเรียน!E22 & " "& ข้อมูลนักเรียน!F22) ->  | E22: =IF(ข้อมูลนักเรียน!C22=0,"",ข้อมูลนักเรียน!G22) ->  | F22: =ข้อมูลนักเรียน!B22 -> 0 | AG22: ผ่าน | AH22: 0 | AJ22: ปรับปรุง | AL22: 22
A23: =ข้อมูลนักเรียน!A23 -> 0 | B23: =IF(ข้อมูลนักเรียน!B23=0,"",ข้อมูลนักเรียน!B23) ->  | C23: =IF(ข้อมูลนักเรียน!C23=0,"",ข้อมูลนักเรียน!C23) ->  | D23: =IF(ข้อมูลนักเรียน!C23=0,"",ข้อมูลนักเรียน!D23 & ข้อมูลนักเรียน!E23 & " "& ข้อมูลนักเรียน!F23) ->  | E23: =IF(ข้อมูลนักเรียน!C23=0,"",ข้อมูลนักเรียน!G23) ->  | F23: =ข้อมูลนักเรียน!B23 -> 0 | AG23: ผ่าน | AH23: 0 | AJ23: ปรับปรุง | AL23: 22
A24: =ข้อมูลนักเรียน!A24 -> 0 | B24: =IF(ข้อมูลนักเรียน!B24=0,"",ข้อมูลนักเรียน!B24) ->  | C24: =IF(ข้อมูลนักเรียน!C24=0,"",ข้อมูลนักเรียน!C24) ->  | D24: =IF(ข้อมูลนักเรียน!C24=0,"",ข้อมูลนักเรียน!D24 & ข้อมูลนักเรียน!E24 & " "& ข้อมูลนักเรียน!F24) ->  | E24: =IF(ข้อมูลนักเรียน!C24=0,"",ข้อมูลนักเรียน!G24) ->  | F24: =ข้อมูลนักเรียน!B24 -> 0 | AG24: ผ่าน | AH24: 0 | AJ24: ปรับปรุง | AL24: 22
A25: =ข้อมูลนักเรียน!A25 -> 0 | B25: =IF(ข้อมูลนักเรียน!B25=0,"",ข้อมูลนักเรียน!B25) ->  | C25: =IF(ข้อมูลนักเรียน!C25=0,"",ข้อมูลนักเรียน!C25) ->  | D25: =IF(ข้อมูลนักเรียน!C25=0,"",ข้อมูลนักเรียน!D25 & ข้อมูลนักเรียน!E25 & " "& ข้อมูลนักเรียน!F25) ->  | E25: =IF(ข้อมูลนักเรียน!C25=0,"",ข้อมูลนักเรียน!G25) ->  | F25: =ข้อมูลนักเรียน!B25 -> 0 | AG25: ผ่าน | AH25: 0 | AJ25: ปรับปรุง | AL25: 22
A26: =ข้อมูลนักเรียน!A26 -> 0 | B26: =IF(ข้อมูลนักเรียน!B26=0,"",ข้อมูลนักเรียน!B26) ->  | C26: =IF(ข้อมูลนักเรียน!C26=0,"",ข้อมูลนักเรียน!C26) ->  | D26: =IF(ข้อมูลนักเรียน!C26=0,"",ข้อมูลนักเรียน!D26 & ข้อมูลนักเรียน!E26 & " "& ข้อมูลนักเรียน!F26) ->  | E26: =IF(ข้อมูลนักเรียน!C26=0,"",ข้อมูลนักเรียน!G26) ->  | F26: =ข้อมูลนักเรียน!B26 -> 0 | AG26: ผ่าน | AH26: 0 | AJ26: ปรับปรุง | AL26: 22
A27: =ข้อมูลนักเรียน!A27 -> 0 | B27: =IF(ข้อมูลนักเรียน!B27=0,"",ข้อมูลนักเรียน!B27) ->  | C27: =IF(ข้อมูลนักเรียน!C27=0,"",ข้อมูลนักเรียน!C27) ->  | D27: =IF(ข้อมูลนักเรียน!C27=0,"",ข้อมูลนักเรียน!D27 & ข้อมูลนักเรียน!E27 & " "& ข้อมูลนักเรียน!F27) ->  | E27: =IF(ข้อมูลนักเรียน!C27=0,"",ข้อมูลนักเรียน!G27) ->  | F27: =ข้อมูลนักเรียน!B27 -> 0 | AG27: ผ่าน | AH27: 0 | AJ27: ปรับปรุง | AL27: 22
A28: =ข้อมูลนักเรียน!A28 -> 0 | B28: =IF(ข้อมูลนักเรียน!B28=0,"",ข้อมูลนักเรียน!B28) ->  | C28: =IF(ข้อมูลนักเรียน!C28=0,"",ข้อมูลนักเรียน!C28) ->  | D28: =IF(ข้อมูลนักเรียน!C28=0,"",ข้อมูลนักเรียน!D28 & ข้อมูลนักเรียน!E28 & " "& ข้อมูลนักเรียน!F28) ->  | E28: =IF(ข้อมูลนักเรียน!C28=0,"",ข้อมูลนักเรียน!G28) ->  | F28: =ข้อมูลนักเรียน!B28 -> 0 | AG28: ผ่าน | AH28: 0 | AJ28: ปรับปรุง | AL28: 22
A29: =ข้อมูลนักเรียน!A29 -> 0 | B29: =IF(ข้อมูลนักเรียน!B29=0,"",ข้อมูลนักเรียน!B29) ->  | C29: =IF(ข้อมูลนักเรียน!C29=0,"",ข้อมูลนักเรียน!C29) ->  | D29: =IF(ข้อมูลนักเรียน!C29=0,"",ข้อมูลนักเรียน!D29 & ข้อมูลนักเรียน!E29 & " "& ข้อมูลนักเรียน!F29) ->  | E29: =IF(ข้อมูลนักเรียน!C29=0,"",ข้อมูลนักเรียน!G29) ->  | F29: =ข้อมูลนักเรียน!B29 -> 0 | AG29: ผ่าน | AH29: 0 | AJ29: ปรับปรุง | AL29: 22
A30: =ข้อมูลนักเรียน!A30 -> 0 | B30: =IF(ข้อมูลนักเรียน!B30=0,"",ข้อมูลนักเรียน!B30) ->  | C30: =IF(ข้อมูลนักเรียน!C30=0,"",ข้อมูลนักเรียน!C30) ->  | D30: =IF(ข้อมูลนักเรียน!C30=0,"",ข้อมูลนักเรียน!D30 & ข้อมูลนักเรียน!E30 & " "& ข้อมูลนักเรียน!F30) ->  | E30: =IF(ข้อมูลนักเรียน!C30=0,"",ข้อมูลนักเรียน!G30) ->  | F30: =ข้อมูลนักเรียน!B30 -> 0 | AG30: ผ่าน | AH30: 0 | AJ30: ปรับปรุง | AL30: 22
A31: =ข้อมูลนักเรียน!A31 -> 0 | B31: =IF(ข้อมูลนักเรียน!B31=0,"",ข้อมูลนักเรียน!B31) ->  | C31: =IF(ข้อมูลนักเรียน!C31=0,"",ข้อมูลนักเรียน!C31) ->  | D31: =IF(ข้อมูลนักเรียน!C31=0,"",ข้อมูลนักเรียน!D31 & ข้อมูลนักเรียน!E31 & " "& ข้อมูลนักเรียน!F31) ->  | E31: =IF(ข้อมูลนักเรียน!C31=0,"",ข้อมูลนักเรียน!G31) ->  | F31: =ข้อมูลนักเรียน!B31 -> 0 | AG31: ผ่าน | AH31: 0 | AJ31: ปรับปรุง | AL31: 22
A32: =ข้อมูลนักเรียน!A32 -> 0 | B32: =IF(ข้อมูลนักเรียน!B32=0,"",ข้อมูลนักเรียน!B32) ->  | C32: =IF(ข้อมูลนักเรียน!C32=0,"",ข้อมูลนักเรียน!C32) ->  | D32: =IF(ข้อมูลนักเรียน!C32=0,"",ข้อมูลนักเรียน!D32 & ข้อมูลนักเรียน!E32 & " "& ข้อมูลนักเรียน!F32) ->  | E32: =IF(ข้อมูลนักเรียน!C32=0,"",ข้อมูลนักเรียน!G32) ->  | F32: =ข้อมูลนักเรียน!B32 -> 0 | AG32: ผ่าน | AH32: 0 | AJ32: ปรับปรุง | AL32: 22
A33: =ข้อมูลนักเรียน!A33 -> 0 | B33: =IF(ข้อมูลนักเรียน!B33=0,"",ข้อมูลนักเรียน!B33) ->  | C33: =IF(ข้อมูลนักเรียน!C33=0,"",ข้อมูลนักเรียน!C33) ->  | D33: =IF(ข้อมูลนักเรียน!C33=0,"",ข้อมูลนักเรียน!D33 & ข้อมูลนักเรียน!E33 & " "& ข้อมูลนักเรียน!F33) ->  | E33: =IF(ข้อมูลนักเรียน!C33=0,"",ข้อมูลนักเรียน!G33) ->  | F33: =ข้อมูลนักเรียน!B33 -> 0 | AG33: ผ่าน | AH33: 0 | AJ33: ปรับปรุง | AL33: 22
A34: =ข้อมูลนักเรียน!A34 -> 0 | B34: =IF(ข้อมูลนักเรียน!B34=0,"",ข้อมูลนักเรียน!B34) ->  | C34: =IF(ข้อมูลนักเรียน!C34=0,"",ข้อมูลนักเรียน!C34) ->  | D34: =IF(ข้อมูลนักเรียน!C34=0,"",ข้อมูลนักเรียน!D34 & ข้อมูลนักเรียน!E34 & " "& ข้อมูลนักเรียน!F34) ->  | E34: =IF(ข้อมูลนักเรียน!C34=0,"",ข้อมูลนักเรียน!G34) ->  | F34: =ข้อมูลนักเรียน!B34 -> 0 | AG34: ผ่าน | AH34: 0 | AJ34: ปรับปรุง | AL34: 22
A35: =ข้อมูลนักเรียน!A35 -> 0 | B35: =IF(ข้อมูลนักเรียน!B35=0,"",ข้อมูลนักเรียน!B35) ->  | C35: =IF(ข้อมูลนักเรียน!C35=0,"",ข้อมูลนักเรียน!C35) ->  | D35: =IF(ข้อมูลนักเรียน!C35=0,"",ข้อมูลนักเรียน!D35 & ข้อมูลนักเรียน!E35 & " "& ข้อมูลนักเรียน!F35) ->  | E35: =IF(ข้อมูลนักเรียน!C35=0,"",ข้อมูลนักเรียน!G35) ->  | F35: =ข้อมูลนักเรียน!B35 -> 0 | AG35: ผ่าน | AH35: 0 | AJ35: ปรับปรุง | AL35: 22
A36: =ข้อมูลนักเรียน!A36 -> 0 | B36: =IF(ข้อมูลนักเรียน!B36=0,"",ข้อมูลนักเรียน!B36) ->  | C36: =IF(ข้อมูลนักเรียน!C36=0,"",ข้อมูลนักเรียน!C36) ->  | D36: =IF(ข้อมูลนักเรียน!C36=0,"",ข้อมูลนักเรียน!D36 & ข้อมูลนักเรียน!E36 & " "& ข้อมูลนักเรียน!F36) ->  | E36: =IF(ข้อมูลนักเรียน!C36=0,"",ข้อมูลนักเรียน!G36) ->  | F36: =ข้อมูลนักเรียน!B36 -> 0 | AG36: ผ่าน | AH36: 0 | AJ36: ปรับปรุง | AL36: 22
A37: =ข้อมูลนักเรียน!A37 -> 0 | B37: =IF(ข้อมูลนักเรียน!B37=0,"",ข้อมูลนักเรียน!B37) ->  | C37: =IF(ข้อมูลนักเรียน!C37=0,"",ข้อมูลนักเรียน!C37) ->  | D37: =IF(ข้อมูลนักเรียน!C37=0,"",ข้อมูลนักเรียน!D37 & ข้อมูลนักเรียน!E37 & " "& ข้อมูลนักเรียน!F37) ->  | E37: =IF(ข้อมูลนักเรียน!C37=0,"",ข้อมูลนักเรียน!G37) ->  | F37: =ข้อมูลนักเรียน!B37 -> 0 | AG37: ผ่าน | AH37: 0 | AJ37: ปรับปรุง | AL37: 22
A38: =ข้อมูลนักเรียน!A38 -> 0 | B38: =IF(ข้อมูลนักเรียน!B38=0,"",ข้อมูลนักเรียน!B38) ->  | C38: =IF(ข้อมูลนักเรียน!C38=0,"",ข้อมูลนักเรียน!C38) ->  | D38: =IF(ข้อมูลนักเรียน!C38=0,"",ข้อมูลนักเรียน!D38 & ข้อมูลนักเรียน!E38 & " "& ข้อมูลนักเรียน!F38) ->  | E38: =IF(ข้อมูลนักเรียน!C38=0,"",ข้อมูลนักเรียน!G38) ->  | F38: =ข้อมูลนักเรียน!B38 -> 0 | AG38: ผ่าน | AH38: 0 | AJ38: ปรับปรุง | AL38: 22
A39: =ข้อมูลนักเรียน!A39 -> 0 | B39: =IF(ข้อมูลนักเรียน!B39=0,"",ข้อมูลนักเรียน!B39) ->  | C39: =IF(ข้อมูลนักเรียน!C39=0,"",ข้อมูลนักเรียน!C39) ->  | D39: =IF(ข้อมูลนักเรียน!C39=0,"",ข้อมูลนักเรียน!D39 & ข้อมูลนักเรียน!E39 & " "& ข้อมูลนักเรียน!F39) ->  | E39: =IF(ข้อมูลนักเรียน!C39=0,"",ข้อมูลนักเรียน!G39) ->  | F39: =ข้อมูลนักเรียน!B39 -> 0 | AG39: ผ่าน | AH39: 0 | AJ39: ปรับปรุง | AL39: 22
A40: =ข้อมูลนักเรียน!A40 -> 0 | B40: =IF(ข้อมูลนักเรียน!B40=0,"",ข้อมูลนักเรียน!B40) ->  | C40: =IF(ข้อมูลนักเรียน!C40=0,"",ข้อมูลนักเรียน!C40) ->  | D40: =IF(ข้อมูลนักเรียน!C40=0,"",ข้อมูลนักเรียน!D40 & ข้อมูลนักเรียน!E40 & " "& ข้อมูลนักเรียน!F40) ->  | E40: =IF(ข้อมูลนักเรียน!C40=0,"",ข้อมูลนักเรียน!G40) ->  | F40: =ข้อมูลนักเรียน!B40 -> 0 | AG40: ผ่าน | AH40: 0 | AJ40: ปรับปรุง | AL40: 22
A41: =ข้อมูลนักเรียน!A41 -> 0 | B41: =IF(ข้อมูลนักเรียน!B41=0,"",ข้อมูลนักเรียน!B41) ->  | C41: =IF(ข้อมูลนักเรียน!C41=0,"",ข้อมูลนักเรียน!C41) ->  | D41: =IF(ข้อมูลนักเรียน!C41=0,"",ข้อมูลนักเรียน!D41 & ข้อมูลนักเรียน!E41 & " "& ข้อมูลนักเรียน!F41) ->  | E41: =IF(ข้อมูลนักเรียน!C41=0,"",ข้อมูลนักเรียน!G41) ->  | F41: =ข้อมูลนักเรียน!B41 -> 0 | AG41: ผ่าน | AH41: =ROUNDDOWN(0,2) -> 0 | AJ41: ปรับปรุง | AL41: 22
A42: =ข้อมูลนักเรียน!A42 -> 0 | B42: =IF(ข้อมูลนักเรียน!B42=0,"",ข้อมูลนักเรียน!B42) ->  | C42: =IF(ข้อมูลนักเรียน!C42=0,"",ข้อมูลนักเรียน!C42) ->  | D42: =IF(ข้อมูลนักเรียน!C42=0,"",ข้อมูลนักเรียน!D42 & ข้อมูลนักเรียน!E42 & " "& ข้อมูลนักเรียน!F42) ->  | E42: =IF(ข้อมูลนักเรียน!C42=0,"",ข้อมูลนักเรียน!G42) ->  | F42: =ข้อมูลนักเรียน!B42 -> 0 | AG42: ผ่าน | AH42: 0 | AJ42: ปรับปรุง | AL42: 22
A43: =ข้อมูลนักเรียน!A43 -> 0 | B43: =IF(ข้อมูลนักเรียน!B43=0,"",ข้อมูลนักเรียน!B43) ->  | C43: =IF(ข้อมูลนักเรียน!C43=0,"",ข้อมูลนักเรียน!C43) ->  | D43: =IF(ข้อมูลนักเรียน!C43=0,"",ข้อมูลนักเรียน!D43 & ข้อมูลนักเรียน!E43 & " "& ข้อมูลนักเรียน!F43) ->  | E43: =IF(ข้อมูลนักเรียน!C43=0,"",ข้อมูลนักเรียน!G43) ->  | F43: =ข้อมูลนักเรียน!B43 -> 0 | AG43: ผ่าน | AH43: 0 | AJ43: ปรับปรุง | AL43: 22
A44: =ข้อมูลนักเรียน!A44 -> 0 | B44: =IF(ข้อมูลนักเรียน!B44=0,"",ข้อมูลนักเรียน!B44) ->  | C44: =IF(ข้อมูลนักเรียน!C44=0,"",ข้อมูลนักเรียน!C44) ->  | D44: =IF(ข้อมูลนักเรียน!C44=0,"",ข้อมูลนักเรียน!D44 & ข้อมูลนักเรียน!E44 & " "& ข้อมูลนักเรียน!F44) ->  | E44: =IF(ข้อมูลนักเรียน!C44=0,"",ข้อมูลนักเรียน!G44) ->  | F44: =ข้อมูลนักเรียน!B44 -> 0 | AG44: ผ่าน | AH44: 0 | AJ44: ปรับปรุง | AL44: 22
A45: =ข้อมูลนักเรียน!A45 -> 0 | B45: =IF(ข้อมูลนักเรียน!B45=0,"",ข้อมูลนักเรียน!B45) ->  | C45: =IF(ข้อมูลนักเรียน!C45=0,"",ข้อมูลนักเรียน!C45) ->  | D45: =IF(ข้อมูลนักเรียน!C45=0,"",ข้อมูลนักเรียน!D45 & ข้อมูลนักเรียน!E45 & " "& ข้อมูลนักเรียน!F45) ->  | E45: =IF(ข้อมูลนักเรียน!C45=0,"",ข้อมูลนักเรียน!G45) ->  | F45: =ข้อมูลนักเรียน!B45 -> 0 | AG45: ผ่าน | AH45: 0 | AJ45: ปรับปรุง | AL45: 22
A46: =ข้อมูลนักเรียน!A46 -> 0 | B46: =IF(ข้อมูลนักเรียน!B46=0,"",ข้อมูลนักเรียน!B46) ->  | C46: =IF(ข้อมูลนักเรียน!C46=0,"",ข้อมูลนักเรียน!C46) ->  | D46: =IF(ข้อมูลนักเรียน!C46=0,"",ข้อมูลนักเรียน!D46 & ข้อมูลนักเรียน!E46 & " "& ข้อมูลนักเรียน!F46) ->  | E46: =IF(ข้อมูลนักเรียน!C46=0,"",ข้อมูลนักเรียน!G46) ->  | F46: =ข้อมูลนักเรียน!B46 -> 0 | AG46: ผ่าน | AH46: 0 | AJ46: ปรับปรุง | AL46: 22
A47: =ข้อมูลนักเรียน!A47 -> 0 | B47: =IF(ข้อมูลนักเรียน!B47=0,"",ข้อมูลนักเรียน!B47) ->  | C47: =IF(ข้อมูลนักเรียน!C47=0,"",ข้อมูลนักเรียน!C47) ->  | D47: =IF(ข้อมูลนักเรียน!C47=0,"",ข้อมูลนักเรียน!D47 & ข้อมูลนักเรียน!E47 & " "& ข้อมูลนักเรียน!F47) ->  | E47: =IF(ข้อมูลนักเรียน!C47=0,"",ข้อมูลนักเรียน!G47) ->  | F47: =ข้อมูลนักเรียน!B47 -> 0 | AG47: ผ่าน | AH47: 0 | AJ47: ปรับปรุง | AL47: 22
A48: =ข้อมูลนักเรียน!A48 -> 0 | B48: =IF(ข้อมูลนักเรียน!B48=0,"",ข้อมูลนักเรียน!B48) ->  | C48: =IF(ข้อมูลนักเรียน!C48=0,"",ข้อมูลนักเรียน!C48) ->  | D48: =IF(ข้อมูลนักเรียน!C48=0,"",ข้อมูลนักเรียน!D48 & ข้อมูลนักเรียน!E48 & " "& ข้อมูลนักเรียน!F48) ->  | E48: =IF(ข้อมูลนักเรียน!C48=0,"",ข้อมูลนักเรียน!G48) ->  | F48: =ข้อมูลนักเรียน!B48 -> 0 | AG48: ผ่าน | AH48: 0 | AJ48: ปรับปรุง | AL48: 22
A49: =ข้อมูลนักเรียน!A49 -> 0 | B49: =IF(ข้อมูลนักเรียน!B49=0,"",ข้อมูลนักเรียน!B49) ->  | C49: =IF(ข้อมูลนักเรียน!C49=0,"",ข้อมูลนักเรียน!C49) ->  | D49: =IF(ข้อมูลนักเรียน!C49=0,"",ข้อมูลนักเรียน!D49 & ข้อมูลนักเรียน!E49 & " "& ข้อมูลนักเรียน!F49) ->  | E49: =IF(ข้อมูลนักเรียน!C49=0,"",ข้อมูลนักเรียน!G49) ->  | F49: =ข้อมูลนักเรียน!B49 -> 0 | AG49: ผ่าน | AH49: 0 | AJ49: ปรับปรุง | AL49: 22
A50: =ข้อมูลนักเรียน!A50 -> 0 | B50: =IF(ข้อมูลนักเรียน!B50=0,"",ข้อมูลนักเรียน!B50) ->  | C50: =IF(ข้อมูลนักเรียน!C50=0,"",ข้อมูลนักเรียน!C50) ->  | D50: =IF(ข้อมูลนักเรียน!C50=0,"",ข้อมูลนักเรียน!D50 & ข้อมูลนักเรียน!E50 & " "& ข้อมูลนักเรียน!F50) ->  | E50: =IF(ข้อมูลนักเรียน!C50=0,"",ข้อมูลนักเรียน!G50) ->  | F50: =ข้อมูลนักเรียน!B50 -> 0 | AG50: ผ่าน | AH50: 0 | AJ50: ปรับปรุง | AL50: 22
A51: =ข้อมูลนักเรียน!A51 -> 0 | B51: =IF(ข้อมูลนักเรียน!B51=0,"",ข้อมูลนักเรียน!B51) ->  | C51: =IF(ข้อมูลนักเรียน!C51=0,"",ข้อมูลนักเรียน!C51) ->  | D51: =IF(ข้อมูลนักเรียน!C51=0,"",ข้อมูลนักเรียน!D51 & ข้อมูลนักเรียน!E51 & " "& ข้อมูลนักเรียน!F51) ->  | E51: =IF(ข้อมูลนักเรียน!C51=0,"",ข้อมูลนักเรียน!G51) ->  | F51: =ข้อมูลนักเรียน!B51 -> 0 | AG51: ผ่าน | AH51: 0 | AJ51: ปรับปรุง | AL51: 22
A52: =ข้อมูลนักเรียน!A52 -> 0 | B52: =IF(ข้อมูลนักเรียน!B52=0,"",ข้อมูลนักเรียน!B52) ->  | C52: =IF(ข้อมูลนักเรียน!C52=0,"",ข้อมูลนักเรียน!C52) ->  | D52: =IF(ข้อมูลนักเรียน!C52=0,"",ข้อมูลนักเรียน!D52 & ข้อมูลนักเรียน!E52 & " "& ข้อมูลนักเรียน!F52) ->  | E52: =IF(ข้อมูลนักเรียน!C52=0,"",ข้อมูลนักเรียน!G52) ->  | F52: =ข้อมูลนักเรียน!B52 -> 0 | AG52: ผ่าน | AH52: 0 | AJ52: ปรับปรุง | AL52: 22
A53: =ข้อมูลนักเรียน!A53 -> 0 | B53: =IF(ข้อมูลนักเรียน!B53=0,"",ข้อมูลนักเรียน!B53) ->  | C53: =IF(ข้อมูลนักเรียน!C53=0,"",ข้อมูลนักเรียน!C53) ->  | D53: =IF(ข้อมูลนักเรียน!C53=0,"",ข้อมูลนักเรียน!D53 & ข้อมูลนักเรียน!E53 & " "& ข้อมูลนักเรียน!F53) ->  | E53: =IF(ข้อมูลนักเรียน!C53=0,"",ข้อมูลนักเรียน!G53) ->  | F53: =ข้อมูลนักเรียน!B53 -> 0 | AG53: ผ่าน | AH53: 0 | AJ53: ปรับปรุง | AL53: 22
A54: =ข้อมูลนักเรียน!A54 -> 0 | B54: =IF(ข้อมูลนักเรียน!B54=0,"",ข้อมูลนักเรียน!B54) ->  | C54: =IF(ข้อมูลนักเรียน!C54=0,"",ข้อมูลนักเรียน!C54) ->  | D54: =IF(ข้อมูลนักเรียน!C54=0,"",ข้อมูลนักเรียน!D54 & ข้อมูลนักเรียน!E54 & " "& ข้อมูลนักเรียน!F54) ->  | E54: =IF(ข้อมูลนักเรียน!C54=0,"",ข้อมูลนักเรียน!G54) ->  | F54: =ข้อมูลนักเรียน!B54 -> 0 | AG54: ผ่าน | AH54: 0 | AJ54: ปรับปรุง | AL54: 22
A55: =ข้อมูลนักเรียน!A55 -> 0 | B55: =IF(ข้อมูลนักเรียน!B55=0,"",ข้อมูลนักเรียน!B55) ->  | C55: =IF(ข้อมูลนักเรียน!C55=0,"",ข้อมูลนักเรียน!C55) ->  | D55: =IF(ข้อมูลนักเรียน!C55=0,"",ข้อมูลนักเรียน!D55 & ข้อมูลนักเรียน!E55 & " "& ข้อมูลนักเรียน!F55) ->  | E55: =IF(ข้อมูลนักเรียน!C55=0,"",ข้อมูลนักเรียน!G55) ->  | F55: =ข้อมูลนักเรียน!B55 -> 0 | AG55: ผ่าน | AH55: 0 | AJ55: ปรับปรุง | AL55: 22
A56: =ข้อมูลนักเรียน!A56 -> 0 | B56: =IF(ข้อมูลนักเรียน!B56=0,"",ข้อมูลนักเรียน!B56) ->  | C56: =IF(ข้อมูลนักเรียน!C56=0,"",ข้อมูลนักเรียน!C56) ->  | D56: =IF(ข้อมูลนักเรียน!C56=0,"",ข้อมูลนักเรียน!D56 & ข้อมูลนักเรียน!E56 & " "& ข้อมูลนักเรียน!F56) ->  | E56: =IF(ข้อมูลนักเรียน!C56=0,"",ข้อมูลนักเรียน!G56) ->  | F56: =ข้อมูลนักเรียน!B56 -> 0 | AG56: ผ่าน | AH56: 0 | AJ56: ปรับปรุง | AL56: 22
A57: =ข้อมูลนักเรียน!A57 -> 0 | B57: =IF(ข้อมูลนักเรียน!B57=0,"",ข้อมูลนักเรียน!B57) ->  | C57: =IF(ข้อมูลนักเรียน!C57=0,"",ข้อมูลนักเรียน!C57) ->  | D57: =IF(ข้อมูลนักเรียน!C57=0,"",ข้อมูลนักเรียน!D57 & ข้อมูลนักเรียน!E57 & " "& ข้อมูลนักเรียน!F57) ->  | E57: =IF(ข้อมูลนักเรียน!C57=0,"",ข้อมูลนักเรียน!G57) ->  | F57: =ข้อมูลนักเรียน!B57 -> 0 | AG57: ผ่าน | AH57: 0 | AJ57: ปรับปรุง | AL57: 22
A58: =ข้อมูลนักเรียน!A58 -> 0 | B58: =IF(ข้อมูลนักเรียน!B58=0,"",ข้อมูลนักเรียน!B58) ->  | C58: =IF(ข้อมูลนักเรียน!C58=0,"",ข้อมูลนักเรียน!C58) ->  | D58: =IF(ข้อมูลนักเรียน!C58=0,"",ข้อมูลนักเรียน!D58 & ข้อมูลนักเรียน!E58 & " "& ข้อมูลนักเรียน!F58) ->  | E58: =IF(ข้อมูลนักเรียน!C58=0,"",ข้อมูลนักเรียน!G58) ->  | F58: =ข้อมูลนักเรียน!B58 -> 0 | AG58: ผ่าน | AH58: 0 | AJ58: ปรับปรุง | AL58: 22
A59: =ข้อมูลนักเรียน!A59 -> 0 | B59: =IF(ข้อมูลนักเรียน!B59=0,"",ข้อมูลนักเรียน!B59) ->  | C59: =IF(ข้อมูลนักเรียน!C59=0,"",ข้อมูลนักเรียน!C59) ->  | D59: =IF(ข้อมูลนักเรียน!C59=0,"",ข้อมูลนักเรียน!D59 & ข้อมูลนักเรียน!E59 & " "& ข้อมูลนักเรียน!F59) ->  | E59: =IF(ข้อมูลนักเรียน!C59=0,"",ข้อมูลนักเรียน!G59) ->  | F59: =ข้อมูลนักเรียน!B59 -> 0 | AG59: ผ่าน | AH59: 0 | AJ59: ปรับปรุง | AL59: 22
A60: =ข้อมูลนักเรียน!A60 -> 0 | B60: =IF(ข้อมูลนักเรียน!B60=0,"",ข้อมูลนักเรียน!B60) ->  | C60: =IF(ข้อมูลนักเรียน!C60=0,"",ข้อมูลนักเรียน!C60) ->  | D60: =IF(ข้อมูลนักเรียน!C60=0,"",ข้อมูลนักเรียน!D60 & ข้อมูลนักเรียน!E60 & " "& ข้อมูลนักเรียน!F60) ->  | E60: =IF(ข้อมูลนักเรียน!C60=0,"",ข้อมูลนักเรียน!G60) ->  | F60: =ข้อมูลนักเรียน!B60 -> 0 | AG60: ผ่าน | AH60: 0 | AJ60: ปรับปรุง | AL60: 22
A61: =ข้อมูลนักเรียน!A61 -> 0 | B61: =IF(ข้อมูลนักเรียน!B61=0,"",ข้อมูลนักเรียน!B61) ->  | C61: =IF(ข้อมูลนักเรียน!C61=0,"",ข้อมูลนักเรียน!C61) ->  | D61: =IF(ข้อมูลนักเรียน!C61=0,"",ข้อมูลนักเรียน!D61 & ข้อมูลนักเรียน!E61 & " "& ข้อมูลนักเรียน!F61) ->  | E61: =IF(ข้อมูลนักเรียน!C61=0,"",ข้อมูลนักเรียน!G61) ->  | F61: =ข้อมูลนักเรียน!B61 -> 0 | AG61: ผ่าน | AH61: 0 | AJ61: ปรับปรุง | AL61: 22
A62: =ข้อมูลนักเรียน!A62 -> 0 | B62: =IF(ข้อมูลนักเรียน!B62=0,"",ข้อมูลนักเรียน!B62) ->  | C62: =IF(ข้อมูลนักเรียน!C62=0,"",ข้อมูลนักเรียน!C62) ->  | D62: =IF(ข้อมูลนักเรียน!C62=0,"",ข้อมูลนักเรียน!D62 & ข้อมูลนักเรียน!E62 & " "& ข้อมูลนักเรียน!F62) ->  | E62: =IF(ข้อมูลนักเรียน!C62=0,"",ข้อมูลนักเรียน!G62) ->  | F62: =ข้อมูลนักเรียน!B62 -> 0 | AG62: ผ่าน | AH62: 0 | AJ62: ปรับปรุง | AL62: 22
A63: =ข้อมูลนักเรียน!A63 -> 0 | B63: =IF(ข้อมูลนักเรียน!B63=0,"",ข้อมูลนักเรียน!B63) ->  | C63: =IF(ข้อมูลนักเรียน!C63=0,"",ข้อมูลนักเรียน!C63) ->  | D63: =IF(ข้อมูลนักเรียน!C63=0,"",ข้อมูลนักเรียน!D63 & ข้อมูลนักเรียน!E63 & " "& ข้อมูลนักเรียน!F63) ->  | E63: =IF(ข้อมูลนักเรียน!C63=0,"",ข้อมูลนักเรียน!G63) ->  | F63: =ข้อมูลนักเรียน!B63 -> 0 | AG63: ผ่าน | AH63: 0 | AJ63: ปรับปรุง | AL63: 22
A64: =ข้อมูลนักเรียน!A64 -> 0 | B64: =IF(ข้อมูลนักเรียน!B64=0,"",ข้อมูลนักเรียน!B64) ->  | C64: =IF(ข้อมูลนักเรียน!C64=0,"",ข้อมูลนักเรียน!C64) ->  | D64: =IF(ข้อมูลนักเรียน!C64=0,"",ข้อมูลนักเรียน!D64 & ข้อมูลนักเรียน!E64 & " "& ข้อมูลนักเรียน!F64) ->  | E64: =IF(ข้อมูลนักเรียน!C64=0,"",ข้อมูลนักเรียน!G64) ->  | F64: =ข้อมูลนักเรียน!B64 -> 0 | AG64: ผ่าน | AH64: 0 | AJ64: ปรับปรุง | AL64: 22
A65: =ข้อมูลนักเรียน!A65 -> 0 | B65: =IF(ข้อมูลนักเรียน!B65=0,"",ข้อมูลนักเรียน!B65) ->  | C65: =IF(ข้อมูลนักเรียน!C65=0,"",ข้อมูลนักเรียน!C65) ->  | D65: =IF(ข้อมูลนักเรียน!C65=0,"",ข้อมูลนักเรียน!D65 & ข้อมูลนักเรียน!E65 & " "& ข้อมูลนักเรียน!F65) ->  | E65: =IF(ข้อมูลนักเรียน!C65=0,"",ข้อมูลนักเรียน!G65) ->  | F65: =ข้อมูลนักเรียน!B65 -> 0 | AG65: ผ่าน | AH65: 0 | AJ65: ปรับปรุง | AL65: 22
A66: =ข้อมูลนักเรียน!A66 -> 0 | B66: =IF(ข้อมูลนักเรียน!B66=0,"",ข้อมูลนักเรียน!B66) ->  | C66: =IF(ข้อมูลนักเรียน!C66=0,"",ข้อมูลนักเรียน!C66) ->  | D66: =IF(ข้อมูลนักเรียน!C66=0,"",ข้อมูลนักเรียน!D66 & ข้อมูลนักเรียน!E66 & " "& ข้อมูลนักเรียน!F66) ->  | E66: =IF(ข้อมูลนักเรียน!C66=0,"",ข้อมูลนักเรียน!G66) ->  | F66: =ข้อมูลนักเรียน!B66 -> 0 | AG66: ผ่าน | AH66: 0 | AJ66: ปรับปรุง | AL66: 22
A67: =ข้อมูลนักเรียน!A67 -> 0 | B67: =IF(ข้อมูลนักเรียน!B67=0,"",ข้อมูลนักเรียน!B67) ->  | C67: =IF(ข้อมูลนักเรียน!C67=0,"",ข้อมูลนักเรียน!C67) ->  | D67: =IF(ข้อมูลนักเรียน!C67=0,"",ข้อมูลนักเรียน!D67 & ข้อมูลนักเรียน!E67 & " "& ข้อมูลนักเรียน!F67) ->  | E67: =IF(ข้อมูลนักเรียน!C67=0,"",ข้อมูลนักเรียน!G67) ->  | F67: =ข้อมูลนักเรียน!B67 -> 0 | AG67: ผ่าน | AH67: 0 | AJ67: ปรับปรุง | AL67: 22
A68: =ข้อมูลนักเรียน!A68 -> 0 | B68: =IF(ข้อมูลนักเรียน!B68=0,"",ข้อมูลนักเรียน!B68) ->  | C68: =IF(ข้อมูลนักเรียน!C68=0,"",ข้อมูลนักเรียน!C68) ->  | D68: =IF(ข้อมูลนักเรียน!C68=0,"",ข้อมูลนักเรียน!D68 & ข้อมูลนักเรียน!E68 & " "& ข้อมูลนักเรียน!F68) ->  | E68: =IF(ข้อมูลนักเรียน!C68=0,"",ข้อมูลนักเรียน!G68) ->  | F68: =ข้อมูลนักเรียน!B68 -> 0 | AG68: ผ่าน | AH68: 0 | AJ68: ปรับปรุง | AL68: 22
A69: =ข้อมูลนักเรียน!A69 -> 0 | B69: =IF(ข้อมูลนักเรียน!B69=0,"",ข้อมูลนักเรียน!B69) ->  | C69: =IF(ข้อมูลนักเรียน!C69=0,"",ข้อมูลนักเรียน!C69) ->  | D69: =IF(ข้อมูลนักเรียน!C69=0,"",ข้อมูลนักเรียน!D69 & ข้อมูลนักเรียน!E69 & " "& ข้อมูลนักเรียน!F69) ->  | E69: =IF(ข้อมูลนักเรียน!C69=0,"",ข้อมูลนักเรียน!G69) ->  | F69: =ข้อมูลนักเรียน!B69 -> 0 | AG69: ผ่าน | AH69: 0 | AJ69: ปรับปรุง | AL69: 22
A70: =ข้อมูลนักเรียน!A70 -> 0 | B70: =IF(ข้อมูลนักเรียน!B70=0,"",ข้อมูลนักเรียน!B70) ->  | C70: =IF(ข้อมูลนักเรียน!C70=0,"",ข้อมูลนักเรียน!C70) ->  | D70: =IF(ข้อมูลนักเรียน!C70=0,"",ข้อมูลนักเรียน!D70 & ข้อมูลนักเรียน!E70 & " "& ข้อมูลนักเรียน!F70) ->  | E70: =IF(ข้อมูลนักเรียน!C70=0,"",ข้อมูลนักเรียน!G70) ->  | F70: =ข้อมูลนักเรียน!B70 -> 0 | AG70: ผ่าน | AH70: 0 | AJ70: ปรับปรุง | AL70: 22
A71: =ข้อมูลนักเรียน!A71 -> 0 | B71: =IF(ข้อมูลนักเรียน!B71=0,"",ข้อมูลนักเรียน!B71) ->  | C71: =IF(ข้อมูลนักเรียน!C71=0,"",ข้อมูลนักเรียน!C71) ->  | D71: =IF(ข้อมูลนักเรียน!C71=0,"",ข้อมูลนักเรียน!D71 & ข้อมูลนักเรียน!E71 & " "& ข้อมูลนักเรียน!F71) ->  | E71: =IF(ข้อมูลนักเรียน!C71=0,"",ข้อมูลนักเรียน!G71) ->  | F71: =ข้อมูลนักเรียน!B71 -> 0 | AG71: ผ่าน | AH71: 0 | AJ71: ปรับปรุง | AL71: 22
A72: =ข้อมูลนักเรียน!A72 -> 0 | B72: =IF(ข้อมูลนักเรียน!B72=0,"",ข้อมูลนักเรียน!B72) ->  | C72: =IF(ข้อมูลนักเรียน!C72=0,"",ข้อมูลนักเรียน!C72) ->  | D72: =IF(ข้อมูลนักเรียน!C72=0,"",ข้อมูลนักเรียน!D72 & ข้อมูลนักเรียน!E72 & " "& ข้อมูลนักเรียน!F72) ->  | E72: =IF(ข้อมูลนักเรียน!C72=0,"",ข้อมูลนักเรียน!G72) ->  | F72: =ข้อมูลนักเรียน!B72 -> 0 | AG72: ผ่าน | AH72: 0 | AJ72: ปรับปรุง | AL72: 22
A73: =ข้อมูลนักเรียน!A73 -> 0 | B73: =IF(ข้อมูลนักเรียน!B73=0,"",ข้อมูลนักเรียน!B73) ->  | C73: =IF(ข้อมูลนักเรียน!C73=0,"",ข้อมูลนักเรียน!C73) ->  | D73: =IF(ข้อมูลนักเรียน!C73=0,"",ข้อมูลนักเรียน!D73 & ข้อมูลนักเรียน!E73 & " "& ข้อมูลนักเรียน!F73) ->  | E73: =IF(ข้อมูลนักเรียน!C73=0,"",ข้อมูลนักเรียน!G73) ->  | F73: =ข้อมูลนักเรียน!B73 -> 0 | AG73: =IF(COUNTIFS(Z73:AD73,"=มผ") > 0,"ไม่ผ่าน","ผ่าน") -> ผ่าน | AH73: =ROUNDDOWN(0,2) -> 0 | AJ73: =IF(AF73=1,"ผ่าน",IF(AF73=2,"ดี",IF(AF73=3,"ดีเยี่ยม","ปรับปรุง"))) -> ปรับปรุง | AL73: 22
A74: =ข้อมูลนักเรียน!A74 -> 0 | B74: =IF(ข้อมูลนักเรียน!B74=0,"",ข้อมูลนักเรียน!B74) ->  | C74: =IF(ข้อมูลนักเรียน!C74=0,"",ข้อมูลนักเรียน!C74) ->  | D74: =IF(ข้อมูลนักเรียน!C74=0,"",ข้อมูลนักเรียน!D74 & ข้อมูลนักเรียน!E74 & " "& ข้อมูลนักเรียน!F74) ->  | E74: =IF(ข้อมูลนักเรียน!C74=0,"",ข้อมูลนักเรียน!G74) ->  | F74: =ข้อมูลนักเรียน!B74 -> 0 | AG74: ผ่าน | AH74: 0 | AJ74: ปรับปรุง | AL74: 22
A75: =ข้อมูลนักเรียน!A75 -> 0 | B75: =IF(ข้อมูลนักเรียน!B75=0,"",ข้อมูลนักเรียน!B75) ->  | C75: =IF(ข้อมูลนักเรียน!C75=0,"",ข้อมูลนักเรียน!C75) ->  | D75: =IF(ข้อมูลนักเรียน!C75=0,"",ข้อมูลนักเรียน!D75 & ข้อมูลนักเรียน!E75 & " "& ข้อมูลนักเรียน!F75) ->  | E75: =IF(ข้อมูลนักเรียน!C75=0,"",ข้อมูลนักเรียน!G75) ->  | F75: =ข้อมูลนักเรียน!B75 -> 0 | AG75: ผ่าน | AH75: 0 | AJ75: ปรับปรุง | AL75: 22
A76: =ข้อมูลนักเรียน!A76 -> 0 | B76: =IF(ข้อมูลนักเรียน!B76=0,"",ข้อมูลนักเรียน!B76) ->  | C76: =IF(ข้อมูลนักเรียน!C76=0,"",ข้อมูลนักเรียน!C76) ->  | D76: =IF(ข้อมูลนักเรียน!C76=0,"",ข้อมูลนักเรียน!D76 & ข้อมูลนักเรียน!E76 & " "& ข้อมูลนักเรียน!F76) ->  | E76: =IF(ข้อมูลนักเรียน!C76=0,"",ข้อมูลนักเรียน!G76) ->  | F76: =ข้อมูลนักเรียน!B76 -> 0 | AG76: ผ่าน | AH76: 0 | AJ76: ปรับปรุง | AL76: 22
A77: =ข้อมูลนักเรียน!A77 -> 0 | B77: =IF(ข้อมูลนักเรียน!B77=0,"",ข้อมูลนักเรียน!B77) ->  | C77: =IF(ข้อมูลนักเรียน!C77=0,"",ข้อมูลนักเรียน!C77) ->  | D77: =IF(ข้อมูลนักเรียน!C77=0,"",ข้อมูลนักเรียน!D77 & ข้อมูลนักเรียน!E77 & " "& ข้อมูลนักเรียน!F77) ->  | E77: =IF(ข้อมูลนักเรียน!C77=0,"",ข้อมูลนักเรียน!G77) ->  | F77: =ข้อมูลนักเรียน!B77 -> 0 | AG77: ผ่าน | AH77: 0 | AJ77: ปรับปรุง | AL77: 22
A78: =ข้อมูลนักเรียน!A78 -> 0 | B78: =IF(ข้อมูลนักเรียน!B78=0,"",ข้อมูลนักเรียน!B78) ->  | C78: =IF(ข้อมูลนักเรียน!C78=0,"",ข้อมูลนักเรียน!C78) ->  | D78: =IF(ข้อมูลนักเรียน!C78=0,"",ข้อมูลนักเรียน!D78 & ข้อมูลนักเรียน!E78 & " "& ข้อมูลนักเรียน!F78) ->  | E78: =IF(ข้อมูลนักเรียน!C78=0,"",ข้อมูลนักเรียน!G78) ->  | F78: =ข้อมูลนักเรียน!B78 -> 0 | AG78: ผ่าน | AH78: 0 | AJ78: ปรับปรุง | AL78: 22
A79: =ข้อมูลนักเรียน!A79 -> 0 | B79: =IF(ข้อมูลนักเรียน!B79=0,"",ข้อมูลนักเรียน!B79) ->  | C79: =IF(ข้อมูลนักเรียน!C79=0,"",ข้อมูลนักเรียน!C79) ->  | D79: =IF(ข้อมูลนักเรียน!C79=0,"",ข้อมูลนักเรียน!D79 & ข้อมูลนักเรียน!E79 & " "& ข้อมูลนักเรียน!F79) ->  | E79: =IF(ข้อมูลนักเรียน!C79=0,"",ข้อมูลนักเรียน!G79) ->  | F79: =ข้อมูลนักเรียน!B79 -> 0 | AG79: ผ่าน | AH79: 0 | AJ79: ปรับปรุง | AL79: 22
A80: =ข้อมูลนักเรียน!A80 -> 0 | B80: =IF(ข้อมูลนักเรียน!B80=0,"",ข้อมูลนักเรียน!B80) ->  | C80: =IF(ข้อมูลนักเรียน!C80=0,"",ข้อมูลนักเรียน!C80) ->  | D80: =IF(ข้อมูลนักเรียน!C80=0,"",ข้อมูลนักเรียน!D80 & ข้อมูลนักเรียน!E80 & " "& ข้อมูลนักเรียน!F80) ->  | E80: =IF(ข้อมูลนักเรียน!C80=0,"",ข้อมูลนักเรียน!G80) ->  | F80: =ข้อมูลนักเรียน!B80 -> 0 | AG80: ผ่าน | AH80: 0 | AJ80: ปรับปรุง | AL80: 22
A81: =ข้อมูลนักเรียน!A81 -> 0 | B81: =IF(ข้อมูลนักเรียน!B81=0,"",ข้อมูลนักเรียน!B81) ->  | C81: =IF(ข้อมูลนักเรียน!C81=0,"",ข้อมูลนักเรียน!C81) ->  | D81: =IF(ข้อมูลนักเรียน!C81=0,"",ข้อมูลนักเรียน!D81 & ข้อมูลนักเรียน!E81 & " "& ข้อมูลนักเรียน!F81) ->  | E81: =IF(ข้อมูลนักเรียน!C81=0,"",ข้อมูลนักเรียน!G81) ->  | F81: =ข้อมูลนักเรียน!B81 -> 0 | AG81: ผ่าน | AH81: 0 | AJ81: ปรับปรุง | AL81: 22
A82: =ข้อมูลนักเรียน!A82 -> 0 | B82: =IF(ข้อมูลนักเรียน!B82=0,"",ข้อมูลนักเรียน!B82) ->  | C82: =IF(ข้อมูลนักเรียน!C82=0,"",ข้อมูลนักเรียน!C82) ->  | D82: =IF(ข้อมูลนักเรียน!C82=0,"",ข้อมูลนักเรียน!D82 & ข้อมูลนักเรียน!E82 & " "& ข้อมูลนักเรียน!F82) ->  | E82: =IF(ข้อมูลนักเรียน!C82=0,"",ข้อมูลนักเรียน!G82) ->  | F82: =ข้อมูลนักเรียน!B82 -> 0 | AG82: ผ่าน | AH82: 0 | AJ82: ปรับปรุง | AL82: 22
A83: =ข้อมูลนักเรียน!A83 -> 0 | B83: =IF(ข้อมูลนักเรียน!B83=0,"",ข้อมูลนักเรียน!B83) ->  | C83: =IF(ข้อมูลนักเรียน!C83=0,"",ข้อมูลนักเรียน!C83) ->  | D83: =IF(ข้อมูลนักเรียน!C83=0,"",ข้อมูลนักเรียน!D83 & ข้อมูลนักเรียน!E83 & " "& ข้อมูลนักเรียน!F83) ->  | E83: =IF(ข้อมูลนักเรียน!C83=0,"",ข้อมูลนักเรียน!G83) ->  | F83: =ข้อมูลนักเรียน!B83 -> 0 | AG83: ผ่าน | AH83: 0 | AJ83: ปรับปรุง | AL83: 22
A84: =ข้อมูลนักเรียน!A84 -> 0 | B84: =IF(ข้อมูลนักเรียน!B84=0,"",ข้อมูลนักเรียน!B84) ->  | C84: =IF(ข้อมูลนักเรียน!C84=0,"",ข้อมูลนักเรียน!C84) ->  | D84: =IF(ข้อมูลนักเรียน!C84=0,"",ข้อมูลนักเรียน!D84 & ข้อมูลนักเรียน!E84 & " "& ข้อมูลนักเรียน!F84) ->  | E84: =IF(ข้อมูลนักเรียน!C84=0,"",ข้อมูลนักเรียน!G84) ->  | F84: =ข้อมูลนักเรียน!B84 -> 0 | AG84: ผ่าน | AH84: 0 | AJ84: ปรับปรุง | AL84: 22
A85: =ข้อมูลนักเรียน!A85 -> 0 | B85: =IF(ข้อมูลนักเรียน!B85=0,"",ข้อมูลนักเรียน!B85) ->  | C85: =IF(ข้อมูลนักเรียน!C85=0,"",ข้อมูลนักเรียน!C85) ->  | D85: =IF(ข้อมูลนักเรียน!C85=0,"",ข้อมูลนักเรียน!D85 & ข้อมูลนักเรียน!E85 & " "& ข้อมูลนักเรียน!F85) ->  | E85: =IF(ข้อมูลนักเรียน!C85=0,"",ข้อมูลนักเรียน!G85) ->  | F85: =ข้อมูลนักเรียน!B85 -> 0 | AG85: ผ่าน | AH85: 0 | AJ85: ปรับปรุง | AL85: 22
A86: =ข้อมูลนักเรียน!A86 -> 0 | B86: =IF(ข้อมูลนักเรียน!B86=0,"",ข้อมูลนักเรียน!B86) ->  | C86: =IF(ข้อมูลนักเรียน!C86=0,"",ข้อมูลนักเรียน!C86) ->  | D86: =IF(ข้อมูลนักเรียน!C86=0,"",ข้อมูลนักเรียน!D86 & ข้อมูลนักเรียน!E86 & " "& ข้อมูลนักเรียน!F86) ->  | E86: =IF(ข้อมูลนักเรียน!C86=0,"",ข้อมูลนักเรียน!G86) ->  | F86: =ข้อมูลนักเรียน!B86 -> 0 | AG86: ผ่าน | AH86: 0 | AJ86: ปรับปรุง | AL86: 22
A87: =ข้อมูลนักเรียน!A87 -> 0 | B87: =IF(ข้อมูลนักเรียน!B87=0,"",ข้อมูลนักเรียน!B87) ->  | C87: =IF(ข้อมูลนักเรียน!C87=0,"",ข้อมูลนักเรียน!C87) ->  | D87: =IF(ข้อมูลนักเรียน!C87=0,"",ข้อมูลนักเรียน!D87 & ข้อมูลนักเรียน!E87 & " "& ข้อมูลนักเรียน!F87) ->  | E87: =IF(ข้อมูลนักเรียน!C87=0,"",ข้อมูลนักเรียน!G87) ->  | F87: =ข้อมูลนักเรียน!B87 -> 0 | AG87: ผ่าน | AH87: 0 | AJ87: ปรับปรุง | AL87: 22
A88: =ข้อมูลนักเรียน!A88 -> 0 | B88: =IF(ข้อมูลนักเรียน!B88=0,"",ข้อมูลนักเรียน!B88) ->  | C88: =IF(ข้อมูลนักเรียน!C88=0,"",ข้อมูลนักเรียน!C88) ->  | D88: =IF(ข้อมูลนักเรียน!C88=0,"",ข้อมูลนักเรียน!D88 & ข้อมูลนักเรียน!E88 & " "& ข้อมูลนักเรียน!F88) ->  | E88: =IF(ข้อมูลนักเรียน!C88=0,"",ข้อมูลนักเรียน!G88) ->  | F88: =ข้อมูลนักเรียน!B88 -> 0 | AG88: ผ่าน | AH88: 0 | AJ88: ปรับปรุง | AL88: 22
A89: =ข้อมูลนักเรียน!A89 -> 0 | B89: =IF(ข้อมูลนักเรียน!B89=0,"",ข้อมูลนักเรียน!B89) ->  | C89: =IF(ข้อมูลนักเรียน!C89=0,"",ข้อมูลนักเรียน!C89) ->  | D89: =IF(ข้อมูลนักเรียน!C89=0,"",ข้อมูลนักเรียน!D89 & ข้อมูลนักเรียน!E89 & " "& ข้อมูลนักเรียน!F89) ->  | E89: =IF(ข้อมูลนักเรียน!C89=0,"",ข้อมูลนักเรียน!G89) ->  | F89: =ข้อมูลนักเรียน!B89 -> 0 | AG89: ผ่าน | AH89: 0 | AJ89: ปรับปรุง | AL89: 22
A90: =ข้อมูลนักเรียน!A90 -> 0 | B90: =IF(ข้อมูลนักเรียน!B90=0,"",ข้อมูลนักเรียน!B90) ->  | C90: =IF(ข้อมูลนักเรียน!C90=0,"",ข้อมูลนักเรียน!C90) ->  | D90: =IF(ข้อมูลนักเรียน!C90=0,"",ข้อมูลนักเรียน!D90 & ข้อมูลนักเรียน!E90 & " "& ข้อมูลนักเรียน!F90) ->  | E90: =IF(ข้อมูลนักเรียน!C90=0,"",ข้อมูลนักเรียน!G90) ->  | F90: =ข้อมูลนักเรียน!B90 -> 0 | AG90: ผ่าน | AH90: 0 | AJ90: ปรับปรุง | AL90: 22
A91: =ข้อมูลนักเรียน!A91 -> 0 | B91: =IF(ข้อมูลนักเรียน!B91=0,"",ข้อมูลนักเรียน!B91) ->  | C91: =IF(ข้อมูลนักเรียน!C91=0,"",ข้อมูลนักเรียน!C91) ->  | D91: =IF(ข้อมูลนักเรียน!C91=0,"",ข้อมูลนักเรียน!D91 & ข้อมูลนักเรียน!E91 & " "& ข้อมูลนักเรียน!F91) ->  | E91: =IF(ข้อมูลนักเรียน!C91=0,"",ข้อมูลนักเรียน!G91) ->  | F91: =ข้อมูลนักเรียน!B91 -> 0 | AG91: ผ่าน | AH91: 0 | AJ91: ปรับปรุง | AL91: 22
A92: =ข้อมูลนักเรียน!A92 -> 0 | B92: =IF(ข้อมูลนักเรียน!B92=0,"",ข้อมูลนักเรียน!B92) ->  | C92: =IF(ข้อมูลนักเรียน!C92=0,"",ข้อมูลนักเรียน!C92) ->  | D92: =IF(ข้อมูลนักเรียน!C92=0,"",ข้อมูลนักเรียน!D92 & ข้อมูลนักเรียน!E92 & " "& ข้อมูลนักเรียน!F92) ->  | E92: =IF(ข้อมูลนักเรียน!C92=0,"",ข้อมูลนักเรียน!G92) ->  | F92: =ข้อมูลนักเรียน!B92 -> 0 | AG92: ผ่าน | AH92: 0 | AJ92: ปรับปรุง | AL92: 22
A93: =ข้อมูลนักเรียน!A93 -> 0 | B93: =IF(ข้อมูลนักเรียน!B93=0,"",ข้อมูลนักเรียน!B93) ->  | C93: =IF(ข้อมูลนักเรียน!C93=0,"",ข้อมูลนักเรียน!C93) ->  | D93: =IF(ข้อมูลนักเรียน!C93=0,"",ข้อมูลนักเรียน!D93 & ข้อมูลนักเรียน!E93 & " "& ข้อมูลนักเรียน!F93) ->  | E93: =IF(ข้อมูลนักเรียน!C93=0,"",ข้อมูลนักเรียน!G93) ->  | F93: =ข้อมูลนักเรียน!B93 -> 0 | AG93: ผ่าน | AH93: 0 | AJ93: ปรับปรุง | AL93: 22
A94: =ข้อมูลนักเรียน!A94 -> 0 | B94: =IF(ข้อมูลนักเรียน!B94=0,"",ข้อมูลนักเรียน!B94) ->  | C94: =IF(ข้อมูลนักเรียน!C94=0,"",ข้อมูลนักเรียน!C94) ->  | D94: =IF(ข้อมูลนักเรียน!C94=0,"",ข้อมูลนักเรียน!D94 & ข้อมูลนักเรียน!E94 & " "& ข้อมูลนักเรียน!F94) ->  | E94: =IF(ข้อมูลนักเรียน!C94=0,"",ข้อมูลนักเรียน!G94) ->  | F94: =ข้อมูลนักเรียน!B94 -> 0 | AG94: ผ่าน | AH94: 0 | AJ94: ปรับปรุง | AL94: 22
A95: =ข้อมูลนักเรียน!A95 -> 0 | B95: =IF(ข้อมูลนักเรียน!B95=0,"",ข้อมูลนักเรียน!B95) ->  | C95: =IF(ข้อมูลนักเรียน!C95=0,"",ข้อมูลนักเรียน!C95) ->  | D95: =IF(ข้อมูลนักเรียน!C95=0,"",ข้อมูลนักเรียน!D95 & ข้อมูลนักเรียน!E95 & " "& ข้อมูลนักเรียน!F95) ->  | E95: =IF(ข้อมูลนักเรียน!C95=0,"",ข้อมูลนักเรียน!G95) ->  | F95: =ข้อมูลนักเรียน!B95 -> 0 | AG95: ผ่าน | AH95: 0 | AJ95: ปรับปรุง | AL95: 22
A96: =ข้อมูลนักเรียน!A96 -> 0 | B96: =IF(ข้อมูลนักเรียน!B96=0,"",ข้อมูลนักเรียน!B96) ->  | C96: =IF(ข้อมูลนักเรียน!C96=0,"",ข้อมูลนักเรียน!C96) ->  | D96: =IF(ข้อมูลนักเรียน!C96=0,"",ข้อมูลนักเรียน!D96 & ข้อมูลนักเรียน!E96 & " "& ข้อมูลนักเรียน!F96) ->  | E96: =IF(ข้อมูลนักเรียน!C96=0,"",ข้อมูลนักเรียน!G96) ->  | F96: =ข้อมูลนักเรียน!B96 -> 0 | AG96: ผ่าน | AH96: 0 | AJ96: ปรับปรุง | AL96: 22
A97: =ข้อมูลนักเรียน!A97 -> 0 | B97: =IF(ข้อมูลนักเรียน!B97=0,"",ข้อมูลนักเรียน!B97) ->  | C97: =IF(ข้อมูลนักเรียน!C97=0,"",ข้อมูลนักเรียน!C97) ->  | D97: =IF(ข้อมูลนักเรียน!C97=0,"",ข้อมูลนักเรียน!D97 & ข้อมูลนักเรียน!E97 & " "& ข้อมูลนักเรียน!F97) ->  | E97: =IF(ข้อมูลนักเรียน!C97=0,"",ข้อมูลนักเรียน!G97) ->  | F97: =ข้อมูลนักเรียน!B97 -> 0 | AG97: ผ่าน | AH97: 0 | AJ97: ปรับปรุง | AL97: 22
A98: =ข้อมูลนักเรียน!A98 -> 0 | B98: =IF(ข้อมูลนักเรียน!B98=0,"",ข้อมูลนักเรียน!B98) ->  | C98: =IF(ข้อมูลนักเรียน!C98=0,"",ข้อมูลนักเรียน!C98) ->  | D98: =IF(ข้อมูลนักเรียน!C98=0,"",ข้อมูลนักเรียน!D98 & ข้อมูลนักเรียน!E98 & " "& ข้อมูลนักเรียน!F98) ->  | E98: =IF(ข้อมูลนักเรียน!C98=0,"",ข้อมูลนักเรียน!G98) ->  | F98: =ข้อมูลนักเรียน!B98 -> 0 | AG98: ผ่าน | AH98: 0 | AJ98: ปรับปรุง | AL98: 22
A99: =ข้อมูลนักเรียน!A99 -> 0 | B99: =IF(ข้อมูลนักเรียน!B99=0,"",ข้อมูลนักเรียน!B99) ->  | C99: =IF(ข้อมูลนักเรียน!C99=0,"",ข้อมูลนักเรียน!C99) ->  | D99: =IF(ข้อมูลนักเรียน!C99=0,"",ข้อมูลนักเรียน!D99 & ข้อมูลนักเรียน!E99 & " "& ข้อมูลนักเรียน!F99) ->  | E99: =IF(ข้อมูลนักเรียน!C99=0,"",ข้อมูลนักเรียน!G99) ->  | F99: =ข้อมูลนักเรียน!B99 -> 0 | AG99: ผ่าน | AH99: 0 | AJ99: ปรับปรุง | AL99: 22
A100: =ข้อมูลนักเรียน!A100 -> 0 | B100: =IF(ข้อมูลนักเรียน!B100=0,"",ข้อมูลนักเรียน!B100) ->  | C100: =IF(ข้อมูลนักเรียน!C100=0,"",ข้อมูลนักเรียน!C100) ->  | D100: =IF(ข้อมูลนักเรียน!C100=0,"",ข้อมูลนักเรียน!D100 & ข้อมูลนักเรียน!E100 & " "& ข้อมูลนักเรียน!F100) ->  | E100: =IF(ข้อมูลนักเรียน!C100=0,"",ข้อมูลนักเรียน!G100) ->  | F100: =ข้อมูลนักเรียน!B100 -> 0 | AG100: ผ่าน | AH100: 0 | AJ100: ปรับปรุง | AL100: 22
A101: =ข้อมูลนักเรียน!A101 -> 0 | B101: =IF(ข้อมูลนักเรียน!B101=0,"",ข้อมูลนักเรียน!B101) ->  | C101: =IF(ข้อมูลนักเรียน!C101=0,"",ข้อมูลนักเรียน!C101) ->  | D101: =IF(ข้อมูลนักเรียน!C101=0,"",ข้อมูลนักเรียน!D101 & ข้อมูลนักเรียน!E101 & " "& ข้อมูลนักเรียน!F101) ->  | E101: =IF(ข้อมูลนักเรียน!C101=0,"",ข้อมูลนักเรียน!G101) ->  | F101: =ข้อมูลนักเรียน!B101 -> 0 | AG101: ผ่าน | AH101: 0 | AJ101: ปรับปรุง | AL101: 22
A102: =ข้อมูลนักเรียน!A102 -> 0 | B102: =IF(ข้อมูลนักเรียน!B102=0,"",ข้อมูลนักเรียน!B102) ->  | C102: =IF(ข้อมูลนักเรียน!C102=0,"",ข้อมูลนักเรียน!C102) ->  | D102: =IF(ข้อมูลนักเรียน!C102=0,"",ข้อมูลนักเรียน!D102 & ข้อมูลนักเรียน!E102 & " "& ข้อมูลนักเรียน!F102) ->  | E102: =IF(ข้อมูลนักเรียน!C102=0,"",ข้อมูลนักเรียน!G102) ->  | F102: =ข้อมูลนักเรียน!B102 -> 0 | AG102: ผ่าน | AH102: 0 | AJ102: ปรับปรุง | AL102: 22
A103: =ข้อมูลนักเรียน!A103 -> 0 | B103: =IF(ข้อมูลนักเรียน!B103=0,"",ข้อมูลนักเรียน!B103) ->  | C103: =IF(ข้อมูลนักเรียน!C103=0,"",ข้อมูลนักเรียน!C103) ->  | D103: =IF(ข้อมูลนักเรียน!C103=0,"",ข้อมูลนักเรียน!D103 & ข้อมูลนักเรียน!E103 & " "& ข้อมูลนักเรียน!F103) ->  | E103: =IF(ข้อมูลนักเรียน!C103=0,"",ข้อมูลนักเรียน!G103) ->  | F103: =ข้อมูลนักเรียน!B103 -> 0 | AG103: ผ่าน | AH103: 0 | AJ103: ปรับปรุง | AL103: 22
A104: =ข้อมูลนักเรียน!A104 -> 0 | B104: =IF(ข้อมูลนักเรียน!B104=0,"",ข้อมูลนักเรียน!B104) ->  | C104: =IF(ข้อมูลนักเรียน!C104=0,"",ข้อมูลนักเรียน!C104) ->  | D104: =IF(ข้อมูลนักเรียน!C104=0,"",ข้อมูลนักเรียน!D104 & ข้อมูลนักเรียน!E104 & " "& ข้อมูลนักเรียน!F104) ->  | E104: =IF(ข้อมูลนักเรียน!C104=0,"",ข้อมูลนักเรียน!G104) ->  | F104: =ข้อมูลนักเรียน!B104 -> 0 | AG104: ผ่าน | AH104: 0 | AJ104: ปรับปรุง | AL104: 22
A105: =ข้อมูลนักเรียน!A105 -> 0 | B105: =IF(ข้อมูลนักเรียน!B105=0,"",ข้อมูลนักเรียน!B105) ->  | C105: =IF(ข้อมูลนักเรียน!C105=0,"",ข้อมูลนักเรียน!C105) ->  | D105: =IF(ข้อมูลนักเรียน!C105=0,"",ข้อมูลนักเรียน!D105 & ข้อมูลนักเรียน!E105 & " "& ข้อมูลนักเรียน!F105) ->  | E105: =IF(ข้อมูลนักเรียน!C105=0,"",ข้อมูลนักเรียน!G105) ->  | F105: =ข้อมูลนักเรียน!B105 -> 0 | AG105: ผ่าน | AH105: =ROUNDDOWN(0,2) -> 0 | AJ105: ปรับปรุง | AL105: 22
A106: =ข้อมูลนักเรียน!A106 -> 0 | B106: =IF(ข้อมูลนักเรียน!B106=0,"",ข้อมูลนักเรียน!B106) ->  | C106: =IF(ข้อมูลนักเรียน!C106=0,"",ข้อมูลนักเรียน!C106) ->  | D106: =IF(ข้อมูลนักเรียน!C106=0,"",ข้อมูลนักเรียน!D106 & ข้อมูลนักเรียน!E106 & " "& ข้อมูลนักเรียน!F106) ->  | E106: =IF(ข้อมูลนักเรียน!C106=0,"",ข้อมูลนักเรียน!G106) ->  | F106: =ข้อมูลนักเรียน!B106 -> 0 | AG106: ผ่าน | AH106: 0 | AJ106: ปรับปรุง | AL106: 22
A107: =ข้อมูลนักเรียน!A107 -> 0 | B107: =IF(ข้อมูลนักเรียน!B107=0,"",ข้อมูลนักเรียน!B107) ->  | C107: =IF(ข้อมูลนักเรียน!C107=0,"",ข้อมูลนักเรียน!C107) ->  | D107: =IF(ข้อมูลนักเรียน!C107=0,"",ข้อมูลนักเรียน!D107 & ข้อมูลนักเรียน!E107 & " "& ข้อมูลนักเรียน!F107) ->  | E107: =IF(ข้อมูลนักเรียน!C107=0,"",ข้อมูลนักเรียน!G107) ->  | F107: =ข้อมูลนักเรียน!B107 -> 0 | AG107: ผ่าน | AH107: 0 | AJ107: ปรับปรุง | AL107: 22
A108: =ข้อมูลนักเรียน!A108 -> 0 | B108: =IF(ข้อมูลนักเรียน!B108=0,"",ข้อมูลนักเรียน!B108) ->  | C108: =IF(ข้อมูลนักเรียน!C108=0,"",ข้อมูลนักเรียน!C108) ->  | D108: =IF(ข้อมูลนักเรียน!C108=0,"",ข้อมูลนักเรียน!D108 & ข้อมูลนักเรียน!E108 & " "& ข้อมูลนักเรียน!F108) ->  | E108: =IF(ข้อมูลนักเรียน!C108=0,"",ข้อมูลนักเรียน!G108) ->  | F108: =ข้อมูลนักเรียน!B108 -> 0 | AG108: ผ่าน | AH108: 0 | AJ108: ปรับปรุง | AL108: 22
A109: =ข้อมูลนักเรียน!A109 -> 0 | B109: =IF(ข้อมูลนักเรียน!B109=0,"",ข้อมูลนักเรียน!B109) ->  | C109: =IF(ข้อมูลนักเรียน!C109=0,"",ข้อมูลนักเรียน!C109) ->  | D109: =IF(ข้อมูลนักเรียน!C109=0,"",ข้อมูลนักเรียน!D109 & ข้อมูลนักเรียน!E109 & " "& ข้อมูลนักเรียน!F109) ->  | E109: =IF(ข้อมูลนักเรียน!C109=0,"",ข้อมูลนักเรียน!G109) ->  | F109: =ข้อมูลนักเรียน!B109 -> 0 | AG109: ผ่าน | AH109: 0 | AJ109: ปรับปรุง | AL109: 22
A110: =ข้อมูลนักเรียน!A110 -> 0 | B110: =IF(ข้อมูลนักเรียน!B110=0,"",ข้อมูลนักเรียน!B110) ->  | C110: =IF(ข้อมูลนักเรียน!C110=0,"",ข้อมูลนักเรียน!C110) ->  | D110: =IF(ข้อมูลนักเรียน!C110=0,"",ข้อมูลนักเรียน!D110 & ข้อมูลนักเรียน!E110 & " "& ข้อมูลนักเรียน!F110) ->  | E110: =IF(ข้อมูลนักเรียน!C110=0,"",ข้อมูลนักเรียน!G110) ->  | F110: =ข้อมูลนักเรียน!B110 -> 0 | AG110: ผ่าน | AH110: 0 | AJ110: ปรับปรุง | AL110: 22
A111: =ข้อมูลนักเรียน!A111 -> 0 | B111: =IF(ข้อมูลนักเรียน!B111=0,"",ข้อมูลนักเรียน!B111) ->  | C111: =IF(ข้อมูลนักเรียน!C111=0,"",ข้อมูลนักเรียน!C111) ->  | D111: =IF(ข้อมูลนักเรียน!C111=0,"",ข้อมูลนักเรียน!D111 & ข้อมูลนักเรียน!E111 & " "& ข้อมูลนักเรียน!F111) ->  | E111: =IF(ข้อมูลนักเรียน!C111=0,"",ข้อมูลนักเรียน!G111) ->  | F111: =ข้อมูลนักเรียน!B111 -> 0 | AG111: ผ่าน | AH111: 0 | AJ111: ปรับปรุง | AL111: 22
A112: =ข้อมูลนักเรียน!A112 -> 0 | B112: =IF(ข้อมูลนักเรียน!B112=0,"",ข้อมูลนักเรียน!B112) ->  | C112: =IF(ข้อมูลนักเรียน!C112=0,"",ข้อมูลนักเรียน!C112) ->  | D112: =IF(ข้อมูลนักเรียน!C112=0,"",ข้อมูลนักเรียน!D112 & ข้อมูลนักเรียน!E112 & " "& ข้อมูลนักเรียน!F112) ->  | E112: =IF(ข้อมูลนักเรียน!C112=0,"",ข้อมูลนักเรียน!G112) ->  | F112: =ข้อมูลนักเรียน!B112 -> 0 | AG112: ผ่าน | AH112: 0 | AJ112: ปรับปรุง | AL112: 22
A113: =ข้อมูลนักเรียน!A113 -> 0 | B113: =IF(ข้อมูลนักเรียน!B113=0,"",ข้อมูลนักเรียน!B113) ->  | C113: =IF(ข้อมูลนักเรียน!C113=0,"",ข้อมูลนักเรียน!C113) ->  | D113: =IF(ข้อมูลนักเรียน!C113=0,"",ข้อมูลนักเรียน!D113 & ข้อมูลนักเรียน!E113 & " "& ข้อมูลนักเรียน!F113) ->  | E113: =IF(ข้อมูลนักเรียน!C113=0,"",ข้อมูลนักเรียน!G113) ->  | F113: =ข้อมูลนักเรียน!B113 -> 0 | AG113: ผ่าน | AH113: 0 | AJ113: ปรับปรุง | AL113: 22
A114: =ข้อมูลนักเรียน!A114 -> 0 | B114: =IF(ข้อมูลนักเรียน!B114=0,"",ข้อมูลนักเรียน!B114) ->  | C114: =IF(ข้อมูลนักเรียน!C114=0,"",ข้อมูลนักเรียน!C114) ->  | D114: =IF(ข้อมูลนักเรียน!C114=0,"",ข้อมูลนักเรียน!D114 & ข้อมูลนักเรียน!E114 & " "& ข้อมูลนักเรียน!F114) ->  | E114: =IF(ข้อมูลนักเรียน!C114=0,"",ข้อมูลนักเรียน!G114) ->  | F114: =ข้อมูลนักเรียน!B114 -> 0 | AG114: ผ่าน | AH114: 0 | AJ114: ปรับปรุง | AL114: 22
A115: =ข้อมูลนักเรียน!A115 -> 0 | B115: =IF(ข้อมูลนักเรียน!B115=0,"",ข้อมูลนักเรียน!B115) ->  | C115: =IF(ข้อมูลนักเรียน!C115=0,"",ข้อมูลนักเรียน!C115) ->  | D115: =IF(ข้อมูลนักเรียน!C115=0,"",ข้อมูลนักเรียน!D115 & ข้อมูลนักเรียน!E115 & " "& ข้อมูลนักเรียน!F115) ->  | E115: =IF(ข้อมูลนักเรียน!C115=0,"",ข้อมูลนักเรียน!G115) ->  | F115: =ข้อมูลนักเรียน!B115 -> 0 | AG115: ผ่าน | AH115: 0 | AJ115: ปรับปรุง | AL115: 22
A116: =ข้อมูลนักเรียน!A116 -> 0 | B116: =IF(ข้อมูลนักเรียน!B116=0,"",ข้อมูลนักเรียน!B116) ->  | C116: =IF(ข้อมูลนักเรียน!C116=0,"",ข้อมูลนักเรียน!C116) ->  | D116: =IF(ข้อมูลนักเรียน!C116=0,"",ข้อมูลนักเรียน!D116 & ข้อมูลนักเรียน!E116 & " "& ข้อมูลนักเรียน!F116) ->  | E116: =IF(ข้อมูลนักเรียน!C116=0,"",ข้อมูลนักเรียน!G116) ->  | F116: =ข้อมูลนักเรียน!B116 -> 0 | AG116: ผ่าน | AH116: 0 | AJ116: ปรับปรุง | AL116: 22
A117: =ข้อมูลนักเรียน!A117 -> 0 | B117: =IF(ข้อมูลนักเรียน!B117=0,"",ข้อมูลนักเรียน!B117) ->  | C117: =IF(ข้อมูลนักเรียน!C117=0,"",ข้อมูลนักเรียน!C117) ->  | D117: =IF(ข้อมูลนักเรียน!C117=0,"",ข้อมูลนักเรียน!D117 & ข้อมูลนักเรียน!E117 & " "& ข้อมูลนักเรียน!F117) ->  | E117: =IF(ข้อมูลนักเรียน!C117=0,"",ข้อมูลนักเรียน!G117) ->  | F117: =ข้อมูลนักเรียน!B117 -> 0 | AG117: ผ่าน | AH117: 0 | AJ117: ปรับปรุง | AL117: 22
A118: =ข้อมูลนักเรียน!A118 -> 0 | B118: =IF(ข้อมูลนักเรียน!B118=0,"",ข้อมูลนักเรียน!B118) ->  | C118: =IF(ข้อมูลนักเรียน!C118=0,"",ข้อมูลนักเรียน!C118) ->  | D118: =IF(ข้อมูลนักเรียน!C118=0,"",ข้อมูลนักเรียน!D118 & ข้อมูลนักเรียน!E118 & " "& ข้อมูลนักเรียน!F118) ->  | E118: =IF(ข้อมูลนักเรียน!C118=0,"",ข้อมูลนักเรียน!G118) ->  | F118: =ข้อมูลนักเรียน!B118 -> 0 | AG118: ผ่าน | AH118: 0 | AJ118: ปรับปรุง | AL118: 22
A119: =ข้อมูลนักเรียน!A119 -> 0 | B119: =IF(ข้อมูลนักเรียน!B119=0,"",ข้อมูลนักเรียน!B119) ->  | C119: =IF(ข้อมูลนักเรียน!C119=0,"",ข้อมูลนักเรียน!C119) ->  | D119: =IF(ข้อมูลนักเรียน!C119=0,"",ข้อมูลนักเรียน!D119 & ข้อมูลนักเรียน!E119 & " "& ข้อมูลนักเรียน!F119) ->  | E119: =IF(ข้อมูลนักเรียน!C119=0,"",ข้อมูลนักเรียน!G119) ->  | F119: =ข้อมูลนักเรียน!B119 -> 0 | AG119: ผ่าน | AH119: 0 | AJ119: ปรับปรุง | AL119: 22
A120: =ข้อมูลนักเรียน!A120 -> 0 | B120: =IF(ข้อมูลนักเรียน!B120=0,"",ข้อมูลนักเรียน!B120) ->  | C120: =IF(ข้อมูลนักเรียน!C120=0,"",ข้อมูลนักเรียน!C120) ->  | D120: =IF(ข้อมูลนักเรียน!C120=0,"",ข้อมูลนักเรียน!D120 & ข้อมูลนักเรียน!E120 & " "& ข้อมูลนักเรียน!F120) ->  | E120: =IF(ข้อมูลนักเรียน!C120=0,"",ข้อมูลนักเรียน!G120) ->  | F120: =ข้อมูลนักเรียน!B120 -> 0 | AG120: ผ่าน | AH120: 0 | AJ120: ปรับปรุง | AL120: 22
A121: =ข้อมูลนักเรียน!A121 -> 0 | B121: =IF(ข้อมูลนักเรียน!B121=0,"",ข้อมูลนักเรียน!B121) ->  | C121: =IF(ข้อมูลนักเรียน!C121=0,"",ข้อมูลนักเรียน!C121) ->  | D121: =IF(ข้อมูลนักเรียน!C121=0,"",ข้อมูลนักเรียน!D121 & ข้อมูลนักเรียน!E121 & " "& ข้อมูลนักเรียน!F121) ->  | E121: =IF(ข้อมูลนักเรียน!C121=0,"",ข้อมูลนักเรียน!G121) ->  | F121: =ข้อมูลนักเรียน!B121 -> 0 | AG121: ผ่าน | AH121: 0 | AJ121: ปรับปรุง | AL121: 22
A122: =ข้อมูลนักเรียน!A122 -> 0 | B122: =IF(ข้อมูลนักเรียน!B122=0,"",ข้อมูลนักเรียน!B122) ->  | C122: =IF(ข้อมูลนักเรียน!C122=0,"",ข้อมูลนักเรียน!C122) ->  | D122: =IF(ข้อมูลนักเรียน!C122=0,"",ข้อมูลนักเรียน!D122 & ข้อมูลนักเรียน!E122 & " "& ข้อมูลนักเรียน!F122) ->  | E122: =IF(ข้อมูลนักเรียน!C122=0,"",ข้อมูลนักเรียน!G122) ->  | F122: =ข้อมูลนักเรียน!B122 -> 0 | AG122: ผ่าน | AH122: 0 | AJ122: ปรับปรุง | AL122: 22
A123: =ข้อมูลนักเรียน!A123 -> 0 | B123: =IF(ข้อมูลนักเรียน!B123=0,"",ข้อมูลนักเรียน!B123) ->  | C123: =IF(ข้อมูลนักเรียน!C123=0,"",ข้อมูลนักเรียน!C123) ->  | D123: =IF(ข้อมูลนักเรียน!C123=0,"",ข้อมูลนักเรียน!D123 & ข้อมูลนักเรียน!E123 & " "& ข้อมูลนักเรียน!F123) ->  | E123: =IF(ข้อมูลนักเรียน!C123=0,"",ข้อมูลนักเรียน!G123) ->  | F123: =ข้อมูลนักเรียน!B123 -> 0 | AG123: ผ่าน | AH123: 0 | AJ123: ปรับปรุง | AL123: 22
A124: =ข้อมูลนักเรียน!A124 -> 0 | B124: =IF(ข้อมูลนักเรียน!B124=0,"",ข้อมูลนักเรียน!B124) ->  | C124: =IF(ข้อมูลนักเรียน!C124=0,"",ข้อมูลนักเรียน!C124) ->  | D124: =IF(ข้อมูลนักเรียน!C124=0,"",ข้อมูลนักเรียน!D124 & ข้อมูลนักเรียน!E124 & " "& ข้อมูลนักเรียน!F124) ->  | E124: =IF(ข้อมูลนักเรียน!C124=0,"",ข้อมูลนักเรียน!G124) ->  | F124: =ข้อมูลนักเรียน!B124 -> 0 | AG124: ผ่าน | AH124: 0 | AJ124: ปรับปรุง | AL124: 22
A125: =ข้อมูลนักเรียน!A125 -> 0 | B125: =IF(ข้อมูลนักเรียน!B125=0,"",ข้อมูลนักเรียน!B125) ->  | C125: =IF(ข้อมูลนักเรียน!C125=0,"",ข้อมูลนักเรียน!C125) ->  | D125: =IF(ข้อมูลนักเรียน!C125=0,"",ข้อมูลนักเรียน!D125 & ข้อมูลนักเรียน!E125 & " "& ข้อมูลนักเรียน!F125) ->  | E125: =IF(ข้อมูลนักเรียน!C125=0,"",ข้อมูลนักเรียน!G125) ->  | F125: =ข้อมูลนักเรียน!B125 -> 0 | AG125: ผ่าน | AH125: 0 | AJ125: ปรับปรุง | AL125: 22
A126: =ข้อมูลนักเรียน!A126 -> 0 | B126: =IF(ข้อมูลนักเรียน!B126=0,"",ข้อมูลนักเรียน!B126) ->  | C126: =IF(ข้อมูลนักเรียน!C126=0,"",ข้อมูลนักเรียน!C126) ->  | D126: =IF(ข้อมูลนักเรียน!C126=0,"",ข้อมูลนักเรียน!D126 & ข้อมูลนักเรียน!E126 & " "& ข้อมูลนักเรียน!F126) ->  | E126: =IF(ข้อมูลนักเรียน!C126=0,"",ข้อมูลนักเรียน!G126) ->  | F126: =ข้อมูลนักเรียน!B126 -> 0 | AG126: ผ่าน | AH126: 0 | AJ126: ปรับปรุง | AL126: 22
H127: =LEFT(H3) -> ท | I127: =LEFT(I3) -> ค | J127: ว | K127: ส | L127: ส | M127: พ | N127: ศ | O127: ง | P127: อ | Q127: ง | R127: ว | S127: ว
D128: เกรด | G128: 0 | H128: =COUNTIF(H$7:H$126,$G128) -> 0 | I128: 0 | J128: 0 | K128: 0 | L128: 0 | M128: 0 | N128: 0 | O128: 0 | P128: 0 | Q128: 0 | R128: 0 | S128: 0 | T128: 0 | U128: 0 | V128: 0 | W128: 0 | X128: 0 | Y128: 0
G129: 1 | H129: =COUNTIF(H$7:H$126,$G129) -> 2 | I129: 1 | J129: 1 | K129: 1 | L129: 1 | M129: 0 | N129: 1 | O129: 0 | P129: 0 | Q129: 0 | R129: 0 | S129: 0 | T129: 0 | U129: =COUNTIF(U$7:U$126,$G129) -> 0 | V129: 0 | W129: 0 | X129: 0 | Y129: 0
G130: 1.5 | H130: 0 | I130: 0 | J130: 0 | K130: 0 | L130: 0 | M130: 0 | N130: 0 | O130: 0 | P130: 1 | Q130: 2 | R130: 0 | S130: 0 | T130: 0 | U130: 0 | V130: 0 | W130: 0 | X130: 2 | Y130: 2
G131: 2 | H131: 0 | I131: 1 | J131: 0 | K131: 0 | L131: 1 | M131: 1 | N131: 0 | O131: 1 | P131: 0 | Q131: 0 | R131: 0 | S131: 0 | T131: 0 | U131: 0 | V131: 0 | W131: 0 | X131: 0 | Y131: 0
G132: 2.5 | H132: 0 | I132: 0 | J132: 0 | K132: 0 | L132: 0 | M132: 0 | N132: 0 | O132: 0 | P132: 0 | Q132: 0 | R132: 0 | S132: 0 | T132: 0 | U132: 0 | V132: 0 | W132: 0 | X132: 0 | Y132: 0
G133: 3 | H133: 0 | I133: 0 | J133: 1 | K133: 0 | L133: 0 | M133: 1 | N133: 1 | O133: 0 | P133: 1 | Q133: 0 | R133: 0 | S133: 0 | T133: 0 | U133: 0 | V133: 0 | W133: 0 | X133: 0 | Y133: 0
G134: 3.5 | H134: 0 | I134: 0 | J134: 0 | K134: 0 | L134: 0 | M134: 0 | N134: 0 | O134: 0 | P134: 0 | Q134: 0 | R134: 0 | S134: 0 | T134: 0 | U134: 0 | V134: 0 | W134: 0 | X134: 0 | Y134: 0
G135: 4 | H135: 0 | I135: 0 | J135: 0 | K135: 1 | L135: 0 | M135: 0 | N135: 0 | O135: 1 | P135: 0 | Q135: 0 | R135: 0 | S135: 0 | T135: 0 | U135: 0 | V135: 0 | W135: 0 | X135: 0 | Y135: 0
G136: ร | H136: 0 | I136: 0 | J136: 0 | K136: 0 | L136: 0 | M136: 0 | N136: 0 | O136: 0 | P136: 0 | Q136: 0 | R136: 0 | S136: 0 | T136: 0 | U136: 0 | V136: 0 | W136: 0 | X136: 0 | Y136: 0
G137: มส | H137: 0 | I137: 0 | J137: 0 | K137: 0 | L137: 0 | M137: 0 | N137: 0 | O137: 0 | P137: 0 | Q137: 0 | R137: 0 | S137: 0 | T137: 0 | U137: 0 | V137: 0 | W137: 0 | X137: 0 | Y137: 0
G138: ผ | H138: 0 | I138: 0 | J138: 0 | K138: 0 | L138: 0 | M138: 0 | N138: 0 | O138: 0 | P138: 0 | Q138: 0 | R138: 0 | S138: 0 | T138: 0 | U138: 0 | V138: 0 | W138: 0 | X138: 0 | Y138: 0
G139: มผ | H139: 0 | I139: 0 | J139: 0 | K139: 0 | L139: 0 | M139: 0 | N139: 0 | O139: 0 | P139: 0 | Q139: 0 | R139: 0 | S139: 0 | T139: 0 | U139: 0 | V139: 0 | W139: 0 | X139: 0 | Y139: 0

Sheet เกรด4
A1: ปีการศึกษา : | D1: =ข้อมูลนักเรียน!F4+3 -> 2553 | P1: ประถมศึกษาปีที่ 4
A2: ห้อง | B2: เลขที่ | C2: รหัสนักเรียน | D2: ชื่อ - สกุล | G2: วิชา | H2: =IF(หลักสูตร!$B$32=0,"ช่องว่าง",หลักสูตร!$C$32) -> ภาษาไทย | I2: =IF(หลักสูตร!$B$33=0,"ช่องว่าง",หลักสูตร!$C$33) -> คณิตศาสตร์ | J2: =IF(หลักสูตร!$B$34=0,"ช่องว่าง",หลักสูตร!$C$34) -> วิทยาศาสตร์ | K2: =IF(หลักสูตร!$B$35=0,"ช่องว่าง",หลักสูตร!$C$35) -> สังคมศึกษา ศาสนาและวัฒนธรรม | L2: =IF(หลักสูตร!$B$36=0,"ช่องว่าง",หลักสูตร!$C$36) -> ประวัติศาสตร์ | M2: =IF(หลักสูตร!$B$37=0,"ช่องว่าง",หลักสูตร!$C$37) -> สุขศึกษาและพลศึกษา | N2: =IF(หลักสูตร!$B$38=0,"ช่องว่าง",หลักสูตร!$C$38) -> ศิลปะ | O2: =IF(หลักสูตร!$B$39=0,"ช่องว่าง",หลักสูตร!$C$39) -> การงานอาชีพและเทคโนโลยี | P2: =IF(หลักสูตร!$B$40=0,"ช่องว่าง",หลักสูตร!$C$40) -> ภาษาต่างประเทศ | Q2: =IF(หลักสูตร!$B$41=0,"ช่องว่าง",หลักสูตร!$C$41) -> คอมพิวเตอร์ | R2: =IF(หลักสูตร!$B$42=0,"ช่องว่าง",หลักสูตร!$C$42) -> เลือกเรียน | S2: =IF(หลักสูตร!$B$43=0,"ช่องว่าง",หลักสูตร!$C$43) -> ช่องว่าง | T2: =IF(หลักสูตร!$B$44=0,"ช่องว่าง",หลักสูตร!$C$44) -> ช่องว่าง | U2: =IF(หลักสูตร!$B$45=0,"ช่องว่าง",หลักสูตร!$C$45) -> ช่องว่าง | V2: =IF(หลักสูตร!$B$46=0,"ช่องว่าง",หลักสูตร!$C$46) -> ช่องว่าง | W2: =IF(หลักสูตร!$B$47=0,"ช่องว่าง",หลักสูตร!$C$47) -> ช่องว่าง | X2: =IF(หลักสูตร!$B$48=0,"ช่องว่าง",หลักสูตร!$C$48) -> ช่องว่าง | Y2: =IF(หลักสูตร!$B$49=0,"ช่องว่าง",หลักสูตร!$C$49) -> ช่องว่าง | Z2: =IF(หลักสูตร!$B$51=0,"ช่องว่าง",หลักสูตร!$C$51) -> แนะแนว | AA2: =IF(หลักสูตร!$B$52=0,"ช่องว่าง",หลักสูตร!$C$52) -> ลูกเสือ เนตรนารี | AB2: =IF(หลักสูตร!$B$53=0,"ช่องว่าง",หลักสูตร!$C$53) -> ชุมนุม | AC2: =IF(หลักสูตร!$B$54=0,"ช่องว่าง",หลักสูตร!$C$54) -> กิจกรรมเพื่อสังคมและสาธารณประโยชน์ | AD2: =IF(หลักสูตร!$B$55=0,"ช่องว่าง",หลักสูตร!$C$55) -> ช่องว่าง | AE2: คุณลักษณะ | AF2: อ่าน คิดฯ | AG2: สรุปกิจกรรม | AH2: เกรดเฉลี่ย | AI2: ชื่อวิชาเลือก รหัสวิชา ตามด้วยชื่อวิชา ตัวอย่าง ง31202 เกษตรอินทรีย์ | AJ2: อ่าน คิดฯ | AK2: ชื่อชุมนุม
H3: =IF(หลักสูตร!$B$32=0,"",หลักสูตร!$B$32) -> ท | I3: =IF(หลักสูตร!$B$33=0,"",หลักสูตร!$B$33) -> ค14101 | J3: =IF(หลักสูตร!$B$34=0,"",หลักสูตร!$B$34) -> ว14101 | K3: =IF(หลักสูตร!$B$35=0,"",หลักสูตร!$B$35) -> ส14101 | L3: =IF(หลักสูตร!$B$36=0,"",หลักสูตร!$B$36) -> ส14102 | M3: =IF(หลักสูตร!$B$37=0,"",หลักสูตร!$B$37) -> พ14101 | N3: =IF(หลักสูตร!$B$38=0,"",หลักสูตร!$B$38) -> ศ14101 | O3: =IF(หลักสูตร!$B$39=0,"",หลักสูตร!$B$39) -> ง14101 | P3: =IF(หลักสูตร!$B$40=0,"",หลักสูตร!$B$40) -> อ14101 | Q3: =IF(หลักสูตร!$B$41=0,"",หลักสูตร!$B$41) -> ง14201 | R3: =IF(หลักสูตร!$B$42=0,"",หลักสูตร!$B$42) -> ล | S3: =IF(หลักสูตร!$B$43=0,"",หลักสูตร!$B$43) ->  | T3: =IF(หลักสูตร!$B$44=0,"",หลักสูตร!$B$44) ->  | U3: =IF(หลักสูตร!$B$45=0,"",หลักสูตร!$B$45) ->  | V3: =IF(หลักสูตร!$B$46=0,"",หลักสูตร!$B$46) ->  | W3: =IF(หลักสูตร!$B$47=0,"",หลักสูตร!$B$47) ->  | X3: =IF(หลักสูตร!$B$48=0,"",หลักสูตร!$B$48) ->  | Y3: =IF(หลักสูตร!$B$49=0,"",หลักสูตร!$B$49) ->  | Z3: =IF(หลักสูตร!$B$51=0,"",หลักสูตร!$B$51) -> ก1 | AA3: =IF(หลักสูตร!$B$52=0,"",หลักสูตร!$B$52) -> ก2 | AB3: =IF(หลักสูตร!$B$53=0,"",หลักสูตร!$B$53) -> ก3 | AC3: =IF(หลักสูตร!$B$54=0,"",หลักสูตร!$B$54) -> ก4 | AD3: =IF(หลักสูตร!$B$55=0,"",หลักสูตร!$B$55) ->  | AH3: =SUMIF(H5:Y5,"<>กิจกรรม",H6:AA6) -> 23.5
H4: =IF(หลักสูตร!$F$32=0,"",หลักสูตร!$F$32) -> 160 | I4: =IF(หลักสูตร!$F$33=0,"",หลักสูตร!$F$33) -> 160 | J4: =IF(หลักสูตร!$F$34=0,"",หลักสูตร!$F$34) -> 80 | K4: =IF(หลักสูตร!$F$35=0,"",หลักสูตร!$F$35) -> 80 | L4: =IF(หลักสูตร!$F$36=0,"",หลักสูตร!$F$36) -> 40 | M4: =IF(หลักสูตร!$F$37=0,"",หลักสูตร!$F$37) -> 80 | N4: =IF(หลักสูตร!$F$38=0,"",หลักสูตร!$F$38) -> 80 | O4: =IF(หลักสูตร!$F$39=0,"",หลักสูตร!$F$39) -> 80 | P4: =IF(หลักสูตร!$F$40=0,"",หลักสูตร!$F$40) -> 80 | Q4: =IF(หลักสูตร!$F$41=0,"",หลักสูตร!$F$41) -> 40 | R4: =IF(หลักสูตร!$F$42=0,"",หลักสูตร!$F$42) -> 60 | S4: =IF(หลักสูตร!$F$43=0,"",หลักสูตร!$F$43) ->  | T4: =IF(หลักสูตร!$F$44=0,"",หลักสูตร!$F$44) ->  | U4: =IF(หลักสูตร!$F$45=0,"",หลักสูตร!$F$45) ->  | V4: =IF(หลักสูตร!$F$46=0,"",หลักสูตร!$F$46) ->  | W4: =IF(หลักสูตร!$F$47=0,"",หลักสูตร!$F$47) ->  | X4: =IF(หลักสูตร!$F$48=0,"",หลักสูตร!$F$48) ->  | Y4: =IF(หลักสูตร!$F$49=0,"",หลักสูตร!$F$49) ->  | Z4: =IF(หลักสูตร!$F$51=0,"",หลักสูตร!$F$51) -> 40 | AA4: =IF(หลักสูตร!$F$52=0,"",หลักสูตร!$F$52) -> 40 | AB4: =IF(หลักสูตร!$F$53=0,"",หลักสูตร!$F$53) -> 30 | AC4: =IF(หลักสูตร!$F$54=0,"",หลักสูตร!$F$54) -> 10 | AD4: =IF(หลักสูตร!$F$55=0,"",หลักสูตร!$F$55) -> 
G5: ประเภท | H5: =IF(หลักสูตร!$D$32=0,"",หลักสูตร!$D$32) -> พื้นฐาน | I5: =IF(หลักสูตร!$D$33=0,"",หลักสูตร!$D$33) -> พื้นฐาน | J5: =IF(หลักสูตร!$D$34=0,"",หลักสูตร!$D$34) -> พื้นฐาน | K5: =IF(หลักสูตร!$D$35=0,"",หลักสูตร!$D$35) -> พื้นฐาน | L5: =IF(หลักสูตร!$D$36=0,"",หลักสูตร!$D$36) -> พื้นฐาน | M5: =IF(หลักสูตร!$D$37=0,"",หลักสูตร!$D$37) -> พื้นฐาน | N5: =IF(หลักสูตร!$D$38=0,"",หลักสูตร!$D$38) -> พื้นฐาน | O5: =IF(หลักสูตร!$D$39=0,"",หลักสูตร!$D$39) -> พื้นฐาน | P5: =IF(หลักสูตร!$D$40=0,"",หลักสูตร!$D$40) -> พื้นฐาน | Q5: =IF(หลักสูตร!$D$41=0,"",หลักสูตร!$D$41) -> เพิ่มเติม | R5: =IF(หลักสูตร!$D$42=0,"",หลักสูตร!$D$42) -> เพิ่มเติม | S5: =IF(หลักสูตร!$D$43=0,"",หลักสูตร!$D$43) ->  | T5: =IF(หลักสูตร!$D$44=0,"",หลักสูตร!$D$44) ->  | U5: =IF(หลักสูตร!$D$45=0,"",หลักสูตร!$D$45) ->  | V5: =IF(หลักสูตร!$D$46=0,"",หลักสูตร!$D$46) ->  | W5: =IF(หลักสูตร!$D$47=0,"",หลักสูตร!$D$47) ->  | X5: =IF(หลักสูตร!$D$48=0,"",หลักสูตร!$D$48) ->  | Y5: =IF(หลักสูตร!$D$49=0,"",หลักสูตร!$D$49) ->  | Z5: =IF(หลักสูตร!$D$51=0,"",หลักสูตร!$D$51) -> กิจกรรม | AA5: =IF(หลักสูตร!$D$52=0,"",หลักสูตร!$D$52) -> กิจกรรม | AB5: =IF(หลักสูตร!$D$53=0,"",หลักสูตร!$D$53) -> กิจกรรม | AC5: =IF(หลักสูตร!$D$54=0,"",หลักสูตร!$D$54) -> กิจกรรม | AD5: =IF(หลักสูตร!$D$55=0,"",หลักสูตร!$D$55) -> 
G6: น้ำหนัก | H6: =IF(หลักสูตร!$G$32=0,"",หลักสูตร!$G$32) -> 4 | I6: =IF(หลักสูตร!$G$33=0,"",หลักสูตร!$G$33) -> 4 | J6: =IF(หลักสูตร!$G$34=0,"",หลักสูตร!$G$34) -> 2 | K6: =IF(หลักสูตร!$G$35=0,"",หลักสูตร!$G$35) -> 2 | L6: =IF(หลักสูตร!$G$36=0,"",หลักสูตร!$G$36) -> 1 | M6: =IF(หลักสูตร!$G$37=0,"",หลักสูตร!$G$37) -> 2 | N6: =IF(หลักสูตร!$G$38=0,"",หลักสูตร!$G$38) -> 2 | O6: =IF(หลักสูตร!$G$39=0,"",หลักสูตร!$G$39) -> 2 | P6: =IF(หลักสูตร!$G$40=0,"",หลักสูตร!$G$40) -> 2 | Q6: =IF(หลักสูตร!$G$41=0,"",หลักสูตร!$G$41) -> 1 | R6: =IF(หลักสูตร!$G$42=0,"",หลักสูตร!$G$42) -> 1.5 | S6: =IF(หลักสูตร!$G$43=0,"",หลักสูตร!$G$43) ->  | T6: =IF(หลักสูตร!$G$44=0,"",หลักสูตร!$G$44) ->  | U6: =IF(หลักสูตร!$G$45=0,"",หลักสูตร!$G$45) ->  | V6: =IF(หลักสูตร!$G$46=0,"",หลักสูตร!$G$46) ->  | W6: =IF(หลักสูตร!$G$47=0,"",หลักสูตร!$G$47) ->  | X6: =IF(หลักสูตร!$G$48=0,"",หลักสูตร!$G$48) ->  | Y6: =IF(หลักสูตร!$G$49=0,"",หลักสูตร!$G$49) ->  | Z6: =IF(หลักสูตร!$G$51=0,"",หลักสูตร!$G$51) -> - | AA6: =IF(หลักสูตร!$G$52=0,"",หลักสูตร!$G$52) -> - | AB6: =IF(หลักสูตร!$G$53=0,"",หลักสูตร!$G$53) -> - | AC6: =IF(หลักสูตร!$G$54=0,"",หลักสูตร!$G$54) -> - | AD6: =IF(หลักสูตร!$G$55=0,"",หลักสูตร!$G$55) -> - | AH6: =SUMIF(H5:Y5,"<>กิจกรรม",H6:AA6) -> 23.5
A7: =ข้อมูลนักเรียน!A7 -> 1 | B7: =IF(ข้อมูลนักเรียน!B7=0,"",ข้อมูลนักเรียน!B7) -> 1 | C7: =IF(ข้อมูลนักเรียน!C7=0,"",ข้อมูลนักเรียน!C7) -> 00001 | D7: =IF(ข้อมูลนักเรียน!C7=0,"",ข้อมูลนักเรียน!D7 & ข้อมูลนักเรียน!E7 & " "& ข้อมูลนักเรียน!F7) -> เด็กชายสมชาย สุขสบาย | E7: =IF(ข้อมูลนักเรียน!C7=0,"",ข้อมูลนักเรียน!G7) -> 1111111111111 | F7: =ข้อมูลนักเรียน!B7 -> 1 | H7: 3 | I7: 1 | J7: 1 | K7: 4 | L7: 4 | M7: 3 | N7: 4 | O7: 4 | P7: 4 | Q7: 1.5 | R7: 1.5 | X7: 1.5 | Y7: 1.5 | Z7: ผ | AA7: ผ | AB7: ผ | AC7: ผ | AE7: 2 | AF7: 2 | AG7: =IF(COUNTIFS(Z7:AD7,"=มผ") > 0,"ไม่ผ่าน","ผ่าน") -> ผ่าน | AH7: =ROUNDDOWN(3.43181818181818,2) -> 3.43 | AI7: ง14202 คอมพิวเตอร์ออกแบบ | AJ7: =IF(AF7=1,"ผ่าน",IF(AF7=2,"ดี",IF(AF7=3,"ดีเยี่ยม","ปรับปรุง"))) -> ดี | AK7: คอมพิวเตอร์ | AL7: 22 | AM7: เกรด | AN7: อ่าน/คุณ | AO7: กิจกรรม
A8: =ข้อมูลนักเรียน!A8 -> 1 | B8: =IF(ข้อมูลนักเรียน!B8=0,"",ข้อมูลนักเรียน!B8) -> 2 | C8: =IF(ข้อมูลนักเรียน!C8=0,"",ข้อมูลนักเรียน!C8) -> 00002 | D8: =IF(ข้อมูลนักเรียน!C8=0,"",ข้อมูลนักเรียน!D8 & ข้อมูลนักเรียน!E8 & " "& ข้อมูลนักเรียน!F8) -> เด็กหญิงสมหวัง ตั้งใจเรียน | E8: =IF(ข้อมูลนักเรียน!C8=0,"",ข้อมูลนักเรียน!G8) -> 2222222222222 | F8: =ข้อมูลนักเรียน!B8 -> 2 | H8: 4 | I8: 4 | J8: 4 | K8: 4 | L8: 4 | M8: 4 | N8: 3 | O8: 4 | P8: 4 | Q8: 1.5 | R8: 1.5 | X8: 1.5 | Y8: 1.5 | Z8: ผ | AA8: ผ | AB8: ผ | AC8: ผ | AE8: 3 | AF8: 2 | AG8: ผ่าน | AH8: =ROUNDDOWN(3.79545454545455,2) -> 3.79 | AI8: ง14202 คอมพิวเตอร์ออกแบบ | AJ8: ดี | AK8: ดนตรี | AL8: 22 | AM8: 0 | AN8: 0 | AO8: ผ
A9: =ข้อมูลนักเรียน!A9 -> 0 | B9: =IF(ข้อมูลนักเรียน!B9=0,"",ข้อมูลนักเรียน!B9) ->  | C9: =IF(ข้อมูลนักเรียน!C9=0,"",ข้อมูลนักเรียน!C9) ->  | D9: =IF(ข้อมูลนักเรียน!C9=0,"",ข้อมูลนักเรียน!D9 & ข้อมูลนักเรียน!E9 & " "& ข้อมูลนักเรียน!F9) ->  | E9: =IF(ข้อมูลนักเรียน!C9=0,"",ข้อมูลนักเรียน!G9) ->  | F9: =ข้อมูลนักเรียน!B9 -> 0 | AG9: =IF(COUNTIFS(Z9:AD9,"=มผ") > 0,"ไม่ผ่าน","ผ่าน") -> ผ่าน | AH9: =ROUNDDOWN(0,2) -> 0 | AJ9: =IF(AF9=1,"ผ่าน",IF(AF9=2,"ดี",IF(AF9=3,"ดีเยี่ยม","ปรับปรุง"))) -> ปรับปรุง | AL9: 22 | AM9: 1 | AN9: 1 | AO9: มผ
A10: =ข้อมูลนักเรียน!A10 -> 0 | B10: =IF(ข้อมูลนักเรียน!B10=0,"",ข้อมูลนักเรียน!B10) ->  | C10: =IF(ข้อมูลนักเรียน!C10=0,"",ข้อมูลนักเรียน!C10) ->  | D10: =IF(ข้อมูลนักเรียน!C10=0,"",ข้อมูลนักเรียน!D10 & ข้อมูลนักเรียน!E10 & " "& ข้อมูลนักเรียน!F10) ->  | E10: =IF(ข้อมูลนักเรียน!C10=0,"",ข้อมูลนักเรียน!G10) ->  | F10: =ข้อมูลนักเรียน!B10 -> 0 | AG10: ผ่าน | AH10: 0 | AJ10: ปรับปรุง | AL10: 22 | AM10: 1.5 | AN10: 2
A11: =ข้อมูลนักเรียน!A11 -> 0 | B11: =IF(ข้อมูลนักเรียน!B11=0,"",ข้อมูลนักเรียน!B11) ->  | C11: =IF(ข้อมูลนักเรียน!C11=0,"",ข้อมูลนักเรียน!C11) ->  | D11: =IF(ข้อมูลนักเรียน!C11=0,"",ข้อมูลนักเรียน!D11 & ข้อมูลนักเรียน!E11 & " "& ข้อมูลนักเรียน!F11) ->  | E11: =IF(ข้อมูลนักเรียน!C11=0,"",ข้อมูลนักเรียน!G11) ->  | F11: =ข้อมูลนักเรียน!B11 -> 0 | AG11: ผ่าน | AH11: 0 | AJ11: ปรับปรุง | AL11: 22 | AM11: 2 | AN11: 3
A12: =ข้อมูลนักเรียน!A12 -> 0 | B12: =IF(ข้อมูลนักเรียน!B12=0,"",ข้อมูลนักเรียน!B12) ->  | C12: =IF(ข้อมูลนักเรียน!C12=0,"",ข้อมูลนักเรียน!C12) ->  | D12: =IF(ข้อมูลนักเรียน!C12=0,"",ข้อมูลนักเรียน!D12 & ข้อมูลนักเรียน!E12 & " "& ข้อมูลนักเรียน!F12) ->  | E12: =IF(ข้อมูลนักเรียน!C12=0,"",ข้อมูลนักเรียน!G12) ->  | F12: =ข้อมูลนักเรียน!B12 -> 0 | AG12: ผ่าน | AH12: 0 | AJ12: ปรับปรุง | AL12: 22 | AM12: 2.5
A13: =ข้อมูลนักเรียน!A13 -> 0 | B13: =IF(ข้อมูลนักเรียน!B13=0,"",ข้อมูลนักเรียน!B13) ->  | C13: =IF(ข้อมูลนักเรียน!C13=0,"",ข้อมูลนักเรียน!C13) ->  | D13: =IF(ข้อมูลนักเรียน!C13=0,"",ข้อมูลนักเรียน!D13 & ข้อมูลนักเรียน!E13 & " "& ข้อมูลนักเรียน!F13) ->  | E13: =IF(ข้อมูลนักเรียน!C13=0,"",ข้อมูลนักเรียน!G13) ->  | F13: =ข้อมูลนักเรียน!B13 -> 0 | AG13: ผ่าน | AH13: 0 | AJ13: ปรับปรุง | AL13: 22 | AM13: 3
A14: =ข้อมูลนักเรียน!A14 -> 0 | B14: =IF(ข้อมูลนักเรียน!B14=0,"",ข้อมูลนักเรียน!B14) ->  | C14: =IF(ข้อมูลนักเรียน!C14=0,"",ข้อมูลนักเรียน!C14) ->  | D14: =IF(ข้อมูลนักเรียน!C14=0,"",ข้อมูลนักเรียน!D14 & ข้อมูลนักเรียน!E14 & " "& ข้อมูลนักเรียน!F14) ->  | E14: =IF(ข้อมูลนักเรียน!C14=0,"",ข้อมูลนักเรียน!G14) ->  | F14: =ข้อมูลนักเรียน!B14 -> 0 | AG14: ผ่าน | AH14: 0 | AJ14: ปรับปรุง | AL14: 22 | AM14: 3.5
A15: =ข้อมูลนักเรียน!A15 -> 0 | B15: =IF(ข้อมูลนักเรียน!B15=0,"",ข้อมูลนักเรียน!B15) ->  | C15: =IF(ข้อมูลนักเรียน!C15=0,"",ข้อมูลนักเรียน!C15) ->  | D15: =IF(ข้อมูลนักเรียน!C15=0,"",ข้อมูลนักเรียน!D15 & ข้อมูลนักเรียน!E15 & " "& ข้อมูลนักเรียน!F15) ->  | E15: =IF(ข้อมูลนักเรียน!C15=0,"",ข้อมูลนักเรียน!G15) ->  | F15: =ข้อมูลนักเรียน!B15 -> 0 | AG15: ผ่าน | AH15: 0 | AJ15: ปรับปรุง | AL15: 22 | AM15: 4
A16: =ข้อมูลนักเรียน!A16 -> 0 | B16: =IF(ข้อมูลนักเรียน!B16=0,"",ข้อมูลนักเรียน!B16) ->  | C16: =IF(ข้อมูลนักเรียน!C16=0,"",ข้อมูลนักเรียน!C16) ->  | D16: =IF(ข้อมูลนักเรียน!C16=0,"",ข้อมูลนักเรียน!D16 & ข้อมูลนักเรียน!E16 & " "& ข้อมูลนักเรียน!F16) ->  | E16: =IF(ข้อมูลนักเรียน!C16=0,"",ข้อมูลนักเรียน!G16) ->  | F16: =ข้อมูลนักเรียน!B16 -> 0 | AG16: ผ่าน | AH16: 0 | AJ16: ปรับปรุง | AL16: 22 | AM16: ร
A17: =ข้อมูลนักเรียน!A17 -> 0 | B17: =IF(ข้อมูลนักเรียน!B17=0,"",ข้อมูลนักเรียน!B17) ->  | C17: =IF(ข้อมูลนักเรียน!C17=0,"",ข้อมูลนักเรียน!C17) ->  | D17: =IF(ข้อมูลนักเรียน!C17=0,"",ข้อมูลนักเรียน!D17 & ข้อมูลนักเรียน!E17 & " "& ข้อมูลนักเรียน!F17) ->  | E17: =IF(ข้อมูลนักเรียน!C17=0,"",ข้อมูลนักเรียน!G17) ->  | F17: =ข้อมูลนักเรียน!B17 -> 0 | AG17: ผ่าน | AH17: 0 | AJ17: ปรับปรุง | AL17: 22 | AM17: มส
A18: =ข้อมูลนักเรียน!A18 -> 0 | B18: =IF(ข้อมูลนักเรียน!B18=0,"",ข้อมูลนักเรียน!B18) ->  | C18: =IF(ข้อมูลนักเรียน!C18=0,"",ข้อมูลนักเรียน!C18) ->  | D18: =IF(ข้อมูลนักเรียน!C18=0,"",ข้อมูลนักเรียน!D18 & ข้อมูลนักเรียน!E18 & " "& ข้อมูลนักเรียน!F18) ->  | E18: =IF(ข้อมูลนักเรียน!C18=0,"",ข้อมูลนักเรียน!G18) ->  | F18: =ข้อมูลนักเรียน!B18 -> 0 | AG18: ผ่าน | AH18: 0 | AJ18: ปรับปรุง | AL18: 22 | AM18: ผ
A19: =ข้อมูลนักเรียน!A19 -> 0 | B19: =IF(ข้อมูลนักเรียน!B19=0,"",ข้อมูลนักเรียน!B19) ->  | C19: =IF(ข้อมูลนักเรียน!C19=0,"",ข้อมูลนักเรียน!C19) ->  | D19: =IF(ข้อมูลนักเรียน!C19=0,"",ข้อมูลนักเรียน!D19 & ข้อมูลนักเรียน!E19 & " "& ข้อมูลนักเรียน!F19) ->  | E19: =IF(ข้อมูลนักเรียน!C19=0,"",ข้อมูลนักเรียน!G19) ->  | F19: =ข้อมูลนักเรียน!B19 -> 0 | AG19: ผ่าน | AH19: 0 | AJ19: ปรับปรุง | AL19: 22 | AM19: มผ
A20: =ข้อมูลนักเรียน!A20 -> 0 | B20: =IF(ข้อมูลนักเรียน!B20=0,"",ข้อมูลนักเรียน!B20) ->  | C20: =IF(ข้อมูลนักเรียน!C20=0,"",ข้อมูลนักเรียน!C20) ->  | D20: =IF(ข้อมูลนักเรียน!C20=0,"",ข้อมูลนักเรียน!D20 & ข้อมูลนักเรียน!E20 & " "& ข้อมูลนักเรียน!F20) ->  | E20: =IF(ข้อมูลนักเรียน!C20=0,"",ข้อมูลนักเรียน!G20) ->  | F20: =ข้อมูลนักเรียน!B20 -> 0 | AG20: ผ่าน | AH20: 0 | AJ20: ปรับปรุง | AL20: 22
A21: =ข้อมูลนักเรียน!A21 -> 0 | B21: =IF(ข้อมูลนักเรียน!B21=0,"",ข้อมูลนักเรียน!B21) ->  | C21: =IF(ข้อมูลนักเรียน!C21=0,"",ข้อมูลนักเรียน!C21) ->  | D21: =IF(ข้อมูลนักเรียน!C21=0,"",ข้อมูลนักเรียน!D21 & ข้อมูลนักเรียน!E21 & " "& ข้อมูลนักเรียน!F21) ->  | E21: =IF(ข้อมูลนักเรียน!C21=0,"",ข้อมูลนักเรียน!G21) ->  | F21: =ข้อมูลนักเรียน!B21 -> 0 | AG21: ผ่าน | AH21: 0 | AJ21: ปรับปรุง | AL21: 22
A22: =ข้อมูลนักเรียน!A22 -> 0 | B22: =IF(ข้อมูลนักเรียน!B22=0,"",ข้อมูลนักเรียน!B22) ->  | C22: =IF(ข้อมูลนักเรียน!C22=0,"",ข้อมูลนักเรียน!C22) ->  | D22: =IF(ข้อมูลนักเรียน!C22=0,"",ข้อมูลนักเรียน!D22 & ข้อมูลนักเรียน!E22 & " "& ข้อมูลนักเรียน!F22) ->  | E22: =IF(ข้อมูลนักเรียน!C22=0,"",ข้อมูลนักเรียน!G22) ->  | F22: =ข้อมูลนักเรียน!B22 -> 0 | AG22: ผ่าน | AH22: 0 | AJ22: ปรับปรุง | AL22: 22
A23: =ข้อมูลนักเรียน!A23 -> 0 | B23: =IF(ข้อมูลนักเรียน!B23=0,"",ข้อมูลนักเรียน!B23) ->  | C23: =IF(ข้อมูลนักเรียน!C23=0,"",ข้อมูลนักเรียน!C23) ->  | D23: =IF(ข้อมูลนักเรียน!C23=0,"",ข้อมูลนักเรียน!D23 & ข้อมูลนักเรียน!E23 & " "& ข้อมูลนักเรียน!F23) ->  | E23: =IF(ข้อมูลนักเรียน!C23=0,"",ข้อมูลนักเรียน!G23) ->  | F23: =ข้อมูลนักเรียน!B23 -> 0 | AG23: ผ่าน | AH23: 0 | AJ23: ปรับปรุง | AL23: 22
A24: =ข้อมูลนักเรียน!A24 -> 0 | B24: =IF(ข้อมูลนักเรียน!B24=0,"",ข้อมูลนักเรียน!B24) ->  | C24: =IF(ข้อมูลนักเรียน!C24=0,"",ข้อมูลนักเรียน!C24) ->  | D24: =IF(ข้อมูลนักเรียน!C24=0,"",ข้อมูลนักเรียน!D24 & ข้อมูลนักเรียน!E24 & " "& ข้อมูลนักเรียน!F24) ->  | E24: =IF(ข้อมูลนักเรียน!C24=0,"",ข้อมูลนักเรียน!G24) ->  | F24: =ข้อมูลนักเรียน!B24 -> 0 | AG24: ผ่าน | AH24: 0 | AJ24: ปรับปรุง | AL24: 22
A25: =ข้อมูลนักเรียน!A25 -> 0 | B25: =IF(ข้อมูลนักเรียน!B25=0,"",ข้อมูลนักเรียน!B25) ->  | C25: =IF(ข้อมูลนักเรียน!C25=0,"",ข้อมูลนักเรียน!C25) ->  | D25: =IF(ข้อมูลนักเรียน!C25=0,"",ข้อมูลนักเรียน!D25 & ข้อมูลนักเรียน!E25 & " "& ข้อมูลนักเรียน!F25) ->  | E25: =IF(ข้อมูลนักเรียน!C25=0,"",ข้อมูลนักเรียน!G25) ->  | F25: =ข้อมูลนักเรียน!B25 -> 0 | AG25: ผ่าน | AH25: 0 | AJ25: ปรับปรุง | AL25: 22
A26: =ข้อมูลนักเรียน!A26 -> 0 | B26: =IF(ข้อมูลนักเรียน!B26=0,"",ข้อมูลนักเรียน!B26) ->  | C26: =IF(ข้อมูลนักเรียน!C26=0,"",ข้อมูลนักเรียน!C26) ->  | D26: =IF(ข้อมูลนักเรียน!C26=0,"",ข้อมูลนักเรียน!D26 & ข้อมูลนักเรียน!E26 & " "& ข้อมูลนักเรียน!F26) ->  | E26: =IF(ข้อมูลนักเรียน!C26=0,"",ข้อมูลนักเรียน!G26) ->  | F26: =ข้อมูลนักเรียน!B26 -> 0 | AG26: ผ่าน | AH26: 0 | AJ26: ปรับปรุง | AL26: 22
A27: =ข้อมูลนักเรียน!A27 -> 0 | B27: =IF(ข้อมูลนักเรียน!B27=0,"",ข้อมูลนักเรียน!B27) ->  | C27: =IF(ข้อมูลนักเรียน!C27=0,"",ข้อมูลนักเรียน!C27) ->  | D27: =IF(ข้อมูลนักเรียน!C27=0,"",ข้อมูลนักเรียน!D27 & ข้อมูลนักเรียน!E27 & " "& ข้อมูลนักเรียน!F27) ->  | E27: =IF(ข้อมูลนักเรียน!C27=0,"",ข้อมูลนักเรียน!G27) ->  | F27: =ข้อมูลนักเรียน!B27 -> 0 | AG27: ผ่าน | AH27: 0 | AJ27: ปรับปรุง | AL27: 22
A28: =ข้อมูลนักเรียน!A28 -> 0 | B28: =IF(ข้อมูลนักเรียน!B28=0,"",ข้อมูลนักเรียน!B28) ->  | C28: =IF(ข้อมูลนักเรียน!C28=0,"",ข้อมูลนักเรียน!C28) ->  | D28: =IF(ข้อมูลนักเรียน!C28=0,"",ข้อมูลนักเรียน!D28 & ข้อมูลนักเรียน!E28 & " "& ข้อมูลนักเรียน!F28) ->  | E28: =IF(ข้อมูลนักเรียน!C28=0,"",ข้อมูลนักเรียน!G28) ->  | F28: =ข้อมูลนักเรียน!B28 -> 0 | AG28: ผ่าน | AH28: 0 | AJ28: ปรับปรุง | AL28: 22
A29: =ข้อมูลนักเรียน!A29 -> 0 | B29: =IF(ข้อมูลนักเรียน!B29=0,"",ข้อมูลนักเรียน!B29) ->  | C29: =IF(ข้อมูลนักเรียน!C29=0,"",ข้อมูลนักเรียน!C29) ->  | D29: =IF(ข้อมูลนักเรียน!C29=0,"",ข้อมูลนักเรียน!D29 & ข้อมูลนักเรียน!E29 & " "& ข้อมูลนักเรียน!F29) ->  | E29: =IF(ข้อมูลนักเรียน!C29=0,"",ข้อมูลนักเรียน!G29) ->  | F29: =ข้อมูลนักเรียน!B29 -> 0 | AG29: ผ่าน | AH29: 0 | AJ29: ปรับปรุง | AL29: 22
A30: =ข้อมูลนักเรียน!A30 -> 0 | B30: =IF(ข้อมูลนักเรียน!B30=0,"",ข้อมูลนักเรียน!B30) ->  | C30: =IF(ข้อมูลนักเรียน!C30=0,"",ข้อมูลนักเรียน!C30) ->  | D30: =IF(ข้อมูลนักเรียน!C30=0,"",ข้อมูลนักเรียน!D30 & ข้อมูลนักเรียน!E30 & " "& ข้อมูลนักเรียน!F30) ->  | E30: =IF(ข้อมูลนักเรียน!C30=0,"",ข้อมูลนักเรียน!G30) ->  | F30: =ข้อมูลนักเรียน!B30 -> 0 | AG30: ผ่าน | AH30: 0 | AJ30: ปรับปรุง | AL30: 22
A31: =ข้อมูลนักเรียน!A31 -> 0 | B31: =IF(ข้อมูลนักเรียน!B31=0,"",ข้อมูลนักเรียน!B31) ->  | C31: =IF(ข้อมูลนักเรียน!C31=0,"",ข้อมูลนักเรียน!C31) ->  | D31: =IF(ข้อมูลนักเรียน!C31=0,"",ข้อมูลนักเรียน!D31 & ข้อมูลนักเรียน!E31 & " "& ข้อมูลนักเรียน!F31) ->  | E31: =IF(ข้อมูลนักเรียน!C31=0,"",ข้อมูลนักเรียน!G31) ->  | F31: =ข้อมูลนักเรียน!B31 -> 0 | AG31: ผ่าน | AH31: 0 | AJ31: ปรับปรุง | AL31: 22
A32: =ข้อมูลนักเรียน!A32 -> 0 | B32: =IF(ข้อมูลนักเรียน!B32=0,"",ข้อมูลนักเรียน!B32) ->  | C32: =IF(ข้อมูลนักเรียน!C32=0,"",ข้อมูลนักเรียน!C32) ->  | D32: =IF(ข้อมูลนักเรียน!C32=0,"",ข้อมูลนักเรียน!D32 & ข้อมูลนักเรียน!E32 & " "& ข้อมูลนักเรียน!F32) ->  | E32: =IF(ข้อมูลนักเรียน!C32=0,"",ข้อมูลนักเรียน!G32) ->  | F32: =ข้อมูลนักเรียน!B32 -> 0 | AG32: ผ่าน | AH32: 0 | AJ32: ปรับปรุง | AL32: 22
A33: =ข้อมูลนักเรียน!A33 -> 0 | B33: =IF(ข้อมูลนักเรียน!B33=0,"",ข้อมูลนักเรียน!B33) ->  | C33: =IF(ข้อมูลนักเรียน!C33=0,"",ข้อมูลนักเรียน!C33) ->  | D33: =IF(ข้อมูลนักเรียน!C33=0,"",ข้อมูลนักเรียน!D33 & ข้อมูลนักเรียน!E33 & " "& ข้อมูลนักเรียน!F33) ->  | E33: =IF(ข้อมูลนักเรียน!C33=0,"",ข้อมูลนักเรียน!G33) ->  | F33: =ข้อมูลนักเรียน!B33 -> 0 | AG33: ผ่าน | AH33: 0 | AJ33: ปรับปรุง | AL33: 22
A34: =ข้อมูลนักเรียน!A34 -> 0 | B34: =IF(ข้อมูลนักเรียน!B34=0,"",ข้อมูลนักเรียน!B34) ->  | C34: =IF(ข้อมูลนักเรียน!C34=0,"",ข้อมูลนักเรียน!C34) ->  | D34: =IF(ข้อมูลนักเรียน!C34=0,"",ข้อมูลนักเรียน!D34 & ข้อมูลนักเรียน!E34 & " "& ข้อมูลนักเรียน!F34) ->  | E34: =IF(ข้อมูลนักเรียน!C34=0,"",ข้อมูลนักเรียน!G34) ->  | F34: =ข้อมูลนักเรียน!B34 -> 0 | AG34: ผ่าน | AH34: 0 | AJ34: ปรับปรุง | AL34: 22
A35: =ข้อมูลนักเรียน!A35 -> 0 | B35: =IF(ข้อมูลนักเรียน!B35=0,"",ข้อมูลนักเรียน!B35) ->  | C35: =IF(ข้อมูลนักเรียน!C35=0,"",ข้อมูลนักเรียน!C35) ->  | D35: =IF(ข้อมูลนักเรียน!C35=0,"",ข้อมูลนักเรียน!D35 & ข้อมูลนักเรียน!E35 & " "& ข้อมูลนักเรียน!F35) ->  | E35: =IF(ข้อมูลนักเรียน!C35=0,"",ข้อมูลนักเรียน!G35) ->  | F35: =ข้อมูลนักเรียน!B35 -> 0 | AG35: ผ่าน | AH35: 0 | AJ35: ปรับปรุง | AL35: 22
A36: =ข้อมูลนักเรียน!A36 -> 0 | B36: =IF(ข้อมูลนักเรียน!B36=0,"",ข้อมูลนักเรียน!B36) ->  | C36: =IF(ข้อมูลนักเรียน!C36=0,"",ข้อมูลนักเรียน!C36) ->  | D36: =IF(ข้อมูลนักเรียน!C36=0,"",ข้อมูลนักเรียน!D36 & ข้อมูลนักเรียน!E36 & " "& ข้อมูลนักเรียน!F36) ->  | E36: =IF(ข้อมูลนักเรียน!C36=0,"",ข้อมูลนักเรียน!G36) ->  | F36: =ข้อมูลนักเรียน!B36 -> 0 | AG36: ผ่าน | AH36: 0 | AJ36: ปรับปรุง | AL36: 22
A37: =ข้อมูลนักเรียน!A37 -> 0 | B37: =IF(ข้อมูลนักเรียน!B37=0,"",ข้อมูลนักเรียน!B37) ->  | C37: =IF(ข้อมูลนักเรียน!C37=0,"",ข้อมูลนักเรียน!C37) ->  | D37: =IF(ข้อมูลนักเรียน!C37=0,"",ข้อมูลนักเรียน!D37 & ข้อมูลนักเรียน!E37 & " "& ข้อมูลนักเรียน!F37) ->  | E37: =IF(ข้อมูลนักเรียน!C37=0,"",ข้อมูลนักเรียน!G37) ->  | F37: =ข้อมูลนักเรียน!B37 -> 0 | AG37: ผ่าน | AH37: 0 | AJ37: ปรับปรุง | AL37: 22
A38: =ข้อมูลนักเรียน!A38 -> 0 | B38: =IF(ข้อมูลนักเรียน!B38=0,"",ข้อมูลนักเรียน!B38) ->  | C38: =IF(ข้อมูลนักเรียน!C38=0,"",ข้อมูลนักเรียน!C38) ->  | D38: =IF(ข้อมูลนักเรียน!C38=0,"",ข้อมูลนักเรียน!D38 & ข้อมูลนักเรียน!E38 & " "& ข้อมูลนักเรียน!F38) ->  | E38: =IF(ข้อมูลนักเรียน!C38=0,"",ข้อมูลนักเรียน!G38) ->  | F38: =ข้อมูลนักเรียน!B38 -> 0 | AG38: ผ่าน | AH38: 0 | AJ38: ปรับปรุง | AL38: 22
A39: =ข้อมูลนักเรียน!A39 -> 0 | B39: =IF(ข้อมูลนักเรียน!B39=0,"",ข้อมูลนักเรียน!B39) ->  | C39: =IF(ข้อมูลนักเรียน!C39=0,"",ข้อมูลนักเรียน!C39) ->  | D39: =IF(ข้อมูลนักเรียน!C39=0,"",ข้อมูลนักเรียน!D39 & ข้อมูลนักเรียน!E39 & " "& ข้อมูลนักเรียน!F39) ->  | E39: =IF(ข้อมูลนักเรียน!C39=0,"",ข้อมูลนักเรียน!G39) ->  | F39: =ข้อมูลนักเรียน!B39 -> 0 | AG39: ผ่าน | AH39: 0 | AJ39: ปรับปรุง | AL39: 22
A40: =ข้อมูลนักเรียน!A40 -> 0 | B40: =IF(ข้อมูลนักเรียน!B40=0,"",ข้อมูลนักเรียน!B40) ->  | C40: =IF(ข้อมูลนักเรียน!C40=0,"",ข้อมูลนักเรียน!C40) ->  | D40: =IF(ข้อมูลนักเรียน!C40=0,"",ข้อมูลนักเรียน!D40 & ข้อมูลนักเรียน!E40 & " "& ข้อมูลนักเรียน!F40) ->  | E40: =IF(ข้อมูลนักเรียน!C40=0,"",ข้อมูลนักเรียน!G40) ->  | F40: =ข้อมูลนักเรียน!B40 -> 0 | AG40: ผ่าน | AH40: 0 | AJ40: ปรับปรุง | AL40: 22
A41: =ข้อมูลนักเรียน!A41 -> 0 | B41: =IF(ข้อมูลนักเรียน!B41=0,"",ข้อมูลนักเรียน!B41) ->  | C41: =IF(ข้อมูลนักเรียน!C41=0,"",ข้อมูลนักเรียน!C41) ->  | D41: =IF(ข้อมูลนักเรียน!C41=0,"",ข้อมูลนักเรียน!D41 & ข้อมูลนักเรียน!E41 & " "& ข้อมูลนักเรียน!F41) ->  | E41: =IF(ข้อมูลนักเรียน!C41=0,"",ข้อมูลนักเรียน!G41) ->  | F41: =ข้อมูลนักเรียน!B41 -> 0 | AG41: ผ่าน | AH41: =ROUNDDOWN(0,2) -> 0 | AJ41: ปรับปรุง | AL41: 22
A42: =ข้อมูลนักเรียน!A42 -> 0 | B42: =IF(ข้อมูลนักเรียน!B42=0,"",ข้อมูลนักเรียน!B42) ->  | C42: =IF(ข้อมูลนักเรียน!C42=0,"",ข้อมูลนักเรียน!C42) ->  | D42: =IF(ข้อมูลนักเรียน!C42=0,"",ข้อมูลนักเรียน!D42 & ข้อมูลนักเรียน!E42 & " "& ข้อมูลนักเรียน!F42) ->  | E42: =IF(ข้อมูลนักเรียน!C42=0,"",ข้อมูลนักเรียน!G42) ->  | F42: =ข้อมูลนักเรียน!B42 -> 0 | AG42: ผ่าน | AH42: 0 | AJ42: ปรับปรุง | AL42: 22
A43: =ข้อมูลนักเรียน!A43 -> 0 | B43: =IF(ข้อมูลนักเรียน!B43=0,"",ข้อมูลนักเรียน!B43) ->  | C43: =IF(ข้อมูลนักเรียน!C43=0,"",ข้อมูลนักเรียน!C43) ->  | D43: =IF(ข้อมูลนักเรียน!C43=0,"",ข้อมูลนักเรียน!D43 & ข้อมูลนักเรียน!E43 & " "& ข้อมูลนักเรียน!F43) ->  | E43: =IF(ข้อมูลนักเรียน!C43=0,"",ข้อมูลนักเรียน!G43) ->  | F43: =ข้อมูลนักเรียน!B43 -> 0 | AG43: ผ่าน | AH43: 0 | AJ43: ปรับปรุง | AL43: 22
A44: =ข้อมูลนักเรียน!A44 -> 0 | B44: =IF(ข้อมูลนักเรียน!B44=0,"",ข้อมูลนักเรียน!B44) ->  | C44: =IF(ข้อมูลนักเรียน!C44=0,"",ข้อมูลนักเรียน!C44) ->  | D44: =IF(ข้อมูลนักเรียน!C44=0,"",ข้อมูลนักเรียน!D44 & ข้อมูลนักเรียน!E44 & " "& ข้อมูลนักเรียน!F44) ->  | E44: =IF(ข้อมูลนักเรียน!C44=0,"",ข้อมูลนักเรียน!G44) ->  | F44: =ข้อมูลนักเรียน!B44 -> 0 | AG44: ผ่าน | AH44: 0 | AJ44: ปรับปรุง | AL44: 22
A45: =ข้อมูลนักเรียน!A45 -> 0 | B45: =IF(ข้อมูลนักเรียน!B45=0,"",ข้อมูลนักเรียน!B45) ->  | C45: =IF(ข้อมูลนักเรียน!C45=0,"",ข้อมูลนักเรียน!C45) ->  | D45: =IF(ข้อมูลนักเรียน!C45=0,"",ข้อมูลนักเรียน!D45 & ข้อมูลนักเรียน!E45 & " "& ข้อมูลนักเรียน!F45) ->  | E45: =IF(ข้อมูลนักเรียน!C45=0,"",ข้อมูลนักเรียน!G45) ->  | F45: =ข้อมูลนักเรียน!B45 -> 0 | AG45: ผ่าน | AH45: 0 | AJ45: ปรับปรุง | AL45: 22
A46: =ข้อมูลนักเรียน!A46 -> 0 | B46: =IF(ข้อมูลนักเรียน!B46=0,"",ข้อมูลนักเรียน!B46) ->  | C46: =IF(ข้อมูลนักเรียน!C46=0,"",ข้อมูลนักเรียน!C46) ->  | D46: =IF(ข้อมูลนักเรียน!C46=0,"",ข้อมูลนักเรียน!D46 & ข้อมูลนักเรียน!E46 & " "& ข้อมูลนักเรียน!F46) ->  | E46: =IF(ข้อมูลนักเรียน!C46=0,"",ข้อมูลนักเรียน!G46) ->  | F46: =ข้อมูลนักเรียน!B46 -> 0 | AG46: ผ่าน | AH46: 0 | AJ46: ปรับปรุง | AL46: 22
A47: =ข้อมูลนักเรียน!A47 -> 0 | B47: =IF(ข้อมูลนักเรียน!B47=0,"",ข้อมูลนักเรียน!B47) ->  | C47: =IF(ข้อมูลนักเรียน!C47=0,"",ข้อมูลนักเรียน!C47) ->  | D47: =IF(ข้อมูลนักเรียน!C47=0,"",ข้อมูลนักเรียน!D47 & ข้อมูลนักเรียน!E47 & " "& ข้อมูลนักเรียน!F47) ->  | E47: =IF(ข้อมูลนักเรียน!C47=0,"",ข้อมูลนักเรียน!G47) ->  | F47: =ข้อมูลนักเรียน!B47 -> 0 | AG47: ผ่าน | AH47: 0 | AJ47: ปรับปรุง | AL47: 22
A48: =ข้อมูลนักเรียน!A48 -> 0 | B48: =IF(ข้อมูลนักเรียน!B48=0,"",ข้อมูลนักเรียน!B48) ->  | C48: =IF(ข้อมูลนักเรียน!C48=0,"",ข้อมูลนักเรียน!C48) ->  | D48: =IF(ข้อมูลนักเรียน!C48=0,"",ข้อมูลนักเรียน!D48 & ข้อมูลนักเรียน!E48 & " "& ข้อมูลนักเรียน!F48) ->  | E48: =IF(ข้อมูลนักเรียน!C48=0,"",ข้อมูลนักเรียน!G48) ->  | F48: =ข้อมูลนักเรียน!B48 -> 0 | AG48: ผ่าน | AH48: 0 | AJ48: ปรับปรุง | AL48: 22
A49: =ข้อมูลนักเรียน!A49 -> 0 | B49: =IF(ข้อมูลนักเรียน!B49=0,"",ข้อมูลนักเรียน!B49) ->  | C49: =IF(ข้อมูลนักเรียน!C49=0,"",ข้อมูลนักเรียน!C49) ->  | D49: =IF(ข้อมูลนักเรียน!C49=0,"",ข้อมูลนักเรียน!D49 & ข้อมูลนักเรียน!E49 & " "& ข้อมูลนักเรียน!F49) ->  | E49: =IF(ข้อมูลนักเรียน!C49=0,"",ข้อมูลนักเรียน!G49) ->  | F49: =ข้อมูลนักเรียน!B49 -> 0 | AG49: ผ่าน | AH49: 0 | AJ49: ปรับปรุง | AL49: 22
A50: =ข้อมูลนักเรียน!A50 -> 0 | B50: =IF(ข้อมูลนักเรียน!B50=0,"",ข้อมูลนักเรียน!B50) ->  | C50: =IF(ข้อมูลนักเรียน!C50=0,"",ข้อมูลนักเรียน!C50) ->  | D50: =IF(ข้อมูลนักเรียน!C50=0,"",ข้อมูลนักเรียน!D50 & ข้อมูลนักเรียน!E50 & " "& ข้อมูลนักเรียน!F50) ->  | E50: =IF(ข้อมูลนักเรียน!C50=0,"",ข้อมูลนักเรียน!G50) ->  | F50: =ข้อมูลนักเรียน!B50 -> 0 | AG50: ผ่าน | AH50: 0 | AJ50: ปรับปรุง | AL50: 22
A51: =ข้อมูลนักเรียน!A51 -> 0 | B51: =IF(ข้อมูลนักเรียน!B51=0,"",ข้อมูลนักเรียน!B51) ->  | C51: =IF(ข้อมูลนักเรียน!C51=0,"",ข้อมูลนักเรียน!C51) ->  | D51: =IF(ข้อมูลนักเรียน!C51=0,"",ข้อมูลนักเรียน!D51 & ข้อมูลนักเรียน!E51 & " "& ข้อมูลนักเรียน!F51) ->  | E51: =IF(ข้อมูลนักเรียน!C51=0,"",ข้อมูลนักเรียน!G51) ->  | F51: =ข้อมูลนักเรียน!B51 -> 0 | AG51: ผ่าน | AH51: 0 | AJ51: ปรับปรุง | AL51: 22
A52: =ข้อมูลนักเรียน!A52 -> 0 | B52: =IF(ข้อมูลนักเรียน!B52=0,"",ข้อมูลนักเรียน!B52) ->  | C52: =IF(ข้อมูลนักเรียน!C52=0,"",ข้อมูลนักเรียน!C52) ->  | D52: =IF(ข้อมูลนักเรียน!C52=0,"",ข้อมูลนักเรียน!D52 & ข้อมูลนักเรียน!E52 & " "& ข้อมูลนักเรียน!F52) ->  | E52: =IF(ข้อมูลนักเรียน!C52=0,"",ข้อมูลนักเรียน!G52) ->  | F52: =ข้อมูลนักเรียน!B52 -> 0 | AG52: ผ่าน | AH52: 0 | AJ52: ปรับปรุง | AL52: 22
A53: =ข้อมูลนักเรียน!A53 -> 0 | B53: =IF(ข้อมูลนักเรียน!B53=0,"",ข้อมูลนักเรียน!B53) ->  | C53: =IF(ข้อมูลนักเรียน!C53=0,"",ข้อมูลนักเรียน!C53) ->  | D53: =IF(ข้อมูลนักเรียน!C53=0,"",ข้อมูลนักเรียน!D53 & ข้อมูลนักเรียน!E53 & " "& ข้อมูลนักเรียน!F53) ->  | E53: =IF(ข้อมูลนักเรียน!C53=0,"",ข้อมูลนักเรียน!G53) ->  | F53: =ข้อมูลนักเรียน!B53 -> 0 | AG53: ผ่าน | AH53: 0 | AJ53: ปรับปรุง | AL53: 22
A54: =ข้อมูลนักเรียน!A54 -> 0 | B54: =IF(ข้อมูลนักเรียน!B54=0,"",ข้อมูลนักเรียน!B54) ->  | C54: =IF(ข้อมูลนักเรียน!C54=0,"",ข้อมูลนักเรียน!C54) ->  | D54: =IF(ข้อมูลนักเรียน!C54=0,"",ข้อมูลนักเรียน!D54 & ข้อมูลนักเรียน!E54 & " "& ข้อมูลนักเรียน!F54) ->  | E54: =IF(ข้อมูลนักเรียน!C54=0,"",ข้อมูลนักเรียน!G54) ->  | F54: =ข้อมูลนักเรียน!B54 -> 0 | AG54: ผ่าน | AH54: 0 | AJ54: ปรับปรุง | AL54: 22
A55: =ข้อมูลนักเรียน!A55 -> 0 | B55: =IF(ข้อมูลนักเรียน!B55=0,"",ข้อมูลนักเรียน!B55) ->  | C55: =IF(ข้อมูลนักเรียน!C55=0,"",ข้อมูลนักเรียน!C55) ->  | D55: =IF(ข้อมูลนักเรียน!C55=0,"",ข้อมูลนักเรียน!D55 & ข้อมูลนักเรียน!E55 & " "& ข้อมูลนักเรียน!F55) ->  | E55: =IF(ข้อมูลนักเรียน!C55=0,"",ข้อมูลนักเรียน!G55) ->  | F55: =ข้อมูลนักเรียน!B55 -> 0 | AG55: ผ่าน | AH55: 0 | AJ55: ปรับปรุง | AL55: 22
A56: =ข้อมูลนักเรียน!A56 -> 0 | B56: =IF(ข้อมูลนักเรียน!B56=0,"",ข้อมูลนักเรียน!B56) ->  | C56: =IF(ข้อมูลนักเรียน!C56=0,"",ข้อมูลนักเรียน!C56) ->  | D56: =IF(ข้อมูลนักเรียน!C56=0,"",ข้อมูลนักเรียน!D56 & ข้อมูลนักเรียน!E56 & " "& ข้อมูลนักเรียน!F56) ->  | E56: =IF(ข้อมูลนักเรียน!C56=0,"",ข้อมูลนักเรียน!G56) ->  | F56: =ข้อมูลนักเรียน!B56 -> 0 | AG56: ผ่าน | AH56: 0 | AJ56: ปรับปรุง | AL56: 22
A57: =ข้อมูลนักเรียน!A57 -> 0 | B57: =IF(ข้อมูลนักเรียน!B57=0,"",ข้อมูลนักเรียน!B57) ->  | C57: =IF(ข้อมูลนักเรียน!C57=0,"",ข้อมูลนักเรียน!C57) ->  | D57: =IF(ข้อมูลนักเรียน!C57=0,"",ข้อมูลนักเรียน!D57 & ข้อมูลนักเรียน!E57 & " "& ข้อมูลนักเรียน!F57) ->  | E57: =IF(ข้อมูลนักเรียน!C57=0,"",ข้อมูลนักเรียน!G57) ->  | F57: =ข้อมูลนักเรียน!B57 -> 0 | AG57: ผ่าน | AH57: 0 | AJ57: ปรับปรุง | AL57: 22
A58: =ข้อมูลนักเรียน!A58 -> 0 | B58: =IF(ข้อมูลนักเรียน!B58=0,"",ข้อมูลนักเรียน!B58) ->  | C58: =IF(ข้อมูลนักเรียน!C58=0,"",ข้อมูลนักเรียน!C58) ->  | D58: =IF(ข้อมูลนักเรียน!C58=0,"",ข้อมูลนักเรียน!D58 & ข้อมูลนักเรียน!E58 & " "& ข้อมูลนักเรียน!F58) ->  | E58: =IF(ข้อมูลนักเรียน!C58=0,"",ข้อมูลนักเรียน!G58) ->  | F58: =ข้อมูลนักเรียน!B58 -> 0 | AG58: ผ่าน | AH58: 0 | AJ58: ปรับปรุง | AL58: 22
A59: =ข้อมูลนักเรียน!A59 -> 0 | B59: =IF(ข้อมูลนักเรียน!B59=0,"",ข้อมูลนักเรียน!B59) ->  | C59: =IF(ข้อมูลนักเรียน!C59=0,"",ข้อมูลนักเรียน!C59) ->  | D59: =IF(ข้อมูลนักเรียน!C59=0,"",ข้อมูลนักเรียน!D59 & ข้อมูลนักเรียน!E59 & " "& ข้อมูลนักเรียน!F59) ->  | E59: =IF(ข้อมูลนักเรียน!C59=0,"",ข้อมูลนักเรียน!G59) ->  | F59: =ข้อมูลนักเรียน!B59 -> 0 | AG59: ผ่าน | AH59: 0 | AJ59: ปรับปรุง | AL59: 22
A60: =ข้อมูลนักเรียน!A60 -> 0 | B60: =IF(ข้อมูลนักเรียน!B60=0,"",ข้อมูลนักเรียน!B60) ->  | C60: =IF(ข้อมูลนักเรียน!C60=0,"",ข้อมูลนักเรียน!C60) ->  | D60: =IF(ข้อมูลนักเรียน!C60=0,"",ข้อมูลนักเรียน!D60 & ข้อมูลนักเรียน!E60 & " "& ข้อมูลนักเรียน!F60) ->  | E60: =IF(ข้อมูลนักเรียน!C60=0,"",ข้อมูลนักเรียน!G60) ->  | F60: =ข้อมูลนักเรียน!B60 -> 0 | AG60: ผ่าน | AH60: 0 | AJ60: ปรับปรุง | AL60: 22
A61: =ข้อมูลนักเรียน!A61 -> 0 | B61: =IF(ข้อมูลนักเรียน!B61=0,"",ข้อมูลนักเรียน!B61) ->  | C61: =IF(ข้อมูลนักเรียน!C61=0,"",ข้อมูลนักเรียน!C61) ->  | D61: =IF(ข้อมูลนักเรียน!C61=0,"",ข้อมูลนักเรียน!D61 & ข้อมูลนักเรียน!E61 & " "& ข้อมูลนักเรียน!F61) ->  | E61: =IF(ข้อมูลนักเรียน!C61=0,"",ข้อมูลนักเรียน!G61) ->  | F61: =ข้อมูลนักเรียน!B61 -> 0 | AG61: ผ่าน | AH61: 0 | AJ61: ปรับปรุง | AL61: 22
A62: =ข้อมูลนักเรียน!A62 -> 0 | B62: =IF(ข้อมูลนักเรียน!B62=0,"",ข้อมูลนักเรียน!B62) ->  | C62: =IF(ข้อมูลนักเรียน!C62=0,"",ข้อมูลนักเรียน!C62) ->  | D62: =IF(ข้อมูลนักเรียน!C62=0,"",ข้อมูลนักเรียน!D62 & ข้อมูลนักเรียน!E62 & " "& ข้อมูลนักเรียน!F62) ->  | E62: =IF(ข้อมูลนักเรียน!C62=0,"",ข้อมูลนักเรียน!G62) ->  | F62: =ข้อมูลนักเรียน!B62 -> 0 | AG62: ผ่าน | AH62: 0 | AJ62: ปรับปรุง | AL62: 22
A63: =ข้อมูลนักเรียน!A63 -> 0 | B63: =IF(ข้อมูลนักเรียน!B63=0,"",ข้อมูลนักเรียน!B63) ->  | C63: =IF(ข้อมูลนักเรียน!C63=0,"",ข้อมูลนักเรียน!C63) ->  | D63: =IF(ข้อมูลนักเรียน!C63=0,"",ข้อมูลนักเรียน!D63 & ข้อมูลนักเรียน!E63 & " "& ข้อมูลนักเรียน!F63) ->  | E63: =IF(ข้อมูลนักเรียน!C63=0,"",ข้อมูลนักเรียน!G63) ->  | F63: =ข้อมูลนักเรียน!B63 -> 0 | AG63: ผ่าน | AH63: 0 | AJ63: ปรับปรุง | AL63: 22
A64: =ข้อมูลนักเรียน!A64 -> 0 | B64: =IF(ข้อมูลนักเรียน!B64=0,"",ข้อมูลนักเรียน!B64) ->  | C64: =IF(ข้อมูลนักเรียน!C64=0,"",ข้อมูลนักเรียน!C64) ->  | D64: =IF(ข้อมูลนักเรียน!C64=0,"",ข้อมูลนักเรียน!D64 & ข้อมูลนักเรียน!E64 & " "& ข้อมูลนักเรียน!F64) ->  | E64: =IF(ข้อมูลนักเรียน!C64=0,"",ข้อมูลนักเรียน!G64) ->  | F64: =ข้อมูลนักเรียน!B64 -> 0 | AG64: ผ่าน | AH64: 0 | AJ64: ปรับปรุง | AL64: 22
A65: =ข้อมูลนักเรียน!A65 -> 0 | B65: =IF(ข้อมูลนักเรียน!B65=0,"",ข้อมูลนักเรียน!B65) ->  | C65: =IF(ข้อมูลนักเรียน!C65=0,"",ข้อมูลนักเรียน!C65) ->  | D65: =IF(ข้อมูลนักเรียน!C65=0,"",ข้อมูลนักเรียน!D65 & ข้อมูลนักเรียน!E65 & " "& ข้อมูลนักเรียน!F65) ->  | E65: =IF(ข้อมูลนักเรียน!C65=0,"",ข้อมูลนักเรียน!G65) ->  | F65: =ข้อมูลนักเรียน!B65 -> 0 | AG65: ผ่าน | AH65: 0 | AJ65: ปรับปรุง | AL65: 22
A66: =ข้อมูลนักเรียน!A66 -> 0 | B66: =IF(ข้อมูลนักเรียน!B66=0,"",ข้อมูลนักเรียน!B66) ->  | C66: =IF(ข้อมูลนักเรียน!C66=0,"",ข้อมูลนักเรียน!C66) ->  | D66: =IF(ข้อมูลนักเรียน!C66=0,"",ข้อมูลนักเรียน!D66 & ข้อมูลนักเรียน!E66 & " "& ข้อมูลนักเรียน!F66) ->  | E66: =IF(ข้อมูลนักเรียน!C66=0,"",ข้อมูลนักเรียน!G66) ->  | F66: =ข้อมูลนักเรียน!B66 -> 0 | AG66: ผ่าน | AH66: 0 | AJ66: ปรับปรุง | AL66: 22
A67: =ข้อมูลนักเรียน!A67 -> 0 | B67: =IF(ข้อมูลนักเรียน!B67=0,"",ข้อมูลนักเรียน!B67) ->  | C67: =IF(ข้อมูลนักเรียน!C67=0,"",ข้อมูลนักเรียน!C67) ->  | D67: =IF(ข้อมูลนักเรียน!C67=0,"",ข้อมูลนักเรียน!D67 & ข้อมูลนักเรียน!E67 & " "& ข้อมูลนักเรียน!F67) ->  | E67: =IF(ข้อมูลนักเรียน!C67=0,"",ข้อมูลนักเรียน!G67) ->  | F67: =ข้อมูลนักเรียน!B67 -> 0 | AG67: ผ่าน | AH67: 0 | AJ67: ปรับปรุง | AL67: 22
A68: =ข้อมูลนักเรียน!A68 -> 0 | B68: =IF(ข้อมูลนักเรียน!B68=0,"",ข้อมูลนักเรียน!B68) ->  | C68: =IF(ข้อมูลนักเรียน!C68=0,"",ข้อมูลนักเรียน!C68) ->  | D68: =IF(ข้อมูลนักเรียน!C68=0,"",ข้อมูลนักเรียน!D68 & ข้อมูลนักเรียน!E68 & " "& ข้อมูลนักเรียน!F68) ->  | E68: =IF(ข้อมูลนักเรียน!C68=0,"",ข้อมูลนักเรียน!G68) ->  | F68: =ข้อมูลนักเรียน!B68 -> 0 | AG68: ผ่าน | AH68: 0 | AJ68: ปรับปรุง | AL68: 22
A69: =ข้อมูลนักเรียน!A69 -> 0 | B69: =IF(ข้อมูลนักเรียน!B69=0,"",ข้อมูลนักเรียน!B69) ->  | C69: =IF(ข้อมูลนักเรียน!C69=0,"",ข้อมูลนักเรียน!C69) ->  | D69: =IF(ข้อมูลนักเรียน!C69=0,"",ข้อมูลนักเรียน!D69 & ข้อมูลนักเรียน!E69 & " "& ข้อมูลนักเรียน!F69) ->  | E69: =IF(ข้อมูลนักเรียน!C69=0,"",ข้อมูลนักเรียน!G69) ->  | F69: =ข้อมูลนักเรียน!B69 -> 0 | AG69: ผ่าน | AH69: 0 | AJ69: ปรับปรุง | AL69: 22
A70: =ข้อมูลนักเรียน!A70 -> 0 | B70: =IF(ข้อมูลนักเรียน!B70=0,"",ข้อมูลนักเรียน!B70) ->  | C70: =IF(ข้อมูลนักเรียน!C70=0,"",ข้อมูลนักเรียน!C70) ->  | D70: =IF(ข้อมูลนักเรียน!C70=0,"",ข้อมูลนักเรียน!D70 & ข้อมูลนักเรียน!E70 & " "& ข้อมูลนักเรียน!F70) ->  | E70: =IF(ข้อมูลนักเรียน!C70=0,"",ข้อมูลนักเรียน!G70) ->  | F70: =ข้อมูลนักเรียน!B70 -> 0 | AG70: ผ่าน | AH70: 0 | AJ70: ปรับปรุง | AL70: 22
A71: =ข้อมูลนักเรียน!A71 -> 0 | B71: =IF(ข้อมูลนักเรียน!B71=0,"",ข้อมูลนักเรียน!B71) ->  | C71: =IF(ข้อมูลนักเรียน!C71=0,"",ข้อมูลนักเรียน!C71) ->  | D71: =IF(ข้อมูลนักเรียน!C71=0,"",ข้อมูลนักเรียน!D71 & ข้อมูลนักเรียน!E71 & " "& ข้อมูลนักเรียน!F71) ->  | E71: =IF(ข้อมูลนักเรียน!C71=0,"",ข้อมูลนักเรียน!G71) ->  | F71: =ข้อมูลนักเรียน!B71 -> 0 | AG71: ผ่าน | AH71: 0 | AJ71: ปรับปรุง | AL71: 22
A72: =ข้อมูลนักเรียน!A72 -> 0 | B72: =IF(ข้อมูลนักเรียน!B72=0,"",ข้อมูลนักเรียน!B72) ->  | C72: =IF(ข้อมูลนักเรียน!C72=0,"",ข้อมูลนักเรียน!C72) ->  | D72: =IF(ข้อมูลนักเรียน!C72=0,"",ข้อมูลนักเรียน!D72 & ข้อมูลนักเรียน!E72 & " "& ข้อมูลนักเรียน!F72) ->  | E72: =IF(ข้อมูลนักเรียน!C72=0,"",ข้อมูลนักเรียน!G72) ->  | F72: =ข้อมูลนักเรียน!B72 -> 0 | AG72: ผ่าน | AH72: 0 | AJ72: ปรับปรุง | AL72: 22
A73: =ข้อมูลนักเรียน!A73 -> 0 | B73: =IF(ข้อมูลนักเรียน!B73=0,"",ข้อมูลนักเรียน!B73) ->  | C73: =IF(ข้อมูลนักเรียน!C73=0,"",ข้อมูลนักเรียน!C73) ->  | D73: =IF(ข้อมูลนักเรียน!C73=0,"",ข้อมูลนักเรียน!D73 & ข้อมูลนักเรียน!E73 & " "& ข้อมูลนักเรียน!F73) ->  | E73: =IF(ข้อมูลนักเรียน!C73=0,"",ข้อมูลนักเรียน!G73) ->  | F73: =ข้อมูลนักเรียน!B73 -> 0 | AG73: =IF(COUNTIFS(Z73:AD73,"=มผ") > 0,"ไม่ผ่าน","ผ่าน") -> ผ่าน | AH73: =ROUNDDOWN(0,2) -> 0 | AJ73: =IF(AF73=1,"ผ่าน",IF(AF73=2,"ดี",IF(AF73=3,"ดีเยี่ยม","ปรับปรุง"))) -> ปรับปรุง | AL73: 22
A74: =ข้อมูลนักเรียน!A74 -> 0 | B74: =IF(ข้อมูลนักเรียน!B74=0,"",ข้อมูลนักเรียน!B74) ->  | C74: =IF(ข้อมูลนักเรียน!C74=0,"",ข้อมูลนักเรียน!C74) ->  | D74: =IF(ข้อมูลนักเรียน!C74=0,"",ข้อมูลนักเรียน!D74 & ข้อมูลนักเรียน!E74 & " "& ข้อมูลนักเรียน!F74) ->  | E74: =IF(ข้อมูลนักเรียน!C74=0,"",ข้อมูลนักเรียน!G74) ->  | F74: =ข้อมูลนักเรียน!B74 -> 0 | AG74: ผ่าน | AH74: 0 | AJ74: ปรับปรุง | AL74: 22
A75: =ข้อมูลนักเรียน!A75 -> 0 | B75: =IF(ข้อมูลนักเรียน!B75=0,"",ข้อมูลนักเรียน!B75) ->  | C75: =IF(ข้อมูลนักเรียน!C75=0,"",ข้อมูลนักเรียน!C75) ->  | D75: =IF(ข้อมูลนักเรียน!C75=0,"",ข้อมูลนักเรียน!D75 & ข้อมูลนักเรียน!E75 & " "& ข้อมูลนักเรียน!F75) ->  | E75: =IF(ข้อมูลนักเรียน!C75=0,"",ข้อมูลนักเรียน!G75) ->  | F75: =ข้อมูลนักเรียน!B75 -> 0 | AG75: ผ่าน | AH75: 0 | AJ75: ปรับปรุง | AL75: 22
A76: =ข้อมูลนักเรียน!A76 -> 0 | B76: =IF(ข้อมูลนักเรียน!B76=0,"",ข้อมูลนักเรียน!B76) ->  | C76: =IF(ข้อมูลนักเรียน!C76=0,"",ข้อมูลนักเรียน!C76) ->  | D76: =IF(ข้อมูลนักเรียน!C76=0,"",ข้อมูลนักเรียน!D76 & ข้อมูลนักเรียน!E76 & " "& ข้อมูลนักเรียน!F76) ->  | E76: =IF(ข้อมูลนักเรียน!C76=0,"",ข้อมูลนักเรียน!G76) ->  | F76: =ข้อมูลนักเรียน!B76 -> 0 | AG76: ผ่าน | AH76: 0 | AJ76: ปรับปรุง | AL76: 22
A77: =ข้อมูลนักเรียน!A77 -> 0 | B77: =IF(ข้อมูลนักเรียน!B77=0,"",ข้อมูลนักเรียน!B77) ->  | C77: =IF(ข้อมูลนักเรียน!C77=0,"",ข้อมูลนักเรียน!C77) ->  | D77: =IF(ข้อมูลนักเรียน!C77=0,"",ข้อมูลนักเรียน!D77 & ข้อมูลนักเรียน!E77 & " "& ข้อมูลนักเรียน!F77) ->  | E77: =IF(ข้อมูลนักเรียน!C77=0,"",ข้อมูลนักเรียน!G77) ->  | F77: =ข้อมูลนักเรียน!B77 -> 0 | AG77: ผ่าน | AH77: 0 | AJ77: ปรับปรุง | AL77: 22
A78: =ข้อมูลนักเรียน!A78 -> 0 | B78: =IF(ข้อมูลนักเรียน!B78=0,"",ข้อมูลนักเรียน!B78) ->  | C78: =IF(ข้อมูลนักเรียน!C78=0,"",ข้อมูลนักเรียน!C78) ->  | D78: =IF(ข้อมูลนักเรียน!C78=0,"",ข้อมูลนักเรียน!D78 & ข้อมูลนักเรียน!E78 & " "& ข้อมูลนักเรียน!F78) ->  | E78: =IF(ข้อมูลนักเรียน!C78=0,"",ข้อมูลนักเรียน!G78) ->  | F78: =ข้อมูลนักเรียน!B78 -> 0 | AG78: ผ่าน | AH78: 0 | AJ78: ปรับปรุง | AL78: 22
A79: =ข้อมูลนักเรียน!A79 -> 0 | B79: =IF(ข้อมูลนักเรียน!B79=0,"",ข้อมูลนักเรียน!B79) ->  | C79: =IF(ข้อมูลนักเรียน!C79=0,"",ข้อมูลนักเรียน!C79) ->  | D79: =IF(ข้อมูลนักเรียน!C79=0,"",ข้อมูลนักเรียน!D79 & ข้อมูลนักเรียน!E79 & " "& ข้อมูลนักเรียน!F79) ->  | E79: =IF(ข้อมูลนักเรียน!C79=0,"",ข้อมูลนักเรียน!G79) ->  | F79: =ข้อมูลนักเรียน!B79 -> 0 | AG79: ผ่าน | AH79: 0 | AJ79: ปรับปรุง | AL79: 22
A80: =ข้อมูลนักเรียน!A80 -> 0 | B80: =IF(ข้อมูลนักเรียน!B80=0,"",ข้อมูลนักเรียน!B80) ->  | C80: =IF(ข้อมูลนักเรียน!C80=0,"",ข้อมูลนักเรียน!C80) ->  | D80: =IF(ข้อมูลนักเรียน!C80=0,"",ข้อมูลนักเรียน!D80 & ข้อมูลนักเรียน!E80 & " "& ข้อมูลนักเรียน!F80) ->  | E80: =IF(ข้อมูลนักเรียน!C80=0,"",ข้อมูลนักเรียน!G80) ->  | F80: =ข้อมูลนักเรียน!B80 -> 0 | AG80: ผ่าน | AH80: 0 | AJ80: ปรับปรุง | AL80: 22
A81: =ข้อมูลนักเรียน!A81 -> 0 | B81: =IF(ข้อมูลนักเรียน!B81=0,"",ข้อมูลนักเรียน!B81) ->  | C81: =IF(ข้อมูลนักเรียน!C81=0,"",ข้อมูลนักเรียน!C81) ->  | D81: =IF(ข้อมูลนักเรียน!C81=0,"",ข้อมูลนักเรียน!D81 & ข้อมูลนักเรียน!E81 & " "& ข้อมูลนักเรียน!F81) ->  | E81: =IF(ข้อมูลนักเรียน!C81=0,"",ข้อมูลนักเรียน!G81) ->  | F81: =ข้อมูลนักเรียน!B81 -> 0 | AG81: ผ่าน | AH81: 0 | AJ81: ปรับปรุง | AL81: 22
A82: =ข้อมูลนักเรียน!A82 -> 0 | B82: =IF(ข้อมูลนักเรียน!B82=0,"",ข้อมูลนักเรียน!B82) ->  | C82: =IF(ข้อมูลนักเรียน!C82=0,"",ข้อมูลนักเรียน!C82) ->  | D82: =IF(ข้อมูลนักเรียน!C82=0,"",ข้อมูลนักเรียน!D82 & ข้อมูลนักเรียน!E82 & " "& ข้อมูลนักเรียน!F82) ->  | E82: =IF(ข้อมูลนักเรียน!C82=0,"",ข้อมูลนักเรียน!G82) ->  | F82: =ข้อมูลนักเรียน!B82 -> 0 | AG82: ผ่าน | AH82: 0 | AJ82: ปรับปรุง | AL82: 22
A83: =ข้อมูลนักเรียน!A83 -> 0 | B83: =IF(ข้อมูลนักเรียน!B83=0,"",ข้อมูลนักเรียน!B83) ->  | C83: =IF(ข้อมูลนักเรียน!C83=0,"",ข้อมูลนักเรียน!C83) ->  | D83: =IF(ข้อมูลนักเรียน!C83=0,"",ข้อมูลนักเรียน!D83 & ข้อมูลนักเรียน!E83 & " "& ข้อมูลนักเรียน!F83) ->  | E83: =IF(ข้อมูลนักเรียน!C83=0,"",ข้อมูลนักเรียน!G83) ->  | F83: =ข้อมูลนักเรียน!B83 -> 0 | AG83: ผ่าน | AH83: 0 | AJ83: ปรับปรุง | AL83: 22
A84: =ข้อมูลนักเรียน!A84 -> 0 | B84: =IF(ข้อมูลนักเรียน!B84=0,"",ข้อมูลนักเรียน!B84) ->  | C84: =IF(ข้อมูลนักเรียน!C84=0,"",ข้อมูลนักเรียน!C84) ->  | D84: =IF(ข้อมูลนักเรียน!C84=0,"",ข้อมูลนักเรียน!D84 & ข้อมูลนักเรียน!E84 & " "& ข้อมูลนักเรียน!F84) ->  | E84: =IF(ข้อมูลนักเรียน!C84=0,"",ข้อมูลนักเรียน!G84) ->  | F84: =ข้อมูลนักเรียน!B84 -> 0 | AG84: ผ่าน | AH84: 0 | AJ84: ปรับปรุง | AL84: 22
A85: =ข้อมูลนักเรียน!A85 -> 0 | B85: =IF(ข้อมูลนักเรียน!B85=0,"",ข้อมูลนักเรียน!B85) ->  | C85: =IF(ข้อมูลนักเรียน!C85=0,"",ข้อมูลนักเรียน!C85) ->  | D85: =IF(ข้อมูลนักเรียน!C85=0,"",ข้อมูลนักเรียน!D85 & ข้อมูลนักเรียน!E85 & " "& ข้อมูลนักเรียน!F85) ->  | E85: =IF(ข้อมูลนักเรียน!C85=0,"",ข้อมูลนักเรียน!G85) ->  | F85: =ข้อมูลนักเรียน!B85 -> 0 | AG85: ผ่าน | AH85: 0 | AJ85: ปรับปรุง | AL85: 22
A86: =ข้อมูลนักเรียน!A86 -> 0 | B86: =IF(ข้อมูลนักเรียน!B86=0,"",ข้อมูลนักเรียน!B86) ->  | C86: =IF(ข้อมูลนักเรียน!C86=0,"",ข้อมูลนักเรียน!C86) ->  | D86: =IF(ข้อมูลนักเรียน!C86=0,"",ข้อมูลนักเรียน!D86 & ข้อมูลนักเรียน!E86 & " "& ข้อมูลนักเรียน!F86) ->  | E86: =IF(ข้อมูลนักเรียน!C86=0,"",ข้อมูลนักเรียน!G86) ->  | F86: =ข้อมูลนักเรียน!B86 -> 0 | AG86: ผ่าน | AH86: 0 | AJ86: ปรับปรุง | AL86: 22
A87: =ข้อมูลนักเรียน!A87 -> 0 | B87: =IF(ข้อมูลนักเรียน!B87=0,"",ข้อมูลนักเรียน!B87) ->  | C87: =IF(ข้อมูลนักเรียน!C87=0,"",ข้อมูลนักเรียน!C87) ->  | D87: =IF(ข้อมูลนักเรียน!C87=0,"",ข้อมูลนักเรียน!D87 & ข้อมูลนักเรียน!E87 & " "& ข้อมูลนักเรียน!F87) ->  | E87: =IF(ข้อมูลนักเรียน!C87=0,"",ข้อมูลนักเรียน!G87) ->  | F87: =ข้อมูลนักเรียน!B87 -> 0 | AG87: ผ่าน | AH87: 0 | AJ87: ปรับปรุง | AL87: 22
A88: =ข้อมูลนักเรียน!A88 -> 0 | B88: =IF(ข้อมูลนักเรียน!B88=0,"",ข้อมูลนักเรียน!B88) ->  | C88: =IF(ข้อมูลนักเรียน!C88=0,"",ข้อมูลนักเรียน!C88) ->  | D88: =IF(ข้อมูลนักเรียน!C88=0,"",ข้อมูลนักเรียน!D88 & ข้อมูลนักเรียน!E88 & " "& ข้อมูลนักเรียน!F88) ->  | E88: =IF(ข้อมูลนักเรียน!C88=0,"",ข้อมูลนักเรียน!G88) ->  | F88: =ข้อมูลนักเรียน!B88 -> 0 | AG88: ผ่าน | AH88: 0 | AJ88: ปรับปรุง | AL88: 22
A89: =ข้อมูลนักเรียน!A89 -> 0 | B89: =IF(ข้อมูลนักเรียน!B89=0,"",ข้อมูลนักเรียน!B89) ->  | C89: =IF(ข้อมูลนักเรียน!C89=0,"",ข้อมูลนักเรียน!C89) ->  | D89: =IF(ข้อมูลนักเรียน!C89=0,"",ข้อมูลนักเรียน!D89 & ข้อมูลนักเรียน!E89 & " "& ข้อมูลนักเรียน!F89) ->  | E89: =IF(ข้อมูลนักเรียน!C89=0,"",ข้อมูลนักเรียน!G89) ->  | F89: =ข้อมูลนักเรียน!B89 -> 0 | AG89: ผ่าน | AH89: 0 | AJ89: ปรับปรุง | AL89: 22
A90: =ข้อมูลนักเรียน!A90 -> 0 | B90: =IF(ข้อมูลนักเรียน!B90=0,"",ข้อมูลนักเรียน!B90) ->  | C90: =IF(ข้อมูลนักเรียน!C90=0,"",ข้อมูลนักเรียน!C90) ->  | D90: =IF(ข้อมูลนักเรียน!C90=0,"",ข้อมูลนักเรียน!D90 & ข้อมูลนักเรียน!E90 & " "& ข้อมูลนักเรียน!F90) ->  | E90: =IF(ข้อมูลนักเรียน!C90=0,"",ข้อมูลนักเรียน!G90) ->  | F90: =ข้อมูลนักเรียน!B90 -> 0 | AG90: ผ่าน | AH90: 0 | AJ90: ปรับปรุง | AL90: 22
A91: =ข้อมูลนักเรียน!A91 -> 0 | B91: =IF(ข้อมูลนักเรียน!B91=0,"",ข้อมูลนักเรียน!B91) ->  | C91: =IF(ข้อมูลนักเรียน!C91=0,"",ข้อมูลนักเรียน!C91) ->  | D91: =IF(ข้อมูลนักเรียน!C91=0,"",ข้อมูลนักเรียน!D91 & ข้อมูลนักเรียน!E91 & " "& ข้อมูลนักเรียน!F91) ->  | E91: =IF(ข้อมูลนักเรียน!C91=0,"",ข้อมูลนักเรียน!G91) ->  | F91: =ข้อมูลนักเรียน!B91 -> 0 | AG91: ผ่าน | AH91: 0 | AJ91: ปรับปรุง | AL91: 22
A92: =ข้อมูลนักเรียน!A92 -> 0 | B92: =IF(ข้อมูลนักเรียน!B92=0,"",ข้อมูลนักเรียน!B92) ->  | C92: =IF(ข้อมูลนักเรียน!C92=0,"",ข้อมูลนักเรียน!C92) ->  | D92: =IF(ข้อมูลนักเรียน!C92=0,"",ข้อมูลนักเรียน!D92 & ข้อมูลนักเรียน!E92 & " "& ข้อมูลนักเรียน!F92) ->  | E92: =IF(ข้อมูลนักเรียน!C92=0,"",ข้อมูลนักเรียน!G92) ->  | F92: =ข้อมูลนักเรียน!B92 -> 0 | AG92: ผ่าน | AH92: 0 | AJ92: ปรับปรุง | AL92: 22
A93: =ข้อมูลนักเรียน!A93 -> 0 | B93: =IF(ข้อมูลนักเรียน!B93=0,"",ข้อมูลนักเรียน!B93) ->  | C93: =IF(ข้อมูลนักเรียน!C93=0,"",ข้อมูลนักเรียน!C93) ->  | D93: =IF(ข้อมูลนักเรียน!C93=0,"",ข้อมูลนักเรียน!D93 & ข้อมูลนักเรียน!E93 & " "& ข้อมูลนักเรียน!F93) ->  | E93: =IF(ข้อมูลนักเรียน!C93=0,"",ข้อมูลนักเรียน!G93) ->  | F93: =ข้อมูลนักเรียน!B93 -> 0 | AG93: ผ่าน | AH93: 0 | AJ93: ปรับปรุง | AL93: 22
A94: =ข้อมูลนักเรียน!A94 -> 0 | B94: =IF(ข้อมูลนักเรียน!B94=0,"",ข้อมูลนักเรียน!B94) ->  | C94: =IF(ข้อมูลนักเรียน!C94=0,"",ข้อมูลนักเรียน!C94) ->  | D94: =IF(ข้อมูลนักเรียน!C94=0,"",ข้อมูลนักเรียน!D94 & ข้อมูลนักเรียน!E94 & " "& ข้อมูลนักเรียน!F94) ->  | E94: =IF(ข้อมูลนักเรียน!C94=0,"",ข้อมูลนักเรียน!G94) ->  | F94: =ข้อมูลนักเรียน!B94 -> 0 | AG94: ผ่าน | AH94: 0 | AJ94: ปรับปรุง | AL94: 22
A95: =ข้อมูลนักเรียน!A95 -> 0 | B95: =IF(ข้อมูลนักเรียน!B95=0,"",ข้อมูลนักเรียน!B95) ->  | C95: =IF(ข้อมูลนักเรียน!C95=0,"",ข้อมูลนักเรียน!C95) ->  | D95: =IF(ข้อมูลนักเรียน!C95=0,"",ข้อมูลนักเรียน!D95 & ข้อมูลนักเรียน!E95 & " "& ข้อมูลนักเรียน!F95) ->  | E95: =IF(ข้อมูลนักเรียน!C95=0,"",ข้อมูลนักเรียน!G95) ->  | F95: =ข้อมูลนักเรียน!B95 -> 0 | AG95: ผ่าน | AH95: 0 | AJ95: ปรับปรุง | AL95: 22
A96: =ข้อมูลนักเรียน!A96 -> 0 | B96: =IF(ข้อมูลนักเรียน!B96=0,"",ข้อมูลนักเรียน!B96) ->  | C96: =IF(ข้อมูลนักเรียน!C96=0,"",ข้อมูลนักเรียน!C96) ->  | D96: =IF(ข้อมูลนักเรียน!C96=0,"",ข้อมูลนักเรียน!D96 & ข้อมูลนักเรียน!E96 & " "& ข้อมูลนักเรียน!F96) ->  | E96: =IF(ข้อมูลนักเรียน!C96=0,"",ข้อมูลนักเรียน!G96) ->  | F96: =ข้อมูลนักเรียน!B96 -> 0 | AG96: ผ่าน | AH96: 0 | AJ96: ปรับปรุง | AL96: 22
A97: =ข้อมูลนักเรียน!A97 -> 0 | B97: =IF(ข้อมูลนักเรียน!B97=0,"",ข้อมูลนักเรียน!B97) ->  | C97: =IF(ข้อมูลนักเรียน!C97=0,"",ข้อมูลนักเรียน!C97) ->  | D97: =IF(ข้อมูลนักเรียน!C97=0,"",ข้อมูลนักเรียน!D97 & ข้อมูลนักเรียน!E97 & " "& ข้อมูลนักเรียน!F97) ->  | E97: =IF(ข้อมูลนักเรียน!C97=0,"",ข้อมูลนักเรียน!G97) ->  | F97: =ข้อมูลนักเรียน!B97 -> 0 | AG97: ผ่าน | AH97: 0 | AJ97: ปรับปรุง | AL97: 22
A98: =ข้อมูลนักเรียน!A98 -> 0 | B98: =IF(ข้อมูลนักเรียน!B98=0,"",ข้อมูลนักเรียน!B98) ->  | C98: =IF(ข้อมูลนักเรียน!C98=0,"",ข้อมูลนักเรียน!C98) ->  | D98: =IF(ข้อมูลนักเรียน!C98=0,"",ข้อมูลนักเรียน!D98 & ข้อมูลนักเรียน!E98 & " "& ข้อมูลนักเรียน!F98) ->  | E98: =IF(ข้อมูลนักเรียน!C98=0,"",ข้อมูลนักเรียน!G98) ->  | F98: =ข้อมูลนักเรียน!B98 -> 0 | AG98: ผ่าน | AH98: 0 | AJ98: ปรับปรุง | AL98: 22
A99: =ข้อมูลนักเรียน!A99 -> 0 | B99: =IF(ข้อมูลนักเรียน!B99=0,"",ข้อมูลนักเรียน!B99) ->  | C99: =IF(ข้อมูลนักเรียน!C99=0,"",ข้อมูลนักเรียน!C99) ->  | D99: =IF(ข้อมูลนักเรียน!C99=0,"",ข้อมูลนักเรียน!D99 & ข้อมูลนักเรียน!E99 & " "& ข้อมูลนักเรียน!F99) ->  | E99: =IF(ข้อมูลนักเรียน!C99=0,"",ข้อมูลนักเรียน!G99) ->  | F99: =ข้อมูลนักเรียน!B99 -> 0 | AG99: ผ่าน | AH99: 0 | AJ99: ปรับปรุง | AL99: 22
A100: =ข้อมูลนักเรียน!A100 -> 0 | B100: =IF(ข้อมูลนักเรียน!B100=0,"",ข้อมูลนักเรียน!B100) ->  | C100: =IF(ข้อมูลนักเรียน!C100=0,"",ข้อมูลนักเรียน!C100) ->  | D100: =IF(ข้อมูลนักเรียน!C100=0,"",ข้อมูลนักเรียน!D100 & ข้อมูลนักเรียน!E100 & " "& ข้อมูลนักเรียน!F100) ->  | E100: =IF(ข้อมูลนักเรียน!C100=0,"",ข้อมูลนักเรียน!G100) ->  | F100: =ข้อมูลนักเรียน!B100 -> 0 | AG100: ผ่าน | AH100: 0 | AJ100: ปรับปรุง | AL100: 22
A101: =ข้อมูลนักเรียน!A101 -> 0 | B101: =IF(ข้อมูลนักเรียน!B101=0,"",ข้อมูลนักเรียน!B101) ->  | C101: =IF(ข้อมูลนักเรียน!C101=0,"",ข้อมูลนักเรียน!C101) ->  | D101: =IF(ข้อมูลนักเรียน!C101=0,"",ข้อมูลนักเรียน!D101 & ข้อมูลนักเรียน!E101 & " "& ข้อมูลนักเรียน!F101) ->  | E101: =IF(ข้อมูลนักเรียน!C101=0,"",ข้อมูลนักเรียน!G101) ->  | F101: =ข้อมูลนักเรียน!B101 -> 0 | AG101: ผ่าน | AH101: 0 | AJ101: ปรับปรุง | AL101: 22
A102: =ข้อมูลนักเรียน!A102 -> 0 | B102: =IF(ข้อมูลนักเรียน!B102=0,"",ข้อมูลนักเรียน!B102) ->  | C102: =IF(ข้อมูลนักเรียน!C102=0,"",ข้อมูลนักเรียน!C102) ->  | D102: =IF(ข้อมูลนักเรียน!C102=0,"",ข้อมูลนักเรียน!D102 & ข้อมูลนักเรียน!E102 & " "& ข้อมูลนักเรียน!F102) ->  | E102: =IF(ข้อมูลนักเรียน!C102=0,"",ข้อมูลนักเรียน!G102) ->  | F102: =ข้อมูลนักเรียน!B102 -> 0 | AG102: ผ่าน | AH102: 0 | AJ102: ปรับปรุง | AL102: 22
A103: =ข้อมูลนักเรียน!A103 -> 0 | B103: =IF(ข้อมูลนักเรียน!B103=0,"",ข้อมูลนักเรียน!B103) ->  | C103: =IF(ข้อมูลนักเรียน!C103=0,"",ข้อมูลนักเรียน!C103) ->  | D103: =IF(ข้อมูลนักเรียน!C103=0,"",ข้อมูลนักเรียน!D103 & ข้อมูลนักเรียน!E103 & " "& ข้อมูลนักเรียน!F103) ->  | E103: =IF(ข้อมูลนักเรียน!C103=0,"",ข้อมูลนักเรียน!G103) ->  | F103: =ข้อมูลนักเรียน!B103 -> 0 | AG103: ผ่าน | AH103: 0 | AJ103: ปรับปรุง | AL103: 22
A104: =ข้อมูลนักเรียน!A104 -> 0 | B104: =IF(ข้อมูลนักเรียน!B104=0,"",ข้อมูลนักเรียน!B104) ->  | C104: =IF(ข้อมูลนักเรียน!C104=0,"",ข้อมูลนักเรียน!C104) ->  | D104: =IF(ข้อมูลนักเรียน!C104=0,"",ข้อมูลนักเรียน!D104 & ข้อมูลนักเรียน!E104 & " "& ข้อมูลนักเรียน!F104) ->  | E104: =IF(ข้อมูลนักเรียน!C104=0,"",ข้อมูลนักเรียน!G104) ->  | F104: =ข้อมูลนักเรียน!B104 -> 0 | AG104: ผ่าน | AH104: 0 | AJ104: ปรับปรุง | AL104: 22
A105: =ข้อมูลนักเรียน!A105 -> 0 | B105: =IF(ข้อมูลนักเรียน!B105=0,"",ข้อมูลนักเรียน!B105) ->  | C105: =IF(ข้อมูลนักเรียน!C105=0,"",ข้อมูลนักเรียน!C105) ->  | D105: =IF(ข้อมูลนักเรียน!C105=0,"",ข้อมูลนักเรียน!D105 & ข้อมูลนักเรียน!E105 & " "& ข้อมูลนักเรียน!F105) ->  | E105: =IF(ข้อมูลนักเรียน!C105=0,"",ข้อมูลนักเรียน!G105) ->  | F105: =ข้อมูลนักเรียน!B105 -> 0 | AG105: ผ่าน | AH105: =ROUNDDOWN(0,2) -> 0 | AJ105: ปรับปรุง | AL105: 22
A106: =ข้อมูลนักเรียน!A106 -> 0 | B106: =IF(ข้อมูลนักเรียน!B106=0,"",ข้อมูลนักเรียน!B106) ->  | C106: =IF(ข้อมูลนักเรียน!C106=0,"",ข้อมูลนักเรียน!C106) ->  | D106: =IF(ข้อมูลนักเรียน!C106=0,"",ข้อมูลนักเรียน!D106 & ข้อมูลนักเรียน!E106 & " "& ข้อมูลนักเรียน!F106) ->  | E106: =IF(ข้อมูลนักเรียน!C106=0,"",ข้อมูลนักเรียน!G106) ->  | F106: =ข้อมูลนักเรียน!B106 -> 0 | AG106: ผ่าน | AH106: 0 | AJ106: ปรับปรุง | AL106: 22
A107: =ข้อมูลนักเรียน!A107 -> 0 | B107: =IF(ข้อมูลนักเรียน!B107=0,"",ข้อมูลนักเรียน!B107) ->  | C107: =IF(ข้อมูลนักเรียน!C107=0,"",ข้อมูลนักเรียน!C107) ->  | D107: =IF(ข้อมูลนักเรียน!C107=0,"",ข้อมูลนักเรียน!D107 & ข้อมูลนักเรียน!E107 & " "& ข้อมูลนักเรียน!F107) ->  | E107: =IF(ข้อมูลนักเรียน!C107=0,"",ข้อมูลนักเรียน!G107) ->  | F107: =ข้อมูลนักเรียน!B107 -> 0 | AG107: ผ่าน | AH107: 0 | AJ107: ปรับปรุง | AL107: 22
A108: =ข้อมูลนักเรียน!A108 -> 0 | B108: =IF(ข้อมูลนักเรียน!B108=0,"",ข้อมูลนักเรียน!B108) ->  | C108: =IF(ข้อมูลนักเรียน!C108=0,"",ข้อมูลนักเรียน!C108) ->  | D108: =IF(ข้อมูลนักเรียน!C108=0,"",ข้อมูลนักเรียน!D108 & ข้อมูลนักเรียน!E108 & " "& ข้อมูลนักเรียน!F108) ->  | E108: =IF(ข้อมูลนักเรียน!C108=0,"",ข้อมูลนักเรียน!G108) ->  | F108: =ข้อมูลนักเรียน!B108 -> 0 | AG108: ผ่าน | AH108: 0 | AJ108: ปรับปรุง | AL108: 22
A109: =ข้อมูลนักเรียน!A109 -> 0 | B109: =IF(ข้อมูลนักเรียน!B109=0,"",ข้อมูลนักเรียน!B109) ->  | C109: =IF(ข้อมูลนักเรียน!C109=0,"",ข้อมูลนักเรียน!C109) ->  | D109: =IF(ข้อมูลนักเรียน!C109=0,"",ข้อมูลนักเรียน!D109 & ข้อมูลนักเรียน!E109 & " "& ข้อมูลนักเรียน!F109) ->  | E109: =IF(ข้อมูลนักเรียน!C109=0,"",ข้อมูลนักเรียน!G109) ->  | F109: =ข้อมูลนักเรียน!B109 -> 0 | AG109: ผ่าน | AH109: 0 | AJ109: ปรับปรุง | AL109: 22
A110: =ข้อมูลนักเรียน!A110 -> 0 | B110: =IF(ข้อมูลนักเรียน!B110=0,"",ข้อมูลนักเรียน!B110) ->  | C110: =IF(ข้อมูลนักเรียน!C110=0,"",ข้อมูลนักเรียน!C110) ->  | D110: =IF(ข้อมูลนักเรียน!C110=0,"",ข้อมูลนักเรียน!D110 & ข้อมูลนักเรียน!E110 & " "& ข้อมูลนักเรียน!F110) ->  | E110: =IF(ข้อมูลนักเรียน!C110=0,"",ข้อมูลนักเรียน!G110) ->  | F110: =ข้อมูลนักเรียน!B110 -> 0 | AG110: ผ่าน | AH110: 0 | AJ110: ปรับปรุง | AL110: 22
A111: =ข้อมูลนักเรียน!A111 -> 0 | B111: =IF(ข้อมูลนักเรียน!B111=0,"",ข้อมูลนักเรียน!B111) ->  | C111: =IF(ข้อมูลนักเรียน!C111=0,"",ข้อมูลนักเรียน!C111) ->  | D111: =IF(ข้อมูลนักเรียน!C111=0,"",ข้อมูลนักเรียน!D111 & ข้อมูลนักเรียน!E111 & " "& ข้อมูลนักเรียน!F111) ->  | E111: =IF(ข้อมูลนักเรียน!C111=0,"",ข้อมูลนักเรียน!G111) ->  | F111: =ข้อมูลนักเรียน!B111 -> 0 | AG111: ผ่าน | AH111: 0 | AJ111: ปรับปรุง | AL111: 22
A112: =ข้อมูลนักเรียน!A112 -> 0 | B112: =IF(ข้อมูลนักเรียน!B112=0,"",ข้อมูลนักเรียน!B112) ->  | C112: =IF(ข้อมูลนักเรียน!C112=0,"",ข้อมูลนักเรียน!C112) ->  | D112: =IF(ข้อมูลนักเรียน!C112=0,"",ข้อมูลนักเรียน!D112 & ข้อมูลนักเรียน!E112 & " "& ข้อมูลนักเรียน!F112) ->  | E112: =IF(ข้อมูลนักเรียน!C112=0,"",ข้อมูลนักเรียน!G112) ->  | F112: =ข้อมูลนักเรียน!B112 -> 0 | AG112: ผ่าน | AH112: 0 | AJ112: ปรับปรุง | AL112: 22
A113: =ข้อมูลนักเรียน!A113 -> 0 | B113: =IF(ข้อมูลนักเรียน!B113=0,"",ข้อมูลนักเรียน!B113) ->  | C113: =IF(ข้อมูลนักเรียน!C113=0,"",ข้อมูลนักเรียน!C113) ->  | D113: =IF(ข้อมูลนักเรียน!C113=0,"",ข้อมูลนักเรียน!D113 & ข้อมูลนักเรียน!E113 & " "& ข้อมูลนักเรียน!F113) ->  | E113: =IF(ข้อมูลนักเรียน!C113=0,"",ข้อมูลนักเรียน!G113) ->  | F113: =ข้อมูลนักเรียน!B113 -> 0 | AG113: ผ่าน | AH113: 0 | AJ113: ปรับปรุง | AL113: 22
A114: =ข้อมูลนักเรียน!A114 -> 0 | B114: =IF(ข้อมูลนักเรียน!B114=0,"",ข้อมูลนักเรียน!B114) ->  | C114: =IF(ข้อมูลนักเรียน!C114=0,"",ข้อมูลนักเรียน!C114) ->  | D114: =IF(ข้อมูลนักเรียน!C114=0,"",ข้อมูลนักเรียน!D114 & ข้อมูลนักเรียน!E114 & " "& ข้อมูลนักเรียน!F114) ->  | E114: =IF(ข้อมูลนักเรียน!C114=0,"",ข้อมูลนักเรียน!G114) ->  | F114: =ข้อมูลนักเรียน!B114 -> 0 | AG114: ผ่าน | AH114: 0 | AJ114: ปรับปรุง | AL114: 22
A115: =ข้อมูลนักเรียน!A115 -> 0 | B115: =IF(ข้อมูลนักเรียน!B115=0,"",ข้อมูลนักเรียน!B115) ->  | C115: =IF(ข้อมูลนักเรียน!C115=0,"",ข้อมูลนักเรียน!C115) ->  | D115: =IF(ข้อมูลนักเรียน!C115=0,"",ข้อมูลนักเรียน!D115 & ข้อมูลนักเรียน!E115 & " "& ข้อมูลนักเรียน!F115) ->  | E115: =IF(ข้อมูลนักเรียน!C115=0,"",ข้อมูลนักเรียน!G115) ->  | F115: =ข้อมูลนักเรียน!B115 -> 0 | AG115: ผ่าน | AH115: 0 | AJ115: ปรับปรุง | AL115: 22
A116: =ข้อมูลนักเรียน!A116 -> 0 | B116: =IF(ข้อมูลนักเรียน!B116=0,"",ข้อมูลนักเรียน!B116) ->  | C116: =IF(ข้อมูลนักเรียน!C116=0,"",ข้อมูลนักเรียน!C116) ->  | D116: =IF(ข้อมูลนักเรียน!C116=0,"",ข้อมูลนักเรียน!D116 & ข้อมูลนักเรียน!E116 & " "& ข้อมูลนักเรียน!F116) ->  | E116: =IF(ข้อมูลนักเรียน!C116=0,"",ข้อมูลนักเรียน!G116) ->  | F116: =ข้อมูลนักเรียน!B116 -> 0 | AG116: ผ่าน | AH116: 0 | AJ116: ปรับปรุง | AL116: 22
A117: =ข้อมูลนักเรียน!A117 -> 0 | B117: =IF(ข้อมูลนักเรียน!B117=0,"",ข้อมูลนักเรียน!B117) ->  | C117: =IF(ข้อมูลนักเรียน!C117=0,"",ข้อมูลนักเรียน!C117) ->  | D117: =IF(ข้อมูลนักเรียน!C117=0,"",ข้อมูลนักเรียน!D117 & ข้อมูลนักเรียน!E117 & " "& ข้อมูลนักเรียน!F117) ->  | E117: =IF(ข้อมูลนักเรียน!C117=0,"",ข้อมูลนักเรียน!G117) ->  | F117: =ข้อมูลนักเรียน!B117 -> 0 | AG117: ผ่าน | AH117: 0 | AJ117: ปรับปรุง | AL117: 22
A118: =ข้อมูลนักเรียน!A118 -> 0 | B118: =IF(ข้อมูลนักเรียน!B118=0,"",ข้อมูลนักเรียน!B118) ->  | C118: =IF(ข้อมูลนักเรียน!C118=0,"",ข้อมูลนักเรียน!C118) ->  | D118: =IF(ข้อมูลนักเรียน!C118=0,"",ข้อมูลนักเรียน!D118 & ข้อมูลนักเรียน!E118 & " "& ข้อมูลนักเรียน!F118) ->  | E118: =IF(ข้อมูลนักเรียน!C118=0,"",ข้อมูลนักเรียน!G118) ->  | F118: =ข้อมูลนักเรียน!B118 -> 0 | AG118: ผ่าน | AH118: 0 | AJ118: ปรับปรุง | AL118: 22
A119: =ข้อมูลนักเรียน!A119 -> 0 | B119: =IF(ข้อมูลนักเรียน!B119=0,"",ข้อมูลนักเรียน!B119) ->  | C119: =IF(ข้อมูลนักเรียน!C119=0,"",ข้อมูลนักเรียน!C119) ->  | D119: =IF(ข้อมูลนักเรียน!C119=0,"",ข้อมูลนักเรียน!D119 & ข้อมูลนักเรียน!E119 & " "& ข้อมูลนักเรียน!F119) ->  | E119: =IF(ข้อมูลนักเรียน!C119=0,"",ข้อมูลนักเรียน!G119) ->  | F119: =ข้อมูลนักเรียน!B119 -> 0 | AG119: ผ่าน | AH119: 0 | AJ119: ปรับปรุง | AL119: 22
A120: =ข้อมูลนักเรียน!A120 -> 0 | B120: =IF(ข้อมูลนักเรียน!B120=0,"",ข้อมูลนักเรียน!B120) ->  | C120: =IF(ข้อมูลนักเรียน!C120=0,"",ข้อมูลนักเรียน!C120) ->  | D120: =IF(ข้อมูลนักเรียน!C120=0,"",ข้อมูลนักเรียน!D120 & ข้อมูลนักเรียน!E120 & " "& ข้อมูลนักเรียน!F120) ->  | E120: =IF(ข้อมูลนักเรียน!C120=0,"",ข้อมูลนักเรียน!G120) ->  | F120: =ข้อมูลนักเรียน!B120 -> 0 | AG120: ผ่าน | AH120: 0 | AJ120: ปรับปรุง | AL120: 22
A121: =ข้อมูลนักเรียน!A121 -> 0 | B121: =IF(ข้อมูลนักเรียน!B121=0,"",ข้อมูลนักเรียน!B121) ->  | C121: =IF(ข้อมูลนักเรียน!C121=0,"",ข้อมูลนักเรียน!C121) ->  | D121: =IF(ข้อมูลนักเรียน!C121=0,"",ข้อมูลนักเรียน!D121 & ข้อมูลนักเรียน!E121 & " "& ข้อมูลนักเรียน!F121) ->  | E121: =IF(ข้อมูลนักเรียน!C121=0,"",ข้อมูลนักเรียน!G121) ->  | F121: =ข้อมูลนักเรียน!B121 -> 0 | AG121: ผ่าน | AH121: 0 | AJ121: ปรับปรุง | AL121: 22
A122: =ข้อมูลนักเรียน!A122 -> 0 | B122: =IF(ข้อมูลนักเรียน!B122=0,"",ข้อมูลนักเรียน!B122) ->  | C122: =IF(ข้อมูลนักเรียน!C122=0,"",ข้อมูลนักเรียน!C122) ->  | D122: =IF(ข้อมูลนักเรียน!C122=0,"",ข้อมูลนักเรียน!D122 & ข้อมูลนักเรียน!E122 & " "& ข้อมูลนักเรียน!F122) ->  | E122: =IF(ข้อมูลนักเรียน!C122=0,"",ข้อมูลนักเรียน!G122) ->  | F122: =ข้อมูลนักเรียน!B122 -> 0 | AG122: ผ่าน | AH122: 0 | AJ122: ปรับปรุง | AL122: 22
A123: =ข้อมูลนักเรียน!A123 -> 0 | B123: =IF(ข้อมูลนักเรียน!B123=0,"",ข้อมูลนักเรียน!B123) ->  | C123: =IF(ข้อมูลนักเรียน!C123=0,"",ข้อมูลนักเรียน!C123) ->  | D123: =IF(ข้อมูลนักเรียน!C123=0,"",ข้อมูลนักเรียน!D123 & ข้อมูลนักเรียน!E123 & " "& ข้อมูลนักเรียน!F123) ->  | E123: =IF(ข้อมูลนักเรียน!C123=0,"",ข้อมูลนักเรียน!G123) ->  | F123: =ข้อมูลนักเรียน!B123 -> 0 | AG123: ผ่าน | AH123: 0 | AJ123: ปรับปรุง | AL123: 22
A124: =ข้อมูลนักเรียน!A124 -> 0 | B124: =IF(ข้อมูลนักเรียน!B124=0,"",ข้อมูลนักเรียน!B124) ->  | C124: =IF(ข้อมูลนักเรียน!C124=0,"",ข้อมูลนักเรียน!C124) ->  | D124: =IF(ข้อมูลนักเรียน!C124=0,"",ข้อมูลนักเรียน!D124 & ข้อมูลนักเรียน!E124 & " "& ข้อมูลนักเรียน!F124) ->  | E124: =IF(ข้อมูลนักเรียน!C124=0,"",ข้อมูลนักเรียน!G124) ->  | F124: =ข้อมูลนักเรียน!B124 -> 0 | AG124: ผ่าน | AH124: 0 | AJ124: ปรับปรุง | AL124: 22
A125: =ข้อมูลนักเรียน!A125 -> 0 | B125: =IF(ข้อมูลนักเรียน!B125=0,"",ข้อมูลนักเรียน!B125) ->  | C125: =IF(ข้อมูลนักเรียน!C125=0,"",ข้อมูลนักเรียน!C125) ->  | D125: =IF(ข้อมูลนักเรียน!C125=0,"",ข้อมูลนักเรียน!D125 & ข้อมูลนักเรียน!E125 & " "& ข้อมูลนักเรียน!F125) ->  | E125: =IF(ข้อมูลนักเรียน!C125=0,"",ข้อมูลนักเรียน!G125) ->  | F125: =ข้อมูลนักเรียน!B125 -> 0 | AG125: ผ่าน | AH125: 0 | AJ125: ปรับปรุง | AL125: 22
A126: =ข้อมูลนักเรียน!A126 -> 0 | B126: =IF(ข้อมูลนักเรียน!B126=0,"",ข้อมูลนักเรียน!B126) ->  | C126: =IF(ข้อมูลนักเรียน!C126=0,"",ข้อมูลนักเรียน!C126) ->  | D126: =IF(ข้อมูลนักเรียน!C126=0,"",ข้อมูลนักเรียน!D126 & ข้อมูลนักเรียน!E126 & " "& ข้อมูลนักเรียน!F126) ->  | E126: =IF(ข้อมูลนักเรียน!C126=0,"",ข้อมูลนักเรียน!G126) ->  | F126: =ข้อมูลนักเรียน!B126 -> 0 | AG126: ผ่าน | AH126: 0 | AJ126: ปรับปรุง | AL126: 22
H127: =LEFT(H3) -> ท | I127: =LEFT(I3) -> ค | J127: ว | K127: ส | L127: ส | M127: พ | N127: ศ | O127: ง | P127: อ | Q127: ง | R127: ล
D128: เกรด | G128: 0 | H128: =COUNTIF(H$7:H$126,$G128) -> 0 | I128: 0 | J128: 0 | K128: 0 | L128: 0 | M128: 0 | N128: 0 | O128: 0 | P128: 0 | Q128: 0 | R128: 0 | S128: 0 | T128: 0 | U128: 0 | V128: 0 | W128: 0 | X128: 0 | Y128: 0
G129: 1 | H129: =COUNTIF(H$7:H$126,$G129) -> 0 | I129: 1 | J129: 1 | K129: 0 | L129: 0 | M129: 0 | N129: 0 | O129: 0 | P129: 0 | Q129: 0 | R129: 0 | S129: 0 | T129: 0 | U129: =COUNTIF(U$7:U$126,$G129) -> 0 | V129: 0 | W129: 0 | X129: 0 | Y129: 0
G130: 1.5 | H130: 0 | I130: 0 | J130: 0 | K130: 0 | L130: 0 | M130: 0 | N130: 0 | O130: 0 | P130: 0 | Q130: 2 | R130: 2 | S130: 0 | T130: 0 | U130: 0 | V130: 0 | W130: 0 | X130: 2 | Y130: 2
